Workbook

Sheet Instructions
A2: Version 12.17.2015
B8: Contact Us | C8: Irrigation Spreadsheet Project
B9: Texas Corn Producers | C9: Spreadsheets were developed as part of a project supported by the Texas Corn Producers to create a decision aid that assists irrigated operators in making management decisions on the optimal crop mix for their land. Certain applications utilized were initially created as part of a project funded by the Texas Cotton State Support Committee.
B10: Extension Ag Economics
B11: Master Marketer
B12: Farm Assistance
B13: Market Outlook
B14: Futures Charts and Prices
B15: Introduction
A16: This tool requires Excel or a similar program that will read an Excel file. Budget cost estimates are not meant to represent any specific farm. They are averages, and serve as a starting point in your analysis. Due to differences in soil types and other resources that vary from farm to farm, it is important that you enter individualized crop cost estimates to achieve realistic results. To make long run decisions and determine farm business sustainability in future years, you will need to estimate fixed costs as well.
A22: The FARM Assistance Strategic Planning program is another useful tool for evaluating long term operational viability, and analyzing the financial impact of various business decisions such as acquiring more land or changing crop mixes. Contact DeDe Jones at 677-5600 or for more information.
B27: From Sheet to Sheet
A28: Each crop budget (Irr Alfalfa, Irr Corn, etc) and analysis section (Prices, Break-Even, Comparative, Irrigation) is displayed on a separate tab/sheet. However, summary tables in the analyses portion of this spreadsheet are tied to the budgets by equations, and will immediately update as you make changes to the individual budgets.
A32: The Menu sheet provides direct access to all crop budgets and summary pages from one location. It also allows the user to select the crops and scenarios they wish to see in the analyses tabs. To return to the Menu or navigate to the Prices, Break-even, Comparative, or Irrigation sections, use the colored navigation bar at the top of each sheet.
A36: Click on the crop budget name at the bottom of the screen to move from tab to tab. To scroll left or right and get access to budgets not listed on the screen, use the four small triangles in the bottom left corner of the worksheet. Clicking on one of the triangles with a vertical line will take you to the first sheet or the last sheet. Clicking on one of the triangles in the center will move over one sheet either left or right.
B41: Entering Your Numbers
A42: To enter personalized data in a budget, click on the number in BLUE that you wish to change, type in the new entry and press the Enter key, or just use the mouse to click on the next number that needs changing. GREEN entries can only be altered in the Universal Input Prices sheet. If the meaning of a certain budget number is unclear, many have a red triangle beside the entry. Moving your mouse over the triangle will provide a more detailed explanation.
B47: Printing
A48: If visible, click on the printer icon above the screen. It is usually found on the second row from the top. This should print a copy of the worksheet currently being viewed. For multiple sheets, select the ones you wish to see by holding down the control key while left-clicking on each sheet/tab. Then, selecting the printer icon will print all chosen sheets. If the icon is not visible, choose the File menu and then Print from the upper left corner, then follow the same procedures as above.
B53: Saving Your Work
A54: If you want to keep the numbers entered for future sessions, all files must be saved. To do this, just click on the Save icon (disk) to replace the original information with your new data. If the Save icon is not visible, you can also select the File menu and then Save As and give the file a new name.
B58: Special Thanks
A59: A special thanks goes to the project team of Steve Amosson, Thomas Marek, DeDe Jones, Jay Yates, Bridget Guerrero, and Michelle Jones and the project advisory committee of David Ford, Harold Grall, Tom Moore, and Mark Howard.

Sheet Menu
B3: Budgets | D3: Analysis Selection
B4: ='Irr Alfalfa'!$A$3 -> Irrigated Alfalfa
B5: ='Irr Canola'!$A$3 -> Irrigated Canola
B6: ='Irr Corn'!$A$3 -> Irrigated Corn
B7: ='Irr Corn Silage'!$A$3 -> Irrigated Corn Silage
B8: ='Irr Cotton'!$A$3 -> Irrigated Cotton
B9: ='Irr Peanuts'!$A$3 -> Irrigated Peanuts
B10: ='Irr Sorghum'!$A$3 -> Irrigated Sorghum
B11: ='Irr Sorghum Seed'!$A$3 -> Irrigated Sorghum Seed
B12: ='Irr Sorghum Silage'!$A$3 -> Irrigated Sorghum Silage
B13: ='Irr Sorghum Sudangrass'!$A$3 -> Irrigated Sorghum Sudangrass
B14: ='Irr Soybeans'!$A$3 -> Irrigated Soybeans
B15: ='Irr Sunflowers-Confection'!$A$3 -> Irrigated Sunflowers-Confectionary
B16: ='Irr Sunflowers-Oilseed'!$A$3 -> Irrigated Sunflowers-Oilseed
B17: ='Irr Triticale Silage'!$A$3 -> Irrigated Triticale Silage
B18: ='Irr Wheat'!$A$3 -> Irrigated Wheat
B19: ='Irr Other Crop'!$A$3 -> Irrigated Other Crop
B21: ='Dry Canola'!$A$3 -> Dryland Canola
B22: ='Dry Cotton'!$A$3 -> Dryland Cotton
B23: ='Dry Sorghum'!$A$3 -> Dryland Sorghum
B24: ='Dry Sorghum Sudangrass'!$A$3 -> Dryland Sorghum Sudangrass
B25: ='Dry Sunflowers-Oilseed'!$A$3 -> Dryland Sunflowers-Oilseed
B26: ='Dry Wheat'!$A$3 -> Dryland Wheat
B27: ='Dry Other Crop'!$A$3 -> Dryland Other Crop

Sheet Universal Input Prices
A2: Basic Universal Input Prices
A3: Commodity | B3: Price | C3: Unit
A4: Alfalfa | B4: $140.00 | C4: ton
A5: Canola | B5: $13.90 | C5: cwt
A6: Corn | B6: $3.80 | C6: bu
A7: Corn Silage | B7: $35.10 | C7: ton
A8: Cotton | B8: $0.6500 | C8: lb
A9: Cottonseed | B9: $200.00 | C9: ton
A10: Peanuts | B10: $420.00 | C10: ton
A11: Sorghum | B11: $5.75 | C11: cwt
A12: Sorghum Seed | B12: $16.90 | C12: cwt
A13: Sorghum Silage | B13: $31.60 | C13: ton
A14: Soybeans | B14: $8.40 | C14: bu
A15: Sunflower - Conf. (large) | B15: $21.00 | C15: cwt
A16: Sunflower - Oil | B16: $16.50 | C16: cwt
A17: Triticale Silage | B17: $31.60 | C17: ton
A18: Wheat | B18: $3.95 | C18: bu
A19: Irrigated Other Crop | B19: 0 | C19: unit
A20: Dryland Other Crop | B20: 0 | C20: unit
A22: Grazing | B22: $0.40 | C22: lb of gain
A24: Input Item | B24: Price | C24: Unit | E24: Fertilizer Worksheet
A25: Fertilizer | J25: Cost per ton
A26: fert (N) - dry | B26: =J26/I26/2000 -> $0.330 | C26: /lb of N | E26: % N in Primary Nitrogen Fertilizer - dry | I26: 46.0% | J26: $304.00
A27: fert (N) - liquid | B27: $0.410 | C27: /lb of N | E27: % N in Primary Nitrogen Fertilizer - liquid | I27: 32.0% | J27: $262.50
A28: fert (N) - NH3 | B28: =J28/I28/2000 -> $0.250 | C28: /lb of N | E28: % N in Primary Nitrogen Fertilizer - NH3 | I28: 82.0% | J28: $410.00
A29: fert (P) - dry | B29: =J29/I29/2000 -> $0.430 | C29: /lb of P | E29: % P in Primary Phosphate Fertilizer - dry | I29: 52.0% | J29: $447.00
A30: fert (P) - liquid | B30: =J30/I30/2000 -> $0.470 | C30: /lb of P | E30: % P in Primary Phosphate Fertilizer - liquid | I30: 34.0% | J30: $319.60
A31: Labor | B31: $12.45 | C31: /hour
A32: Diesel Fuel - Tractors | B32: $1.81 | C32: /gallon
A33: Gasoline - Pickup | B33: $1.93 | C33: /gallon
A34: Irrigation Fuel | B34: $3.60 | C34: /acre inch
A35: Interest-operating capital | B35: 5.40% | C35: APR
A36: Cotton
A37: Stripping & module | B37: $8.000 | C37: /cwt cotton lint
A38: Ginning | B38: $2.75 | C38: /cwt seed cotton
A39: Seed Turnout | B39: 750 | C39: lbs/500 lb bale

Sheet Irr Alfalfa
A2: Estimated Costs and Returns per Acre
A3: Irrigated Alfalfa
A4: Projected for 2016
H5: Rental Agreement | I5: Share
A6: Item | B6: Quantity | C6: Unit | D6: Price | E6: Landlord | H6: Share | I6: Cash
E7: Share | F7: Total | G7: Tenant | H7: Landlord
A8: Income
A9: alfalfa hay | B9: 5.50 | C9: ton | D9: ='Universal Input Prices'!B4 -> $140.00 | E9: 33% | F9: =D9*B9 -> $770.00 | G9: =F9*(1-E9) -> $515.90 | H9: =IF(H6="Cash", D58,F9*E9) -> $254.10
A10: other income | B10: 0.00 | C10: $/ac. | D10: $1.00 | E10: 33% | F10: =D10*B10 -> $0.00 | G10: =F10*(1-E10) -> $0.00 | H10: =IF(H7="Cash", D59,F10*E10) -> $0.00
A12: Total Income | F12: =SUM(F8:F11) -> $770.00 | G12: =SUM(G8:G11) -> $515.90 | H12: =SUM(H8:H11) -> $254.10
A14: Variable Costs
A15: Seed
A16: alfalfa | B16: 0.00 | C16: lb | D16: $5.65 | E16: 0% | F16: =D16*B16 -> $0.00 | G16: =F16*(1-E16) -> $0.00 | H16: =F16*E16 -> $0.00
A17: Fertilizer
A18: fert (P) - liquid | B18: 60.0 | C18: lb | D18: =IF(A18="",0,VLOOKUP(A18,'Universal Input Prices'!$A$26:$B$30, 2)) -> $0.470 | E18: 33% | F18: =D18*B18 -> $28.20 | G18: =F18*(1-E18) -> $18.89 | H18: =F18*E18 -> $9.31
B19: 0.0 | C19: lb | D19: =IF(A19="",0,VLOOKUP(A19,'Universal Input Prices'!$A$26:$B$30, 2)) -> $0.000 | E19: 0% | F19: =D19*B19 -> $0.00 | G19: =F19*(1-E19) -> $0.00 | H19: =F19*E19 -> $0.00
B20: 0.0 | C20: lb | D20: =IF(A20="",0,VLOOKUP(A20,'Universal Input Prices'!$A$26:$B$30, 2)) -> $0.000 | E20: 0% | F20: =D20*B20 -> $0.00 | G20: =F20*(1-E20) -> $0.00 | H20: =F20*E20 -> $0.00
A21: sulfur | B21: 0.0 | C21: lb | D21: $0.12 | E21: 33% | F21: =D21*B21 -> $0.00 | G21: =F21*(1-E21) -> $0.00 | H21: =F21*E21 -> $0.00
A22: Field Operations
A23: herbicide & application | B23: 1.0 | C23: acre | D23: $22.00 | E23: 33% | F23: =D23*B23 -> $22.00 | G23: =F23*(1-E23) -> $14.74 | H23: =F23*E23 -> $7.26
A24: fertilizer application | B24: 1.0 | C24: acre | D24: $5.00 | E24: 33% | F24: =D24*B24 -> $5.00 | G24: =F24*(1-E24) -> $3.35 | H24: =F24*E24 -> $1.65
A25: insecticide & application | B25: 1.0 | C25: acre | D25: $10.00 | E25: 33% | F25: =D25*B25 -> $10.00 | G25: =F25*(1-E25) -> $6.70 | H25: =F25*E25 -> $3.30
A26: custom baling | B26: =$B$9 -> 5.50 | C26: ton | D26: $40.00 | E26: 0% | F26: =D26*B26 -> $220.00 | G26: =F26*(1-E26) -> $220.00 | H26: =F26*E26 -> $0.00
A27: crop consultant | B27: 1.0 | C27: acre | D27: $0.00 | E27: 0% | F27: =D27*B27 -> $0.00 | G27: =F27*(1-E27) -> $0.00 | H27: =F27*E27 -> $0.00
A28: scouting | B28: 1.0 | C28: acre | D28: $0.00 | E28: 0% | F28: $0.00 | G28: $0.00 | H28: $0.00
A29: other | B29: 1.0 | C29: acre | D29: $0.00 | E29: 0% | F29: $0.00 | G29: $0.00 | H29: $0.00
A30: other | B30: 1.0 | C30: acre | D30: $0.00 | E30: 0% | F30: $0.00 | G30: $0.00 | H30: $0.00
A31: other | B31: 1.0 | C31: acre | D31: $0.00 | E31: 0% | F31: $0.00 | G31: $0.00 | H31: $0.00
A32: Crop Insurance | B32: 1.0 | C32: acre | D32: $0.00 | E32: 0% | F32: $0.00 | G32: $0.00 | H32: $0.00
A33: Operator Labor & Hand Labor | B33: 0.00 | C33: hour | D33: ='Universal Input Prices'!$B$31 -> $12.45 | E33: 0% | F33: $0.00 | G33: $0.00 | H33: $0.00
A34: Irrigation Labor | B34: 1.54 | C34: hours | D34: ='Universal Input Prices'!$B$31 -> $12.45 | E34: 0% | F34: $19.12 | G34: $19.12 | H34: $0.00
A35: Diesel Fuel - Tractors | B35: 0.00 | C35: gallons | D35: ='Universal Input Prices'!$B$32 -> $1.81 | E35: 0% | F35: $0.00 | G35: $0.00 | H35: $0.00
A36: Gasoline - Pickup | B36: 2.05 | C36: gallons | D36: ='Universal Input Prices'!$B$33 -> $1.93 | E36: 0% | F36: $3.95 | G36: $3.95 | H36: $0.00
A37: Irrigation Fuel | B37: 24.00 | C37: acin | D37: ='Universal Input Prices'!$B$34 -> $3.60 | E37: 33% | F37: =D37*B37 -> $86.40 | G37: =F37*(1-E37) -> $57.89 | H37: =F37*E37 -> $28.51
A38: Pumping Days | B38: 56.57
A39: Calculated GPM capacity per acre needed | B39: =B37*18.85694/B38 -> 8.00
A40: Repair & Maintenance
A41: Implements | B41: 1.00 | C41: acre | D41: $0.00 | E41: 0% | F41: =D41*B41 -> $0.00 | G41: =F41*(1-E41) -> $0.00 | H41: =F41*E41 -> $0.00
A42: Tractors | B42: 1.00 | C42: acre | D42: $0.00 | E42: 0% | F42: =D42*B42 -> $0.00 | G42: =F42*(1-E42) -> $0.00 | H42: =F42*E42 -> $0.00
A43: Irrigation-Above Ground | B43: =B37 -> 24.00 | C43: acin | D43: $4.04 | E43: 0% | F43: =D43*B43 -> $96.96 | G43: =F43*(1-E43) -> $96.96 | H43: =F43*E43 -> $0.00
A44: Self Propelled Equipment | B44: 1.00 | C44: acre | D44: $0.00 | E44: 100% | F44: =D44*B44 -> $0.00 | G44: =F44*(1-E44) -> $0.00 | H44: =F44*E44 -> $0.00
A45: Pickup | B45: 1.00 | C45: acre | D45: $2.51 | E45: 0% | F45: =D45*B45 -> $2.51 | G45: =F45*(1-E45) -> $2.51 | H45: =F45*E45 -> $0.00
A46: Interest-operating capital | B46: ='Universal Input Prices'!$B$35 -> 5.40% | F46: =(SUM(F16:F25,F27:F45))*$B46/3.1 -> $4.78 | G46: =(SUM(G16:G25,G27:G45))*$B46/2 -> $6.05 | H46: $1.35
A48: Total Variable Costs | F48: =SUM(F16:F47) -> $498.92 | G48: =SUM(G16:G46) -> $450.16 | H48: =SUM(H16:H46) -> $51.38
A49: Returns Above Variable Costs | F49: =F12-F48 -> $271.08 | G49: =G12-G48 -> $65.74 | H49: =H12-H48 -> $202.72
A51: Fixed Costs
A52: Implements | B52: 1.00 | C52: acre | D52: $0.00 | E52: 0% | F52: =D52*B52 -> $0.00 | G52: =F52*(1-E52) -> $0.00 | H52: =F52*E52 -> $0.00
A53: Tractors | B53: 1.00 | C53: acre | D53: $0.00 | E53: 0% | F53: $0.00 | G53: $0.00 | H53: $0.00
A54: Irrigation Equipment | B54: 1.00 | C54: acre | D54: $47.34 | E54: 0% | F54: $47.34 | G54: $47.34 | H54: $0.00
A55: Self Propelled Equipment | B55: 1.00 | C55: acre | D55: $0.00 | E55: 100% | F55: $0.00 | G55: $0.00 | H55: $0.00
A56: Pickup | B56: 1.00 | C56: acre | D56: $3.66 | E56: 0% | F56: $3.66 | G56: $3.66 | H56: $0.00
A57: Management | B57: 1.00 | C57: acre | D57: $0.00 | E57: 0% | F57: $0.00 | G57: $0.00 | H57: $0.00
A58: Irrigation Investment | B58: 1.00 | C58: acre | D58: $32.30 | E58: 0% | F58: $32.30 | G58: $32.30 | H58: $0.00
A59: Land | B59: 1.00 | C59: acre | D59: $120.00 | E59: 100% | F59: $120.00 | G59: =IF($H$6="Cash",D59,F59*(1-E59)) -> $0.00 | H59: =IF($H$6="Cash",0,F59*E59) -> $120.00
A60: Property Tax | B60: 1.00 | C60: acre | D60: $0.00 | E60: 100% | F60: $0.00 | G60: $0.00 | H60: $0.00
A61: Perenial Crop Establishment | B61: 1.00 | C61: acre | D61: $72.00 | E61: 0% | F61: =B61*D61 -> $72.00 | G61: =F61*(1-E61) -> $72.00 | H61: =F61*E61 -> $0.00
A62: Total Fixed Costs | F62: =SUM(F52:F61) -> $275.30 | G62: =SUM(G52:G61) -> $155.30 | H62: =SUM(H52:H61) -> $120.00
A63: Total Specified Costs | F63: =F48+F62 -> $774.22 | G63: =G48+G62 -> $605.46 | H63: =H48+H62 -> $171.38
A64: Returns Above Total Specified Costs | F64: =F12-F63 -> ($4.22) | G64: =G12-G63 -> ($89.56) | H64: =H12-H63 -> $82.72
A66: Return on Investment | F66: =(F64/F63) -> -0.54% | G66: =(G64/G63) -> -14.79% | H66: 48.27%

Sheet Irr Canola
A2: Estimated Costs and Returns per Acre
A3: Irrigated Canola
A4: Projected for 2016
H5: Rental Agreement | I5: Share
A6: Item | B6: Quantity | C6: Unit | D6: Price | E6: Landlord | H6: Share | I6: Cash
E7: Share | F7: Total | G7: Tenant | H7: Landlord
A8: Income
A9: canola | B9: 22.00 | C9: cwt | D9: ='Universal Input Prices'!$B$5 -> $13.90 | E9: 33% | F9: =D9*B9 -> $305.80 | G9: =F9*(1-E9) -> $204.89 | H9: =IF(H6="Cash", D60,F9*E9) -> $100.91
A10: other income | B10: 0.00 | C10: $/ac. | D10: $1.00 | E10: 33% | F10: =D10*B10 -> $0.00 | G10: =F10*(1-E10) -> $0.00 | H10: =IF(H7="Cash", D59,F10*E10) -> $0.00
A12: Total Income | F12: =SUM(F8:F11) -> $305.80 | G12: =SUM(G8:G11) -> $204.89 | H12: =SUM(H8:H11) -> $100.91
A14: Variable Costs
A15: Seed
A16: canola seed | B16: 5.00 | C16: lb | D16: $6.600 | E16: 0% | F16: =D16*B16 -> $33.00 | G16: =F16*(1-E16) -> $33.00 | H16: =F16*E16 -> $0.00
A17: seed treatment | B17: 1.00 | C17: acre | D17: $6.700 | E17: 0% | F17: =D17*B17 -> $6.70 | G17: =F17*(1-E17) -> $6.70 | H17: =F17*E17 -> $0.00
A18: Fertilizer
A19: fert (N) - dry | B19: 30.0 | C19: lb | D19: =IF(A19="",0,VLOOKUP(A19,'Universal Input Prices'!$A$26:$B$26, 2)) -> $0.330 | E19: 33% | F19: =D19*B19 -> $9.91 | G19: =F19*(1-E19) -> $6.64 | H19: =F19*E19 -> $3.27
A20: fert (N) - liquid | B20: 60.0 | C20: lb | D20: =IF(A20="",0,VLOOKUP(A20,'Universal Input Prices'!$A$26:$B$27, 2)) -> $0.410 | E20: 33% | F20: =D20*B20 -> $24.61 | G20: =F20*(1-E20) -> $16.49 | H20: =F20*E20 -> $8.12
B21: 0.0 | C21: lb | D21: =IF(A21="",0,VLOOKUP(A21,'Universal Input Prices'!$A$26:$B$30, 2)) -> $0.000 | E21: 0% | F21: =D21*B21 -> $0.00 | G21: =F21*(1-E21) -> $0.00 | H21: =F21*E21 -> $0.00
A22: Field Operations
A23: herbicide & application | B23: 1.0 | C23: acre | D23: $14.30 | E23: 33% | F23: =D23*B23 -> $14.30 | G23: =F23*(1-E23) -> $9.58 | H23: =F23*E23 -> $4.72
A24: fertilizer application | B24: 1.0 | C24: acre | D24: $5.00 | E24: 33% | F24: $5.00 | G24: $3.35 | H24: $1.65
A25: insecticide & application | B25: 1.0 | C25: acre | D25: $22.90 | E25: 33% | F25: $22.90 | G25: $15.34 | H25: $7.56
A26: custom harvest & haul | B26: 1.0 | C26: acre | D26: $26.75 | E26: 0% | F26: $26.75 | G26: $26.75 | H26: $0.00
A27: custom harvest & haul | B27: =B9 -> 22.00 | C27: cwt | D27: $0.45 | E27: 0% | F27: $9.90 | G27: $9.90 | H27: $0.00
A28: hoeing | B28: 0.0 | C28: acre | D28: $0.00 | E28: 0% | F28: $0.00 | G28: $0.00 | H28: $0.00
A29: scouting | B29: 1.0 | C29: acre | D29: $0.00 | E29: 0% | F29: $0.00 | G29: $0.00 | H29: $0.00
A30: other | B30: 1.0 | C30: acre | D30: $0.00 | E30: 0% | F30: $0.00 | G30: $0.00 | H30: $0.00
A31: other | B31: 1.0 | C31: acre | D31: $0.00 | E31: 0% | F31: $0.00 | G31: $0.00 | H31: $0.00
A32: other | B32: 1.0 | C32: acre | D32: $0.00 | E32: 0% | F32: $0.00 | G32: $0.00 | H32: $0.00
A33: Crop Insurance | B33: 1.0 | C33: acre | D33: $0.00 | E33: 33% | F33: $0.00 | G33: $0.00 | H33: $0.00
A34: Operator Labor & Hand Labor | B34: 1.04 | C34: hours | D34: ='Universal Input Prices'!$B$31 -> $12.45 | E34: 0% | F34: $12.95 | G34: $12.95 | H34: $0.00
A35: Irrigation Labor | B35: 0.64 | C35: hours | D35: ='Universal Input Prices'!$B$31 -> $12.45 | E35: 0% | F35: $7.97 | G35: $7.97 | H35: $0.00
A36: Diesel Fuel - Tractors | B36: 2.65 | C36: gallons | D36: ='Universal Input Prices'!$B$32 -> $1.81 | E36: 0% | F36: $4.80 | G36: $4.80 | H36: $0.00
A37: Gasoline - Pickup | B37: 2.05 | C37: gallons | D37: ='Universal Input Prices'!$B$33 -> $1.93 | E37: 0% | F37: $3.95 | G37: $3.95 | H37: $0.00
A38: Irrigation Fuel | B38: 10.00 | C38: acin | D38: ='Universal Input Prices'!$B$34 -> $3.60 | E38: 33% | F38: $36.00 | G38: $24.12 | H38: $11.88
A39: Pumping Days | B39: 94.28
A40: Calculated GPM capacity per acre needed | B40: =B38*18.85694/B39 -> 2.00
A41: Repair & Maintenance
A42: Implements | B42: 1.00 | C42: acre | D42: $10.96 | E42: 0% | F42: =D42*B42 -> $10.96 | G42: =F42*(1-E42) -> $10.96 | H42: =F42*E42 -> $0.00
A43: Tractors | B43: 1.00 | C43: acre | D43: $4.65 | E43: 0% | F43: =D43*B43 -> $4.65 | G43: =F43*(1-E43) -> $4.65 | H43: =F43*E43 -> $0.00
A44: Irrigation-Above Ground | B44: =B38 -> 10.00 | C44: acin | D44: $4.04 | E44: 0% | F44: =D44*B44 -> $40.40 | G44: =F44*(1-E44) -> $40.40 | H44: =F44*E44 -> $0.00
A45: Self Propelled Equipment | B45: 1.00 | C45: acre | D45: $0.00 | E45: 100% | F45: =D45*B45 -> $0.00 | G45: =F45*(1-E45) -> $0.00 | H45: =F45*E45 -> $0.00
A46: Pickup | B46: 1.00 | C46: acre | D46: $2.51 | E46: 0% | F46: =D46*B46 -> $2.51 | G46: =F46*(1-E46) -> $2.51 | H46: =F46*E46 -> $0.00
A47: Interest-operating capital | B47: ='Universal Input Prices'!$B$35 -> 5.40% | F47: =(SUM(F16:F25,F28:F46))*$B47/1.85 -> $7.02 | G47: =(SUM(G16:G25,G28:G46))*$B47/2 -> $5.49 | H47: $1.00
A49: Total Variable Costs | F49: =SUM(F15:F47) -> $284.27 | G49: =SUM(G15:G47) -> $245.55 | H49: =SUM(H15:H47) -> $38.20
A50: Returns Above Variable Costs | F50: =F12-F49 -> $21.53 | G50: =G12-G49 -> ($40.66) | H50: =H12-H49 -> $62.71
A52: Fixed Costs
A53: Implements | B53: 1.00 | C53: acre | D53: $17.37 | E53: 0% | F53: =D53*B53 -> $17.37 | G53: =F53*(1-E53) -> $17.37 | H53: =F53*E53 -> $0.00
A54: Tractors | B54: 1.00 | C54: acre | D54: $6.69 | E54: 0% | F54: $6.69 | G54: $6.69 | H54: $0.00
A55: Irrigation Equipment | B55: 1.00 | C55: acre | D55: $33.50 | E55: 0% | F55: $33.50 | G55: $33.50 | H55: $0.00
A56: Self Propelled Equipment | B56: 1.00 | C56: acre | D56: $0.00 | E56: 100% | F56: $0.00 | G56: $0.00 | H56: $0.00
A57: Pickup | B57: 1.00 | C57: acre | D57: $3.66 | E57: 0% | F57: $3.66 | G57: $3.66 | H57: $0.00
A58: Management | B58: 1.00 | C58: acre | D58: $0.00 | E58: 0% | F58: $0.00 | G58: $0.00 | H58: $0.00
A59: Irrigation Investment | B59: 1.00 | C59: acre | D59: $26.57 | E59: 0% | F59: =B59*D59 -> $26.57 | G59: $26.57 | H59: $0.00
A60: Land | B60: 1.00 | C60: acre | D60: $72.00 | E60: 100% | F60: =D60*B60 -> $72.00 | G60: =IF($H$6="Cash",D60,F60*(1-E60)) -> $0.00 | H60: =IF($H$6="Cash",0,F60*E60) -> $72.00
A61: Property Tax | B61: 1.00 | C61: acre | D61: $0.00 | E61: 100% | F61: =B61*D61 -> $0.00 | G61: $0.00 | H61: $0.00
A62: Total Fixed Expenses | F62: =SUM(F53:F61) -> $159.79 | G62: =SUM(G53:G61) -> $87.79 | H62: =SUM(H53:H61) -> $72.00
A63: Total Specified Expenses | F63: =F49+F62 -> $444.06 | G63: =G49+G62 -> $333.34 | H63: =H49+H62 -> $110.20
A64: Returns Above Total Specified Expenses | F64: =F12-F63 -> ($138.26) | G64: =G12-G63 -> ($128.45) | H64: =H12-H63 -> ($9.29)
A66: Return on Investment | F66: =(F64/F63) -> -31.14% | G66: =(G64/G63) -> -38.53% | H66: -8.43%

Sheet Irr Corn
A2: Estimated Costs and Returns per Acre
A3: Irrigated Corn
A4: Projected for 2016
H5: Rental Agreement | I5: Share
A6: Item | B6: Quantity | C6: Unit | D6: Price | E6: Landlord | H6: Cash | I6: Cash
E7: Share | F7: Total | G7: Tenant | H7: Landlord
A8: Income
A9: corn grain | B9: 225.0 | C9: bu | D9: ='Universal Input Prices'!$B$6 -> $3.80 | E9: 33% | F9: =D9*B9 -> $855.00 | G9: =F9*(1-E9) -> $572.85 | H9: =IF(H6="Cash", D58,F9*E9) -> $120.00
A10: other income | B10: 0.00 | C10: $/ac. | D10: $1.00 | E10: 33% | F10: =D10*B10 -> $0.00 | G10: =F10*(1-E10) -> $0.00 | H10: =IF(H7="Cash", D59,F10*E10) -> $0.00
A12: Total Income | F12: =SUM(F8:F11) -> $855.00 | G12: =SUM(G8:G11) -> $572.85 | H12: $120.00
A14: Variable Costs
A15: Seed
A16: corn seed | B16: 0.38 | C16: bags | D16: $280.000 | E16: 0% | F16: =D16*B16 -> $106.40 | G16: =F16*(1-E16) -> $106.40 | H16: =F16*E16 -> $0.00
A17: Fertilizer
A18: fert (N) - NH3 | B18: 126.0 | C18: lb | D18: =IF(A18="",0,VLOOKUP(A18,'Universal Input Prices'!$A$26:$B$30, 2)) -> $0.250 | E18: 33% | F18: =D18*B18 -> $31.50 | G18: =F18*(1-E18) -> $21.11 | H18: =F18*E18 -> $10.40
A19: fert (P) - liquid | B19: 60.0 | C19: lb | D19: =IF(A19="",0,VLOOKUP(A19,'Universal Input Prices'!$A$26:$B$30, 2)) -> $0.470 | E19: 33% | F19: =D19*B19 -> $28.20 | G19: =F19*(1-E19) -> $18.89 | H19: =F19*E19 -> $9.31
A20: fert (N) - liquid | B20: 78.0 | C20: lb | D20: =IF(A20="",0,VLOOKUP(A20,'Universal Input Prices'!$A$26:$B$27, 2)) -> $0.410 | E20: 33% | F20: =D20*B20 -> $31.99 | G20: =F20*(1-E20) -> $21.43 | H20: =F20*E20 -> $10.56
A21: Field Operations
A22: herbicide preplant | B22: 1.0 | C22: acre | D22: $17.40 | E22: 33% | F22: =D22*B22 -> $17.40 | G22: =F22*(1-E22) -> $11.66 | H22: =F22*E22 -> $5.74
A23: fertilizer application | B23: 1.0 | C23: acre | D23: $15.00 | E23: 33% | F23: $15.00 | G23: $10.05 | H23: $4.95
A24: insecticide & application | B24: 1.0 | C24: acre | D24: $21.00 | E24: 33% | F24: $21.00 | G24: $14.07 | H24: $6.93
A25: custom harvest & haul | B25: =$B$9 -> 225.0 | C25: bu | D25: $0.40 | E25: 0% | F25: $90.00 | G25: $90.00 | H25: $0.00
A26: crop consultant | B26: 1.0 | C26: acre | D26: $8.00 | E26: 0% | F26: $8.00 | G26: $8.00 | H26: $0.00
A27: scouting | B27: 1.0 | C27: acre | D27: $0.00 | E27: 0% | F27: =D27*B27 -> $0.00 | G27: =F27*(1-E27) -> $0.00 | H27: =F27*E27 -> $0.00
A28: herbicide postplant | B28: 1.0 | C28: acre | D28: $15.70 | E28: 0% | F28: $15.70 | G28: $15.70 | H28: $0.00
A29: other | B29: 1.0 | C29: acre | D29: $0.00 | E29: 0% | F29: $0.00 | G29: $0.00 | H29: $0.00
A30: other | B30: 1.0 | C30: acre | D30: $0.00 | E30: 0% | F30: $0.00 | G30: $0.00 | H30: $0.00
A31: Crop Insurance | B31: 1.0 | C31: acre | D31: $36.50 | E31: 33% | F31: $36.50 | G31: $24.46 | H31: $12.05
A32: Operator Labor & Hand Labor | B32: 0.98 | C32: hour | D32: ='Universal Input Prices'!$B$31 -> $12.45 | E32: 0% | F32: $12.14 | G32: $12.14 | H32: $0.00
A33: Irrigation Labor | B33: 1.41 | C33: hours | D33: ='Universal Input Prices'!$B$31 -> $12.45 | E33: 0% | F33: $17.55 | G33: $17.55 | H33: $0.00
A34: Diesel Fuel - Tractors | B34: 2.66 | C34: gallons | D34: ='Universal Input Prices'!$B$32 -> $1.81 | E34: 0% | F34: $4.81 | G34: $4.81 | H34: $0.00
A35: Gasoline - Pickup | B35: 3.07 | C35: gallons | D35: ='Universal Input Prices'!$B$33 -> $1.93 | E35: 0% | F35: $5.92 | G35: $5.92 | H35: $0.00
A36: Irrigation Fuel | B36: 22.00 | C36: acin | D36: ='Universal Input Prices'!$B$34 -> $3.60 | E36: 33% | F36: $79.20 | G36: $53.06 | H36: $26.14
A37: Pumping Days | B37: 69.14
A38: Calculated GPM capacity per acre needed | B38: =B36*18.85694/B37 -> 6.00
A39: Repair & Maintenance
A40: Implements | B40: 1.00 | C40: acre | D40: $10.78 | E40: 0% | F40: =D40*B40 -> $10.78 | G40: $10.78 | H40: $0.00
A41: Tractors | B41: 1.00 | C41: acre | D41: $4.89 | E41: 0% | F41: =D41*B41 -> $4.89 | G41: $4.89 | H41: $0.00
A42: Irrigation-Above Ground | B42: =Corn_Inches -> 22.00 | C42: acin | D42: $4.04 | E42: 0% | F42: =D42*B42 -> $88.88 | G42: $88.88 | H42: $0.00
A43: Self Propelled Equipment | B43: 1.00 | C43: acre | D43: $0.00 | E43: 100% | F43: =D43*B43 -> $0.00 | G43: $0.00 | H43: $0.00
A44: Pickup | B44: 1.00 | C44: acre | D44: $3.76 | E44: 0% | F44: =D44*B44 -> $3.76 | G44: $3.76 | H44: $0.00
A45: Interest-operating capital | B45: ='Universal Input Prices'!$B$35 -> 5.40% | F45: =(SUM(F16:F24,F26:F44))*$B45/2.95 -> $9.88 | G45: =(SUM(G16:G24,G26:G44))*$B45/2 -> $12.25 | H45: $2.32
A47: Total Variable Costs | F47: =SUM(F16:F45) -> $639.51 | G47: =SUM(G16:G45) -> $555.82 | H47: =SUM(H16:H45) -> $88.39
A48: Returns Above Variable Costs | F48: =F12-F47 -> $215.49 | G48: =G12-G47 -> $17.03 | H48: =H12-H47 -> $31.61
A50: Fixed Costs
A51: Implements | B51: 1.00 | C51: acre | D51: $16.92 | E51: 0% | F51: =D51*B51 -> $16.92 | G51: =F51*(1-E51) -> $16.92 | H51: =F51*E51 -> $0.00
A52: Tractors | B52: 1.00 | C52: acre | D52: $6.95 | E52: 0% | F52: $6.95 | G52: $6.95 | H52: $0.00
A53: Irrigation Equipment | B53: 1.00 | C53: acre | D53: $47.34 | E53: 0% | F53: $47.34 | G53: $47.34 | H53: $0.00
A54: Self Propelled Equipment | B54: 1.00 | C54: acre | D54: $0.00 | E54: 100% | F54: $0.00 | G54: $0.00 | H54: $0.00
A55: Pickup | B55: 1.00 | C55: acre | D55: $5.49 | E55: 0% | F55: $5.49 | G55: $5.49 | H55: $0.00
A56: Management | B56: 1.00 | C56: acre | D56: $0.00 | E56: 0% | F56: $0.00 | G56: $0.00 | H56: $0.00
A57: Irrigation Investment | B57: 1.00 | C57: acre | D57: $32.30 | E57: 0% | F57: $32.30 | G57: $32.30 | H57: $0.00
A58: Land | B58: 1.00 | C58: acre | D58: $120.00 | E58: 100% | F58: $120.00 | G58: =IF($H$6="Cash",D58,F58*(1-E58)) -> $120.00 | H58: =IF($H$6="Cash",0,F58*E58) -> $0.00
A59: Property Tax | B59: 1.00 | C59: acre | D59: $0.00 | E59: 100% | F59: $0.00 | G59: $0.00 | H59: $0.00
A60: Total Fixed Expenses | F60: =SUM(F51:F59) -> $229.00 | G60: =SUM(G51:G59) -> $229.00 | H60: =SUM(H51:H59) -> $0.00
A61: Total Specified Expenses | F61: =F47+F60 -> $868.51 | G61: =G47+G60 -> $784.82 | H61: =H47+H60 -> $88.39
A62: Returns Above Total Specified Expenses | F62: =F12-F61 -> ($13.51) | G62: =G12-G61 -> ($211.97) | H62: =H12-H61 -> $31.61
A64: Return on Investment | F64: =(F62/F61) -> -1.56% | G64: =(G62/G61) -> -27.01% | H64: 35.77%

Sheet Irr Corn Silage
A2: Estimated Costs and Returns per Acre
A3: Irrigated Corn Silage
A4: Projected for 2016
H5: Rental Agreement | I5: Share
A6: Item | B6: Quantity | C6: Unit | D6: Price | E6: Landlord | H6: Share | I6: Cash
E7: Share | F7: Total | G7: Tenant | H7: Landlord
A8: Income
A9: corn silage | B9: 27.00 | C9: ton | D9: ='Universal Input Prices'!$B$7 -> $35.10 | E9: 33% | F9: =D9*B9 -> $947.70 | G9: =F9*(1-E9) -> $634.96 | H9: =IF(H6="Cash", D58,F9*E9) -> $312.74
A10: other income | B10: 0.00 | C10: $/ac. | D10: $1.00 | E10: 33% | F10: =D10*B10 -> $0.00 | G10: =F10*(1-E10) -> $0.00 | H10: =IF(H7="Cash", D59,F10*E10) -> $0.00
A12: Total Income | F12: =SUM(F8:F11) -> $947.70 | G12: =SUM(G8:G11) -> $634.96 | H12: $312.74
A14: Variable Costs
A15: Seed
A16: corn seed | B16: 0.40 | C16: bags | D16: $280.000 | E16: 0% | F16: =D16*B16 -> $112.00 | G16: =F16*(1-E16) -> $112.00 | H16: =F16*E16 -> $0.00
A17: Fertilizer
A18: fert (N) - NH3 | B18: 126.0 | C18: lb | D18: =IF(A18="",0,VLOOKUP(A18,'Universal Input Prices'!$A$26:$B$30, 2)) -> $0.250 | E18: 33% | F18: =D18*B18 -> $31.50 | G18: =F18*(1-E18) -> $21.11 | H18: =F18*E18 -> $10.40
A19: fert (P) - liquid | B19: 60.0 | C19: lb | D19: =IF(A19="",0,VLOOKUP(A19,'Universal Input Prices'!$A$26:$B$30, 2)) -> $0.470 | E19: 33% | F19: =D19*B19 -> $28.20 | G19: =F19*(1-E19) -> $18.89 | H19: =F19*E19 -> $9.31
A20: fert (N) - liquid | B20: 78.0 | C20: lb | D20: =IF(A20="",0,VLOOKUP(A20,'Universal Input Prices'!$A$26:$B$27, 2)) -> $0.410 | E20: 33% | F20: =D20*B20 -> $31.99 | G20: =F20*(1-E20) -> $21.43 | H20: =F20*E20 -> $10.56
A21: Field Operations
A22: herbicide preplant | B22: 1.0 | C22: acre | D22: $17.40 | E22: 33% | F22: =D22*B22 -> $17.40 | G22: =F22*(1-E22) -> $11.66 | H22: =F22*E22 -> $5.74
A23: fertilizer application | B23: 1.0 | C23: acre | D23: $15.00 | E23: 33% | F23: $15.00 | G23: $10.05 | H23: $4.95
A24: insecticide & application | B24: 1.0 | C24: appl | D24: $25.70 | E24: 33% | F24: $25.70 | G24: $17.22 | H24: $8.48
A25: custom harvest & haul | B25: =$B$9 -> 27.00 | C25: ton | D25: $9.04 | E25: 0% | F25: $244.08 | G25: $244.08 | H25: $0.00
A26: crop consultant | B26: 1.0 | C26: acre | D26: $0.00 | E26: 0% | F26: $0.00 | G26: $0.00 | H26: $0.00
A27: scouting | B27: 1.0 | C27: acre | D27: $0.00 | E27: 0% | F27: =D27*B27 -> $0.00 | G27: =F27*(1-E27) -> $0.00 | H27: =F27*E27 -> $0.00
A28: herbicide postplant | B28: 1.0 | C28: acre | D28: $15.70 | E28: 0% | F28: $15.70 | G28: $15.70 | H28: $0.00
A29: miticide | B29: 1.0 | C29: acre | D29: $21.00 | E29: 0% | F29: $21.00 | G29: $21.00 | H29: $0.00
A30: other | B30: 1.0 | C30: acre | D30: $0.00 | E30: 0% | F30: $0.00 | G30: $0.00 | H30: $0.00
A31: Crop Insurance | B31: 1.0 | C31: acre | D31: $36.50 | E31: 33% | F31: $36.50 | G31: $24.46 | H31: $12.05
A32: Operator Labor & Hand Labor | B32: 1.10 | C32: hour | D32: ='Universal Input Prices'!$B$31 -> $12.45 | E32: 0% | F32: $13.70 | G32: $13.70 | H32: $0.00
A33: Irrigation Labor | B33: 1.28 | C33: hours | D33: ='Universal Input Prices'!$B$31 -> $12.45 | E33: 0% | F33: $15.94 | G33: $15.94 | H33: $0.00
A34: Diesel Fuel - Tractors | B34: 3.01 | C34: gallons | D34: ='Universal Input Prices'!$B$32 -> $1.81 | E34: 0% | F34: $5.45 | G34: $5.45 | H34: $0.00
A35: Gasoline - Pickup | B35: 3.07 | C35: gallons | D35: ='Universal Input Prices'!$B$33 -> $1.93 | E35: 0% | F35: $5.92 | G35: $5.92 | H35: $0.00
A36: Irrigation Fuel | B36: 20.00 | C36: acin | D36: ='Universal Input Prices'!$B$34 -> $3.60 | E36: 33% | F36: $72.00 | G36: $48.24 | H36: $23.76
A37: Pumping Days | B37: 62.86
A38: Calculated GPM capacity per acre needed | B38: =B36*18.85694/B37 -> 6.00
A39: Repair & Maintenance | G39: $0.00 | H39: $0.00
A40: Implements | B40: 1.00 | C40: acre | D40: $13.24 | E40: 0% | F40: =D40*B40 -> $13.24 | G40: $13.24 | H40: $0.00
A41: Tractors | B41: 1.00 | C41: acre | D41: $5.48 | E41: 0% | F41: =D41*B41 -> $5.48 | G41: $5.48 | H41: $0.00
A42: Irrigation-Above Ground | B42: =B36 -> 20.00 | C42: acin | D42: $4.04 | E42: 0% | F42: =D42*B42 -> $80.80 | G42: $80.80 | H42: $0.00
A43: Self Propelled Equipment | B43: 1.00 | C43: acre | D43: $0.00 | E43: 100% | F43: =D43*B43 -> $0.00 | G43: $0.00 | H43: $0.00
A44: Pickup | B44: 1.00 | C44: acre | D44: $3.76 | E44: 0% | F44: =D44*B44 -> $3.76 | G44: $3.76 | H44: $0.00
A45: Interest-operating capital | B45: ='Universal Input Prices'!$B$35 -> 5.40% | F45: =(SUM(F16:F24,F26:F44))*$B45/3 -> $9.92 | G45: =(SUM(G16:G24,G26:G44))*$B45/2 -> $12.58 | H45: $2.30
A47: Total Variable Costs | F47: =SUM(F16:F45) -> $805.27 | G47: =SUM(G16:G45) -> $722.70 | H47: =SUM(H16:H45) -> $87.54
A48: Returns Above Variable Costs | F48: =F12-F47 -> $142.43 | G48: =G12-G47 -> ($87.74) | H48: =H12-H47 -> $225.20
A50: Fixed Costs
A51: Implements | B51: 1.00 | C51: acre | D51: $20.35 | E51: 0% | F51: =D51*B51 -> $20.35 | G51: =F51*(1-E51) -> $20.35 | H51: =F51*E51 -> $0.00
A52: Tractors | B52: 1.00 | C52: acre | D52: $7.83 | E52: 0% | F52: $7.83 | G52: $7.83 | H52: $0.00
A53: Irrigation Equipment | B53: 1.00 | C53: acre | D53: $47.34 | E53: 0% | F53: $47.34 | G53: $47.34 | H53: $0.00
A54: Self Propelled Equipment | B54: 1.00 | C54: acre | D54: $0.00 | E54: 100% | F54: $0.00 | G54: $0.00 | H54: $0.00
A55: Pickup | B55: 1.00 | C55: acre | D55: $5.49 | E55: 0% | F55: $5.49 | G55: $5.49 | H55: $0.00
A56: Management | B56: 1.00 | C56: acre | D56: $0.00 | E56: 0% | F56: $0.00 | G56: $0.00 | H56: $0.00
A57: Irrigation Investment | B57: 1.00 | C57: acre | D57: $32.30 | E57: 0% | F57: $32.30 | G57: $32.30 | H57: $0.00
A58: Land | B58: 1.00 | C58: acre | D58: $120.00 | E58: 100% | F58: $120.00 | G58: =IF($H$6="Cash",D58,F58*(1-E58)) -> $0.00 | H58: =IF($H$6="Cash",0,F58*E58) -> $120.00
A59: Property Tax | B59: 1.00 | C59: acre | D59: $0.00 | E59: 100% | F59: $0.00 | G59: $0.00 | H59: $0.00
A60: Total Fixed Expenses | F60: =SUM(F51:F59) -> $233.31 | G60: =SUM(G51:G59) -> $113.31 | H60: =SUM(H51:H59) -> $120.00
A61: Total Specified Expenses | F61: =F47+F60 -> $1,038.58 | G61: =G47+G60 -> $836.01 | H61: =H47+H60 -> $207.54
A62: Returns Above Total Specified Expenses | F62: =F12-F61 -> ($90.88) | G62: =G12-G61 -> ($201.05) | H62: =H12-H61 -> $105.20
A64: Return on Investment | F64: =(F62/F61) -> -8.75% | G64: =(G62/G61) -> -24.05% | H64: 50.69%

Sheet Irr Cotton
A2: Estimated Costs and Returns per Acre
A3: Irrigated Cotton
A4: Projected for 2016
H5: Rental Agreement | I5: Share
A6: Item | B6: Quantity | C6: Unit | D6: Price | E6: Landlord | H6: Share | I6: Cash
E7: Share | F7: Total | G7: Tenant | H7: Landlord
A8: Income
A9: cotton lint | B9: 1,250.0 | C9: lb | D9: ='Universal Input Prices'!$B$8 -> $0.6500 | E9: 33% | F9: =D9*B9 -> $812.50 | G9: =F9*(1-E9) -> $544.38 | H9: =IF(H6="Cash", D63,F9*E9) -> $268.13
A10: cotton seed | B10: =B9/500*'Universal Input Prices'!B39/2000 -> 0.938 | C10: tons | D10: ='Universal Input Prices'!$B$9 -> $200.00 | E10: 33% | F10: =D10*B10 -> $187.50 | G10: =F10*(1-E10) -> $125.63 | H10: =IF(H6="Cash", 0,F10*E10) -> $61.88
A11: Expected Turnout | B11: 27.3%
A12: other income | B12: 0.00 | C12: $/ac. | D12: $1.00 | E12: 33% | F12: =D12*B12 -> $0.00 | G12: =F12*(1-E12) -> $0.00 | H12: =IF(H9="Cash", D61,F12*E12) -> $0.00
A13: Total Income | F13: =SUM(F8:F12) -> $1,000.00 | G13: =SUM(G8:G12) -> $670.00 | H13: $330.00
A15: Variable Costs
A16: Seed
A17: cotton seed | B17: 0.22 | C17: bags | D17: $385.000 | E17: 0% | F17: =D17*B17 -> $84.70 | G17: =F17*(1-E17) -> $84.70 | H17: =+F17*E17 -> $0.00
A18: Boll Weevil Assess.-Irr | B18: 1.0 | C18: acre | D18: $0.70 | E18: 33% | F18: =D18*B18 -> $0.70 | G18: =F18*(1-E18) -> $0.47 | H18: =+F18*E18 -> $0.23
A19: Fertilizer
A20: fert (P) - dry | B20: 40.0 | C20: lb | D20: =IF(A20="",0,VLOOKUP(A20,'Universal Input Prices'!$A$26:$B$30, 2)) -> $0.430 | E20: 33% | F20: =D20*B20 -> $17.19 | G20: =F20*(1-E20) -> $11.52 | H20: =+F20*E20 -> $5.67
A21: fert (N) - dry | B21: 130 | C21: lb | D21: =IF(A21="",0,VLOOKUP(A21,'Universal Input Prices'!$A$26:$B$30, 2)) -> $0.330 | E21: 33% | F21: =D21*B21 -> $42.89 | G21: =F21*(1-E21) -> $28.74 | H21: =+F21*E21 -> $14.15
B22: 0.0 | C22: lb | D22: =IF(A22="",0,VLOOKUP(A22,'Universal Input Prices'!$A$26:$B$30, 2)) -> $0.000 | E22: 0% | F22: =D22*B22 -> $0.00 | G22: =F22*(1-E22) -> $0.00 | H22: =F22*E22 -> $0.00
A23: Field Operations
A24: preplant herbicide & application | B24: 1.0 | C24: acre | D24: $14.50 | E24: 33% | F24: =D24*B24 -> $14.50 | G24: =F24*(1-E24) -> $9.72 | H24: =+F24*E24 -> $4.79
A25: post emergence herbicide & application | B25: 1.0 | C25: acre | D25: $19.40 | E25: 33% | F25: =D25*B25 -> $19.40 | G25: $13.00 | H25: $6.40
A26: fertilizer application | B26: 1.0 | C26: acre | D26: $5.00 | E26: 33% | F26: $5.00 | G26: $3.35 | H26: $1.65
A27: insecticide & application | B27: 1.0 | C27: acre | D27: $9.60 | E27: 33% | F27: $9.60 | G27: $6.43 | H27: $3.17
A28: harvest aids | B28: 0.8 | C28: acre | D28: $25.00 | E28: 33% | F28: $18.75 | G28: $12.56 | H28: $6.19
A29: strip & module | B29: =B9/100 -> 12.5 | C29: cwt. | D29: ='Universal Input Prices'!$B$37 -> $8.00 | E29: 0% | F29: $100.00 | G29: $100.00 | H29: $0.00
A30: ginning | B30: =B9/B11/100 -> 45.87 | C30: cwt. | D30: ='Universal Input Prices'!$B$38 -> $2.75 | E30: 33% | F30: $126.15 | G30: $84.52 | H30: $41.63
A31: hoeing | B31: 1.0 | C31: acre | D31: $0.00 | E31: 0% | F31: $0.00 | G31: $0.00 | H31: $0.00
A32: scouting | B32: 1.0 | C32: acre | D32: $0.00 | E32: 0% | F32: =D32*B32 -> $0.00 | G32: =F32*(1-E32) -> $0.00 | H32: =+F32*E32 -> $0.00
A33: other | B33: 1.0 | C33: acre | D33: $0.00 | E33: 0% | F33: $0.00 | G33: $0.00 | H33: $0.00
A34: other | B34: 1.0 | C34: acre | D34: $0.00 | E34: 0% | F34: $0.00 | G34: $0.00 | H34: $0.00
A35: other | B35: 1.0 | C35: acre | D35: $0.00 | E35: 0% | F35: $0.00 | G35: $0.00 | H35: $0.00
A36: Crop Insurance | B36: 1.0 | C36: acre | D36: $55.00 | E36: 33% | F36: $55.00 | G36: $36.85 | H36: $18.15
A37: Operator Labor & Hand Labor | B37: 1.15 | C37: hours | D37: ='Universal Input Prices'!$B$31 -> $12.45 | E37: 0% | F37: $14.32 | G37: $14.32 | H37: $0.00
A38: Irrigation Labor | B38: 0.77 | C38: hours | D38: ='Universal Input Prices'!$B$31 -> $12.45 | E38: 0% | F38: $9.56 | G38: $9.56 | H38: $0.00
A39: Diesel Fuel - Tractors | B39: 2.88 | C39: gallons | D39: ='Universal Input Prices'!$B$32 -> $1.81 | E39: 0% | F39: $5.21 | G39: $5.21 | H39: $0.00
A40: Gasoline - Pickup | B40: 3.48 | C40: gallons | D40: ='Universal Input Prices'!$B$33 -> $1.93 | E40: 0% | F40: $6.71 | G40: $6.71 | H40: $0.00
A41: Irrigation Fuel | B41: 12.00 | C41: acin | D41: ='Universal Input Prices'!$B$34 -> $3.60 | E41: 33% | F41: $43.20 | G41: $28.94 | H41: $14.26
A42: Pumping Days | B42: 75.43
A43: Calculated GPM capacity per acre needed | B43: =B41*18.85694/B42 -> 3.00
A44: Repair & Maintenance
A45: Implements | B45: 1.00 | C45: acre | D45: $4.75 | E45: 0% | F45: =D45*B45 -> $4.75 | G45: =F45*(1-E45) -> $4.75 | H45: =+F45*E45 -> $0.00
A46: Tractors | B46: 1.00 | C46: acre | D46: $5.27 | E46: 0% | F46: =D46*B46 -> $5.27 | G46: =F46*(1-E46) -> $5.27 | H46: =+F46*E46 -> $0.00
A47: Irrigation-Above Ground | B47: =Cotton_Inches -> 12.00 | C47: acin | D47: $4.04 | E47: 0% | F47: =D47*B47 -> $48.48 | G47: =F47*(1-E47) -> $48.48 | H47: =+F47*E47 -> $0.00
A48: Self Propelled Equipment | B48: 1.00 | C48: acre | D48: $0.00 | E48: 100% | F48: =D48*B48 -> $0.00 | G48: =F48*(1-E48) -> $0.00 | H48: =+F48*E48 -> $0.00
A49: Pickup | B49: 1.00 | C49: acre | D49: $4.26 | E49: 0% | F49: =D49*B49 -> $4.26 | G49: =F49*(1-E49) -> $4.26 | H49: =+F49*E49 -> $0.00
A50: Interest-operating capital | B50: ='Universal Input Prices'!$B$35 -> 5.40% | F50: =(SUM(F17:F27,F31:F49))*$B50/1.85 -> $11.41 | G50: =(SUM(G17:G27,G31:G49))*$B50/2 -> $8.70 | H50: $1.85
A52: Total Variable Costs | F52: =SUM(F17:F50) -> $647.05 | G52: =SUM(G17:G50) -> $528.06 | H52: =SUM(H17:H50) -> $118.13
A53: Returns Above Variable Costs | F53: =F13-F52 -> $352.95 | G53: =G13-G52 -> $141.94 | H53: =H13-H52 -> $211.87
A55: Fixed Costs
A56: Implements | B56: 1.00 | C56: acre | D56: $6.87 | E56: 0% | F56: =D56*B56 -> $6.87 | G56: =F56*(1-E56) -> $6.87 | H56: =+F56*E56 -> $0.00
A57: Tractors | B57: 1.00 | C57: acre | D57: $7.12 | E57: 0% | F57: $7.12 | G57: $7.12 | H57: $0.00
A58: Irrigation Equipment | B58: 1.00 | C58: acre | D58: $33.50 | E58: 0% | F58: $33.50 | G58: $33.50 | H58: $0.00
A59: Self Propelled Equipment | B59: 1.00 | C59: acre | D59: $0.00 | E59: 100% | F59: $0.00 | G59: $0.00 | H59: $0.00
A60: Pickup | B60: 1.00 | C60: acre | D60: $6.23 | E60: 0% | F60: $6.23 | G60: $6.23 | H60: $0.00
A61: Management | B61: 1.00 | C61: acre | D61: $0.00 | E61: 0% | F61: =D61*B61 -> $0.00 | G61: $0.00 | H61: $0.00
A62: Irrigation Investment | B62: 1.00 | C62: acre | D62: $26.57 | E62: 0% | F62: =D62*B62 -> $26.57 | G62: $26.57 | H62: $0.00
A63: Land | B63: 1.00 | C63: acre | D63: $72.00 | E63: 100% | F63: $72.00 | G63: =IF($H$6="Cash",D63,F63*(1-E63)) -> $0.00 | H63: =IF($H$6="Cash",0,F63*E63) -> $72.00
A64: Property Tax | B64: 1.00 | C64: acre | D64: $0.00 | E64: 100% | F64: =B64*D64 -> $0.00 | G64: $0.00 | H64: $0.00
A65: Total Fixed Expenses | F65: =SUM(F56:F64) -> $152.29 | G65: =SUM(G56:G64) -> $80.29 | H65: =SUM(H56:H64) -> $72.00
A66: Total Specified Expenses | F66: =F52+F65 -> $799.34 | G66: =G52+G65 -> $608.35 | H66: =H52+H65 -> $190.13
A67: Returns Above Total Specified Expenses | F67: =F13-F66 -> $200.66 | G67: =G13-G66 -> $61.65 | H67: =H13-H66 -> $139.87
A69: Return on Investment | F69: =(F67/F66) -> 25.10% | G69: =(G67/G66) -> 10.13% | H69: 73.56%

Sheet Irr Peanuts
A2: Estimated Costs and Returns per Acre
A3: Irrigated Peanuts
A4: Projected for 2016
H5: Rental Agreement | I5: Share
A6: Item | B6: Quantity | C6: Unit | D6: Price | E6: Landlord | H6: Share | I6: Cash
E7: Share | F7: Total | G7: Tenant | H7: Landlord
A8: Income
A9: peanuts | B9: 2.25 | C9: ton | D9: ='Universal Input Prices'!$B$10 -> $420.00 | E9: 33% | F9: =D9*B9 -> $945.00 | G9: =F9*(1-E9) -> $633.15 | H9: =IF(H6="Cash", D62,F9*E9) -> $311.85
A10: other income | B10: 0.00 | C10: $/ac. | D10: $1.00 | E10: 33% | F10: =D10*B10 -> $0.00 | G10: =F10*(1-E10) -> $0.00 | H10: =IF(H7="Cash", D59,F10*E10) -> $0.00
A12: Total Income | F12: =SUM(F8:F11) -> $945.00 | G12: =SUM(G8:G11) -> $633.15 | H12: $311.85
A14: Variable Costs
A15: Seed
A16: peanut seed | B16: 100.00 | C16: lb | D16: $1.00 | E16: 0% | F16: =D16*B16 -> $100.00 | G16: =F16*(1-E16) -> $100.00 | H16: =F16*E16 -> $0.00
A17: innoculant | B17: 1.0 | C17: acre | D17: $7.30 | E17: 0% | F17: =D17*B17 -> $7.30 | G17: =F17*(1-E17) -> $7.30 | H17: =F17*E17 -> $0.00
A18: Fertilizer
A19: fert (P) - dry | B19: 50.0 | C19: lb | D19: =IF(A19="",0,VLOOKUP(A19,'Universal Input Prices'!$A$26:$B$30, 2)) -> $0.430 | E19: 33% | F19: =D19*B19 -> $21.49 | G19: =F19*(1-E19) -> $14.40 | H19: =F19*E19 -> $7.09
A20: fert (N) - dry | B20: 80 | C20: lb | D20: =IF(A20="",0,VLOOKUP(A20,'Universal Input Prices'!$A$26:$B$27, 2)) -> $0.330 | E20: 33% | F20: =D20*B20 -> $26.40 | G20: =F20*(1-E20) -> $17.69 | H20: =F20*E20 -> $8.71
B21: 0.0 | C21: lb | D21: =IF(A21="",0,VLOOKUP(A21,'Universal Input Prices'!$A$26:$B$30, 2)) -> $0.000 | E21: 0% | F21: =D21*B21 -> $0.00 | G21: =F21*(1-E21) -> $0.00 | H21: =F21*E21 -> $0.00
A22: Field Operations
A23: herbicide & application | B23: 1.0 | C23: acre | D23: $17.45 | E23: 33% | F23: =D23*B23 -> $17.45 | G23: =F23*(1-E23) -> $11.69 | H23: =F23*E23 -> $5.76
A24: fertilizer application | B24: 1.0 | C24: acre | D24: $5.00 | E24: 33% | F24: $5.00 | G24: $3.35 | H24: $1.65
A25: fungicide & application | B25: 3.0 | C25: appl | D25: $15.85 | E25: 33% | F25: $47.55 | G25: $31.86 | H25: $15.69
A26: digging | B26: 1.0 | C26: acre | D26: $25.00 | E26: 33% | F26: $25.00 | G26: $16.75 | H26: $8.25
A27: custom harvest & haul | B27: =$B$9 -> 2.25 | C27: ton | D27: $40.00 | E27: 0% | F27: $90.00 | G27: $90.00 | H27: $0.00
A28: drying | B28: =$B$9 -> 2.25 | C28: ton | D28: $25.00 | E28: 0% | F28: $56.25 | G28: $56.25 | H28: $0.00
A29: insecticide & application | B29: 1.0 | C29: appl | D29: $9.60 | E29: 33% | F29: $9.60 | G29: $6.43 | H29: $3.17
A30: hoeing | B30: 1.0 | C30: acre | D30: $19.00 | E30: 0% | F30: $19.00 | G30: $19.00 | H30: $0.00
A31: scouting | B31: 1.0 | C31: acre | D31: $0.00 | E31: 0% | F31: $0.00 | G31: $0.00 | H31: $0.00
A32: other | B32: 1.0 | C32: acre | D32: $0.00 | E32: 0% | F32: $0.00 | G32: $0.00 | H32: =+F32*E32 -> $0.00
A33: other | B33: 1.0 | C33: acre | D33: $0.00 | E33: 0% | F33: $0.00 | G33: $0.00 | H33: =+F33*E33 -> $0.00
A34: other | B34: 1.0 | C34: acre | D34: $0.00 | E34: 0% | F34: $0.00 | G34: $0.00 | H34: =+F34*E34 -> $0.00
A35: Crop Insurance | B35: 1.0 | C35: acre | D35: $40.00 | E35: 33% | F35: $40.00 | G35: $26.80 | H35: $13.20
A36: Operator Labor & Hand Labor | B36: 2.60 | C36: hour | D36: ='Universal Input Prices'!$B$31 -> $12.45 | E36: 0% | F36: $32.31 | G36: $32.31 | H36: $0.00
A37: Irrigation Labor | B37: 1.34 | C37: hours | D37: ='Universal Input Prices'!$B$31 -> $12.45 | E37: 0% | F37: $16.73 | G37: $16.73 | H37: $0.00
A38: Diesel Fuel - Tractors | B38: 6.82 | C38: gallons | D38: ='Universal Input Prices'!$B$32 -> $1.81 | E38: 0% | F38: $12.34 | G38: $12.34 | H38: $0.00
A39: Gasoline - Pickup | B39: 2.05 | C39: gallons | D39: ='Universal Input Prices'!$B$33 -> $1.93 | E39: 0% | F39: $3.95 | G39: $3.95 | H39: $0.00
A40: Irrigation Fuel | B40: 21.00 | C40: acin | D40: ='Universal Input Prices'!$B$34 -> $3.60 | E40: 33% | F40: $75.60 | G40: $50.65 | H40: $24.95
A41: Pumping Days | B41: 79.20
A42: Calculated GPM capacity per acre needed | B42: =B40*18.85694/B41 -> 5.00
A43: Repair & Maintenance | G43: $0.00 | H43: $0.00
A44: Implements | B44: 1.00 | C44: acre | D44: $24.39 | E44: 0% | F44: =D44*B44 -> $24.39 | G44: $24.39 | H44: $0.00
A45: Tractors | B45: 1.00 | C45: acre | D45: $11.80 | E45: 0% | F45: =D45*B45 -> $11.80 | G45: $11.80 | H45: $0.00
A46: Irrigation-Above Ground | B46: =B40 -> 21.00 | C46: acin | D46: $4.04 | E46: 0% | F46: =D46*B46 -> $84.84 | G46: $84.84 | H46: $0.00
A47: Self Propelled Equipment | B47: 1.00 | C47: acre | D47: $0.00 | E47: 100% | F47: =D47*B47 -> $0.00 | G47: $0.00 | H47: $0.00
A48: Pickup | B48: 1.00 | C48: acre | D48: $2.51 | E48: 0% | F48: =D48*B48 -> $2.51 | G48: $2.51 | H48: $0.00
A49: Interest-operating capital | B49: ='Universal Input Prices'!$B$35 -> 5.40% | F49: =(SUM(F16:F25,F29:F48))*$B49/2.5 -> $12.06 | G49: =(SUM(G16:G25,G29:G48))*$B49/2 -> $12.91 | H49: $2.17
A51: Total Variable Costs | F51: =SUM(F16:F49) -> $741.57 | G51: =SUM(G16:G49) -> $653.95 | H51: =SUM(H16:H49) -> $90.64
A52: Returns Above Variable Costs | F52: =F12-F51 -> $203.43 | G52: =G12-G51 -> ($20.80) | H52: =H12-H51 -> $221.21
A54: Fixed Costs
A55: Implements | B55: 1.00 | C55: acre | D55: $35.81 | E55: 0% | F55: =D55*B55 -> $35.81 | G55: =F55*(1-E55) -> $35.81 | H55: =F55*E55 -> $0.00
A56: Tractors | B56: 1.00 | C56: acre | D56: $17.05 | E56: 0% | F56: $17.05 | G56: $17.05 | H56: $0.00
A57: Irrigation Equipment | B57: 1.00 | C57: acre | D57: $47.34 | E57: 0% | F57: $47.34 | G57: $47.34 | H57: $0.00
A58: Self Propelled Equipment | B58: 1.00 | C58: acre | D58: $0.00 | E58: 100% | F58: $0.00 | G58: $0.00 | H58: $0.00
A59: Pickup | B59: 1.00 | C59: acre | D59: $3.66 | E59: 0% | F59: $3.66 | G59: $3.66 | H59: $0.00
A60: Management | B60: 1.00 | C60: acre | D60: $0.00 | E60: 0% | F60: $0.00 | G60: $0.00 | H60: $0.00
A61: Irrigation Investment | B61: 1.00 | C61: acre | D61: $32.30 | E61: 0% | F61: =B61*D61 -> $32.30 | G61: $32.30 | H61: $0.00
A62: Land | B62: 1.00 | C62: acre | D62: $72.00 | E62: 100% | F62: =D62*B62 -> $72.00 | G62: =IF($H$6="Cash",D62,F62*(1-E62)) -> $0.00 | H62: =IF($H$6="Cash",0,F62*E62) -> $72.00
A63: Property Tax | B63: 1.00 | C63: acre | D63: $0.00 | E63: 100% | F63: =B63*D63 -> $0.00 | G63: $0.00 | H63: $0.00
A64: Total Fixed Expenses | F64: =SUM(F55:F63) -> $208.16 | G64: =SUM(G55:G63) -> $136.16 | H64: =SUM(H55:H63) -> $72.00
A65: Total Specified Expenses | F65: =F51+F64 -> $949.73 | G65: =G51+G64 -> $790.11 | H65: =H51+H64 -> $162.64
A66: Returns Above Total Specified Expenses | F66: =F12-F65 -> ($4.73) | G66: =G12-G65 -> ($156.96) | H66: =H12-H65 -> $149.21
A68: Return on Investment | F68: =(F66/F65) -> -0.50% | G68: =(G66/G65) -> -19.87% | H68: 91.75%

Sheet Irr Sorghum
A2: Estimated Costs and Returns per Acre
A3: Irrigated Sorghum
A4: Projected for 2016
H5: Rental Agreement | I5: Share
A6: Item | B6: Quantity | C6: Unit | D6: Price | E6: Landlord | H6: Share | I6: Cash
E7: Share | F7: Total | G7: Tenant | H7: Landlord
A8: Income
A9: sorghum grain | B9: 60.00 | C9: cwt | D9: ='Universal Input Prices'!$B$11 -> $5.75 | E9: 33% | F9: =D9*B9 -> $345.00 | G9: =F9*(1-E9) -> $231.15 | H9: =IF(H6="Cash", D57,F9*E9) -> $113.85
A10: other income | B10: 0.00 | C10: $/ac. | D10: $1.00 | E10: 33% | F10: =D10*B10 -> $0.00 | G10: =F10*(1-E10) -> $0.00 | H10: =IF(H7="Cash", D59,F10*E10) -> $0.00
A12: Total Income | F12: =SUM(F8:F11) -> $345.00 | G12: =SUM(G8:G11) -> $231.15 | H12: =SUM(H8:H11) -> $113.85
A14: Variable Costs
A15: Seed | B15: 4.0 | C15: lb | D15: $1.850 | E15: 0% | F15: =D15*B15 -> $7.40 | G15: =F15*(1-E15) -> $7.40 | H15: =F15*E15 -> $0.00
A16: Fertilizer
A17: fert (N) - NH3 | B17: 65.0 | C17: lb | D17: =IF(A17="",0,VLOOKUP(A17,'Universal Input Prices'!$A$26:$B$30, 2)) -> $0.250 | E17: 33% | F17: =D17*B17 -> $16.25 | G17: =F17*(1-E17) -> $10.89 | H17: =F17*E17 -> $5.36
A18: fert (P) - liquid | B18: 30.0 | C18: lb | D18: =IF(A18="",0,VLOOKUP(A18,'Universal Input Prices'!$A$26:$B$30, 2)) -> $0.470 | E18: 33% | F18: =D18*B18 -> $14.10 | G18: =F18*(1-E18) -> $9.45 | H18: =F18*E18 -> $4.65
A19: fert (N) - liquid | B19: 55.0 | C19: lb | D19: =IF(A19="",0,VLOOKUP(A19,'Universal Input Prices'!$A$26:$B$27, 2)) -> $0.410 | E19: 33% | F19: =D19*B19 -> $22.56 | G19: =F19*(1-E19) -> $15.11 | H19: =F19*E19 -> $7.44
A20: Field Operations
A21: herbicide & application | B21: 1.0 | C21: acre | D21: $22.75 | E21: 33% | F21: =D21*B21 -> $22.75 | G21: =F21*(1-E21) -> $15.24 | H21: =F21*E21 -> $7.51
A22: fertilizer application | B22: 1.0 | C22: acre | D22: $15.00 | E22: 33% | F22: $15.00 | G22: $10.05 | H22: $4.95
A23: insecticide & application - headwrm | B23: 0.7 | C23: acre | D23: $9.80 | E23: 33% | F23: $6.57 | G23: $4.40 | H23: $2.17
A24: custom harvest & haul | B24: =B9 -> 60.00 | C24: cwt | D24: $0.85 | E24: 0% | F24: $51.00 | G24: $51.00 | H24: $0.00
A25: hoeing | B25: 1.0 | C25: acre | D25: $0.00 | E25: 0% | F25: $0.00 | G25: $0.00 | H25: $0.00
A26: scouting | B26: 1.0 | C26: acre | D26: $0.00 | E26: 0% | F26: =D26*B26 -> $0.00 | G26: =F26*(1-E26) -> $0.00 | H26: =F26*E26 -> $0.00
A27: insecticide sugar cane aphid | B27: 1.0 | C27: acre | D27: $21.00 | E27: 33% | F27: $21.00 | G27: $14.07 | H27: $6.93
A28: other | B28: 1.0 | C28: acre | D28: $0.00 | E28: 0% | F28: $0.00 | G28: $0.00 | H28: $0.00
A29: other | B29: 1.0 | C29: acre | D29: $0.00 | E29: 0% | F29: $0.00 | G29: $0.00 | H29: $0.00
A30: Crop Insurance | B30: 1.0 | C30: acre | D30: $33.00 | E30: 33% | F30: $33.00 | G30: $22.11 | H30: $10.89
A31: Operator Labor & Hand Labor | B31: 0.70 | C31: hours | D31: ='Universal Input Prices'!$B$31 -> $12.45 | E31: 0% | F31: $8.65 | G31: $8.65 | H31: $0.00
A32: Irrigation Labor | B32: 0.90 | C32: hours | D32: ='Universal Input Prices'!$B$31 -> $12.45 | E32: 0% | F32: $11.16 | G32: $11.16 | H32: $0.00
A33: Diesel Fuel - Tractors | B33: 1.91 | C33: gallons | D33: ='Universal Input Prices'!$B$32 -> $1.81 | E33: 0% | F33: $3.46 | G33: $3.46 | H33: $0.00
A34: Gasoline - Pickup | B34: 2.05 | C34: gallons | D34: ='Universal Input Prices'!$B$33 -> $1.93 | E34: 0% | F34: $3.95 | G34: $3.95 | H34: $0.00
A35: Irrigation Fuel | B35: 10.00 | C35: acin | D35: ='Universal Input Prices'!$B$34 -> $3.60 | E35: 33% | F35: $36.00 | G35: $24.12 | H35: $11.88
A36: Pumping Days | B36: 75.43
A37: Calculated GPM capacity per acre needed | B37: =B35*18.85694/B36 -> 2.50
A38: Repair & Maintenance
A39: Implements | B39: 1.00 | C39: acre | D39: $12.35 | E39: 0% | F39: =D39*B39 -> $12.35 | G39: =F39*(1-E39) -> $12.35 | H39: =F39*E39 -> $0.00
A40: Tractors | B40: 1.00 | C40: acre | D40: $3.67 | E40: 0% | F40: =D40*B40 -> $3.67 | G40: =F40*(1-E40) -> $3.67 | H40: =F40*E40 -> $0.00
A41: Irrigation-Above Ground | B41: =Sorghum_Inches -> 10.00 | C41: acin | D41: $4.04 | E41: 0% | F41: =D41*B41 -> $40.40 | G41: =F41*(1-E41) -> $40.40 | H41: =F41*E41 -> $0.00
A42: Self Propelled Equipment | B42: 1.00 | C42: acre | D42: $0.00 | E42: 100% | F42: =D42*B42 -> $0.00 | G42: =F42*(1-E42) -> $0.00 | H42: =F42*E42 -> $0.00
A43: Pickup | B43: 1.00 | C43: acre | D43: $2.51 | E43: 0% | F43: =D43*B43 -> $2.51 | G43: =F43*(1-E43) -> $2.51 | H43: =F43*E43 -> $0.00
A44: Interest-operating capital | B44: ='Universal Input Prices'!$B$35 -> 5.40% | F44: =(SUM(F15:F23,F25:F43))*$B44/2.5 -> $6.06 | G44: =(SUM(G15:G23,G25:G43))*$B44/2 -> $5.91 | H44: $1.67
A46: Total Variable Costs | F46: =SUM(F15:F44) -> $337.83 | G46: =SUM(G15:G44) -> $275.89 | H46: =SUM(H15:H44) -> $63.45
A47: Returns Above Variable Costs | F47: =F12-F46 -> $7.17 | G47: =G12-G46 -> ($44.74) | H47: =H12-H46 -> $50.40
A49: Fixed Costs
A50: Implements | B50: 1.00 | C50: acre | D50: $19.23 | E50: 0% | F50: =D50*B50 -> $19.23 | G50: =F50*(1-E50) -> $19.23 | H50: =F50*E50 -> $0.00
A51: Tractors | B51: 1.00 | C51: acre | D51: $5.14 | E51: 0% | F51: $5.14 | G51: $5.14 | H51: $0.00
A52: Irrigation Equipment | B52: 1.00 | C52: acre | D52: $47.34 | E52: 0% | F52: $47.34 | G52: $47.34 | H52: $0.00
A53: Self Propelled Equipment | B53: 1.00 | C53: acre | D53: $0.00 | E53: 100% | F53: $0.00 | G53: $0.00 | H53: $0.00
A54: Pickup | B54: 1.00 | C54: acre | D54: $3.66 | E54: 0% | F54: $3.66 | G54: $3.66 | H54: $0.00
A55: Management | B55: 1.00 | C55: acre | D55: $0.00 | E55: 0% | F55: $0.00 | G55: $0.00 | H55: $0.00
A56: Irrigation Investment | B56: 1.00 | C56: acre | D56: $32.30 | E56: 0% | F56: =B56*D56 -> $32.30 | G56: $32.30 | H56: $0.00
A57: Land | B57: 1.00 | C57: acre | D57: $72.00 | E57: 100% | F57: =D57*B57 -> $72.00 | G57: =IF($H$6="Cash",D57,F57*(1-E57)) -> $0.00 | H57: =IF($H$6="Cash",0,F57*E57) -> $72.00
A58: Property Tax | B58: 1.00 | C58: acre | D58: $0.00 | E58: 100% | F58: =B58*D58 -> $0.00 | G58: $0.00 | H58: $0.00
A59: Total Fixed Expenses | F59: =SUM(F50:F58) -> $179.67 | G59: =SUM(G50:G58) -> $107.67 | H59: =SUM(H50:H58) -> $72.00
A60: Total Specified Expenses | F60: =F46+F59 -> $517.50 | G60: =G46+G59 -> $383.56 | H60: =H46+H59 -> $135.45
A61: Returns Above Total Specified Expenses | F61: =F12-F60 -> ($172.50) | G61: =G12-G60 -> ($152.41) | H61: =H12-H60 -> ($21.60)
A63: Return on Investment | F63: =(F61/F60) -> -33.33% | G63: =(G61/G60) -> -39.74% | H63: -15.95%

Sheet Irr Sorghum Seed
A2: Estimated Costs and Returns per Acre
A3: Irrigated Sorghum Seed
A4: Projected for 2016
H5: Rental Agreement | I5: Share
A6: Item | B6: Quantity | C6: Unit | D6: Price | E6: Landlord | H6: Share | I6: Cash
E7: Share | F7: Total | G7: Tenant | H7: Landlord
A8: Income
A9: seed sorghum | B9: 45.00 | C9: cwt | D9: ='Universal Input Prices'!B12 -> $16.90 | E9: 33% | F9: =D9*B9 -> $760.50 | G9: =F9*(1-E9) -> $509.54 | H9: =IF(H6="Cash", D57,F9*E9) -> $250.97
A10: other income | B10: 0.00 | C10: $/ac. | D10: $1.00 | E10: 33% | F10: =D10*B10 -> $0.00 | G10: =F10*(1-E10) -> $0.00 | H10: =IF(H7="Cash", D59,F10*E10) -> $0.00
A12: Total Income | F12: =SUM(F8:F11) -> $760.50 | G12: =SUM(G8:G11) -> $509.54 | H12: =SUM(H8:H11) -> $250.97
A14: Variable Costs
A15: Seed | B15: 0.0 | C15: lb | D15: $1.916 | E15: 0% | F15: =D15*B15 -> $0.00 | G15: =F15*(1-E15) -> $0.00 | H15: =F15*E15 -> $0.00
A16: Fertilizer
A17: fert (N) - NH3 | B17: 65.0 | C17: lb | D17: =IF(A17="",0,VLOOKUP(A17,'Universal Input Prices'!$A$26:$B$30, 2)) -> $0.250 | E17: 33% | F17: =D17*B17 -> $16.25 | G17: =F17*(1-E17) -> $10.89 | H17: =F17*E17 -> $5.36
A18: fert (P) - liquid | B18: 50.0 | C18: lb | D18: =IF(A18="",0,VLOOKUP(A18,'Universal Input Prices'!$A$26:$B$30, 2)) -> $0.470 | E18: 33% | F18: =D18*B18 -> $23.50 | G18: =F18*(1-E18) -> $15.75 | H18: =F18*E18 -> $7.76
A19: fert (N) - liquid | B19: 60.0 | C19: lb | D19: =IF(A19="",0,VLOOKUP(A19,'Universal Input Prices'!$A$26:$B$30, 2)) -> $0.410 | E19: 33% | F19: =D19*B19 -> $24.61 | G19: =F19*(1-E19) -> $16.49 | H19: =F19*E19 -> $8.12
A20: Field Operations
A21: herbicide & application | B21: 1.0 | C21: acre | D21: $22.57 | E21: 33% | F21: =D21*B21 -> $22.57 | G21: =F21*(1-E21) -> $15.12 | H21: =F21*E21 -> $7.45
A22: fertilizer application | B22: 1.0 | C22: acre | D22: $15.00 | E22: 33% | F22: $15.00 | G22: $10.05 | H22: $4.95
A23: insecticide & application-headwrm | B23: 0.7 | C23: acre | D23: $9.80 | E23: 33% | F23: $6.57 | G23: $4.40 | H23: $2.17
A24: custom harvest & haul | B24: =B9 -> 45.00 | C24: cwt | D24: $0.85 | E24: 0% | F24: $38.25 | G24: $38.25 | H24: $0.00
A25: hoeing | B25: 1.0 | C25: acre | D25: $0.00 | E25: 0% | F25: $0.00 | G25: $0.00 | H25: $0.00
A26: scouting | B26: 1.0 | C26: acre | D26: $0.00 | E26: 0% | F26: =D26*B26 -> $0.00 | G26: =F26*(1-E26) -> $0.00 | H26: =F26*E26 -> $0.00
A27: insecticide sugar cane aphid | B27: 1.0 | C27: acre | D27: $21.00 | E27: 33% | F27: $21.00 | G27: $14.07 | H27: $6.93
A28: other | B28: 1.0 | C28: acre | D28: $0.00 | E28: 0% | F28: $0.00 | G28: $0.00 | H28: $0.00
A29: other | B29: 1.0 | C29: acre | D29: $0.00 | E29: 0% | F29: $0.00 | G29: $0.00 | H29: $0.00
A30: Crop Insurance | B30: 1.0 | C30: acre | D30: $33.00 | E30: 33% | F30: $33.00 | G30: $22.11 | H30: $10.89
A31: Operator Labor & Hand Labor | B31: 0.70 | C31: hours | D31: ='Universal Input Prices'!$B$31 -> $12.45 | E31: 0% | F31: $8.65 | G31: $8.65 | H31: $0.00
A32: Irrigation Labor | B32: 1.02 | C32: hours | D32: ='Universal Input Prices'!$B$31 -> $12.45 | E32: 0% | F32: $12.75 | G32: $12.75 | H32: $0.00
A33: Diesel Fuel - Tractors | B33: 1.91 | C33: gallons | D33: ='Universal Input Prices'!$B$32 -> $1.81 | E33: 0% | F33: $3.46 | G33: $3.46 | H33: $0.00
A34: Gasoline - Pickup | B34: 2.05 | C34: gallons | D34: ='Universal Input Prices'!$B$33 -> $1.93 | E34: 0% | F34: $3.95 | G34: $3.95 | H34: $0.00
A35: Irrigation Fuel | B35: 16.00 | C35: acin | D35: ='Universal Input Prices'!$B$34 -> $3.60 | E35: 33% | F35: $57.60 | G35: $38.59 | H35: $19.01
A36: Pumping Days | B36: 98.06
A37: Calculated GPM capacity per acre needed | B37: =B35*18.85694/B36 -> 3.08
A38: Repair & Maintenance
A39: Implements | B39: 1.00 | C39: acre | D39: $12.35 | E39: 0% | F39: =D39*B39 -> $12.35 | G39: =F39*(1-E39) -> $12.35 | H39: =F39*E39 -> $0.00
A40: Tractors | B40: 1.00 | C40: acre | D40: $3.67 | E40: 0% | F40: =D40*B40 -> $3.67 | G40: =F40*(1-E40) -> $3.67 | H40: =F40*E40 -> $0.00
A41: Irrigation-Above Ground | B41: =Sorghum_Seed_Inches -> 16.00 | C41: acin | D41: $4.04 | E41: 0% | F41: =D41*B41 -> $64.64 | G41: =F41*(1-E41) -> $64.64 | H41: =F41*E41 -> $0.00
A42: Self Propelled Equipment | B42: 1.00 | C42: acre | D42: $0.00 | E42: 100% | F42: =D42*B42 -> $0.00 | G42: =F42*(1-E42) -> $0.00 | H42: =F42*E42 -> $0.00
A43: Pickup | B43: 1.00 | C43: acre | D43: $2.51 | E43: 0% | F43: =D43*B43 -> $2.51 | G43: =F43*(1-E43) -> $2.51 | H43: =F43*E43 -> $0.00
A44: Interest-operating capital | B44: ='Universal Input Prices'!$B$35 -> 5.40% | F44: =(SUM(F15:F23,F25:F43))*$B44/2.6 -> $6.90 | G44: =(SUM(G15:G23,G25:G43))*$B44/2 -> $7.00 | H44: =(SUM(H15:H23,H25:H43))*$B44/2 -> $1.96
A46: Total Variable Costs | F46: =SUM(F15:F44) -> $377.22 | G46: =SUM(G15:G44) -> $304.69 | H46: =SUM(H15:H44) -> $74.59
A47: Returns Above Variable Costs | F47: =F12-F46 -> $383.28 | G47: =G12-G46 -> $204.84 | H47: =H12-H46 -> $176.37
A49: Fixed Costs
A50: Implements | B50: 1.00 | C50: acre | D50: $19.23 | E50: 0% | F50: =D50*B50 -> $19.23 | G50: =F50*(1-E50) -> $19.23 | H50: =F50*E50 -> $0.00
A51: Tractors | B51: 1.00 | C51: acre | D51: $5.14 | E51: 0% | F51: $5.14 | G51: $5.14 | H51: $0.00
A52: Irrigation Equipment | B52: 1.00 | C52: acre | D52: $40.42 | E52: 0% | F52: $40.42 | G52: $40.42 | H52: $0.00
A53: Self Propelled Equipment | B53: 1.00 | C53: acre | D53: $0.00 | E53: 100% | F53: $0.00 | G53: $0.00 | H53: $0.00
A54: Pickup | B54: 1.00 | C54: acre | D54: $3.66 | E54: 0% | F54: $3.66 | G54: $3.66 | H54: $0.00
A55: Management | B55: 1.00 | C55: acre | D55: $0.00 | E55: 0% | F55: $0.00 | G55: $0.00 | H55: $0.00
A56: Irrigation Investment | B56: 1.00 | C56: acre | D56: $29.44 | E56: 0% | F56: =B56*D56 -> $29.44 | G56: $29.44 | H56: $0.00
A57: Land | B57: 1.00 | C57: acre | D57: $72.00 | E57: 100% | F57: =D57*B57 -> $72.00 | G57: =IF($H$6="Cash",D57,F57*(1-E57)) -> $0.00 | H57: =IF($H$6="Cash",0,F57*E57) -> $72.00
A58: Property Tax | B58: 1.00 | C58: acre | D58: $0.00 | E58: 100% | F58: =B58*D58 -> $0.00 | G58: $0.00 | H58: $0.00
A59: Total Fixed Expenses | F59: =SUM(F50:F58) -> $169.89 | G59: =SUM(G50:G58) -> $97.89 | H59: =SUM(H50:H58) -> $72.00
A60: Total Specified Expenses | F60: =F46+F59 -> $547.11 | G60: =G46+G59 -> $402.58 | H60: =H46+H59 -> $146.59
A61: Returns Above Total Specified Expenses | F61: =F12-F60 -> $213.39 | G61: =G12-G60 -> $106.95 | H61: =H12-H60 -> $104.37
A63: Return on Investment | F63: =(F61/F60) -> 39.00% | G63: =(G61/G60) -> 26.57% | H63: 71.20%

Sheet Irr Sorghum Silage
A2: Estimated Costs and Returns per Acre
A3: Irrigated Sorghum Silage
A4: Projected for 2016
H5: Rental Agreement | I5: Share
A6: Item | B6: Quantity | C6: Unit | D6: Price | E6: Landlord | H6: Share | I6: Cash
E7: Share | F7: Total | G7: Tenant | H7: Landlord
A8: Income
A9: sorghum silage | B9: 21.00 | C9: ton | D9: ='Universal Input Prices'!$B$13 -> $31.60 | E9: 33% | F9: =D9*B9 -> $663.60 | G9: =F9*(1-E9) -> $444.61 | H9: =IF(H6="Cash", D57,F9*E9) -> $218.99
A10: other income | B10: 0.00 | C10: $/ac. | D10: $1.00 | E10: 33% | F10: =D10*B10 -> $0.00 | G10: =F10*(1-E10) -> $0.00 | H10: =IF(H7="Cash", D59,F10*E10) -> $0.00
A12: Total Income | F12: =SUM(F7:F11) -> $663.60 | G12: =SUM(G7:G11) -> $444.61 | H12: =SUM(H7:H11) -> $218.99
A14: Variable Costs
A15: Seed | B15: 5.00 | C15: lb | D15: $1.85 | E15: 0% | F15: =D15*B15 -> $9.25 | G15: =F15*(1-E15) -> $9.25 | H15: =F15*E15 -> $0.00
A16: Fertilizer
A17: fert (P) - dry | B17: 60.0 | C17: lb | D17: =IF(A17="",0,VLOOKUP(A17,'Universal Input Prices'!$A$26:$B$30, 2)) -> $0.430 | E17: 33% | F17: =D17*B17 -> $25.79 | G17: =F17*(1-E17) -> $17.28 | H17: =F17*E17 -> $8.51
A18: fert (N) - NH3 | B18: 150.0 | C18: lb | D18: =IF(A18="",0,VLOOKUP(A18,'Universal Input Prices'!$A$26:$B$30, 2)) -> $0.250 | E18: 33% | F18: =D18*B18 -> $37.50 | G18: =F18*(1-E18) -> $25.13 | H18: =F18*E18 -> $12.38
B19: 0.0 | C19: lb | D19: =IF(A19="",0,VLOOKUP(A19,'Universal Input Prices'!$A$26:$B$30, 2)) -> $0.000 | E19: 0% | F19: =D19*B19 -> $0.00 | G19: =F19*(1-E19) -> $0.00 | H19: =F19*E19 -> $0.00
A20: Field Operations
A21: herbicide & application | B21: 1.0 | C21: acre | D21: $12.10 | E21: 33% | F21: =D21*B21 -> $12.10 | G21: =F21*(1-E21) -> $8.11 | H21: =F21*E21 -> $3.99
A22: fertilizer application | B22: 1.0 | C22: acre | D22: $20.00 | E22: 33% | F22: $20.00 | G22: $13.40 | H22: $6.60
A23: insecticide & application - headwrm | B23: 0.3 | C23: acre | D23: $9.79 | E23: 33% | F23: $3.23 | G23: $2.16 | H23: $1.07
A24: custom harvest & haul | B24: =$B$9 -> 21.00 | C24: ton | D24: $9.00 | E24: 0% | F24: $189.00 | G24: $189.00 | H24: $0.00
A25: crop consultant | B25: 1.0 | C25: acre | D25: $0.00 | E25: 0% | F25: $0.00 | G25: $0.00 | H25: $0.00
A26: insecticide sugar cane aphid | B26: 1.0 | C26: acre | D26: $21.00 | E26: 33% | F26: =D26*B26 -> $21.00 | G26: =F26*(1-E26) -> $14.07 | H26: =F26*E26 -> $6.93
A27: other | B27: 1.0 | C27: acre | D27: $0.00 | E27: 0% | F27: $0.00 | G27: $0.00 | H27: $0.00
A28: other | B28: 1.0 | C28: acre | D28: $0.00 | E28: 0% | F28: $0.00 | G28: $0.00 | H28: $0.00
A29: other | B29: 1.0 | C29: acre | D29: $0.00 | E29: 0% | F29: $0.00 | G29: $0.00 | H29: $0.00
A30: Crop Insurance | B30: 1.0 | C30: acre | D30: $33.00 | E30: 33% | F30: $33.00 | G30: $22.11 | H30: $10.89
A31: Operator Labor & Hand Labor | B31: 0.8 | C31: hour | D31: ='Universal Input Prices'!$B$31 -> $12.45 | E31: 0% | F31: $9.77 | G31: $9.77 | H31: $0.00
A32: Irrigation Labor | B32: 0.83 | C32: hours | D32: ='Universal Input Prices'!$B$31 -> $12.45 | E32: 0% | F32: $10.36 | G32: $10.36 | H32: $0.00
A33: Diesel Fuel - Tractors | B33: 2.04 | C33: gallons | D33: ='Universal Input Prices'!$B$32 -> $1.81 | E33: 0% | F33: $3.69 | G33: $3.69 | H33: $0.00
A34: Gasoline - Pickup | B34: 3.07 | C34: gallons | D34: ='Universal Input Prices'!$B$33 -> $1.93 | E34: 0% | F34: $5.92 | G34: $5.92 | H34: $0.00
A35: Irrigation Fuel | B35: 13.00 | C35: acin | D35: ='Universal Input Prices'!$B$34 -> $3.60 | E35: 33% | F35: $46.80 | G35: $31.36 | H35: $15.44
A36: Pumping Days | B36: 70.04
A37: Calculated GPM capacity per acre needed | B37: =B35*18.85694/B36 -> 3.50
A38: Repair & Maintenance | G38: $0.00 | H38: $0.00
A39: Implements | B39: 1.00 | C39: acre | D39: $13.18 | E39: 0% | F39: =D39*B39 -> $13.18 | G39: $13.18 | H39: $0.00
A40: Tractors | B40: 1.00 | C40: acre | D40: $3.62 | E40: 0% | F40: =D40*B40 -> $3.62 | G40: $3.62 | H40: $0.00
A41: Irrigation-Above Ground | B41: =B35 -> 13.00 | C41: acin | D41: $4.04 | E41: 0% | F41: =D41*B41 -> $52.52 | G41: $52.52 | H41: $0.00
A42: Self Propelled Equipment | B42: 1.00 | C42: acre | D42: $0.00 | E42: 100% | F42: =D42*B42 -> $0.00 | G42: $0.00 | H42: $0.00
A43: Pickup | B43: 1.00 | C43: acre | D43: $3.76 | E43: 0% | F43: =D43*B43 -> $3.76 | G43: $3.76 | H43: $0.00
A44: Interest-operating capital | B44: ='Universal Input Prices'!$B$35 -> 5.40% | F44: =(SUM(F15:F23,F25:F43))*$B44/2.4 -> $7.01 | G44: =(SUM(G15:G23,G25:G43))*$B44/2 -> $6.63 | H44: $1.78
A46: Total Variable Costs | F46: =SUM(F15:F44) -> $507.50 | G46: =SUM(G15:G44) -> $441.32 | H46: =SUM(H15:H44) -> $67.59
A47: Returns Above Variable Costs | F47: =F12-F46 -> $156.10 | G47: =G12-G46 -> $3.29 | H47: =H12-H46 -> $151.40
A49: Fixed Costs
A50: Implements | B50: 1.00 | C50: acre | D50: $20.05 | E50: 0% | F50: =D50*B50 -> $20.05 | G50: =F50*(1-E50) -> $20.05 | H50: =F50*E50 -> $0.00
A51: Tractors | B51: 1.00 | C51: acre | D51: $5.07 | E51: 0% | F51: $5.07 | G51: $5.07 | H51: $0.00
A52: Irrigation Equipment | B52: 1.00 | C52: acre | D52: $36.27 | E52: 0% | F52: $36.27 | G52: $36.27 | H52: $0.00
A53: Self Propelled Equipment | B53: 1.00 | C53: acre | D53: $0.00 | E53: 100% | F53: $0.00 | G53: $0.00 | H53: $0.00
A54: Pickup | B54: 1.00 | C54: acre | D54: $5.49 | E54: 0% | F54: $5.49 | G54: $5.49 | H54: $0.00
A55: Management | B55: 1.00 | C55: acre | D55: $0.00 | E55: 0% | F55: $0.00 | G55: $0.00 | H55: $0.00
A56: Irrigation Investment | B56: 1.00 | C56: acre | D56: $27.72 | E56: 0% | F56: =B56*D56 -> $27.72 | G56: $27.72 | H56: $0.00
A57: Land | B57: 1.00 | C57: acre | D57: $72.00 | E57: 100% | F57: =D57*B57 -> $72.00 | G57: =IF($H$6="Cash",D57,F57*(1-E57)) -> $0.00 | H57: =IF($H$6="Cash",0,F57*E57) -> $72.00
A58: Property Tax | B58: 1.00 | C58: acre | D58: $0.00 | E58: 100% | F58: =B58*D58 -> $0.00 | G58: $0.00 | H58: $0.00
A59: Total Fixed Expenses | F59: =SUM(F50:F58) -> $166.60 | G59: =SUM(G50:G58) -> $94.60 | H59: =SUM(H50:H58) -> $72.00
A60: Total Specified Expenses | F60: =F46+F59 -> $674.10 | G60: =G46+G59 -> $535.92 | H60: =H46+H59 -> $139.59
A61: Returns Above Total Specified Expenses | F61: =F12-F60 -> ($10.50) | G61: =G12-G60 -> ($91.31) | H61: =H12-H60 -> $79.40
A63: Return on Investment | F63: =(F61/F60) -> -1.56% | G63: =(G61/G60) -> -17.04% | H63: 56.88%

Sheet Irr Sorghum Sudangrass
A2: Estimated Costs and Returns per Acre
A3: Irrigated Sorghum Sudangrass
A4: Projected for 2016
H5: Rental Agreement | I5: Share
A6: Item | B6: Quantity | C6: Unit | D6: Price | E6: Landlord | H6: Share | I6: Cash
E7: Share | F7: Total | G7: Tenant | H7: Landlord
A8: Income
A9: grazing | B9: 800.00 | C9: lb | D9: =Grazing_Price -> $0.400 | E9: 33% | F9: =D9*B9 -> $320.00 | G9: =F9*(1-E9) -> $214.40 | H9: =IF(H6="Cash", 0,F9*E9) -> $105.60
A10: other income | B10: 0.00 | C10: $/ac. | D10: $1.00 | E10: 33% | F10: =D10*B10 -> $0.00 | G10: =F10*(1-E10) -> $0.00 | H10: =IF(H7="Cash", D59,F10*E10) -> $0.00
A12: Total Income | F12: =SUM(F9:F11) -> $320.00 | G12: =SUM(G9:G11) -> $214.40 | H12: =SUM(H9:H11) -> $105.60
A14: Variable Costs
A15: Seed | B15: 22.00 | C15: bu | D15: $0.95 | E15: 0% | F15: =D15*B15 -> $20.90 | G15: =F15*(1-E15) -> $20.90 | H15: =F15*E15 -> $0.00
A16: Fertilizer
A17: fert (N) - NH3 | B17: 160.0 | C17: lb | D17: =IF(A17="",0,VLOOKUP(A17,'Universal Input Prices'!$A$26:$B$30, 2)) -> $0.250 | E17: 33% | F17: =D17*B17 -> $40.00 | G17: =F17*(1-E17) -> $26.80 | H17: =F17*E17 -> $13.20
A18: fert (P) - liquid | B18: 50.0 | C18: lb | D18: =IF(A18="",0,VLOOKUP(A18,'Universal Input Prices'!$A$26:$B$30, 2)) -> $0.470 | E18: 33% | F18: =D18*B18 -> $23.50 | G18: =F18*(1-E18) -> $15.75 | H18: =F18*E18 -> $7.76
B19: 0.0 | C19: lb | D19: =IF(A19="",0,VLOOKUP(A19,'Universal Input Prices'!$A$26:$B$30, 2)) -> $0.000 | E19: 0% | F19: =D19*B19 -> $0.00 | G19: =F19*(1-E19) -> $0.00 | H19: =F19*E19 -> $0.00
A20: Field Operations
A21: herbicide & application | B21: 1.0 | C21: acre | D21: $12.10 | E21: 33% | F21: =D21*B21 -> $12.10 | G21: =F21*(1-E21) -> $8.11 | H21: =F21*E21 -> $3.99
A22: fertilizer application | B22: 1.0 | C22: acre | D22: $15.00 | E22: 33% | F22: $15.00 | G22: $10.05 | H22: $4.95
A23: insecticide & application | B23: 1.0 | C23: acre | D23: $0.00 | E23: 33% | F23: $0.00 | G23: $0.00 | H23: $0.00
A24: custom harvest & haul | B24: 0.0 | C24: bu. | D24: $0.00 | E24: 33% | F24: $0.00 | G24: $0.00 | H24: $0.00
A25: hoeing | B25: 0.0 | C25: acre | D25: $0.00 | E25: 0% | F25: $0.00 | G25: $0.00 | H25: $0.00
A26: scouting | B26: 1.0 | C26: acre | D26: $0.00 | E26: 0% | F26: =D26*B26 -> $0.00 | G26: =F26*(1-E26) -> $0.00 | H26: =F26*E26 -> $0.00
A27: other | B27: 1.0 | C27: acre | D27: $0.00 | E27: 0% | F27: $0.00 | G27: $0.00 | H27: $0.00
A28: other | B28: 1.0 | C28: acre | D28: $0.00 | E28: 0% | F28: $0.00 | G28: $0.00 | H28: $0.00
A29: other | B29: 1.0 | C29: acre | D29: $0.00 | E29: 0% | F29: $0.00 | G29: $0.00 | H29: $0.00
A30: Crop Insurance | B30: 1.0 | C30: acre | D30: $25.00 | E30: 33% | F30: $25.00 | G30: $16.75 | H30: $8.25
A31: Operator Labor & Hand Labor | B31: 0.86 | C31: hours | D31: ='Universal Input Prices'!$B$31 -> $12.45 | E31: 0% | F31: $10.64 | G31: $10.64 | H31: $0.00
A32: Irrigation Labor | B32: 0.58 | C32: hours | D32: ='Universal Input Prices'!$B$31 -> $12.45 | E32: 0% | F32: $7.17 | G32: $7.17 | H32: $0.00
A33: Diesel Fuel - Tractors | B33: 2.12 | C33: gallons | D33: ='Universal Input Prices'!$B$32 -> $1.81 | E33: 0% | F33: $3.84 | G33: $3.84 | H33: $0.00
A34: Gasoline - Pickup | B34: 2.05 | C34: gallons | D34: ='Universal Input Prices'!$B$33 -> $1.93 | E34: 0% | F34: $3.95 | G34: $3.95 | H34: $0.00
A35: Irrigation Fuel | B35: 9.00 | C35: acin | D35: ='Universal Input Prices'!$B$34 -> $3.60 | E35: 33% | F35: $32.40 | G35: $21.71 | H35: $10.69
A36: Pumping Days | B36: 48.49
A37: Calculated GPM capacity per acre needed | B37: =B35*18.85694/B36 -> 3.50
A38: Repair & Maintenance
A39: Implements | B39: 1.00 | C39: acre | D39: $11.98 | E39: 0% | F39: =D39*B39 -> $11.98 | G39: $11.98 | H39: $0.00
A40: Tractors | B40: 1.00 | C40: acre | D40: $3.78 | E40: 0% | F40: =D40*B40 -> $3.78 | G40: $3.78 | H40: $0.00
A41: Irrigation-Above Ground | B41: =B35 -> 9.00 | C41: acin | D41: $4.04 | E41: 0% | F41: =D41*B41 -> $36.36 | G41: $36.36 | H41: $0.00
A42: Self Propelled Equipment | B42: 1.00 | C42: acre | D42: $0.00 | E42: 100% | F42: =D42*B42 -> $0.00 | G42: $0.00 | H42: $0.00
A43: Pickup | B43: 1.00 | C43: acre | D43: $2.51 | E43: 0% | F43: =D43*B43 -> $2.51 | G43: $2.51 | H43: $0.00
A44: Interest-operating capital | B44: ='Universal Input Prices'!$B$35 -> 5.40% | F44: =(SUM(F15:F23,F25:F43))*$B44/2.665 -> $5.05 | G44: =(SUM(G15:G23,G25:G43))*$B44/2 -> $5.41 | H44: $1.32
A46: Total Variable Costs | F46: =SUM(F15:F44) -> $254.18 | G46: =SUM(G15:G44) -> $205.70 | H46: =SUM(H15:H44) -> $50.16
A47: Returns Above Variable Costs | F47: =F12-F46 -> $65.82 | G47: =G12-G46 -> $8.70 | H47: =H12-H46 -> $55.44
A49: Fixed Costs
A50: Implements | B50: 1.00 | C50: acre | D50: $18.79 | E50: 0% | F50: =D50*B50 -> $18.79 | G50: =F50*(1-E50) -> $18.79 | H50: =F50*E50 -> $0.00
A51: Tractors | B51: 1.00 | C51: acre | D51: $5.40 | E51: 0% | F51: $5.40 | G51: $5.40 | H51: $0.00
A52: Irrigation Equipment | B52: 1.00 | C52: acre | D52: $30.74 | E52: 0% | F52: $30.74 | G52: $30.74 | H52: $0.00
A53: Self Propelled Equipment | B53: 1.00 | C53: acre | D53: $0.00 | E53: 100% | F53: $0.00 | G53: $0.00 | H53: $0.00
A54: Pickup | B54: 1.00 | C54: acre | D54: $3.66 | E54: 0% | F54: $3.66 | G54: $3.66 | H54: $0.00
A55: Management | B55: 1.00 | C55: acre | D55: $0.00 | E55: 0% | F55: $0.00 | G55: $0.00 | H55: $0.00
A56: Irrigation Investment | B56: 1.00 | C56: acre | D56: $25.43 | E56: 0% | F56: =B56*D56 -> $25.43 | G56: $25.43 | H56: $0.00
A57: Land | B57: 1.00 | C57: acre | D57: $72.00 | E57: 100% | F57: =D57*B57 -> $72.00 | G57: =IF($H$6="Cash",D57,F57*(1-E57)) -> $0.00 | H57: =IF($H$6="Cash",0,F57*E57) -> $72.00
A58: Property Tax | B58: 1.00 | C58: acre | D58: $0.00 | E58: 100% | F58: =B58*D58 -> $0.00 | G58: $0.00 | H58: $0.00
A59: Total Fixed Expenses | F59: =SUM(F50:F58) -> $156.02 | G59: =SUM(G50:G58) -> $84.02 | H59: =SUM(H50:H58) -> $72.00
A60: Total Specified Expenses | F60: =F46+F59 -> $410.20 | G60: =G46+G59 -> $289.72 | H60: =H46+H59 -> $122.16
A61: Returns Above Total Specified Expenses | F61: =F12-F60 -> ($90.20) | G61: =G12-G60 -> ($75.32) | H61: =H12-H60 -> ($16.56)
A63: Return on Investment | F63: =(F61/F60) -> -21.99% | G63: =(G61/G60) -> -26.00% | H63: -13.56%

Sheet Irr Soybeans
A2: Estimated Costs and Returns per Acre
A3: Irrigated Soybeans
A4: Projected for 2016
H5: Rental Agreement | I5: Share
A6: Item | B6: Quantity | C6: Unit | D6: Price | E6: Landlord | H6: Share | I6: Cash
E7: Share | F7: Total | G7: Tenant | H7: Landlord
A8: Income
A9: soybeans | B9: 60.0 | C9: bu | D9: ='Universal Input Prices'!$B$14 -> $8.40 | E9: 33% | F9: =D9*B9 -> $504.00 | G9: =F9*(1-E9) -> $337.68 | H9: =IF(H6="Cash", D60,F9*E9) -> $166.32
A10: other income | B10: 0.00 | C10: $/ac. | D10: $1.00 | E10: 33% | F10: =D10*B10 -> $0.00 | G10: =F10*(1-E10) -> $0.00 | H10: =IF(H7="Cash", D59,F10*E10) -> $0.00
A12: Total Income | F12: =SUM(F8:F11) -> $504.00 | G12: =SUM(G8:G11) -> $337.68 | H12: =SUM(H8:H11) -> $166.32
A14: Variable Costs
A15: Seed
A16: soybean seed | B16: 1.00 | C16: bag | D16: $73.000 | E16: 0% | F16: =D16*B16 -> $73.00 | G16: =F16*(1-E16) -> $73.00 | H16: =F16*E16 -> $0.00
A17: tech fee | B17: =B16 -> 1.00 | C17: lb | D17: $0.000 | E17: 0% | F17: =D17*B17 -> $0.00 | G17: =F17*(1-E17) -> $0.00 | H17: =+F17*E17 -> $0.00
A18: innoculant | B18: 1.0 | C18: acre | D18: $7.85 | E18: 0% | F18: =D18*B18 -> $7.85 | G18: =F18*(1-E18) -> $7.85 | H18: =F18*E18 -> $0.00
A19: Fertilizer
A20: fert (P) - liquid | B20: 45.0 | C20: lb | D20: =IF(A20="",0,VLOOKUP(A20,'Universal Input Prices'!$A$26:$B$30, 2)) -> $0.470 | E20: 33% | F20: =D20*B20 -> $21.15 | G20: =F20*(1-E20) -> $14.17 | H20: =F20*E20 -> $6.98
B21: 0.0 | C21: lb | D21: =IF(A21="",0,VLOOKUP(A21,'Universal Input Prices'!$A$26:$B$30, 2)) -> $0.000 | E21: 0% | F21: =D21*B21 -> $0.00 | G21: =F21*(1-E21) -> $0.00 | H21: =F21*E21 -> $0.00
B22: 0.0 | C22: lb | D22: =IF(A22="",0,VLOOKUP(A22,'Universal Input Prices'!$A$26:$B$30, 2)) -> $0.000 | E22: 0% | F22: =D22*B22 -> $0.00 | G22: =F22*(1-E22) -> $0.00 | H22: =F22*E22 -> $0.00
A23: Field Operations
A24: herbicide & application | B24: 2.0 | C24: acre | D24: $12.05 | E24: 33% | F24: =D24*B24 -> $24.10 | G24: =F24*(1-E24) -> $16.15 | H24: =F24*E24 -> $7.95
A25: fertilizer application | B25: 1.0 | C25: acre | D25: $0.00 | E25: 33% | F25: $0.00 | G25: $0.00 | H25: $0.00
A26: insecticide & application | B26: 0.5 | C26: acre | D26: $9.00 | E26: 33% | F26: $4.50 | G26: $3.02 | H26: $1.49
A27: custom harvest & haul | B27: =$B$9 -> 60.0 | C27: bu. | D27: $0.66 | E27: 0% | F27: $39.60 | G27: $39.60 | H27: $0.00
A28: crop consultant | B28: 1.0 | C28: acre | D28: $0.00 | E28: 0% | F28: $0.00 | G28: $0.00 | H28: $0.00
A29: scouting | B29: 1.0 | C29: acre | D29: $0.00 | E29: 0% | F29: =D29*B29 -> $0.00 | G29: =F29*(1-E29) -> $0.00 | H29: =F29*E29 -> $0.00
A30: other | B30: 1.0 | C30: acre | D30: $0.00 | E30: 0% | F30: $0.00 | G30: $0.00 | H30: $0.00
A31: other | B31: 1.0 | C31: acre | D31: $0.00 | E31: 0% | F31: $0.00 | G31: $0.00 | H31: $0.00
A32: other | B32: 1.0 | C32: acre | D32: $0.00 | E32: 0% | F32: $0.00 | G32: $0.00 | H32: $0.00
A33: Crop Insurance | B33: 1.0 | C33: acre | D33: $37.00 | E33: 33% | F33: $37.00 | G33: $24.79 | H33: $12.21
A34: Operator Labor & Hand Labor | B34: 0.72 | C34: hour | D34: ='Universal Input Prices'!$B$31 -> $12.45 | E34: 0% | F34: $8.90 | G34: $8.90 | H34: $0.00
A35: Irrigation Labor | B35: 0.90 | C35: hours | D35: ='Universal Input Prices'!$B$31 -> $12.45 | E35: 0% | F35: $11.16 | G35: $11.16 | H35: $0.00
A36: Diesel Fuel - Tractors | B36: 2.00 | C36: gallons | D36: ='Universal Input Prices'!$B$32 -> $1.81 | E36: 0% | F36: $3.62 | G36: $3.62 | H36: $0.00
A37: Gasoline - Pickup | B37: 2.05 | C37: gallons | D37: ='Universal Input Prices'!$B$33 -> $1.93 | E37: 0% | F37: $3.95 | G37: $3.95 | H37: $0.00
A38: Irrigation Fuel | B38: 14.00 | C38: acin | D38: ='Universal Input Prices'!$B$34 -> $3.60 | E38: 33% | F38: $50.40 | G38: $33.77 | H38: $16.63
A39: Pumping Days | B39: 67.88
A40: Calculated GPM capacity per acre needed | B40: =B38*18.85694/B39 -> 3.89
A41: Repair & Maintenance | G41: $0.00 | H41: $0.00
A42: Implements | B42: 1.00 | C42: acre | D42: $12.70 | E42: 0% | F42: =D42*B42 -> $12.70 | G42: $12.70 | H42: $0.00
A43: Tractors | B43: 1.00 | C43: acre | D43: $3.86 | E43: 0% | F43: =D43*B43 -> $3.86 | G43: $3.86 | H43: $0.00
A44: Irrigation-Above Ground | B44: =B38 -> 14.00 | C44: acin | D44: $4.04 | E44: 0% | F44: =D44*B44 -> $56.56 | G44: $56.56 | H44: $0.00
A45: Self Propelled Equipment | B45: 1.00 | C45: acre | D45: $0.00 | E45: 100% | F45: =D45*B45 -> $0.00 | G45: $0.00 | H45: $0.00
A46: Pickup | B46: 1.00 | C46: acre | D46: $2.51 | E46: 0% | F46: =D46*B46 -> $2.51 | G46: $2.51 | H46: $0.00
A47: Interest-operating capital | B47: ='Universal Input Prices'!$B$35 -> 5.40% | F47: =(SUM(F16:F26,F28:F46))*$B47/2.7 -> $6.43 | G47: =(SUM(G16:G26,G28:G46))*$B47/2 -> $7.45 | H47: $1.22
A49: Total Variable Costs | F49: =SUM(F16:F47) -> $367.28 | G49: =SUM(G16:G47) -> $323.05 | H49: =SUM(H16:H47) -> $46.48
A50: Returns Above Variable Costs | F50: =F12-F49 -> $136.72 | G50: =G12-G49 -> $14.63 | H50: =H12-H49 -> $119.84
A52: Fixed Costs
A53: Implements | B53: 1.00 | C53: acre | D53: $20.09 | E53: 0% | F53: =D53*B53 -> $20.09 | G53: =F53*(1-E53) -> $20.09 | H53: =F53*E53 -> $0.00
A54: Tractors | B54: 1.00 | C54: acre | D54: $5.41 | E54: 0% | F54: $5.41 | G54: $5.41 | H54: $0.00
A55: Irrigation Equipment | B55: 1.00 | C55: acre | D55: $40.42 | E55: 0% | F55: $40.42 | G55: $40.42 | H55: $0.00
A56: Self Propelled Equipment | B56: 1.00 | C56: acre | D56: $0.00 | E56: 100% | F56: $0.00 | G56: $0.00 | H56: $0.00
A57: Pickup | B57: 1.00 | C57: acre | D57: $3.66 | E57: 0% | F57: $3.66 | G57: $3.66 | H57: $0.00
A58: Management | B58: 1.00 | C58: acre | D58: $0.00 | E58: 0% | F58: $0.00 | G58: $0.00 | H58: $0.00
A59: Irrigation Investment | B59: 1.00 | C59: acre | D59: $29.44 | E59: 0% | F59: $29.44 | G59: $29.44 | H59: $0.00
A60: Land | B60: 1.00 | C60: acre | D60: $72.00 | E60: 100% | F60: $72.00 | G60: =IF($H$6="Cash",D60,F60*(1-E60)) -> $0.00 | H60: =IF($H$6="Cash",0,F60*E60) -> $72.00
A61: Property Tax | B61: 1.00 | C61: acre | D61: $0.00 | E61: 100% | F61: $0.00 | G61: $0.00 | H61: $0.00
A62: Total Fixed Expenses | F62: =SUM(F53:F61) -> $171.02 | G62: =SUM(G53:G61) -> $99.02 | H62: =SUM(H53:H61) -> $72.00
A63: Total Specified Expenses | F63: =F49+F62 -> $538.30 | G63: =G49+G62 -> $422.07 | H63: =H49+H62 -> $118.48
A64: Returns Above Total Specified Expenses | F64: =F12-F63 -> ($34.30) | G64: =G12-G63 -> ($84.39) | H64: =H12-H63 -> $47.84
A66: Return on Investment | F66: =(F64/F63) -> -6.37% | G66: =(G64/G63) -> -19.99% | H66: 40.38%

Sheet Irr Sunflowers-Confection
A2: Estimated Costs and Returns per Acre
A3: Irrigated Sunflowers-Confectionary
A4: Projected for 2016
H5: Rental Agreement | I5: Share
A6: Item | B6: Quantity | C6: Unit | D6: Price | E6: Landlord | H6: Share | I6: Cash
E7: Share | F7: Total | G7: Tenant | H7: Landlord
A8: Income
A9: Confectionary sunflower | B9: 18.00 | C9: cwt | D9: ='Universal Input Prices'!$B$15 -> $21.00 | E9: 33% | F9: =D9*B9 -> $378.00 | G9: =F9*(1-E9) -> $253.26 | H9: =IF(H6="Cash", D60,F9*E9) -> $124.74
A10: Expected % Large | B10: 66.7%
A11: other income | B11: 0.00 | C11: $/ac. | D11: $1.00 | E11: 33% | F11: =D11*B11 -> $0.00 | G11: =F11*(1-E11) -> $0.00 | H11: =IF(H8="Cash", D60,F11*E11) -> $0.00
A13: Total Income | F13: =SUM(F8:F12) -> $378.00 | G13: =SUM(G8:G12) -> $253.26 | H13: =SUM(H8:H12) -> $124.74
A15: Variable Costs
A16: Seed | B16: 1.00 | C16: acre | D16: $34.00 | E16: 0% | F16: =D16*B16 -> $34.00 | G16: =F16*(1-E16) -> $34.00 | H16: =F16*E16 -> $0.00
A17: Fertilizer
A18: fert (P) - liquid | B18: 24.0 | C18: lb | D18: =IF(A18="",0,VLOOKUP(A18,'Universal Input Prices'!$A$26:$B$30, 2)) -> $0.470 | E18: 33% | F18: =D18*B18 -> $11.28 | G18: =F18*(1-E18) -> $7.56 | H18: =F18*E18 -> $3.72
A19: fert (N) - liquid | B19: 70.0 | C19: lb | D19: =IF(A19="",0,VLOOKUP(A19,'Universal Input Prices'!$A$26:$B$27, 2)) -> $0.410 | E19: 33% | F19: =D19*B19 -> $28.71 | G19: =F19*(1-E19) -> $19.24 | H19: =F19*E19 -> $9.47
B20: 0.0 | C20: lb | D20: =IF(A20="",0,VLOOKUP(A20,'Universal Input Prices'!$A$26:$B$30, 2)) -> $0.000 | E20: 0% | F20: =D20*B20 -> $0.00 | G20: =F20*(1-E20) -> $0.00 | H20: =F20*E20 -> $0.00
A21: Field Operations
A22: herbicide & application (2-4D/Prowl H2O) | B22: 1.0 | C22: acre | D22: $15.35 | E22: 33% | F22: =D22*B22 -> $15.35 | G22: =F22*(1-E22) -> $10.28 | H22: =F22*E22 -> $5.07
A23: herbicide & application (glyphosphate) | B23: 3.0 | C23: acre | D23: $9.40 | E23: 33% | F23: $28.20 | G23: $18.89 | H23: $9.31
A24: seed insecticide & application | B24: 1.0 | C24: acre | D24: $9.80 | E24: 33% | F24: $9.80 | G24: $6.57 | H24: $3.23
A25: custom harvest | B25: 1.0 | C25: acre | D25: $25.00 | E25: 0% | F25: $25.00 | G25: $25.00 | H25: $0.00
A26: custom haul | B26: =B9 -> 18.00 | C26: cwt | D26: $0.45 | E26: 0% | F26: $8.10 | G26: $8.10 | H26: $0.00
A27: pesticide & application (ammo) | B27: 1.0 | C27: acre | D27: $3.25 | E27: 33% | F27: $3.25 | G27: $2.18 | H27: $1.07
A28: other | B28: 1.0 | C28: acre | D28: $0.00 | E28: 0% | F28: $0.00 | G28: $0.00 | H28: $0.00
A29: other | B29: 1.0 | C29: acre | D29: $0.00 | E29: 0% | F29: $0.00 | G29: $0.00 | H29: $0.00
A30: other | B30: 1.0 | C30: acre | D30: $0.00 | E30: 0% | F30: $0.00 | G30: $0.00 | H30: $0.00
A31: other | B31: 1.0 | C31: acre | D31: $0.00 | E31: 0% | F31: $0.00 | G31: $0.00 | H31: $0.00
A32: other | B32: 1.0 | C32: acre | D32: $0.00 | E32: 0% | F32: $0.00 | G32: $0.00 | H32: $0.00
A33: Crop Insurance | B33: 1.0 | C33: acre | D33: $21.00 | E33: 33% | F33: $21.00 | G33: $14.07 | H33: $6.93
A34: Operator Labor & Hand Labor | B34: 0.46 | C34: hours | D34: ='Universal Input Prices'!$B$31 -> $12.45 | E34: 0% | F34: $5.66 | G34: $5.66 | H34: $0.00
A35: Irrigation Labor | B35: 0.45 | C35: hours | D35: ='Universal Input Prices'!$B$31 -> $12.45 | E35: 0% | F35: $5.58 | G35: $5.58 | H35: $0.00
A36: Diesel Fuel - Tractors | B36: 1.57 | C36: gallons | D36: ='Universal Input Prices'!$B$32 -> $1.81 | E36: 0% | F36: $2.84 | G36: $2.84 | H36: $0.00
A37: Gasoline - Pickup | B37: 4.51 | C37: gallons | D37: ='Universal Input Prices'!$B$33 -> $1.93 | E37: 0% | F37: $8.69 | G37: $8.69 | H37: $0.00
A38: Irrigation Fuel | B38: 7.00 | C38: acin | D38: ='Universal Input Prices'!$B$34 -> $3.60 | E38: 33% | F38: $25.20 | G38: $16.88 | H38: $8.32
A39: Pumping Days | B39: 66.00
A40: Calculated GPM capacity per acre needed | B40: =B38*18.85694/B39 -> 2.00
A41: Repair & Maintenance
A42: Implements | B42: 1.00 | C42: acre | D42: $8.82 | E42: 0% | F42: =D42*B42 -> $8.82 | G42: =F42*(1-E42) -> $8.82 | H42: =F42*E42 -> $0.00
A43: Tractors | B43: 1.00 | C43: acre | D43: $3.28 | E43: 0% | F43: =D43*B43 -> $3.28 | G43: =F43*(1-E43) -> $3.28 | H43: =F43*E43 -> $0.00
A44: Irrigation-Above Ground | B44: =B38 -> 7.00 | C44: acin | D44: $4.04 | E44: 0% | F44: =D44*B44 -> $28.28 | G44: =F44*(1-E44) -> $28.28 | H44: =F44*E44 -> $0.00
A45: Self Propelled Equipment | B45: 1.00 | C45: acre | D45: $0.00 | E45: 100% | F45: =D45*B45 -> $0.00 | G45: =F45*(1-E45) -> $0.00 | H45: =F45*E45 -> $0.00
A46: Pickup | B46: 1.00 | C46: acre | D46: $5.52 | E46: 0% | F46: =D46*B46 -> $5.52 | G46: =F46*(1-E46) -> $5.52 | H46: =F46*E46 -> $0.00
A47: Interest-operating capital | B47: ='Universal Input Prices'!$B$35 -> 5.40% | F47: =(SUM(F16:F24,F27:F46))*$B47/2.1 -> $6.31 | G47: =(SUM(G16:G24,G27:G46))*$B47/2 -> $5.36 | H47: $1.27
A49: Total Variable Costs | F49: =SUM(F16:F47) -> $284.87 | G49: =SUM(G16:G47) -> $236.80 | H49: =SUM(H16:H47) -> $48.39
A50: Returns Above Variable Costs | F50: =F13-F49 -> $93.13 | G50: =G13-G49 -> $16.46 | H50: =H13-H49 -> $76.35
A52: Fixed Costs
A53: Implements | B53: 1.00 | C53: acre | D53: $14.08 | E53: 0% | F53: =D53*B53 -> $14.08 | G53: =F53*(1-E53) -> $14.08 | H53: =F53*E53 -> $0.00
A54: Tractors | B54: 1.00 | C54: acre | D54: $4.88 | E54: 0% | F54: $4.88 | G54: $4.88 | H54: $0.00
A55: Irrigation Equipment | B55: 1.00 | C55: acre | D55: $28.80 | E55: 0% | F55: $28.80 | G55: $28.80 | H55: $0.00
A56: Self Propelled Equipment | B56: 1.00 | C56: acre | D56: $0.00 | E56: 100% | F56: $0.00 | G56: $0.00 | H56: $0.00
A57: Pickup | B57: 1.00 | C57: acre | D57: $8.05 | E57: 0% | F57: $8.05 | G57: $8.05 | H57: $0.00
A58: Management | B58: 1.00 | C58: acre | D58: $0.00 | E58: 0% | F58: $0.00 | G58: $0.00 | H58: $0.00
A59: Irrigation Investment | B59: 1.00 | C59: acre | D59: $24.62 | E59: 0% | F59: =B59*D59 -> $24.62 | G59: $24.62 | H59: $0.00
A60: Land | B60: 1.00 | C60: acre | D60: $72.00 | E60: 100% | F60: =D60*B60 -> $72.00 | G60: =IF($H$6="Cash",D60,F60*(1-E60)) -> $0.00 | H60: =IF($H$6="Cash",0,F60*E60) -> $72.00
A61: Property Tax | B61: 1.00 | C61: acre | D61: $0.00 | E61: 100% | F61: =B61*D61 -> $0.00 | G61: $0.00 | H61: $0.00
A62: Total Fixed Expenses | F62: =SUM(F53:F61) -> $152.43 | G62: =SUM(G53:G61) -> $80.43 | H62: =SUM(H53:H61) -> $72.00
A63: Total Specified Expenses | F63: =F49+F62 -> $437.30 | G63: =G49+G62 -> $317.23 | H63: =H49+H62 -> $120.39
A64: Returns Above Total Specified Expenses | F64: =F13-F63 -> ($59.30) | G64: =G13-G63 -> ($63.97) | H64: =H13-H63 -> $4.35
A66: Return on Investment | F66: =(F64/F63) -> -13.56% | G66: =(G64/G63) -> -20.16% | H66: 3.61%

Sheet Irr Sunflowers-Oilseed
A2: Estimated Costs and Returns per Acre
A3: Irrigated Sunflowers-Oilseed
A4: Projected for 2016
H5: Rental Agreement | I5: Share
A6: Item | B6: Quantity | C6: Unit | D6: Price | E6: Landlord | H6: Share | I6: Cash
E7: Share | F7: Total | G7: Tenant | H7: Landlord
A8: Income
A9: oilseed sunflower | B9: 20.00 | C9: cwt | D9: ='Universal Input Prices'!$B$16 -> $16.50 | E9: 33% | F9: =D9*B9 -> $330.00 | G9: =F9*(1-E9) -> $221.10 | H9: =IF(H6="Cash", D59,F9*E9) -> $108.90
A10: other income | B10: 0.00 | C10: $/ac. | D10: $1.00 | E10: 33% | F10: =D10*B10 -> $0.00 | G10: =F10*(1-E10) -> $0.00 | H10: =IF(H7="Cash", D59,F10*E10) -> $0.00
A12: Total Income | F12: =SUM(F8:F11) -> $330.00 | G12: =SUM(G8:G11) -> $221.10 | H12: =SUM(H8:H11) -> $108.90
A14: Variable Costs
A15: Seed | B15: 1.00 | C15: acre | D15: $32.350 | E15: 0% | F15: =D15*B15 -> $32.35 | G15: =F15*(1-E15) -> $32.35 | H15: =F15*E15 -> $0.00
A16: Fertilizer
A17: fert (P) - liquid | B17: 24.0 | C17: lb | D17: =IF(A17="",0,VLOOKUP(A17,'Universal Input Prices'!$A$26:$B$30, 2)) -> $0.470 | E17: 33% | F17: =D17*B17 -> $11.28 | G17: =F17*(1-E17) -> $7.56 | H17: =F17*E17 -> $3.72
A18: fert (N) - liquid | B18: 70.0 | C18: lb | D18: =IF(A18="",0,VLOOKUP(A18,'Universal Input Prices'!$A$26:$B$27, 2)) -> $0.410 | E18: 33% | F18: =D18*B18 -> $28.71 | G18: =F18*(1-E18) -> $19.24 | H18: =F18*E18 -> $9.47
B19: 0.0 | C19: lb | D19: =IF(A19="",0,VLOOKUP(A19,'Universal Input Prices'!$A$26:$B$30, 2)) -> $0.000 | E19: 0% | F19: =D19*B19 -> $0.00 | G19: =F19*(1-E19) -> $0.00 | H19: =F19*E19 -> $0.00
A20: Field Operations
A21: herbicide & application (glyphosphate) | B21: 3.0 | C21: acre | D21: $9.40 | E21: 33% | F21: =D21*B21 -> $28.20 | G21: =F21*(1-E21) -> $18.89 | H21: =F21*E21 -> $9.31
A22: herbicide & application (2-4D/Prowl H2O) | B22: 1.0 | D22: $15.35 | E22: 33% | F22: $15.35 | G22: $10.28 | H22: $5.07
A23: seed insecticide & application | B23: 1.0 | C23: acre | D23: $9.60 | E23: 33% | F23: $9.60 | G23: $6.43 | H23: $3.17
A24: custom harvest | B24: 1.0 | C24: acre | D24: $25.00 | E24: 33% | F24: $25.00 | G24: $16.75 | H24: $8.25
A25: custom haul | B25: =B9 -> 20.00 | C25: cwt | D25: $0.45 | E25: 33% | F25: $9.00 | G25: $6.03 | H25: $2.97
A26: pesticide & application (ammo) | B26: 1.0 | C26: acre | D26: $3.25 | E26: 33% | F26: =D26*B26 -> $3.25 | G26: =F26*(1-E26) -> $2.18 | H26: =F26*E26 -> $1.07
A27: other | B27: 1.0 | C27: acre | D27: $0.00 | E27: 0% | F27: =D27*B27 -> $0.00 | G27: =F27*(1-E27) -> $0.00 | H27: =F27*E27 -> $0.00
A28: other | B28: 1.0 | C28: acre | D28: $0.00 | E28: 0% | F28: =D28*B28 -> $0.00 | G28: =F28*(1-E28) -> $0.00 | H28: =F28*E28 -> $0.00
A29: other | B29: 1.0 | C29: acre | D29: $0.00 | E29: 0% | F29: $0.00 | G29: $0.00 | H29: $0.00
A30: other | B30: 1.0 | C30: acre | D30: $0.00 | E30: 0% | F30: $0.00 | G30: $0.00 | H30: $0.00
A31: other | B31: 1.0 | C31: acre | D31: $0.00 | E31: 0% | F31: $0.00 | G31: $0.00 | H31: $0.00
A32: Crop Insurance | B32: 1.0 | C32: acre | D32: $21.00 | E32: 33% | F32: $21.00 | G32: $14.07 | H32: $6.93
A33: Operator Labor & Hand Labor | B33: 0.46 | C33: hours | D33: ='Universal Input Prices'!$B$31 -> $12.45 | E33: 0% | F33: $5.66 | G33: $5.66 | H33: $0.00
A34: Irrigation Labor | B34: 0.45 | C34: hours | D34: ='Universal Input Prices'!$B$31 -> $12.45 | E34: 0% | F34: $5.58 | G34: $5.58 | H34: $0.00
A35: Diesel Fuel - Tractors | B35: 1.57 | C35: gallons | D35: ='Universal Input Prices'!$B$32 -> $1.81 | E35: 0% | F35: $2.84 | G35: $2.84 | H35: $0.00
A36: Gasoline - Pickup | B36: 4.51 | C36: gallons | D36: ='Universal Input Prices'!$B$33 -> $1.93 | E36: 0% | F36: $8.69 | G36: $8.69 | H36: $0.00
A37: Irrigation Fuel | B37: 7.00 | C37: acin | D37: ='Universal Input Prices'!$B$34 -> $3.60 | E37: 33% | F37: $25.20 | G37: $16.88 | H37: $8.32
A38: Pumping Days | B38: 66.00
A39: Calculated GPM capacity per acre needed | B39: =B37*18.85694/B38 -> 2.00
A40: Repair & Maintenance
A41: Implements | B41: 1.00 | C41: acre | D41: $8.82 | E41: 0% | F41: =D41*B41 -> $8.82 | G41: =F41*(1-E41) -> $8.82 | H41: =F41*E41 -> $0.00
A42: Tractors | B42: 1.00 | C42: acre | D42: $3.28 | E42: 0% | F42: =D42*B42 -> $3.28 | G42: =F42*(1-E42) -> $3.28 | H42: =F42*E42 -> $0.00
A43: Irrigation-Above Ground | B43: =B37 -> 7.00 | C43: acin | D43: $4.04 | E43: 0% | F43: =D43*B43 -> $28.28 | G43: =F43*(1-E43) -> $28.28 | H43: =F43*E43 -> $0.00
A44: Self Propelled Equipment | B44: 1.00 | C44: acre | D44: $0.00 | E44: 100% | F44: =D44*B44 -> $0.00 | G44: =F44*(1-E44) -> $0.00 | H44: =F44*E44 -> $0.00
A45: Pickup | B45: 1.00 | C45: acre | D45: $5.52 | E45: 0% | F45: =D45*B45 -> $5.52 | G45: =F45*(1-E45) -> $5.52 | H45: =F45*E45 -> $0.00
A46: Interest-operating capital | B46: ='Universal Input Prices'!$B$35 -> 5.40% | F46: =(SUM(F15:F23,F26:F45))*$B46/2.1 -> $6.26 | G46: =(SUM(G15:G23,G26:G45))*$B46/2 -> $5.31 | H46: $1.27
A48: Total Variable Costs | F48: =SUM(F15:F46) -> $283.88 | G48: =SUM(G15:G46) -> $224.64 | H48: =SUM(H15:H46) -> $59.55
A49: Returns Above Variable Costs | F49: =F12-F48 -> $46.12 | G49: =G12-G48 -> ($3.54) | H49: =H12-H48 -> $49.35
A51: Fixed Costs
A52: Implements | B52: 1.00 | C52: acre | D52: $14.08 | E52: 0% | F52: =D52*B52 -> $14.08 | G52: =F52*(1-E52) -> $14.08 | H52: =F52*E52 -> $0.00
A53: Tractors | B53: 1.00 | C53: acre | D53: $4.88 | E53: 0% | F53: $4.88 | G53: $4.88 | H53: $0.00
A54: Irrigation Equipment | B54: 1.00 | C54: acre | D54: $28.80 | E54: 0% | F54: $28.80 | G54: $28.80 | H54: $0.00
A55: Self Propelled Equipment | B55: 1.00 | C55: acre | D55: $0.00 | E55: 100% | F55: $0.00 | G55: $0.00 | H55: $0.00
A56: Pickup | B56: 1.00 | C56: acre | D56: $8.05 | E56: 0% | F56: $8.05 | G56: $8.05 | H56: $0.00
A57: Management | B57: 1.00 | C57: acre | D57: $0.00 | E57: 0% | F57: $0.00 | G57: $0.00 | H57: $0.00
A58: Irrigation Investment | B58: 1.00 | C58: acre | D58: $24.62 | E58: 0% | F58: =B58*D58 -> $24.62 | G58: $24.62 | H58: $0.00
A59: Land | B59: 1.00 | C59: acre | D59: $72.00 | E59: 100% | F59: =D59*B59 -> $72.00 | G59: =IF($H$6="Cash",D59,F59*(1-E59)) -> $0.00 | H59: =IF($H$6="Cash",0,F59*E59) -> $72.00
A60: Property Tax | B60: 1.00 | C60: acre | D60: $0.00 | E60: 100% | F60: =B60*D60 -> $0.00 | G60: $0.00 | H60: $0.00
A61: Total Fixed Expenses | F61: =SUM(F52:F60) -> $152.43 | G61: =SUM(G52:G60) -> $80.43 | H61: =SUM(H52:H60) -> $72.00
A62: Total Specified Expenses | F62: =F48+F61 -> $436.31 | G62: =G48+G61 -> $305.07 | H62: =H48+H61 -> $131.55
A63: Returns Above Total Specified Expenses | F63: =F12-F62 -> ($106.31) | G63: =G12-G62 -> ($83.97) | H63: =H12-H62 -> ($22.65)
A65: Return on Investment | F65: =(F63/F62) -> -24.36% | G65: =(G63/G62) -> -27.53% | H65: -17.21%

Sheet Irr Triticale Silage
A2: Estimated Costs and Returns per Acre
A3: Irrigated Triticale Silage
A4: Projected for 2016
H5: Rental Agreement | I5: Share
A6: Item | B6: Quantity | C6: Unit | D6: Price | E6: Landlord | H6: Share | I6: Cash
E7: Share | F7: Total | G7: Tenant | H7: Landlord
A8: Income
A9: triticale silage | B9: 10.00 | C9: ton | D9: ='Universal Input Prices'!$B$17 -> $31.60 | E9: 33% | F9: =D9*B9 -> $316.00 | G9: =F9*(1-E9) -> $211.72 | H9: =IF(H6="Cash", D57,F9*E9) -> $104.28
A10: other income | B10: 0.00 | C10: $/ac. | D10: $1.00 | E10: 33% | F10: =D10*B10 -> $0.00 | G10: =F10*(1-E10) -> $0.00 | H10: =IF(H7="Cash", D59,F10*E10) -> $0.00
A12: Total Income | F12: =SUM(F7:F11) -> $316.00 | G12: =SUM(G7:G11) -> $211.72 | H12: =SUM(H7:H11) -> $104.28
A14: Variable Costs
A15: Seed | B15: 0.60 | C15: cwt | D15: $36.60 | E15: 0% | F15: =D15*B15 -> $21.96 | G15: =F15*(1-E15) -> $21.96 | H15: =F15*E15 -> $0.00
A16: Fertilizer
A17: fert (N) - NH3 | B17: 60.0 | C17: lb | D17: =IF(A17="",0,VLOOKUP(A17,'Universal Input Prices'!$A$26:$B$30, 2)) -> $0.250 | E17: 33% | F17: =D17*B17 -> $15.00 | G17: =F17*(1-E17) -> $10.05 | H17: =F17*E17 -> $4.95
A18: fert (P) - liquid | B18: 40.0 | C18: lb | D18: =IF(A18="",0,VLOOKUP(A18,'Universal Input Prices'!$A$26:$B$30, 2)) -> $0.470 | E18: 33% | F18: =D18*B18 -> $18.80 | G18: =F18*(1-E18) -> $12.60 | H18: =F18*E18 -> $6.20
A19: fert (N) - liquid | B19: 30.0 | C19: lb | D19: =IF(A19="",0,VLOOKUP(A19,'Universal Input Prices'!$A$26:$B$30, 2)) -> $0.410 | E19: 0% | F19: =D19*B19 -> $12.30 | G19: =F19*(1-E19) -> $12.30 | H19: =F19*E19 -> $0.00
A20: Field Operations
A21: herbicide & application | B21: 1.0 | C21: acre | D21: $0.00 | E21: 33% | F21: =D21*B21 -> $0.00 | G21: =F21*(1-E21) -> $0.00 | H21: =F21*E21 -> $0.00
A22: fertilizer application | B22: 1.0 | C22: acre | D22: $15.00 | E22: 33% | F22: $15.00 | G22: $10.05 | H22: $4.95
A23: insecticide & application | B23: 1.0 | C23: acre | D23: $8.90 | E23: 33% | F23: $8.90 | G23: $5.96 | H23: $2.94
A24: custom harvest & haul | B24: =$B$9 -> 10.00 | C24: ton | D24: $9.00 | E24: 0% | F24: $90.00 | G24: $90.00 | H24: $0.00
A25: crop consultant | B25: 1.0 | C25: acre | D25: $0.00 | E25: 0% | F25: $0.00 | G25: $0.00 | H25: $0.00
A26: scouting | B26: 1.0 | C26: acre | D26: $0.00 | E26: 0% | F26: =D26*B26 -> $0.00 | G26: =F26*(1-E26) -> $0.00 | H26: =F26*E26 -> $0.00
A27: other | B27: 1.0 | C27: acre | D27: $0.00 | E27: 0% | F27: $0.00 | G27: $0.00 | H27: $0.00
A28: other | B28: 1.0 | C28: acre | D28: $0.00 | E28: 0% | F28: $0.00 | G28: $0.00 | H28: $0.00
A29: other | B29: 1.0 | C29: acre | D29: $0.00 | E29: 0% | F29: $0.00 | G29: $0.00 | H29: $0.00
A30: Crop Insurance | B30: 1.0 | C30: acre | D30: $0.00 | E30: 33% | F30: $0.00 | G30: $0.00 | H30: $0.00
A31: Operator Labor & Hand Labor | B31: 0.9 | C31: hour | D31: ='Universal Input Prices'!$B$31 -> $12.45 | E31: 0% | F31: $10.64 | G31: $10.64 | H31: $0.00
A32: Irrigation Labor | B32: 0.96 | C32: hours | D32: ='Universal Input Prices'!$B$31 -> $12.45 | E32: 0% | F32: $11.95 | G32: $11.95 | H32: $0.00
A33: Diesel Fuel - Tractors | B33: 2.12 | C33: gallons | D33: ='Universal Input Prices'!$B$32 -> $1.81 | E33: 0% | F33: $3.84 | G33: $3.84 | H33: $0.00
A34: Gasoline - Pickup | B34: 2.05 | C34: gallons | D34: ='Universal Input Prices'!$B$33 -> $1.93 | E34: 0% | F34: $3.95 | G34: $3.95 | H34: $0.00
A35: Irrigation Fuel | B35: 10.00 | C35: acin | D35: ='Universal Input Prices'!$B$34 -> $3.60 | E35: 33% | F35: $36.00 | G35: $24.12 | H35: $11.88
A36: Pumping Days | B36: 70.04
A37: Calculated GPM capacity per acre needed | B37: =B35*18.85694/B36 -> 2.69
A38: Repair & Maintenance | G38: $0.00 | H38: $0.00
A39: Implements | B39: 1.00 | C39: acre | D39: $11.98 | E39: 0% | F39: =D39*B39 -> $11.98 | G39: $11.98 | H39: $0.00
A40: Tractors | B40: 1.00 | C40: acre | D40: $3.78 | E40: 0% | F40: =D40*B40 -> $3.78 | G40: $3.78 | H40: $0.00
A41: Irrigation-Above Ground | B41: =B35 -> 10.00 | C41: acin | D41: $4.04 | E41: 0% | F41: =D41*B41 -> $40.40 | G41: $40.40 | H41: $0.00
A42: Self Propelled Equipment | B42: 1.00 | C42: acre | D42: $0.00 | E42: 100% | F42: =D42*B42 -> $0.00 | G42: $0.00 | H42: $0.00
A43: Pickup | B43: 1.00 | C43: acre | D43: $2.51 | E43: 0% | F43: =D43*B43 -> $2.51 | G43: $2.51 | H43: $0.00
A44: Interest-operating capital | B44: ='Universal Input Prices'!$B$35 -> 5.40% | F44: =(SUM(F15:F23,F25:F43))*$B44/1.7 -> $6.89 | G44: =(SUM(G15:G23,G25:G43))*$B44/2 -> $5.02 | H44: $0.83
A46: Total Variable Costs | F46: =SUM(F15:F44) -> $313.91 | G46: =SUM(G15:G44) -> $281.12 | H46: =SUM(H15:H44) -> $31.76
A47: Returns Above Variable Costs | F47: =F12-F46 -> $2.09 | G47: =G12-G46 -> ($69.40) | H47: =H12-H46 -> $72.52
A49: Fixed Costs
A50: Implements | B50: 1.00 | C50: acre | D50: $18.79 | E50: 0% | F50: =D50*B50 -> $18.79 | G50: =F50*(1-E50) -> $18.79 | H50: =F50*E50 -> $0.00
A51: Tractors | B51: 1.00 | C51: acre | D51: $5.40 | E51: 0% | F51: $5.40 | G51: $5.40 | H51: $0.00
A52: Irrigation Equipment | B52: 1.00 | C52: acre | D52: $33.50 | E52: 0% | F52: $33.50 | G52: $33.50 | H52: $0.00
A53: Self Propelled Equipment | B53: 1.00 | C53: acre | D53: $0.00 | E53: 100% | F53: $0.00 | G53: $0.00 | H53: $0.00
A54: Pickup | B54: 1.00 | C54: acre | D54: $3.66 | E54: 0% | F54: $3.66 | G54: $3.66 | H54: $0.00
A55: Management | B55: 1.00 | C55: acre | D55: $0.00 | E55: 0% | F55: $0.00 | G55: $0.00 | H55: $0.00
A56: Irrigation Investment | B56: 1.00 | C56: acre | D56: $26.57 | E56: 0% | F56: =B56*D56 -> $26.57 | G56: $26.57 | H56: $0.00
A57: Land | B57: 1.00 | C57: acre | D57: $72.00 | E57: 100% | F57: =D57*B57 -> $72.00 | G57: =IF($H$6="Cash",D57,F57*(1-E57)) -> $0.00 | H57: =IF($H$6="Cash",0,F57*E57) -> $72.00
A58: Property Tax | B58: 1.00 | C58: acre | D58: $0.00 | E58: 100% | F58: =B58*D58 -> $0.00 | G58: $0.00 | H58: $0.00
A59: Total Fixed Expenses | F59: =SUM(F50:F58) -> $159.92 | G59: =SUM(G50:G58) -> $87.92 | H59: =SUM(H50:H58) -> $72.00
A60: Total Specified Expenses | F60: =F46+F59 -> $473.83 | G60: =G46+G59 -> $369.04 | H60: =H46+H59 -> $103.76
A61: Returns Above Total Specified Expenses | F61: =F12-F60 -> ($157.83) | G61: =G12-G60 -> ($157.32) | H61: =H12-H60 -> $0.52
A63: Return on Investment | F63: =(F61/F60) -> -33.31% | G63: =(G61/G60) -> -42.63% | H63: 0.51%

Sheet Irr Wheat
A2: Estimated Costs and Returns per Acre
A3: Irrigated Wheat
A4: Projected for 2016
H5: Rental Agreement | I5: Share
A6: Item | B6: Quantity | C6: Unit | D6: Price | E6: Landlord | H6: Share | I6: Cash
E7: Share | F7: Total | G7: Tenant | H7: Landlord
A8: Income
A9: wheat | B9: 50.0 | C9: bu | D9: ='Universal Input Prices'!$B$18 -> $3.95 | E9: 33% | F9: =D9*B9 -> $197.50 | G9: =F9*(1-E9) -> $132.33 | H9: =IF(H6="Cash", D58,F9*E9) -> $65.18
A10: grazing | B10: 136.00 | C10: lb | D10: =Grazing_Price -> $0.400 | E10: 33% | F10: =D10*B10 -> $54.40 | G10: =F10*(1-E10) -> $36.45 | H10: =IF(H6="Cash", 0,F10*E10) -> $17.95
A11: other income | B11: 0.00 | C11: $/ac. | D11: $1.00 | E11: 33% | F11: =D11*B11 -> $0.00 | G11: =F11*(1-E11) -> $0.00 | H11: =IF(H8="Cash", D60,F11*E11) -> $0.00
A13: Total Income | F13: =SUM(F8:F12) -> $251.90 | G13: =SUM(G8:G12) -> $168.77 | H13: =SUM(H8:H12) -> $83.13
A15: Variable Costs
A16: Seed | B16: 1.00 | C16: bu | D16: $23.700 | E16: 0% | F16: =D16*B16 -> $23.70 | G16: =F16*(1-E16) -> $23.70 | H16: =F16*E16 -> $0.00
A17: Fertilizer
A18: fert (N) - NH3 | B18: 50.0 | C18: lb | D18: =IF(A18="",0,VLOOKUP(A18,'Universal Input Prices'!$A$26:$B$30, 2)) -> $0.250 | E18: 33% | F18: =D18*B18 -> $12.50 | G18: =F18*(1-E18) -> $8.38 | H18: =F18*E18 -> $4.13
A19: fert (P) - liquid | B19: 30.0 | C19: lb | D19: =IF(A19="",0,VLOOKUP(A19,'Universal Input Prices'!$A$26:$B$30, 2)) -> $0.470 | E19: 33% | F19: =D19*B19 -> $14.10 | G19: =F19*(1-E19) -> $9.45 | H19: =F19*E19 -> $4.65
A20: fert (N) - liquid | B20: 25.0 | C20: lb | D20: =IF(A20="",0,VLOOKUP(A20,'Universal Input Prices'!$A$26:$B$27, 2)) -> $0.410 | E20: 33% | F20: =D20*B20 -> $10.25 | G20: =F20*(1-E20) -> $6.87 | H20: =F20*E20 -> $3.38
A21: Field Operations
A22: herbicide & application | B22: 1.0 | C22: acre | D22: $0.00 | E22: 33% | F22: =D22*B22 -> $0.00 | G22: =F22*(1-E22) -> $0.00 | H22: =F22*E22 -> $0.00
A23: fertilizer application | B23: 1.0 | C23: acre | D23: $15.00 | E23: 33% | F23: $15.00 | G23: $10.05 | H23: $4.95
A24: insecticide & application | B24: 1.0 | C24: acre | D24: $8.90 | E24: 33% | F24: $8.90 | G24: $5.96 | H24: $2.94
A25: custom harvest & haul | B25: =B9 -> 50.0 | C25: bu. | D25: $0.60 | E25: 0% | F25: $30.00 | G25: $30.00 | H25: $0.00
A26: hoeing | B26: 0.0 | C26: acre | D26: $0.00 | E26: 0% | F26: $0.00 | G26: $0.00 | H26: $0.00
A27: scouting | B27: 1.0 | C27: acre | D27: $0.00 | E27: 0% | F27: =D27*B27 -> $0.00 | G27: =F27*(1-E27) -> $0.00 | H27: =F27*E27 -> $0.00
A28: other | B28: 1.0 | C28: acre | D28: $0.00 | E28: 0% | F28: $0.00 | G28: $0.00 | H28: $0.00
A29: other | B29: 1.0 | C29: acre | D29: $0.00 | E29: 0% | F29: $0.00 | G29: $0.00 | H29: $0.00
A30: other | B30: 1.0 | C30: acre | D30: $0.00 | E30: 0% | F30: $0.00 | G30: $0.00 | H30: $0.00
A31: Crop Insurance | B31: 1.0 | C31: acre | D31: $33.00 | E31: 33% | F31: $33.00 | G31: $22.11 | H31: $10.89
A32: Operator Labor & Hand Labor | B32: 0.86 | C32: hours | D32: ='Universal Input Prices'!$B$31 -> $12.45 | E32: 0% | F32: $10.64 | G32: $10.64 | H32: $0.00
A33: Irrigation Labor | B33: 0.96 | C33: hours | D33: ='Universal Input Prices'!$B$31 -> $12.45 | E33: 0% | F33: $11.95 | G33: $11.95 | H33: $0.00
A34: Diesel Fuel - Tractors | B34: 2.12 | C34: gallons | D34: ='Universal Input Prices'!$B$32 -> $1.81 | E34: 0% | F34: $3.84 | G34: $3.84 | H34: $0.00
A35: Gasoline - Pickup | B35: 2.05 | C35: gallons | D35: ='Universal Input Prices'!$B$33 -> $1.93 | E35: 0% | F35: $3.95 | G35: $3.95 | H35: $0.00
A36: Irrigation Fuel | B36: 10.00 | C36: acin | D36: ='Universal Input Prices'!$B$34 -> $3.60 | E36: 33% | F36: $36.00 | G36: $24.12 | H36: $11.88
A37: Pumping Days | B37: 70.71
A38: Calculated GPM capacity per acre needed | B38: =B36*18.85694/B37 -> 2.67
A39: Repair & Maintenance
A40: Implements | B40: 1.00 | C40: acre | D40: $11.98 | E40: 0% | F40: =D40*B40 -> $11.98 | G40: $11.98 | H40: $0.00
A41: Tractors | B41: 1.00 | C41: acre | D41: $3.78 | E41: 0% | F41: =D41*B41 -> $3.78 | G41: $3.78 | H41: $0.00
A42: Irrigation-Above Ground | B42: =B36 -> 10.00 | C42: acin | D42: $4.04 | E42: 0% | F42: =D42*B42 -> $40.40 | G42: $40.40 | H42: $0.00
A43: Self Propelled Equipment | B43: 1.00 | C43: acre | D43: $0.00 | E43: 100% | F43: =D43*B43 -> $0.00 | G43: $0.00 | H43: $0.00
A44: Pickup | B44: 1.00 | C44: acre | D44: $2.51 | E44: 0% | F44: =D44*B44 -> $2.51 | G44: $2.51 | H44: $0.00
A45: Interest-operating capital | B45: ='Universal Input Prices'!$B$35 -> 5.40% | F45: =(SUM(F16:F24,F26:F44))*$B45/1.62 -> $8.08 | G45: =(SUM(G16:G24,G26:G44))*$B45/2 -> $5.39 | H45: $1.16
A47: Total Variable Costs | F47: =SUM(F16:F45) -> $280.59 | G47: =SUM(G16:G45) -> $235.08 | H47: =SUM(H16:H45) -> $43.97
A48: Returns Above Variable Costs | F48: =F13-F47 -> ($28.69) | G48: =G13-G47 -> ($66.30) | H48: =H13-H47 -> $39.15
A50: Fixed Costs
A51: Implements | B51: 1.00 | C51: acre | D51: $18.79 | E51: 0% | F51: =D51*B51 -> $18.79 | G51: =F51*(1-E51) -> $18.79 | H51: =F51*E51 -> $0.00
A52: Tractors | B52: 1.00 | C52: acre | D52: $5.40 | E52: 0% | F52: $5.40 | G52: $5.40 | H52: $0.00
A53: Irrigation Equipment | B53: 1.00 | C53: acre | D53: $33.50 | E53: 0% | F53: $33.50 | G53: $33.50 | H53: $0.00
A54: Self Propelled Equipment | B54: 1.00 | C54: acre | D54: $0.00 | E54: 100% | F54: $0.00 | G54: $0.00 | H54: $0.00
A55: Pickup | B55: 1.00 | C55: acre | D55: $3.66 | E55: 0% | F55: $3.66 | G55: $3.66 | H55: $0.00
A56: Management | B56: 1.00 | C56: acre | D56: $0.00 | E56: 0% | F56: $0.00 | G56: $0.00 | H56: $0.00
A57: Irrigation Investment | B57: 1.00 | C57: acre | D57: $26.57 | E57: 0% | F57: =B57*D57 -> $26.57 | G57: $26.57 | H57: $0.00
A58: Land | B58: 1.00 | C58: acre | D58: $72.00 | E58: 100% | F58: =D58*B58 -> $72.00 | G58: =IF($H$6="Cash",D58,F58*(1-E58)) -> $0.00 | H58: =IF($H$6="Cash",0,F58*E58) -> $72.00
A59: Property Tax | B59: 1.00 | C59: acre | D59: $0.00 | E59: 100% | F59: =B59*D59 -> $0.00 | G59: $0.00 | H59: $0.00
A60: Total Fixed Expenses | F60: =SUM(F51:F59) -> $159.92 | G60: =SUM(G51:G59) -> $87.92 | H60: =SUM(H51:H59) -> $72.00
A61: Total Specified Expenses | F61: =F47+F60 -> $440.51 | G61: =G47+G60 -> $323.00 | H61: =H47+H60 -> $115.97
A62: Returns Above Total Specified Expenses | F62: =F13-F61 -> ($188.61) | G62: =G13-G61 -> ($154.22) | H62: =H13-H61 -> ($32.85)
A64: Return on Investment | F64: =(F62/F61) -> -42.82% | G64: =(G62/G61) -> -47.75% | H64: -28.32%

Sheet Irr Other Crop
A2: Estimated Costs and Returns per Acre
A3: ='Universal Input Prices'!A19 -> Irrigated Other Crop
A4: Projected for 2016
H5: Rental Agreement | I5: Share
A6: Item | B6: Quantity | C6: Unit | D6: Price | E6: Landlord | H6: Share | I6: Cash
E7: Share | F7: Total | G7: Tenant | H7: Landlord
A8: Income
A9: other irrigated crop | B9: 0.0 | C9: ='Universal Input Prices'!C19 -> unit | D9: ='Universal Input Prices'!B19 -> $0.00 | E9: 33% | F9: =D9*B9 -> $0.00 | G9: =F9*(1-E9) -> $0.00 | H9: =IF(H6="Cash", D59,F9*E9) -> $0.00
A10: secondary income | B10: 0.00 | C10: ='Universal Input Prices'!C20 -> unit | D10: $0.00 | E10: 33% | F10: =D10*B10 -> $0.00 | G10: =F10*(1-E10) -> $0.00 | H10: =IF(H6="Cash", 0,F10*E10) -> $0.00
A12: Total Income | F12: =F9+F10 -> $0.00 | G12: =G9+G10 -> $0.00 | H12: =H9+H10 -> $0.00
A14: Variable Costs
A15: Seed | B15: 0.00 | C15: unit | D15: $0.000 | E15: 0% | F15: =D15*B15 -> $0.00 | G15: =F15*(1-E15) -> $0.00 | H15: =F15*E15 -> $0.00
A16: Fertilizer
A17: fert (N) - NH3 | B17: 0.0 | C17: lb | D17: =IF(A17="",0,VLOOKUP(A17,'Universal Input Prices'!$A$26:$B$30, 2)) -> $0.250 | E17: 33% | F17: =D17*B17 -> $0.00 | G17: =F17*(1-E17) -> $0.00 | H17: =F17*E17 -> $0.00
A18: fert (N) - dry | B18: 0.0 | C18: lb | D18: =IF(A18="",0,VLOOKUP(A18,'Universal Input Prices'!$A$26:$B$30, 2)) -> $0.330 | E18: 33% | F18: $0.00 | G18: $0.00 | H18: $0.00
A19: fert (N) - liquid | B19: 0.0 | C19: lb | D19: =IF(A19="",0,VLOOKUP(A19,'Universal Input Prices'!$A$26:$B$30, 2)) -> $0.410 | E19: 33% | F19: =D19*B19 -> $0.00 | G19: =F19*(1-E19) -> $0.00 | H19: =F19*E19 -> $0.00
A20: fert (P) - dry | B20: 0.0 | C20: lb | D20: =IF(A20="",0,VLOOKUP(A20,'Universal Input Prices'!$A$26:$B$30, 2)) -> $0.430 | E20: 33% | F20: =D20*B20 -> $0.00 | G20: =F20*(1-E20) -> $0.00 | H20: =F20*E20 -> $0.00
A21: fert (P) - liquid | B21: 0.0 | C21: lb | D21: =IF(A21="",0,VLOOKUP(A21,'Universal Input Prices'!$A$26:$B$30, 2)) -> $0.470 | E21: 33% | F21: =D21*B21 -> $0.00 | G21: =F21*(1-E21) -> $0.00 | H21: =F21*E21 -> $0.00
A22: Field Operations
A23: herbicide & application | B23: 1.0 | C23: acre | D23: $0.00 | E23: 33% | F23: =D23*B23 -> $0.00 | G23: =F23*(1-E23) -> $0.00 | H23: =F23*E23 -> $0.00
A24: fertilizer application | B24: 0.0 | C24: acre | D24: $11.75 | E24: 33% | F24: $0.00 | G24: $0.00 | H24: $0.00
A25: insecticide & application | B25: 0.0 | C25: acre | D25: $0.00 | E25: 33% | F25: $0.00 | G25: $0.00 | H25: $0.00
A26: custom harvest & haul | B26: =B9 -> 0.0 | C26: =C9 -> unit | D26: $0.00 | E26: 0% | F26: $0.00 | G26: $0.00 | H26: $0.00
A27: crop consulting | B27: 1.0 | C27: acre | D27: $0.00 | E27: 0% | F27: $0.00 | G27: $0.00 | H27: $0.00
A28: scouting | B28: 1.0 | C28: acre | D28: $0.00 | E28: 0% | F28: =D28*B28 -> $0.00 | G28: =F28*(1-E28) -> $0.00 | H28: =F28*E28 -> $0.00
A29: other | B29: 1.0 | C29: acre | D29: $0.00 | E29: 0% | F29: $0.00 | G29: $0.00 | H29: $0.00
A30: other | B30: 1.0 | C30: acre | D30: $0.00 | E30: 0% | F30: $0.00 | G30: $0.00 | H30: $0.00
A31: other | B31: 1.0 | C31: acre | D31: $0.00 | E31: 0% | F31: $0.00 | G31: $0.00 | H31: $0.00
A32: Crop Insurance | B32: 1.0 | C32: acre | D32: $0.00 | E32: 33% | F32: $0.00 | G32: $0.00 | H32: $0.00
A33: Operator Labor & Hand Labor | B33: 0.00 | C33: hours | D33: ='Universal Input Prices'!$B$31 -> $12.45 | E33: 0% | F33: $0.00 | G33: $0.00 | H33: $0.00
A34: Irrigation Labor | B34: 0.00 | C34: hours | D34: ='Universal Input Prices'!$B$31 -> $12.45 | E34: 0% | F34: $0.00 | G34: $0.00 | H34: $0.00
A35: Diesel Fuel - Tractors | B35: 0.00 | C35: gallons | D35: ='Universal Input Prices'!$B$32 -> $1.81 | E35: 0% | F35: $0.00 | G35: $0.00 | H35: $0.00
A36: Gasoline - Pickup | B36: 0.00 | C36: gallons | D36: ='Universal Input Prices'!$B$33 -> $1.93 | E36: 0% | F36: $0.00 | G36: $0.00 | H36: $0.00
A37: Irrigation Fuel | B37: 0.00 | C37: acin | D37: ='Universal Input Prices'!$B$34 -> $3.60 | E37: 33% | F37: $0.00 | G37: $0.00 | H37: $0.00
A38: Pumping Days | B38: 70.71
A39: Calculated GPM capacity per acre needed | B39: =B37*18.85694/B38 -> 0.00
A40: Repair & Maintenance
A41: Implements | B41: 0.00 | C41: acre | D41: $4.47 | E41: 0% | F41: =D41*B41 -> $0.00 | G41: $0.00 | H41: $0.00
A42: Tractors | B42: 0.00 | C42: acre | D42: $5.55 | E42: 0% | F42: =D42*B42 -> $0.00 | G42: $0.00 | H42: $0.00
A43: Irrigation-Above Ground | B43: =Other_Inches -> 0.00 | C43: acin | D43: $4.04 | E43: 0% | F43: =D43*B43 -> $0.00 | G43: $0.00 | H43: $0.00
A44: Self Propelled Equipment | B44: 0.00 | C44: acre | D44: $0.16 | E44: 100% | F44: =D44*B44 -> $0.00 | G44: $0.00 | H44: $0.00
A45: Pickup | B45: 1.00 | C45: acre | D45: $0.00 | E45: 0% | F45: =D45*B45 -> $0.00 | G45: $0.00 | H45: $0.00
A46: Interest-operating capital | B46: ='Universal Input Prices'!$B$35 -> 5.40% | F46: =(SUM(F15:F25,F27:F45))*$B46/2 -> $0.00 | G46: =(SUM(G15:G25,G27:G45))*$B46/2 -> $0.00 | H46: $0.00
A48: Total Variable Costs | F48: =SUM(F15:F46) -> $0.00 | G48: =SUM(G15:G46) -> $0.00 | H48: =SUM(H15:H46) -> $0.00
A49: Returns Above Variable Costs | F49: =F12-F48 -> $0.00 | G49: =G12-G48 -> $0.00 | H49: =H12-H48 -> $0.00
A51: Fixed Costs
A52: Implements | B52: 0.00 | C52: acre | D52: $7.04 | E52: 0% | F52: =D52*B52 -> $0.00 | G52: =F52*(1-E52) -> $0.00 | H52: =F52*E52 -> $0.00
A53: Tractors | B53: 0.00 | C53: acre | D53: $7.89 | E53: 0% | F53: $0.00 | G53: $0.00 | H53: $0.00
A54: Irrigation-Above Ground | B54: 0.00 | C54: acre | D54: $35.56 | E54: 0% | F54: $0.00 | G54: $0.00 | H54: $0.00
A55: Self Propelled Equipment | B55: 0.00 | C55: acre | D55: $0.24 | E55: 100% | F55: $0.00 | G55: $0.00 | H55: $0.00
A56: Pickup | B56: 1.00 | C56: acre | D56: $0.00 | E56: 0% | F56: $0.00 | G56: $0.00 | H56: $0.00
A57: Management | B57: 1.00 | C57: acre | D57: $0.00 | E57: 0% | F57: $0.00 | G57: $0.00 | H57: $0.00
A58: Whole Farm Insurance | B58: 1.00 | C58: acre | D58: $0.00 | E58: 0% | F58: =B58*D58 -> $0.00 | G58: $0.00 | H58: $0.00
A59: Land | B59: 0.00 | C59: acre | D59: $85.00 | E59: 100% | F59: =D59*B59 -> $0.00 | G59: =IF($H$6="Cash",D59,F59*(1-E59)) -> $0.00 | H59: =IF($H$6="Cash",0,F59*E59) -> $0.00
A60: Property Tax | B60: 1.00 | C60: acre | D60: $0.00 | E60: 100% | F60: =B60*D60 -> $0.00 | G60: $0.00 | H60: $0.00
A61: Total Fixed Expenses | F61: =SUM(F52:F60) -> $0.00 | G61: =SUM(G52:G60) -> $0.00 | H61: =SUM(H52:H60) -> $0.00
A62: Total Specified Expenses | F62: =F48+F61 -> $0.00 | G62: =G48+G61 -> $0.00 | H62: =H48+H61 -> $0.00
A63: Returns Above Total Specified Expenses | F63: =F12-F62 -> $0.00 | G63: =G12-G62 -> $0.00 | H63: =H12-H62 -> $0.00
A65: Return on Investment | F65: =IF(F62=0,"-",(F63/F62)) -> - | G65: =IF(G62=0,"-",(G63/G62)) -> - | H65: -

Sheet Dry Canola
A2: Estimated Costs and Returns per Acre
A3: Dryland Canola
A4: Projected for 2016
H5: Rental Agreement | I5: Share
A6: Item | B6: Quantity | C6: Unit | D6: Price | E6: Landlord | H6: Share | I6: Cash
E7: Share | F7: Total | G7: Tenant | H7: Landlord
A8: Income
A9: canola | B9: 11.00 | C9: cwt | D9: ='Universal Input Prices'!$B$5 -> $13.90 | E9: 33% | F9: =D9*B9 -> $152.90 | G9: =F9*(1-E9) -> $102.44 | H9: =IF(H6="Cash", D56,F9*E9) -> $50.46
A10: other income | B10: 0.00 | C10: $/ac. | D10: $1.00 | E10: 33% | F10: =D10*B10 -> $0.00 | G10: =F10*(1-E10) -> $0.00 | H10: =IF(H7="Cash", D59,F10*E10) -> $0.00
A12: Total Income | F12: =SUM(F8:F11) -> $152.90 | G12: =SUM(G8:G11) -> $102.44 | H12: =SUM(H8:H11) -> $50.46
A14: Variable Costs
A15: Seed
A16: canola seed | B16: 5.00 | C16: lb | D16: $6.60 | E16: 0% | F16: =D16*B16 -> $33.00 | G16: =F16*(1-E16) -> $33.00 | H16: =F16*E16 -> $0.00
A17: seed treatment | B17: 1.00 | C17: acre | D17: $6.70 | E17: 0% | F17: =D17*B17 -> $6.70 | G17: =F17*(1-E17) -> $6.70 | H17: =F17*E17 -> $0.00
A18: Fertilizer
A19: fert (N) - dry | B19: 35.0 | C19: lb | D19: =IF(A19="",0,VLOOKUP(A19,'Universal Input Prices'!$A$26:$B$26, 2)) -> $0.330 | E19: 33% | F19: =D19*B19 -> $11.57 | G19: =F19*(1-E19) -> $7.75 | H19: =F19*E19 -> $3.82
B20: 0.0 | C20: lb | D20: =IF(A20="",0,VLOOKUP(A20,'Universal Input Prices'!$A$26:$B$30, 2)) -> $0.000 | E20: 0% | F20: =D20*B20 -> $0.00 | G20: =F20*(1-E20) -> $0.00 | H20: =F20*E20 -> $0.00
B21: 0.0 | C21: lb | D21: =IF(A21="",0,VLOOKUP(A21,'Universal Input Prices'!$A$26:$B$30, 2)) -> $0.000 | E21: 0% | F21: =D21*B21 -> $0.00 | G21: =F21*(1-E21) -> $0.00 | H21: =F21*E21 -> $0.00
A22: Field Operations
A23: herbicide & application | B23: 1.0 | C23: acre | D23: $14.30 | E23: 33% | F23: =D23*B23 -> $14.30 | G23: =F23*(1-E23) -> $9.58 | H23: =F23*E23 -> $4.72
A24: fertilizer application | B24: 1.0 | C24: acre | D24: $5.00 | E24: 33% | F24: $5.00 | G24: $3.35 | H24: $1.65
A25: insecticide & application | B25: 1.0 | C25: acre | D25: $9.55 | E25: 33% | F25: $9.55 | G25: $6.40 | H25: $3.15
A26: custom harvest & haul | B26: 1.0 | C26: acre | D26: $25.00 | E26: 0% | F26: $25.00 | G26: $25.00 | H26: $0.00
A27: custom harvest & haul | B27: =B9 -> 11.00 | C27: cwt | D27: $0.45 | E27: 0% | F27: $4.95 | G27: $4.95 | H27: $0.00
A28: hoeing | B28: 0.0 | C28: acre | D28: $0.00 | E28: 0% | F28: $0.00 | G28: $0.00 | H28: $0.00
A29: scouting | B29: 1.0 | C29: acre | D29: $0.00 | E29: 0% | F29: $0.00 | G29: $0.00 | H29: $0.00
A30: other | B30: 1.0 | C30: acre | D30: $0.00 | E30: 0% | F30: $0.00 | G30: $0.00 | H30: $0.00
A31: other | B31: 1.0 | C31: acre | D31: $0.00 | E31: 0% | F31: $0.00 | G31: $0.00 | H31: $0.00
A32: other | B32: 1.0 | C32: acre | D32: $0.00 | E32: 0% | F32: $0.00 | G32: $0.00 | H32: $0.00
A33: Crop Insurance | B33: 1.0 | C33: acre | D33: $0.00 | E33: 0% | F33: $0.00 | G33: $0.00 | H33: $0.00
A34: Operator Labor & Hand Labor | B34: 0.86 | C34: hours | D34: ='Universal Input Prices'!$B$31 -> $12.45 | E34: 0% | F34: $10.64 | G34: $10.64 | H34: $0.00
A35: Diesel Fuel - Tractors | B35: 2.22 | C35: gallons | D35: ='Universal Input Prices'!$B$32 -> $1.81 | E35: 0% | F35: $4.02 | G35: $4.02 | H35: $0.00
A36: Gasoline - Pickup | B36: 2.03 | C36: gallons | D36: ='Universal Input Prices'!$B$33 -> $1.93 | E36: 0% | F36: $3.91 | G36: $3.91 | H36: $0.00
A37: Repair & Maintenance
A38: Implements | B38: 1.00 | C38: acre | D38: $10.59 | E38: 0% | F38: =D38*B38 -> $10.59 | G38: =F38*(1-E38) -> $10.59 | H38: =F38*E38 -> $0.00
A39: Tractors | B39: 1.00 | C39: acre | D39: $4.18 | E39: 0% | F39: =D39*B39 -> $4.18 | G39: =F39*(1-E39) -> $4.18 | H39: =F39*E39 -> $0.00
A40: Other Fixed Expenses | B40: 1.00 | C40: acre | D40: $0.00 | E40: 0% | F40: $0.00 | G40: =F40*(1-E40) -> $0.00 | H40: =F40*E40 -> $0.00
A41: Self Propelled Equipment | B41: 1.00 | C41: acre | D41: $0.00 | E41: 100% | F41: =D41*B41 -> $0.00 | G41: =F41*(1-E41) -> $0.00 | H41: =F41*E41 -> $0.00
A42: Pickup | B42: 1.00 | C42: acre | D42: $2.49 | E42: 0% | F42: =D42*B42 -> $2.49 | G42: =F42*(1-E42) -> $2.49 | H42: =F42*E42 -> $0.00
A43: Interest-operating capital | B43: ='Universal Input Prices'!$B$35 -> 5.40% | F43: =(SUM(F16:F25,F28:F42))*$B43/1.8 -> $3.48 | G43: =(SUM(G16:G25,G28:G42))*$B43/2 -> $2.77 | H43: =(SUM(H16:H25,H28:H42))*$B43/2 -> $0.36
A45: Total Variable Costs | F45: =SUM(F15:F43) -> $149.38 | G45: =SUM(G15:G43) -> $135.33 | H45: =SUM(H15:H43) -> $13.70
A46: Returns Above Variable Costs | F46: =F12-F45 -> $3.52 | G46: =G12-G45 -> ($32.89) | H46: =H12-H45 -> $36.76
A48: Fixed Costs
A49: Implements | B49: 1.00 | C49: acre | D49: $17.07 | E49: 0% | F49: =D49*B49 -> $17.07 | G49: =F49*(1-E49) -> $17.07 | H49: =F49*E49 -> $0.00
A50: Tractors | B50: 1.00 | C50: acre | D50: $5.99 | E50: 0% | F50: $5.99 | G50: $5.99 | H50: $0.00
A51: Other Fixed Expenses | B51: 1.00 | C51: acre | D51: $0.00 | E51: 100% | F51: $0.00 | G51: $0.00 | H51: $0.00
A52: Self Propelled Equipment | B52: 1.00 | C52: acre | D52: $0.00 | E52: 100% | F52: $0.00 | G52: $0.00 | H52: $0.00
A53: Pickup | B53: 1.00 | C53: acre | D53: $3.63 | E53: 0% | F53: $3.63 | G53: $3.63 | H53: $0.00
A54: Management | B54: 1.00 | C54: acre | D54: $0.00 | E54: 0% | F54: $0.00 | G54: $0.00 | H54: $0.00
A55: Whole Farm Insurance | B55: 1.00 | C55: acre | D55: $0.00 | E55: 0% | F55: =B55*D55 -> $0.00 | G55: $0.00 | H55: $0.00
A56: Land | B56: 1.00 | C56: acre | D56: $26.50 | E56: 100% | F56: =D56*B56 -> $26.50 | G56: =IF($H$6="Cash",D56,F56*(1-E56)) -> $0.00 | H56: =IF($H$6="Cash",0,F56*E56) -> $26.50
A57: Property Tax | B57: 1.00 | C57: acre | D57: $0.00 | E57: 100% | F57: =B57*D57 -> $0.00 | G57: $0.00 | H57: $0.00
A58: Total Fixed Expenses | F58: =SUM(F49:F57) -> $53.19 | G58: =SUM(G49:G57) -> $26.69 | H58: =SUM(H49:H57) -> $26.50
A59: Total Specified Expenses | F59: =F45+F58 -> $202.57 | G59: =G45+G58 -> $162.02 | H59: =H45+H58 -> $40.20
A60: Returns Above Total Specified Expenses | F60: =F12-F59 -> ($49.67) | G60: =G12-G59 -> ($59.58) | H60: =H12-H59 -> $10.26
A62: Return on Investment | F62: =(F60/F59) -> -24.52% | G62: =(G60/G59) -> -36.77% | H62: 25.52%

Sheet Dry Cotton
A2: Estimated Costs and Returns per Acre
A3: Dryland Cotton
A4: Projected for 2016
H5: Rental Agreement | I5: Share
A6: Item | B6: Quantity | C6: Unit | D6: Price | E6: Landlord | H6: Share | I6: Cash
E7: Share | F7: Total | G7: Tenant | H7: Landlord
A8: Income
A9: cotton lint | B9: 400.0 | C9: lb | D9: ='Universal Input Prices'!$B$8 -> $0.6500 | E9: 0% | F9: =D9*B9 -> $260.00 | G9: =F9*(1-E9) -> $260.00 | H9: =IF(H6="Cash", D60,F9*E9) -> $0.00
A10: cotton seed | B10: =B9/500*'Universal Input Prices'!B39/2000 -> 0.300 | C10: tons | D10: ='Universal Input Prices'!$B$9 -> $200.00 | E10: 0% | F10: =D10*B10 -> $60.00 | G10: =F10*(1-E10) -> $60.00 | H10: =IF(H6="Cash", 0,F10*E10) -> $0.00
A11: Expected Turnout | B11: 22.2%
A12: other income | B12: 0.00 | C12: $/ac. | D12: $1.00 | E12: 0% | F12: =D12*B12 -> $0.00 | G12: =F12*(1-E12) -> $0.00 | H12: =IF(H9="Cash", D61,F12*E12) -> $0.00
A13: Total Income | F13: =SUM(F9:F12) -> $320.00 | G13: =SUM(G9:G12) -> $320.00 | H13: =SUM(H9:H12) -> $0.00
A15: Variable Costs
A16: Seed
A17: cotton seed | B17: 0.18 | C17: bag | D17: $350.000 | E17: 0% | F17: =D17*B17 -> $63.00 | G17: =F17*(1-E17) -> $63.00 | H17: =F17*E17 -> $0.00
A18: Boll Weevil Assess.-Dry | B18: 1.0 | C18: acre | D18: $0.70 | E18: 0% | F18: =D18*B18 -> $0.70 | G18: =F18*(1-E18) -> $0.70 | H18: =F18*E18 -> $0.00
A19: Fertilizer
A20: fert (P) - dry | B20: 20.0 | C20: lb | D20: =IF(A20="",0,VLOOKUP(A20,'Universal Input Prices'!$A$26:$B$30, 2)) -> $0.430 | E20: 0% | F20: =D20*B20 -> $8.60 | G20: =F20*(1-E20) -> $8.60 | H20: =F20*E20 -> $0.00
A21: fert (N) - dry | B21: 30.0 | C21: lb | D21: =IF(A21="",0,VLOOKUP(A21,'Universal Input Prices'!$A$26:$B$30, 2)) -> $0.330 | E21: 0% | F21: =D21*B21 -> $9.91 | G21: =F21*(1-E21) -> $9.91 | H21: =F21*E21 -> $0.00
B22: 0.0 | C22: lb | D22: =IF(A22="",0,VLOOKUP(A22,'Universal Input Prices'!$A$26:$B$30, 2)) -> $0.000 | E22: 0% | F22: =D22*B22 -> $0.00 | G22: =F22*(1-E22) -> $0.00 | H22: =F22*E22 -> $0.00
A23: Field Operations
A24: preplant herbicide & application | B24: 1.0 | C24: acre | D24: $14.50 | E24: 0% | F24: =D24*B24 -> $14.50 | G24: =F24*(1-E24) -> $14.50 | H24: =F24*E24 -> $0.00
A25: post emergence herbicide & application | B25: 1.0 | C25: acre | D25: $14.30 | E25: 0% | F25: $14.30 | G25: $14.30 | H25: $0.00
A26: clean-up herbicide & application | B26: 1.0 | C26: acre | D26: $0.00 | E26: 0% | F26: $0.00 | G26: $0.00 | H26: $0.00
A27: fertilizer application | B27: 1.0 | C27: acre | D27: $5.00 | E27: 0% | F27: $5.00 | G27: $5.00 | H27: $0.00
A28: insecticide & application | B28: 0.5 | C28: acre | D28: $9.60 | E28: 0% | F28: $4.80 | G28: $4.80 | H28: $0.00
A29: harvest aids | B29: 0.5 | C29: acre | D29: $25.00 | E29: 0% | F29: $12.50 | G29: $12.50 | H29: $0.00
A30: strip (field cleaner) | B30: =B9/100 -> 4.0 | C30: cwt. | D30: ='Universal Input Prices'!$B$37 -> $8.000 | E30: 0% | F30: $32.00 | G30: $32.00 | H30: $0.00
A31: ginning | B31: =B9/B11/100 -> 18.00 | C31: cwt. | D31: ='Universal Input Prices'!$B$38 -> $2.75 | E31: 0% | F31: $49.50 | G31: $49.50 | H31: $0.00
A32: hoeing | B32: 1.0 | C32: acre | D32: $0.00 | E32: 0% | F32: $0.00 | G32: $0.00 | H32: $0.00
A33: scouting | B33: 1.0 | C33: acre | D33: $0.00 | E33: 0% | F33: =D33*B33 -> $0.00 | G33: =F33*(1-E33) -> $0.00 | H33: =F33*E33 -> $0.00
A34: other | B34: 1.0 | C34: acre | D34: $0.00 | E34: 0% | F34: $0.00 | G34: $0.00 | H34: $0.00
A35: other | B35: 1.0 | C35: acre | D35: $0.00 | E35: 0% | F35: $0.00 | G35: $0.00 | H35: $0.00
A36: other | B36: 1.0 | C36: acre | D36: $0.00 | E36: 0% | F36: $0.00 | G36: $0.00 | H36: $0.00
A37: Crop Insurance | B37: 1.0 | C37: acre | D37: $25.00 | E37: 0% | F37: $25.00 | G37: $25.00 | H37: $0.00
A38: Operator Labor & Hand Labor | B38: 1.20 | C38: hours | D38: ='Universal Input Prices'!$B$31 -> $12.45 | E38: 0% | F38: $14.94 | G38: $14.94 | H38: $0.00
A39: Diesel Fuel - Tractors | B39: 3.03 | C39: gallons | D39: ='Universal Input Prices'!$B$32 -> $1.81 | E39: 0% | F39: $5.48 | G39: $5.48 | H39: $0.00
A40: Gasoline - Pickup | B40: 2.03 | C40: gallons | D40: ='Universal Input Prices'!$B$33 -> $1.93 | E40: 0% | F40: $3.91 | G40: $3.91 | H40: $0.00
A41: Repair & Maintenance
A42: Implements | B42: 1.00 | C42: acre | D42: $12.27 | E42: 0% | F42: =D42*B42 -> $12.27 | G42: =F42*(1-E42) -> $12.27 | H42: =F42*E42 -> $0.00
A43: Tractors | B43: 1.00 | C43: acre | D43: $5.52 | E43: 0% | F43: =D43*B43 -> $5.52 | G43: =F43*(1-E43) -> $5.52 | H43: =F43*E43 -> $0.00
A44: Other Fixed Expenses | B44: 1.00 | C44: acre | D44: $0.00 | E44: 0% | F44: =D44*B44 -> $0.00 | G44: =F44*(1-E44) -> $0.00 | H44: =F44*E44 -> $0.00
A45: Self Propelled Equipment | B45: 1.00 | C45: acre | D45: $0.00 | E45: 0% | F45: =D45*B45 -> $0.00 | G45: =F45*(1-E45) -> $0.00 | H45: =F45*E45 -> $0.00
A46: Pickup | B46: 1.00 | C46: acre | D46: $2.49 | E46: 0% | F46: =D46*B46 -> $2.49 | G46: =F46*(1-E46) -> $2.49 | H46: =F46*E46 -> $0.00
A47: Interest-operating capital | B47: ='Universal Input Prices'!$B$35 -> 5.40% | F47: =(SUM(F17:F28,F32:F46))*$B47/1.8 -> $5.71 | G47: =(SUM(G17:G28,G32:G46))*$B47/2 -> $5.14 | H47: =(SUM(H17:H28,H32:H46))*$B47/2 -> $0.00
A49: Total Variable Costs | F49: =SUM(F17:F47) -> $290.14 | G49: =SUM(G17:G47) -> $289.57 | H49: =SUM(H17:H47) -> $0.00
A50: Returns Above Variable Costs | F50: =F13-F49 -> $29.86 | G50: =G13-G49 -> $30.43 | H50: =H13-H49 -> $0.00
A52: Fixed Costs
A53: Implements | B53: 1.00 | C53: acre | D53: $18.92 | E53: 0% | F53: =D53*B53 -> $18.92 | G53: =F53*(1-E53) -> $18.92 | H53: =F53*E53 -> $0.00
A54: Tractors | B54: 1.00 | C54: acre | D54: $7.55 | E54: 0% | F54: $7.55 | G54: $7.55 | H54: $0.00
A55: Other Fixed Expenses | B55: 1.00 | C55: acre | D55: $0.00 | E55: 0% | F55: $0.00 | G55: $0.00 | H55: $0.00
A56: Self Propelled Equipment | B56: 1.00 | C56: acre | D56: $0.00 | E56: 0% | F56: $0.00 | G56: $0.00 | H56: $0.00
A57: Pickup | B57: 1.00 | C57: acre | D57: $3.63 | E57: 0% | F57: $3.63 | G57: $3.63 | H57: $0.00
A58: Management | B58: 1.00 | C58: acre | D58: $0.00 | E58: 0% | F58: $0.00 | G58: $0.00 | H58: $0.00
A59: Whole Farm Insurance | B59: 1.00 | C59: acre | D59: $0.00 | E59: 0% | F59: $0.00 | G59: $0.00 | H59: $0.00
A60: Land | B60: 1.00 | C60: acre | D60: $26.50 | E60: 0% | F60: $26.50 | G60: =IF($H$6="Cash",D60,F60*(1-E60)) -> $26.50 | H60: =IF($H$6="Cash",0,F60*E60) -> $0.00
A61: Property Tax | B61: 1.00 | C61: acre | D61: $0.00 | E61: 0% | F61: $0.00 | G61: $0.00 | H61: $0.00
A62: Total Fixed Expenses | F62: =SUM(F53:F61) -> $56.60 | G62: =SUM(G53:G61) -> $56.60 | H62: =SUM(H53:H61) -> $0.00
A63: Total Specified Expenses | F63: =F49+F62 -> $346.74 | G63: =G49+G62 -> $346.17 | H63: =H49+H62 -> $0.00
A64: Returns Above Total Specified Expenses | F64: =F13-F63 -> ($26.74) | G64: =G13-G63 -> ($26.17) | H64: =H13-H63 -> $0.00
A66: Return on Investment | F66: =(F64/F63) -> -7.71% | G66: =(G64/G63) -> -7.56%

Sheet Dry Sorghum
A2: Estimated Costs and Returns per Acre
A3: Dryland Sorghum
A4: Projected for 2016
H5: Rental Agreement | I5: Share
A6: Item | B6: Quantity | C6: Unit | D6: Price | E6: Landlord | H6: Share | I6: Cash
E7: Share | F7: Total | G7: Tenant | H7: Landlord
A8: Income
A9: sorghum grain | B9: 25.0 | C9: cwt | D9: ='Universal Input Prices'!$B$11 -> $5.75 | E9: 0% | F9: =B9*D9 -> $143.75 | G9: =F9*(1-E9) -> $143.75 | H9: =IF(H6="Cash", D54,F9*E9) -> $0.00
A10: other income | B10: 0.00 | C10: $/ac. | D10: $1.00 | E10: 0% | F10: =D10*B10 -> $0.00 | G10: =F10*(1-E10) -> $0.00 | H10: =IF(H7="Cash", D58,F10*E10) -> $0.00
A12: Total Income | F12: =SUM(F9:F11) -> $143.75 | G12: =SUM(G9:G11) -> $143.75 | H12: =SUM(H9:H11) -> $0.00
A14: Variable Costs
A15: Seed | B15: 2.25 | C15: lb | D15: $1.850 | E15: 0% | F15: =D15*B15 -> $4.16 | G15: =F15*(1-E15) -> $4.16 | H15: =F15*E15 -> $0.00
A16: Fertilizer
A17: fert (N) - NH3 | B17: 30.0 | C17: lb | D17: =IF(A17="",0,VLOOKUP(A17,'Universal Input Prices'!$A$26:$B$30, 2)) -> $0.250 | E17: 0% | F17: =D17*B17 -> $7.50 | G17: =F17*(1-E17) -> $7.50 | H17: =F17*E17 -> $0.00
B18: 0.0 | C18: lb | D18: =IF(A18="",0,VLOOKUP(A18,'Universal Input Prices'!$A$26:$B$30, 2)) -> $0.000 | E18: 0% | F18: =D18*B18 -> $0.00 | G18: =F18*(1-E18) -> $0.00 | H18: =F18*E18 -> $0.00
B19: 0.0 | C19: lb | D19: =IF(A19="",0,VLOOKUP(A19,'Universal Input Prices'!$A$26:$B$30, 2)) -> $0.000 | E19: 0% | F19: =D19*B19 -> $0.00 | G19: =F19*(1-E19) -> $0.00 | H19: =F19*E19 -> $0.00
A20: Field Operations
A21: herbicide & application | B21: 1.0 | C21: acre | D21: $19.20 | E21: 0% | F21: =D21*B21 -> $19.20 | G21: =F21*(1-E21) -> $19.20 | H21: =F21*E21 -> $0.00
A22: fertilizer application | B22: 1.0 | C22: acre | D22: $15.00 | E22: 0% | F22: $15.00 | G22: $15.00 | H22: $0.00
A23: insecticide headworm | B23: 0.7 | C23: acre | D23: $9.80 | E23: 0% | F23: $6.57 | G23: $6.57 | H23: $0.00
A24: custom harvest & haul | B24: 1.0 | C24: acre | D24: $25.00 | E24: 0% | F24: $25.00 | G24: $25.00 | H24: $0.00
A25: custom harvest & haul | B25: =B9 -> 25.0 | C25: cwt | D25: $0.25 | E25: 0% | F25: =D25*B25 -> $6.25 | G25: $6.25 | H25: $0.00
A26: hoeing | B26: 1.0 | C26: acre | D26: $0.00 | E26: 0% | F26: $0.00 | G26: $0.00 | H26: $0.00
A27: scouting | B27: 1.0 | C27: acre | D27: $0.00 | E27: 0% | F27: =D27*B27 -> $0.00 | G27: =F27*(1-E27) -> $0.00 | H27: =F27*E27 -> $0.00
A28: insecticide sugar cane aphid | B28: 1.0 | C28: acre | D28: $21.00 | E28: 33% | F28: $21.00 | G28: $14.07 | H28: $6.93
A29: other | B29: 1.0 | C29: acre | D29: $0.00 | E29: 0% | F29: $0.00 | G29: $0.00 | H29: $0.00
A30: other | B30: 1.0 | C30: acre | D30: $0.00 | E30: 0% | F30: $0.00 | G30: $0.00 | H30: $0.00
A31: Crop Insurance | B31: 1.0 | C31: acre | D31: $17.40 | E31: 0% | F31: $17.40 | G31: $17.40 | H31: $0.00
A32: Operator Labor & Hand Labor | B32: 0.68 | C32: hours | D32: ='Universal Input Prices'!$B$31 -> $12.45 | E32: 0% | F32: $8.40 | G32: $8.40 | H32: $0.00
A33: Diesel Fuel - Tractors | B33: 1.91 | C33: gallons | D33: ='Universal Input Prices'!$B$32 -> $1.81 | E33: 0% | F33: $3.46 | G33: $3.46 | H33: $0.00
A34: Gasoline - Pickup | B34: 2.03 | C34: gallons | D34: ='Universal Input Prices'!$B$33 -> $1.93 | E34: 0% | F34: $3.91 | G34: $3.91 | H34: $0.00
A35: Repair & Maintenance
A36: Implements | B36: 1.00 | C36: acre | D36: $10.18 | E36: 0% | F36: =D36*B36 -> $10.18 | G36: =F36*(1-E36) -> $10.18 | H36: =F36*E36 -> $0.00
A37: Tractors | B37: 1.00 | C37: acre | D37: $3.68 | E37: 0% | F37: =D37*B37 -> $3.68 | G37: =F37*(1-E37) -> $3.68 | H37: =F37*E37 -> $0.00
A38: Other Fixed Expenses | B38: 1.00 | C38: acre | D38: $0.00 | E38: 0% | F38: =D38*B38 -> $0.00 | G38: =F38*(1-E38) -> $0.00 | H38: =F38*E38 -> $0.00
A39: Self Propelled Equipment | B39: 1.00 | C39: acre | D39: $0.00 | E39: 0% | F39: =D39*B39 -> $0.00 | G39: =F39*(1-E39) -> $0.00 | H39: =F39*E39 -> $0.00
A40: Pickup | B40: 1.00 | C40: acre | D40: $2.49 | E40: 0% | F40: =D40*B40 -> $2.49 | G40: =F40*(1-E40) -> $2.49 | H40: =F40*E40 -> $0.00
A41: Interest-operating capital | B41: ='Universal Input Prices'!$B$35 -> 5.40% | F41: =(SUM(F15:F23,F26:F40))*$B41/2.8 -> $2.37 | G41: =(SUM(G15:G23,G26:G40))*$B41/2 -> $3.13 | H41: =(SUM(H15:H23,H26:H40))*$B41/2 -> $0.19
A43: Total Variable Costs | F43: =SUM(F15:F41) -> $156.57 | G43: =SUM(G15:G41) -> $150.40 | H43: =SUM(H15:H41) -> $7.12
A44: Returns Above Variable Costs | F44: =F12-F43 -> ($12.82) | G44: =G12-G43 -> ($6.65) | H44: =H12-H43 -> ($7.12)
A46: Fixed Costs
A47: Implements | B47: 1.00 | C47: acre | D47: $16.35 | E47: 0% | F47: =D47*B47 -> $16.35 | G47: =F47*(1-E47) -> $16.35 | H47: =F47*E47 -> $0.00
A48: Tractors | B48: 1.00 | C48: acre | D48: $5.15 | E48: 0% | F48: $5.15 | G48: $5.15 | H48: $0.00
A49: Other Fixed Expenses | B49: 1.00 | C49: acre | D49: $0.00 | E49: 0% | F49: $0.00 | G49: $0.00 | H49: $0.00
A50: Self Propelled Equipment | B50: 1.00 | C50: acre | D50: $0.00 | E50: 0% | F50: $0.00 | G50: $0.00 | H50: $0.00
A51: Pickup | B51: 1.00 | C51: acre | D51: $3.63 | E51: 0% | F51: $3.63 | G51: $3.63 | H51: $0.00
A52: Management | B52: 1.00 | C52: acre | D52: $0.00 | E52: 0% | F52: $0.00 | G52: $0.00 | H52: $0.00
A53: Whole Farm Insurance | B53: 1.00 | C53: acre | D53: $0.00 | E53: 0% | F53: =B53*D53 -> $0.00 | G53: $0.00 | H53: $0.00
A54: Land | B54: 1.00 | C54: acre | D54: $26.50 | E54: 0% | F54: =D54*B54 -> $26.50 | G54: =IF($H$6="Cash",D54,F54*(1-E54)) -> $26.50 | H54: =IF($H$6="Cash",0,F54*E54) -> $0.00
A55: Property Tax | B55: 1.00 | C55: acre | D55: $0.00 | E55: 0% | F55: =B55*D55 -> $0.00 | G55: $0.00 | H55: $0.00
A56: Total Fixed Expenses | F56: =SUM(F47:F55) -> $51.63 | G56: =SUM(G47:G55) -> $51.63 | H56: =SUM(H47:H55) -> $0.00
A57: Total Specified Expenses | F57: =F43+F56 -> $208.20 | G57: =G43+G56 -> $202.03 | H57: =H43+H56 -> $7.12
A58: Returns Above Total Specified Expenses | F58: =F12-F57 -> ($64.45) | G58: =G12-G57 -> ($58.28) | H58: =H12-H57 -> ($7.12)
A60: Return on Investment | F60: =(F58/F57) -> -30.96% | G60: =(G58/G57) -> -28.85% | H60: -100.00%

Sheet Dry Sorghum Sudangrass
A2: Estimated Costs and Returns per Acre
A3: Dryland Sorghum Sudangrass
A4: Projected for 2016
H5: Rental Agreement | I5: Share
A6: Item | B6: Quantity | C6: Unit | D6: Price | E6: Landlord | H6: Share | I6: Cash
E7: Share | F7: Total | G7: Tenant | H7: Landlord
A8: Income
A9: grazing | B9: 336.00 | C9: lb | D9: =Grazing_Price -> $0.400 | E9: 33% | F9: =D9*B9 -> $134.40 | G9: =F9*(1-E9) -> $90.05 | H9: =IF(H6="Cash", 0,F9*E9) -> $44.35
A10: other income | B10: 0.00 | C10: $/ac. | D10: $1.00 | E10: 33% | F10: =D10*B10 -> $0.00 | G10: =F10*(1-E10) -> $0.00 | H10: =IF(H7="Cash", D58,F10*E10) -> $0.00
A12: Total Income | F12: =SUM(F9:F11) -> $134.40 | G12: =SUM(G9:G11) -> $90.05 | H12: =SUM(H9:H11) -> $44.35
A14: Variable Costs
A15: Seed | B15: 15.00 | C15: bu | D15: $0.95 | E15: 0% | F15: =D15*B15 -> $14.25 | G15: =F15*(1-E15) -> $14.25 | H15: =F15*E15 -> $0.00
A16: Fertilizer
A17: fert (N) - NH3 | B17: 50.0 | C17: lb | D17: =IF(A17="",0,VLOOKUP(A17,'Universal Input Prices'!$A$26:$B$30, 2)) -> $0.250 | E17: 33% | F17: =D17*B17 -> $12.50 | G17: =F17*(1-E17) -> $8.38 | H17: =F17*E17 -> $4.13
B18: 0.0 | C18: lb | D18: =IF(A18="",0,VLOOKUP(A18,'Universal Input Prices'!$A$26:$B$30, 2)) -> $0.000 | E18: 0% | F18: =D18*B18 -> $0.00 | G18: =F18*(1-E18) -> $0.00 | H18: =F18*E18 -> $0.00
B19: 0.0 | C19: lb | D19: =IF(A19="",0,VLOOKUP(A19,'Universal Input Prices'!$A$26:$B$30, 2)) -> $0.000 | E19: 0% | F19: =D19*B19 -> $0.00 | G19: =F19*(1-E19) -> $0.00 | H19: =F19*E19 -> $0.00
A20: Field Operations
A21: herbicide & application | B21: 1.0 | C21: lb | D21: $12.10 | E21: 33% | F21: =D21*B21 -> $12.10 | G21: =F21*(1-E21) -> $8.11 | H21: =F21*E21 -> $3.99
A22: fertilizer application | B22: 1.0 | C22: acre | D22: $15.00 | E22: 33% | F22: $15.00 | G22: $10.05 | H22: $4.95
A23: insecticide & application | B23: 1.0 | C23: acre | D23: $0.00 | E23: 33% | F23: $0.00 | G23: $0.00 | H23: $0.00
A24: custom harvest and haul | B24: 0.0 | C24: bu | D24: $0.00 | E24: 0% | F24: $0.00 | G24: $0.00 | H24: $0.00
A25: hoeing | B25: 0.0 | C25: acre | D25: $0.00 | E25: 0% | F25: $0.00 | G25: $0.00 | H25: $0.00
A26: scouting | B26: 1.0 | C26: acre | D26: $0.00 | E26: 0% | F26: =D26*B26 -> $0.00 | G26: =F26*(1-E26) -> $0.00 | H26: =F26*E26 -> $0.00
A27: other | B27: 1.0 | C27: acre | D27: $0.00 | E27: 0% | F27: $0.00 | G27: $0.00 | H27: $0.00
A28: other | B28: 1.0 | C28: acre | D28: $0.00 | E28: 0% | F28: $0.00 | G28: $0.00 | H28: $0.00
A29: other | B29: 1.0 | C29: acre | D29: $0.00 | E29: 0% | F29: $0.00 | G29: $0.00 | H29: $0.00
A30: Crop Insurance | B30: 1.0 | C30: acre | D30: $19.00 | E30: 33% | F30: $19.00 | G30: $12.73 | H30: $6.27
A31: Operator Labor & Hand Labor | B31: 0.91 | C31: hours | D31: ='Universal Input Prices'!$B$31 -> $12.45 | E31: 0% | F31: $11.27 | G31: $11.27 | H31: $0.00
A32: Diesel Fuel - Tractors | B32: 2.15 | C32: gallons | D32: ='Universal Input Prices'!$B$32 -> $1.81 | E32: 0% | F32: $3.89 | G32: $3.89 | H32: $0.00
A33: Gasoline - Pickup | B33: 2.03 | C33: gallons | D33: ='Universal Input Prices'!$B$33 -> $1.93 | E33: 0% | F33: $3.91 | G33: $3.91 | H33: $0.00
A34: Repair & Maintenance
A35: Implements | B35: 1.00 | C35: acre | D35: $9.72 | E35: 0% | F35: =D35*B35 -> $9.72 | G35: $9.72 | H35: $0.00
A36: Tractors | B36: 1.00 | C36: acre | D36: $3.57 | E36: 0% | F36: =D36*B36 -> $3.57 | G36: $3.57 | H36: $0.00
A37: Other Fixed Expenses | B37: 15.00 | C37: acre | D37: $0.00 | E37: 0% | F37: =D37*B37 -> $0.00 | G37: $0.00 | H37: $0.00
A38: Self Propelled Equipment | B38: 1.00 | C38: acre | D38: $0.00 | E38: 100% | F38: =D38*B38 -> $0.00 | G38: $0.00 | H38: $0.00
A39: Pickup | B39: 1.00 | C39: acre | D39: $2.49 | E39: 0% | F39: =D39*B39 -> $2.49 | G39: $2.49 | H39: $0.00
A40: Interest-operating capital | B40: ='Universal Input Prices'!$B$35 -> 5.40% | F40: =(SUM(F15:F23,F25:F39))*$B40/2.65 -> $2.19 | G40: =(SUM(G15:G23,G25:G39))*$B40/2 -> $2.39 | H40: =(SUM(H15:H23,H25:H39))*$B40/2 -> $0.52
A42: Total Variable Costs | F42: =SUM(F15:F40) -> $109.89 | G42: =SUM(G15:G40) -> $90.75 | H42: =SUM(H15:H40) -> $19.86
A43: Returns Above Variable Costs | F43: =F12-F42 -> $24.51 | G43: =G12-G42 -> ($0.70) | H43: =H12-H42 -> $24.49
A45: Fixed Costs
A46: Implements | B46: 1.00 | C46: acre | D46: $15.22 | E46: 0% | F46: =D46*B46 -> $15.22 | G46: =F46*(1-E46) -> $15.22 | H46: =F46*E46 -> $0.00
A47: Tractors | B47: 1.00 | C47: acre | D47: $5.08 | E47: 0% | F47: $5.08 | G47: $5.08 | H47: $0.00
A48: Other Fixed Expenses | B48: 1.00 | C48: acre | D48: $0.00 | E48: 100% | F48: $0.00 | G48: $0.00 | H48: $0.00
A49: Self Propelled Equipment | B49: 1.00 | C49: acre | D49: $0.00 | E49: 100% | F49: $0.00 | G49: $0.00 | H49: $0.00
A50: Pickup | B50: 1.00 | C50: acre | D50: $3.63 | E50: 0% | F50: $3.63 | G50: $3.63 | H50: $0.00
A51: Management | B51: 1.00 | C51: acre | D51: $0.00 | E51: 0% | F51: $0.00 | G51: $0.00 | H51: $0.00
A52: Whole Farm Insurance | B52: 1.00 | C52: acre | D52: $0.00 | E52: 0% | F52: =B52*D52 -> $0.00 | G52: $0.00 | H52: $0.00
A53: Land | B53: 1.00 | C53: acre | D53: $26.50 | E53: 100% | F53: =D53*B53 -> $26.50 | G53: =IF($H$6="Cash",D53,F53*(1-E53)) -> $0.00 | H53: =IF($H$6="Cash",0,F53*E53) -> $26.50
A54: Property Tax | B54: 1.00 | C54: acre | D54: $0.00 | E54: 100% | F54: =B54*D54 -> $0.00 | G54: $0.00 | H54: $0.00
A55: Total Fixed Expenses | F55: =SUM(F46:F54) -> $50.43 | G55: =SUM(G46:G54) -> $23.93 | H55: =SUM(H46:H54) -> $26.50
A56: Total Specified Expenses | F56: =F42+F55 -> $160.32 | G56: =G42+G55 -> $114.68 | H56: =H42+H55 -> $46.36
A57: Returns Above Total Specified Expenses | F57: =F12-F56 -> ($25.92) | G57: =G12-G56 -> ($24.63) | H57: =H12-H56 -> ($2.01)
A59: Return on Investment | F59: =(F57/F56) -> -16.17% | G59: =(G57/G56) -> -21.48% | H59: -4.33%

Sheet Dry Sunflowers-Oilseed
A2: Estimated Costs and Returns per Acre
A3: Dryland Sunflowers-Oilseed
A4: Projected for 2016
H5: Rental Agreement | I5: Share
A6: Item | B6: Quantity | C6: Unit | D6: Price | E6: Landlord | H6: Share | I6: Cash
E7: Share | F7: Total | G7: Tenant | H7: Landlord
A8: Income
A9: oilseed sunflowers | B9: 10.00 | C9: cwt | D9: ='Universal Input Prices'!$B$16 -> $16.50 | E9: 33% | F9: =D9*B9 -> $165.00 | G9: =F9*(1-E9) -> $110.55 | H9: =IF(H6="Cash", D55,F9*E9) -> $54.45
A10: other income | B10: 0.00 | C10: $/ac. | D10: $1.00 | E10: 33% | F10: =D10*B10 -> $0.00 | G10: =F10*(1-E10) -> $0.00 | H10: =IF(H7="Cash", D58,F10*E10) -> $0.00
A12: Total Income | F12: =SUM(F8:F11) -> $165.00 | G12: =SUM(G8:G11) -> $110.55 | H12: =SUM(H8:H11) -> $54.45
A14: Variable Costs
A15: Seed | B15: 1.00 | C15: acre | D15: $11.00 | E15: 0% | F15: =D15*B15 -> $11.00 | G15: =F15*(1-E15) -> $11.00 | H15: =F15*E15 -> $0.00
A16: Fertilizer
A17: fert (N) - liquid | B17: 40.0 | C17: lb | D17: =IF(A17="",0,VLOOKUP(A17,'Universal Input Prices'!$A$26:$B$27, 2)) -> $0.410 | E17: 33% | F17: =D17*B17 -> $16.41 | G17: =F17*(1-E17) -> $10.99 | H17: =F17*E17 -> $5.41
B18: 0.0 | C18: lb | D18: =IF(A18="",0,VLOOKUP(A18,'Universal Input Prices'!$A$26:$B$30, 2)) -> $0.000 | E18: 0% | F18: =D18*B18 -> $0.00 | G18: =F18*(1-E18) -> $0.00 | H18: =F18*E18 -> $0.00
B19: 0.0 | C19: lb | D19: =IF(A19="",0,VLOOKUP(A19,'Universal Input Prices'!$A$26:$B$30, 2)) -> $0.000 | E19: 0% | F19: =D19*B19 -> $0.00 | G19: =F19*(1-E19) -> $0.00 | H19: =F19*E19 -> $0.00
A20: Field Operations
A21: herbicide & application (glyphosphate) | B21: 3.0 | C21: acre | D21: $9.40 | E21: 33% | F21: =D21*B21 -> $28.20 | G21: =F21*(1-E21) -> $18.89 | H21: =F21*E21 -> $9.31
A22: herbicide & application (2-4D/Prowl H2O) | B22: 1.0 | C22: acre | D22: $15.35 | E22: 33% | F22: =D22*B22 -> $15.35 | G22: =F22*(1-E22) -> $10.28 | H22: =F22*E22 -> $5.07
A23: seed insecticide & application | B23: 1.0 | C23: acre | D23: $8.75 | E23: 33% | F23: $8.75 | G23: $5.86 | H23: $2.89
A24: custom harvest | B24: 1.0 | C24: acre | D24: $25.00 | E24: 0% | F24: $25.00 | G24: $25.00 | H24: $0.00
A25: custom haul | B25: =B9 -> 10.00 | C25: cwt | D25: $0.45 | E25: 0% | F25: $4.50 | G25: $4.50 | H25: $0.00
A26: pesticide & application (ammo) | B26: 1.0 | C26: acre | D26: $3.25 | E26: 0% | F26: =D26*B26 -> $3.25 | G26: =F26*(1-E26) -> $3.25 | H26: =F26*E26 -> $0.00
A27: other | B27: 1.0 | C27: acre | D27: $0.00 | E27: 0% | F27: =D27*B27 -> $0.00 | G27: =F27*(1-E27) -> $0.00 | H27: =F27*E27 -> $0.00
A28: other | B28: 1.0 | C28: acre | D28: $0.00 | E28: 0% | F28: =D28*B28 -> $0.00 | G28: =F28*(1-E28) -> $0.00 | H28: =F28*E28 -> $0.00
A29: other | B29: 1.0 | C29: acre | D29: $0.00 | E29: 0% | F29: $0.00 | G29: $0.00 | H29: $0.00
A30: other | B30: 1.0 | C30: acre | D30: $0.00 | E30: 0% | F30: $0.00 | G30: $0.00 | H30: $0.00
A31: other | B31: 1.0 | C31: acre | D31: $0.00 | E31: 0% | F31: $0.00 | G31: $0.00 | H31: $0.00
A32: Crop Insurance | B32: 1.0 | C32: acre | D32: $10.00 | E32: 33% | F32: $10.00 | G32: $6.70 | H32: $3.30
A33: Operator Labor & Hand Labor | B33: 0.46 | C33: hours | D33: ='Universal Input Prices'!$B$31 -> $12.45 | E33: 0% | F33: $5.66 | G33: $5.66 | H33: $0.00
A34: Diesel Fuel - Tractors | B34: 1.57 | C34: gallons | D34: ='Universal Input Prices'!$B$32 -> $1.81 | E34: 0% | F34: $2.84 | G34: $2.84 | H34: $0.00
A35: Gasoline - Pickup | B35: 2.03 | C35: gallons | D35: ='Universal Input Prices'!$B$33 -> $1.93 | E35: 0% | F35: $3.91 | G35: $3.91 | H35: $0.00
A36: Repair & Maintenance
A37: Implements | B37: 1.00 | C37: acre | D37: $8.82 | E37: 0% | F37: =D37*B37 -> $8.82 | G37: =F37*(1-E37) -> $8.82 | H37: =F37*E37 -> $0.00
A38: Tractors | B38: 1.00 | C38: acre | D38: $3.28 | E38: 0% | F38: =D38*B38 -> $3.28 | G38: =F38*(1-E38) -> $3.28 | H38: =F38*E38 -> $0.00
A39: Other Fixed Expenses | B39: 1.00 | C39: acre | D39: $0.00 | E39: 0% | F39: $0.00 | G39: =F39*(1-E39) -> $0.00 | H39: =F39*E39 -> $0.00
A40: Self Propelled Equipment | B40: 1.00 | C40: acre | D40: $0.00 | E40: 100% | F40: =D40*B40 -> $0.00 | G40: =F40*(1-E40) -> $0.00 | H40: =F40*E40 -> $0.00
A41: Pickup | B41: 1.00 | C41: acre | D41: $2.49 | E41: 0% | F41: =D41*B41 -> $2.49 | G41: =F41*(1-E41) -> $2.49 | H41: =F41*E41 -> $0.00
A42: Interest-operating capital | B42: ='Universal Input Prices'!$B$35 -> 5.40% | F42: =(SUM(F15:F23,F26:F41))*$B42/2.4 -> $2.70 | G42: =(SUM(G15:G23,G26:G41))*$B42/2 -> $2.54 | H42: =(SUM(H15:H23,H26:H41))*$B42/2 -> $0.70
A44: Total Variable Costs | F44: =SUM(F15:F42) -> $152.16 | G44: =SUM(G15:G42) -> $126.03 | H44: =SUM(H15:H42) -> $26.67
A45: Returns Above Variable Costs | F45: =F12-F44 -> $12.84 | G45: =G12-G44 -> ($15.48) | H45: =H12-H44 -> $27.78
A47: Fixed Costs
A48: Implements | B48: 1.00 | C48: acre | D48: $14.08 | E48: 0% | F48: =D48*B48 -> $14.08 | G48: =F48*(1-E48) -> $14.08 | H48: =F48*E48 -> $0.00
A49: Tractors | B49: 1.00 | C49: acre | D49: $4.88 | E49: 0% | F49: $4.88 | G49: $4.88 | H49: $0.00
A50: Other Fixed Expenses | B50: 1.00 | C50: acre | D50: $0.00 | E50: 100% | F50: $0.00 | G50: $0.00 | H50: $0.00
A51: Self Propelled Equipment | B51: 1.00 | C51: acre | D51: $0.00 | E51: 100% | F51: $0.00 | G51: $0.00 | H51: $0.00
A52: Pickup | B52: 1.00 | C52: acre | D52: $3.63 | E52: 0% | F52: $3.63 | G52: $3.63 | H52: $0.00
A53: Management | B53: 1.00 | C53: acre | D53: $0.00 | E53: 0% | F53: $0.00 | G53: $0.00 | H53: $0.00
A54: Whole Farm Insurance | B54: 1.00 | C54: acre | D54: $0.00 | E54: 0% | F54: =B54*D54 -> $0.00 | G54: $0.00 | H54: $0.00
A55: Land | B55: 1.00 | C55: acre | D55: $26.50 | E55: 100% | F55: =D55*B55 -> $26.50 | G55: =IF($H$6="Cash",D55,F55*(1-E55)) -> $0.00 | H55: =IF($H$6="Cash",0,F55*E55) -> $26.50
A56: Property Tax | B56: 1.00 | C56: acre | D56: $0.00 | E56: 100% | F56: =B56*D56 -> $0.00 | G56: $0.00 | H56: $0.00
A57: Total Fixed Expenses | F57: =SUM(F48:F56) -> $49.09 | G57: =SUM(G48:G56) -> $22.59 | H57: =SUM(H48:H56) -> $26.50
A58: Total Specified Expenses | F58: =F44+F57 -> $201.25 | G58: =G44+G57 -> $148.62 | H58: =H44+H57 -> $53.17
A59: Returns Above Total Specified Expenses | F59: =F12-F58 -> ($36.25) | G59: =G12-G58 -> ($38.07) | H59: =H12-H58 -> $1.28
A61: Return on Investment | F61: =(F59/F58) -> -18.01% | G61: =(G59/G58) -> -25.61% | H61: 2.40%

Sheet Dry Wheat
A2: Estimated Costs and Returns per Acre
A3: Dryland Wheat
A4: Projected for 2016
H5: Rental Agreement | I5: Share
A6: Item | B6: Quantity | C6: Unit | D6: Price | E6: Landlord | H6: Share | I6: Cash
E7: Share | F7: Total | G7: Tenant | H7: Landlord
A8: Income
A9: wheat | B9: 20.0 | C9: bu | D9: ='Universal Input Prices'!$B$18 -> $3.95 | E9: 33% | F9: =D9*B9 -> $79.00 | G9: =F9*(1-E9) -> $52.93 | H9: =IF(H6="Cash", D55,F9*E9) -> $26.07
A10: grazing | B10: 73.00 | C10: lb | D10: =Grazing_Price -> $0.400 | E10: 33% | F10: =D10*B10 -> $29.20 | G10: =F10*(1-E10) -> $19.56 | H10: =IF(H6="Cash", 0,F10*E10) -> $9.64
A11: other income | B11: 0.00 | C11: $/ac. | D11: $1.00 | E11: 33% | F11: =D11*B11 -> $0.00 | G11: =F11*(1-E11) -> $0.00 | H11: =IF(H8="Cash", D59,F11*E11) -> $0.00
A13: Total Income | F13: =SUM(F8:F12) -> $108.20 | G13: =SUM(G8:G12) -> $72.49 | H13: $35.71
A15: Variable Costs
A16: Seed | B16: 1.00 | C16: bu | D16: $6.000 | E16: 0% | F16: =D16*B16 -> $6.00 | G16: =F16*(1-E16) -> $6.00 | H16: =F16*E16 -> $0.00
A17: Fertilizer
A18: fert (N) - NH3 | B18: 30.0 | C18: lb | D18: =IF(A18="",0,VLOOKUP(A18,'Universal Input Prices'!$A$26:$B$30, 2)) -> $0.250 | E18: 33% | F18: =D18*B18 -> $7.50 | G18: =F18*(1-E18) -> $5.03 | H18: =F18*E18 -> $2.48
B19: 0.0 | C19: lb | D19: =IF(A19="",0,VLOOKUP(A19,'Universal Input Prices'!$A$26:$B$30, 2)) -> $0.000 | E19: 0% | F19: =D19*B19 -> $0.00 | G19: =F19*(1-E19) -> $0.00 | H19: =F19*E19 -> $0.00
B20: 0.0 | C20: lb | D20: =IF(A20="",0,VLOOKUP(A20,'Universal Input Prices'!$A$26:$B$30, 2)) -> $0.000 | E20: 0% | F20: =D20*B20 -> $0.00 | G20: =F20*(1-E20) -> $0.00 | H20: =F20*E20 -> $0.00
A21: Field Operations
A22: herbicide & application | B22: 1.0 | C22: acre | D22: $0.00 | E22: 33% | F22: =D22*B22 -> $0.00 | G22: =F22*(1-E22) -> $0.00 | H22: =F22*E22 -> $0.00
A23: fertilizer application | B23: 1.0 | C23: acre | D23: $15.00 | E23: 33% | F23: $15.00 | G23: $10.05 | H23: $4.95
A24: insecticide & application | B24: 1.0 | C24: acre | D24: $0.00 | E24: 33% | F24: $0.00 | G24: $0.00 | H24: $0.00
A25: custom harvest & haul | B25: 1.0 | C25: acre | D25: $25.00 | E25: 0% | F25: $25.00 | G25: $25.00 | H25: $0.00
A26: custom harvest & haul | B26: =B9 -> 20.0 | C26: bu | D26: $0.25 | E26: 0% | F26: =D26*B26 -> $5.00 | G26: $5.00 | H26: $0.00
A27: hoeing | B27: 0.0 | C27: acre | D27: $0.00 | E27: 0% | F27: $0.00 | G27: $0.00 | H27: $0.00
A28: scouting | B28: 1.0 | C28: acre | D28: $0.00 | E28: 0% | F28: =D28*B28 -> $0.00 | G28: =F28*(1-E28) -> $0.00 | H28: =F28*E28 -> $0.00
A29: other | B29: 1.0 | C29: acre | D29: $0.00 | E29: 0% | F29: $0.00 | G29: $0.00 | H29: $0.00
A30: other | B30: 1.0 | C30: acre | D30: $0.00 | E30: 0% | F30: $0.00 | G30: $0.00 | H30: $0.00
A31: other | B31: 1.0 | C31: acre | D31: $0.00 | E31: 0% | F31: $0.00 | G31: $0.00 | H31: $0.00
A32: Crop Insurance | B32: 1.0 | C32: acre | D32: $15.00 | E32: 33% | F32: $15.00 | G32: $10.05 | H32: $4.95
A33: Operator Labor & Hand Labor | B33: 0.86 | C33: hours | D33: ='Universal Input Prices'!$B$31 -> $12.45 | E33: 0% | F33: $10.64 | G33: $10.64 | H33: $0.00
A34: Diesel Fuel - Tractors | B34: 2.22 | C34: gallons | D34: ='Universal Input Prices'!$B$32 -> $1.81 | E34: 0% | F34: $4.02 | G34: $4.02 | H34: $0.00
A35: Gasoline - Pickup | B35: 2.03 | C35: gallons | D35: ='Universal Input Prices'!$B$33 -> $1.93 | E35: 0% | F35: $3.91 | G35: $3.91 | H35: $0.00
A36: Repair & Maintenance
A37: Implements | B37: 1.00 | C37: acre | D37: $10.59 | E37: 0% | F37: =D37*B37 -> $10.59 | G37: =F37*(1-E37) -> $10.59 | H37: =F37*E37 -> $0.00
A38: Tractors | B38: 1.00 | C38: acre | D38: $4.18 | E38: 0% | F38: =D38*B38 -> $4.18 | G38: =F38*(1-E38) -> $4.18 | H38: =F38*E38 -> $0.00
A39: Other Fixed Expenses | B39: 1.00 | C39: acre | D39: $0.00 | E39: 0% | F39: $0.00 | G39: =F39*(1-E39) -> $0.00 | H39: =F39*E39 -> $0.00
A40: Self Propelled Equipment | B40: 1.00 | C40: acre | D40: $0.00 | E40: 100% | F40: =D40*B40 -> $0.00 | G40: =F40*(1-E40) -> $0.00 | H40: =F40*E40 -> $0.00
A41: Pickup | B41: 1.00 | C41: acre | D41: $2.49 | E41: 0% | F41: =D41*B41 -> $2.49 | G41: =F41*(1-E41) -> $2.49 | H41: =F41*E41 -> $0.00
A42: Interest-operating capital | B42: ='Universal Input Prices'!$B$35 -> 5.40% | F42: =(SUM(F16:F24,F27:F41))*$B42/1.7 -> $2.52 | G42: =(SUM(G16:G24,G27:G41))*$B42/2 -> $1.81 | H42: =(SUM(H16:H24,H27:H41))*$B42/2 -> $0.33
A44: Total Variable Costs | F44: =SUM(F16:F42) -> $111.85 | G44: =SUM(G16:G42) -> $98.77 | H44: =SUM(H16:H42) -> $12.71
A45: Returns Above Variable Costs | F45: =F13-F44 -> ($3.65) | G45: =G13-G44 -> ($26.27) | H45: =H13-H44 -> $23.00
A47: Fixed Costs
A48: Implements | B48: 1.00 | C48: acre | D48: $17.06 | E48: 0% | F48: =D48*B48 -> $17.06 | G48: =F48*(1-E48) -> $17.06 | H48: =F48*E48 -> $0.00
A49: Tractors | B49: 1.00 | C49: acre | D49: $5.99 | E49: 0% | F49: $5.99 | G49: $5.99 | H49: $0.00
A50: Other Fixed Expenses | B50: 1.00 | C50: acre | D50: $0.00 | E50: 100% | F50: $0.00 | G50: $0.00 | H50: $0.00
A51: Self Propelled Equipment | B51: 1.00 | C51: acre | D51: $0.00 | E51: 100% | F51: $0.00 | G51: $0.00 | H51: $0.00
A52: Pickup | B52: 1.00 | C52: acre | D52: $3.63 | E52: 0% | F52: $3.63 | G52: $3.63 | H52: $0.00
A53: Management | B53: 1.00 | C53: acre | D53: $0.00 | E53: 0% | F53: $0.00 | G53: $0.00 | H53: $0.00
A54: Whole Farm Insurance | B54: 1.00 | C54: acre | D54: $0.00 | E54: 0% | F54: =B54*D54 -> $0.00 | G54: $0.00 | H54: $0.00
A55: Land | B55: 1.00 | C55: acre | D55: $26.50 | E55: 100% | F55: =D55*B55 -> $26.50 | G55: =IF($H$6="Cash",D55,F55*(1-E55)) -> $0.00 | H55: =IF($H$6="Cash",0,F55*E55) -> $26.50
A56: Property Tax | B56: 1.00 | C56: acre | D56: $0.00 | E56: 100% | F56: =B56*D56 -> $0.00 | G56: $0.00 | H56: $0.00
A57: Total Fixed Expenses | F57: =SUM(F48:F56) -> $53.18 | G57: =SUM(G48:G56) -> $26.68 | H57: =SUM(H48:H56) -> $26.50
A58: Total Specified Expenses | F58: =F44+F57 -> $165.03 | G58: =G44+G57 -> $125.45 | H58: =H44+H57 -> $39.21
A59: Returns Above Total Specified Expenses | F59: =F13-F58 -> ($56.83) | G59: =G13-G58 -> ($52.95) | H59: =H13-H58 -> ($3.50)
A61: Return on Investment | F61: =(F59/F58) -> -34.44% | G61: =(G59/G58) -> -42.21% | H61: -8.93%

Sheet Dry Other Crop
A2: Estimated Costs and Returns per Acre
A3: ='Universal Input Prices'!A20 -> Dryland Other Crop
A4: Projected for 2016
H5: Rental Agreement | I5: Share
A6: Item | B6: Quantity | C6: Unit | D6: Price | E6: Landlord | H6: Share | I6: Cash
E7: Share | F7: Total | G7: Tenant | H7: Landlord
A8: Income
A9: other irrigated crop | B9: 0.0 | C9: ='Universal Input Prices'!C20 -> unit | D9: ='Universal Input Prices'!B20 -> $0.00 | E9: 33% | F9: =D9*B9 -> $0.00 | G9: =F9*(1-E9) -> $0.00 | H9: =IF(H6="Cash", D55,F9*E9) -> $0.00
A10: secondary income | B10: 0.00 | C10: ='Universal Input Prices'!C20 -> unit | D10: $0.00 | E10: 33% | F10: =D10*B10 -> $0.00 | G10: =F10*(1-E10) -> $0.00 | H10: =IF(H6="Cash", 0,F10*E10) -> $0.00
A12: Total Income | F12: =F9+F10 -> $0.00 | G12: =G9+G10 -> $0.00 | H12: =H9+H10 -> $0.00
A14: Variable Costs
A15: Seed | B15: 0.00 | C15: unit | D15: $0.000 | E15: 0% | F15: =D15*B15 -> $0.00 | G15: =F15*(1-E15) -> $0.00 | H15: =F15*E15 -> $0.00
A16: Fertilizer
A17: fert (N) - NH3 | B17: 0.0 | C17: lb | D17: =IF(A17="",0,VLOOKUP(A17,'Universal Input Prices'!$A$26:$B$30, 2)) -> $0.250 | E17: 33% | F17: =D17*B17 -> $0.00 | G17: =F17*(1-E17) -> $0.00 | H17: =F17*E17 -> $0.00
A18: fert (N) - dry | B18: 0.0 | C18: lb | D18: =IF(A18="",0,VLOOKUP(A18,'Universal Input Prices'!$A$26:$B$30, 2)) -> $0.330 | E18: 33% | F18: $0.00 | G18: $0.00 | H18: $0.00
A19: fert (N) - liquid | B19: 0.0 | C19: lb | D19: =IF(A19="",0,VLOOKUP(A19,'Universal Input Prices'!$A$26:$B$30, 2)) -> $0.410 | E19: 33% | F19: =D19*B19 -> $0.00 | G19: =F19*(1-E19) -> $0.00 | H19: =F19*E19 -> $0.00
A20: fert (P) - dry | B20: 0.0 | C20: lb | D20: =IF(A20="",0,VLOOKUP(A20,'Universal Input Prices'!$A$26:$B$30, 2)) -> $0.430 | E20: 33% | F20: =D20*B20 -> $0.00 | G20: =F20*(1-E20) -> $0.00 | H20: =F20*E20 -> $0.00
A21: fert (P) - liquid | B21: 0.0 | C21: lb | D21: =IF(A21="",0,VLOOKUP(A21,'Universal Input Prices'!$A$26:$B$30, 2)) -> $0.470 | E21: 33% | F21: =D21*B21 -> $0.00 | G21: =F21*(1-E21) -> $0.00 | H21: =F21*E21 -> $0.00
A22: Field Operations
A23: herbicide & application | B23: 1.0 | C23: acre | D23: $0.00 | E23: 33% | F23: =D23*B23 -> $0.00 | G23: =F23*(1-E23) -> $0.00 | H23: =F23*E23 -> $0.00
A24: fertilizer application | B24: 0.0 | C24: acre | D24: $11.75 | E24: 33% | F24: $0.00 | G24: $0.00 | H24: $0.00
A25: insecticide & application | B25: 0.0 | C25: acre | D25: $0.00 | E25: 33% | F25: $0.00 | G25: $0.00 | H25: $0.00
A26: custom harvest & haul | B26: =B9 -> 0.0 | C26: =C9 -> unit | D26: $0.00 | E26: 0% | F26: $0.00 | G26: $0.00 | H26: $0.00
A27: crop consulting | B27: 1.0 | C27: acre | D27: $0.00 | E27: 0% | F27: $0.00 | G27: $0.00 | H27: $0.00
A28: scouting | B28: 1.0 | C28: acre | D28: $0.00 | E28: 0% | F28: =D28*B28 -> $0.00 | G28: =F28*(1-E28) -> $0.00 | H28: =F28*E28 -> $0.00
A29: other | B29: 1.0 | C29: acre | D29: $0.00 | E29: 0% | F29: $0.00 | G29: $0.00 | H29: $0.00
A30: other | B30: 1.0 | C30: acre | D30: $0.00 | E30: 0% | F30: $0.00 | G30: $0.00 | H30: $0.00
A31: other | B31: 1.0 | C31: acre | D31: $0.00 | E31: 0% | F31: $0.00 | G31: $0.00 | H31: $0.00
A32: Crop Insurance | B32: 1.0 | C32: acre | D32: $0.00 | E32: 33% | F32: $0.00 | G32: $0.00 | H32: $0.00
A33: Operator Labor & Hand Labor | B33: 0.00 | C33: hours | D33: ='Universal Input Prices'!$B$31 -> $12.45 | E33: 0% | F33: $0.00 | G33: $0.00 | H33: $0.00
A34: Diesel Fuel - Tractors | B34: 0.00 | C34: gallons | D34: ='Universal Input Prices'!$B$32 -> $1.81 | E34: 0% | F34: $0.00 | G34: $0.00 | H34: $0.00
A35: Gasoline - Pickup | B35: 0.00 | C35: gallons | D35: ='Universal Input Prices'!$B$33 -> $1.93 | E35: 0% | F35: $0.00 | G35: $0.00 | H35: $0.00
A36: Repair & Maintenance
A37: Implements | B37: 0.00 | C37: acre | D37: $4.47 | E37: 0% | F37: =D37*B37 -> $0.00 | G37: $0.00 | H37: $0.00
A38: Tractors | B38: 0.00 | C38: acre | D38: $5.55 | E38: 0% | F38: =D38*B38 -> $0.00 | G38: $0.00 | H38: $0.00
A39: Other Fixed Expenses | B39: =0 -> 0.00 | C39: acre | D39: $4.04 | E39: 0% | F39: =D39*B39 -> $0.00 | G39: $0.00 | H39: $0.00
A40: Self Propelled Equipment | B40: 0.00 | C40: acre | D40: $0.16 | E40: 100% | F40: =D40*B40 -> $0.00 | G40: $0.00 | H40: $0.00
A41: Pickup | B41: 1.00 | C41: acre | D41: $0.00 | E41: 0% | F41: =D41*B41 -> $0.00 | G41: $0.00 | H41: $0.00
A42: Interest-operating capital | B42: ='Universal Input Prices'!$B$35 -> 5.40% | F42: =(SUM(F15:F25,F27:F41))*$B42/2 -> $0.00 | G42: =(SUM(G15:G25,G27:G41))*$B42/2 -> $0.00 | H42: =(SUM(H15:H25,H27:H41))*$B42/2 -> $0.00
A44: Total Variable Costs | F44: =SUM(F15:F42) -> $0.00 | G44: =SUM(G15:G42) -> $0.00 | H44: =SUM(H15:H42) -> $0.00
A45: Returns Above Variable Costs | F45: =F12-F44 -> $0.00 | G45: =G12-G44 -> $0.00 | H45: =H12-H44 -> $0.00
A47: Fixed Costs
A48: Implements | B48: 0.00 | C48: acre | D48: $7.04 | E48: 0% | F48: =D48*B48 -> $0.00 | G48: =F48*(1-E48) -> $0.00 | H48: =F48*E48 -> $0.00
A49: Tractors | B49: 0.00 | C49: acre | D49: $7.89 | E49: 0% | F49: $0.00 | G49: $0.00 | H49: $0.00
A50: Other Fixed Expenses | B50: 1.00 | C50: acre | D50: $0.00 | E50: 0% | F50: $0.00 | G50: $0.00 | H50: $0.00
A51: Self Propelled Equipment | B51: 1.00 | C51: acre | D51: $0.00 | E51: 100% | F51: $0.00 | G51: $0.00 | H51: $0.00
A52: Pickup | B52: 1.00 | C52: acre | D52: $0.00 | E52: 0% | F52: $0.00 | G52: $0.00 | H52: $0.00
A53: Management | B53: 1.00 | C53: acre | D53: $0.00 | E53: 0% | F53: $0.00 | G53: $0.00 | H53: $0.00
A54: Whole Farm Insurance | B54: 1.00 | C54: acre | D54: $0.00 | E54: 0% | F54: =B54*D54 -> $0.00 | G54: $0.00 | H54: $0.00
A55: Land | B55: 0.00 | C55: acre | D55: $30.00 | E55: 100% | F55: =D55*B55 -> $0.00 | G55: =IF($H$6="Cash",D55,F55*(1-E55)) -> $0.00 | H55: =IF($H$6="Cash",0,F55*E55) -> $0.00
A56: Property Tax | B56: 1.00 | C56: acre | D56: $0.00 | E56: 100% | F56: =B56*D56 -> $0.00 | G56: $0.00 | H56: $0.00
A57: Total Fixed Expenses | F57: =SUM(F48:F56) -> $0.00 | G57: =SUM(G48:G56) -> $0.00 | H57: =SUM(H48:H56) -> $0.00
A58: Total Specified Expenses | F58: =F44+F57 -> $0.00 | G58: =G44+G57 -> $0.00 | H58: =H44+H57 -> $0.00
A59: Returns Above Total Specified Expenses | F59: =F12-F58 -> $0.00 | G59: =G12-G58 -> $0.00 | H59: =H12-H58 -> $0.00
A61: Return on Investment | F61: =IF(F58=0,"-",(F59/F58)) -> - | G61: =IF(G58=0,"-",(G59/G58)) -> - | H61: -

Sheet Break-Even Comparison
A2: Comparative Break-Even Analysis Projected for 2016
A5: ='Irr Alfalfa'!A3:H3 -> Irrigated Alfalfa
E6: BE Price to Cover Variable Costs | G6: BE Price to Cover Total Costs
A7: Yield | B7: TON | E7: Total | F7: Tenant | G7: Total | H7: Tenant | I7: Landlord
A8: 75% | B8: ='Irr Alfalfa'!$B$9*$A8 -> 4.13 | C8: ='Irr Alfalfa'!$B$9*(1-'Irr Alfalfa'!$E$9)*$A8 -> 2.76 | D8: ='Irr Alfalfa'!$B$9*'Irr Alfalfa'!$E$9*$A8 -> 1.36 | E8: =('Irr Alfalfa'!F$48+(B8-B$10)*('Irr Alfalfa'!$D$26))/B8 -> $107.62 | F8: =('Irr Alfalfa'!G$48+(C8-C$10)*('Irr Alfalfa'!$D$26))/C8 -> $149.55 | G8: =('Irr Alfalfa'!F$63+(B8-B$10)*('Irr Alfalfa'!$D$26))/B8 -> $174.36 | H8: =('Irr Alfalfa'!G$63+(C8-C$10)*('Irr Alfalfa'!$D$26))/C8 -> $205.74 | I8: =IF($D8=0,"N/A",('Irr Alfalfa'!H$63+(D8-D$10)*('Irr Alfalfa'!$D$26))/D8) -> $112.56
A9: 90% | B9: ='Irr Alfalfa'!$B$9*$A9 -> 4.95 | C9: ='Irr Alfalfa'!$B$9*(1-'Irr Alfalfa'!$E$9)*$A9 -> 3.32 | D9: ='Irr Alfalfa'!$B$9*'Irr Alfalfa'!$E$9*$A9 -> 1.63 | E9: =('Irr Alfalfa'!F$48+(B9-B$10)*('Irr Alfalfa'!$D$26))/B9 -> $96.35 | F9: =('Irr Alfalfa'!G$48+(C9-C$10)*('Irr Alfalfa'!$D$26))/C9 -> $131.29 | G9: =('Irr Alfalfa'!F$63+(B9-B$10)*('Irr Alfalfa'!$D$26))/B9 -> $151.96 | H9: =('Irr Alfalfa'!G$63+(C9-C$10)*('Irr Alfalfa'!$D$26))/C9 -> $178.12 | I9: =IF($D9=0,"N/A",('Irr Alfalfa'!H$63+(D9-D$10)*('Irr Alfalfa'!$D$26))/D9) -> $100.47
A10: 100% | B10: ='Irr Alfalfa'!$B$9*$A10 -> 5.50 | C10: ='Irr Alfalfa'!$B$9*(1-'Irr Alfalfa'!$E$9)*$A10 -> 3.69 | D10: ='Irr Alfalfa'!$B$9*'Irr Alfalfa'!$E$9*$A10 -> 1.82 | E10: =('Irr Alfalfa'!F$48+(B10-B$10)*('Irr Alfalfa'!$D$26))/B10 -> $90.71 | F10: =('Irr Alfalfa'!G$48+(C10-C$10)*('Irr Alfalfa'!$D$26))/C10 -> $122.16 | G10: =('Irr Alfalfa'!F$63+(B10-B$10)*('Irr Alfalfa'!$D$26))/B10 -> $140.77 | H10: =('Irr Alfalfa'!G$63+(C10-C$10)*('Irr Alfalfa'!$D$26))/C10 -> $164.30 | I10: =IF($D10=0,"N/A",('Irr Alfalfa'!H$63+(D10-D$10)*('Irr Alfalfa'!$D$26))/D10) -> $94.42
A11: 110% | B11: ='Irr Alfalfa'!$B$9*$A11 -> 6.05 | C11: ='Irr Alfalfa'!$B$9*(1-'Irr Alfalfa'!$E$9)*$A11 -> 4.05 | D11: ='Irr Alfalfa'!$B$9*'Irr Alfalfa'!$E$9*$A11 -> 2.00 | E11: =('Irr Alfalfa'!F$48+(B11-B$10)*('Irr Alfalfa'!$D$26))/B11 -> $86.10 | F11: =('Irr Alfalfa'!G$48+(C11-C$10)*('Irr Alfalfa'!$D$26))/C11 -> $114.69 | G11: =('Irr Alfalfa'!F$63+(B11-B$10)*('Irr Alfalfa'!$D$26))/B11 -> $131.61 | H11: =('Irr Alfalfa'!G$63+(C11-C$10)*('Irr Alfalfa'!$D$26))/C11 -> $153.00 | I11: =IF($D11=0,"N/A",('Irr Alfalfa'!H$63+(D11-D$10)*('Irr Alfalfa'!$D$26))/D11) -> $89.48
A12: 125% | B12: ='Irr Alfalfa'!$B$9*$A12 -> 6.88 | C12: ='Irr Alfalfa'!$B$9*(1-'Irr Alfalfa'!$E$9)*$A12 -> 4.61 | D12: ='Irr Alfalfa'!$B$9*'Irr Alfalfa'!$E$9*$A12 -> 2.27 | E12: =('Irr Alfalfa'!F$48+(B12-B$10)*('Irr Alfalfa'!$D$26))/B12 -> $80.57 | F12: =('Irr Alfalfa'!G$48+(C12-C$10)*('Irr Alfalfa'!$D$26))/C12 -> $105.73 | G12: =('Irr Alfalfa'!F$63+(B12-B$10)*('Irr Alfalfa'!$D$26))/B12 -> $120.61 | H12: =('Irr Alfalfa'!G$63+(C12-C$10)*('Irr Alfalfa'!$D$26))/C12 -> $139.44 | I12: =IF($D12=0,"N/A",('Irr Alfalfa'!H$63+(D12-D$10)*('Irr Alfalfa'!$D$26))/D12) -> $83.54
A14: ='Irr Canola'!A3:H3 -> Irrigated Canola
E15: BE Price to Cover Variable Costs | G15: BE Price to Cover Total Costs
A16: Yield | B16: CWT | E16: Total | F16: Tenant | G16: Total | H16: Tenant | I16: Landlord
A17: 75% | B17: ='Irr Canola'!$B$9*$A17 -> 16.50 | C17: ='Irr Canola'!$B$9*(1-'Irr Canola'!$E$9)*$A17 -> 11.06 | D17: ='Irr Canola'!$B$9*'Irr Canola'!$E$9*$A17 -> 5.45 | E17: =('Irr Canola'!F$49+(B17-B$19)*('Irr Canola'!$D$27))/B17 -> $17.08 | F17: =('Irr Canola'!G$49+(C17-C$19)*('Irr Canola'!$D$27))/C17 -> $22.06 | G17: =('Irr Canola'!F$63+(B17-B$19)*('Irr Canola'!$D$27))/B17 -> $26.76 | H17: =('Irr Canola'!G$63+(C17-C$19)*('Irr Canola'!$D$27))/C17 -> $30.00 | I17: =IF($D17=0,"N/A",('Irr Canola'!H$63+(D17-D$19)*('Irr Canola'!$D$27))/D17) -> $20.09
A18: 90% | B18: ='Irr Canola'!$B$9*$A18 -> 19.80 | C18: ='Irr Canola'!$B$9*(1-'Irr Canola'!$E$9)*$A18 -> 13.27 | D18: ='Irr Canola'!$B$9*'Irr Canola'!$E$9*$A18 -> 6.53 | E18: =('Irr Canola'!F$49+(B18-B$19)*('Irr Canola'!$D$27))/B18 -> $14.31 | F18: =('Irr Canola'!G$49+(C18-C$19)*('Irr Canola'!$D$27))/C18 -> $18.46 | G18: =('Irr Canola'!F$63+(B18-B$19)*('Irr Canola'!$D$27))/B18 -> $22.38 | H18: =('Irr Canola'!G$63+(C18-C$19)*('Irr Canola'!$D$27))/C18 -> $25.08 | I18: =IF($D18=0,"N/A",('Irr Canola'!H$63+(D18-D$19)*('Irr Canola'!$D$27))/D18) -> $16.82
A19: 100% | B19: ='Irr Canola'!$B$9*$A19 -> 22.00 | C19: ='Irr Canola'!$B$9*(1-'Irr Canola'!$E$9)*$A19 -> 14.74 | D19: ='Irr Canola'!$B$9*'Irr Canola'!$E$9*$A19 -> 7.26 | E19: =('Irr Canola'!F$49+(B19-B$19)*('Irr Canola'!$D$27))/B19 -> $12.92 | F19: =('Irr Canola'!G$49+(C19-C$19)*('Irr Canola'!$D$27))/C19 -> $16.66 | G19: =('Irr Canola'!F$63+(B19-B$19)*('Irr Canola'!$D$27))/B19 -> $20.18 | H19: =('Irr Canola'!G$63+(C19-C$19)*('Irr Canola'!$D$27))/C19 -> $22.61 | I19: =IF($D19=0,"N/A",('Irr Canola'!H$63+(D19-D$19)*('Irr Canola'!$D$27))/D19) -> $15.18
A20: 110% | B20: ='Irr Canola'!$B$9*$A20 -> 24.20 | C20: ='Irr Canola'!$B$9*(1-'Irr Canola'!$E$9)*$A20 -> 16.21 | D20: ='Irr Canola'!$B$9*'Irr Canola'!$E$9*$A20 -> 7.99 | E20: =('Irr Canola'!F$49+(B20-B$19)*('Irr Canola'!$D$27))/B20 -> $11.79 | F20: =('Irr Canola'!G$49+(C20-C$19)*('Irr Canola'!$D$27))/C20 -> $15.18 | G20: =('Irr Canola'!F$63+(B20-B$19)*('Irr Canola'!$D$27))/B20 -> $18.39 | H20: =('Irr Canola'!G$63+(C20-C$19)*('Irr Canola'!$D$27))/C20 -> $20.60 | I20: =IF($D20=0,"N/A",('Irr Canola'!H$63+(D20-D$19)*('Irr Canola'!$D$27))/D20) -> $13.84
A21: 125% | B21: ='Irr Canola'!$B$9*$A21 -> 27.50 | C21: ='Irr Canola'!$B$9*(1-'Irr Canola'!$E$9)*$A21 -> 18.43 | D21: ='Irr Canola'!$B$9*'Irr Canola'!$E$9*$A21 -> 9.08 | E21: =('Irr Canola'!F$49+(B21-B$19)*('Irr Canola'!$D$27))/B21 -> $10.43 | F21: =('Irr Canola'!G$49+(C21-C$19)*('Irr Canola'!$D$27))/C21 -> $13.42 | G21: =('Irr Canola'!F$63+(B21-B$19)*('Irr Canola'!$D$27))/B21 -> $16.24 | H21: =('Irr Canola'!G$63+(C21-C$19)*('Irr Canola'!$D$27))/C21 -> $18.18 | I21: =IF($D21=0,"N/A",('Irr Canola'!H$63+(D21-D$19)*('Irr Canola'!$D$27))/D21) -> $12.23
A23: ='Irr Corn'!A3:H3 -> Irrigated Corn
E24: BE Price to Cover Variable Costs | G24: BE Price to Cover Total Costs
A25: Yield | B25: BU | E25: Total | F25: Tenant | G25: Total | H25: Tenant | I25: Landlord
A26: 75% | B26: ='Irr Corn'!$B$9*$A26 -> 168.75 | C26: ='Irr Corn'!$B$9*(1-'Irr Corn'!$E$9)*$A26 -> 113.06 | D26: ='Irr Corn'!$B$9*'Irr Corn'!$E$9*$A26 -> 55.69 | E26: =('Irr Corn'!F$47+(B26-B$28)*('Irr Corn'!$D$25))/B26 -> $3.66 | F26: =('Irr Corn'!G$47+(C26-C$28)*('Irr Corn'!$D$25))/C26 -> $4.78 | G26: =('Irr Corn'!F$61+(B26-B$28)*('Irr Corn'!$D$25))/B26 -> $5.01 | H26: =('Irr Corn'!G$61+(C26-C$28)*('Irr Corn'!$D$25))/C26 -> $6.81 | I26: =IF($D26=0,"N/A",('Irr Corn'!H$61+(D26-D$28)*('Irr Corn'!$D$25))/D26) -> $1.45
A27: 90% | B27: ='Irr Corn'!$B$9*$A27 -> 202.50 | C27: ='Irr Corn'!$B$9*(1-'Irr Corn'!$E$9)*$A27 -> 135.68 | D27: ='Irr Corn'!$B$9*'Irr Corn'!$E$9*$A27 -> 66.83 | E27: =('Irr Corn'!F$47+(B27-B$28)*('Irr Corn'!$D$25))/B27 -> $3.11 | F27: =('Irr Corn'!G$47+(C27-C$28)*('Irr Corn'!$D$25))/C27 -> $4.05 | G27: =('Irr Corn'!F$61+(B27-B$28)*('Irr Corn'!$D$25))/B27 -> $4.24 | H27: =('Irr Corn'!G$61+(C27-C$28)*('Irr Corn'!$D$25))/C27 -> $5.74 | I27: =IF($D27=0,"N/A",('Irr Corn'!H$61+(D27-D$28)*('Irr Corn'!$D$25))/D27) -> $1.28
A28: 100% | B28: ='Irr Corn'!$B$9*$A28 -> 225.00 | C28: ='Irr Corn'!$B$9*(1-'Irr Corn'!$E$9)*$A28 -> 150.75 | D28: ='Irr Corn'!$B$9*'Irr Corn'!$E$9*$A28 -> 74.25 | E28: =('Irr Corn'!F$47+(B28-B$28)*('Irr Corn'!$D$25))/B28 -> $2.84 | F28: =('Irr Corn'!G$47+(C28-C$28)*('Irr Corn'!$D$25))/C28 -> $3.69 | G28: =('Irr Corn'!F$61+(B28-B$28)*('Irr Corn'!$D$25))/B28 -> $3.86 | H28: =('Irr Corn'!G$61+(C28-C$28)*('Irr Corn'!$D$25))/C28 -> $5.21 | I28: =IF($D28=0,"N/A",('Irr Corn'!H$61+(D28-D$28)*('Irr Corn'!$D$25))/D28) -> $1.19
A29: 110% | B29: ='Irr Corn'!$B$9*$A29 -> 247.50 | C29: ='Irr Corn'!$B$9*(1-'Irr Corn'!$E$9)*$A29 -> 165.83 | D29: ='Irr Corn'!$B$9*'Irr Corn'!$E$9*$A29 -> 81.68 | E29: =('Irr Corn'!F$47+(B29-B$28)*('Irr Corn'!$D$25))/B29 -> $2.62 | F29: =('Irr Corn'!G$47+(C29-C$28)*('Irr Corn'!$D$25))/C29 -> $3.39 | G29: =('Irr Corn'!F$61+(B29-B$28)*('Irr Corn'!$D$25))/B29 -> $3.55 | H29: =('Irr Corn'!G$61+(C29-C$28)*('Irr Corn'!$D$25))/C29 -> $4.77 | I29: =IF($D29=0,"N/A",('Irr Corn'!H$61+(D29-D$28)*('Irr Corn'!$D$25))/D29) -> $1.12
A30: 125% | B30: ='Irr Corn'!$B$9*$A30 -> 281.25 | C30: ='Irr Corn'!$B$9*(1-'Irr Corn'!$E$9)*$A30 -> 188.44 | D30: ='Irr Corn'!$B$9*'Irr Corn'!$E$9*$A30 -> 92.81 | E30: =('Irr Corn'!F$47+(B30-B$28)*('Irr Corn'!$D$25))/B30 -> $2.35 | F30: =('Irr Corn'!G$47+(C30-C$28)*('Irr Corn'!$D$25))/C30 -> $3.03 | G30: =('Irr Corn'!F$61+(B30-B$28)*('Irr Corn'!$D$25))/B30 -> $3.17 | H30: =('Irr Corn'!G$61+(C30-C$28)*('Irr Corn'!$D$25))/C30 -> $4.24 | I30: =IF($D30=0,"N/A",('Irr Corn'!H$61+(D30-D$28)*('Irr Corn'!$D$25))/D30) -> $1.03
A32: ='Irr Corn Silage'!A3:H3 -> Irrigated Corn Silage
E33: BE Price to Cover Variable Costs | G33: BE Price to Cover Total Costs
A34: Yield | B34: TON | E34: Total | F34: Tenant | G34: Total | H34: Tenant | I34: Landlord
A35: 75% | B35: ='Irr Corn Silage'!$B$9*$A35 -> 20.25 | C35: ='Irr Corn Silage'!$B$9*(1-'Irr Corn Silage'!$E$9)*$A35 -> 13.57 | D35: ='Irr Corn Silage'!$B$9*'Irr Corn Silage'!$E$9*$A35 -> 6.68 | E35: =('Irr Corn Silage'!F$47+(B35-B$37)*('Irr Corn Silage'!$D$25))/B35 -> $36.75 | F35: =('Irr Corn Silage'!G$47+(C35-C$37)*('Irr Corn Silage'!$D$25))/C35 -> $50.25 | G35: =('Irr Corn Silage'!F$61+(B35-B$37)*('Irr Corn Silage'!$D$25))/B35 -> $48.27 | H35: =('Irr Corn Silage'!G$61+(C35-C$37)*('Irr Corn Silage'!$D$25))/C35 -> $58.61 | I35: =IF($D35=0,"N/A",('Irr Corn Silage'!H$61+(D35-D$37)*('Irr Corn Silage'!$D$25))/D35) -> $28.04
A36: 90% | B36: ='Irr Corn Silage'!$B$9*$A36 -> 24.30 | C36: ='Irr Corn Silage'!$B$9*(1-'Irr Corn Silage'!$E$9)*$A36 -> 16.28 | D36: ='Irr Corn Silage'!$B$9*'Irr Corn Silage'!$E$9*$A36 -> 8.02 | E36: =('Irr Corn Silage'!F$47+(B36-B$37)*('Irr Corn Silage'!$D$25))/B36 -> $32.13 | F36: =('Irr Corn Silage'!G$47+(C36-C$37)*('Irr Corn Silage'!$D$25))/C36 -> $43.38 | G36: =('Irr Corn Silage'!F$61+(B36-B$37)*('Irr Corn Silage'!$D$25))/B36 -> $41.74 | H36: =('Irr Corn Silage'!G$61+(C36-C$37)*('Irr Corn Silage'!$D$25))/C36 -> $50.34 | I36: =IF($D36=0,"N/A",('Irr Corn Silage'!H$61+(D36-D$37)*('Irr Corn Silage'!$D$25))/D36) -> $24.88
A37: 100% | B37: ='Irr Corn Silage'!$B$9*$A37 -> 27.00 | C37: ='Irr Corn Silage'!$B$9*(1-'Irr Corn Silage'!$E$9)*$A37 -> 18.09 | D37: ='Irr Corn Silage'!$B$9*'Irr Corn Silage'!$E$9*$A37 -> 8.91 | E37: =('Irr Corn Silage'!F$47+(B37-B$37)*('Irr Corn Silage'!$D$25))/B37 -> $29.82 | F37: =('Irr Corn Silage'!G$47+(C37-C$37)*('Irr Corn Silage'!$D$25))/C37 -> $39.95 | G37: =('Irr Corn Silage'!F$61+(B37-B$37)*('Irr Corn Silage'!$D$25))/B37 -> $38.47 | H37: =('Irr Corn Silage'!G$61+(C37-C$37)*('Irr Corn Silage'!$D$25))/C37 -> $46.21 | I37: =IF($D37=0,"N/A",('Irr Corn Silage'!H$61+(D37-D$37)*('Irr Corn Silage'!$D$25))/D37) -> $23.29
A38: 110% | B38: ='Irr Corn Silage'!$B$9*$A38 -> 29.70 | C38: ='Irr Corn Silage'!$B$9*(1-'Irr Corn Silage'!$E$9)*$A38 -> 19.90 | D38: ='Irr Corn Silage'!$B$9*'Irr Corn Silage'!$E$9*$A38 -> 9.80 | E38: =('Irr Corn Silage'!F$47+(B38-B$37)*('Irr Corn Silage'!$D$25))/B38 -> $27.94 | F38: =('Irr Corn Silage'!G$47+(C38-C$37)*('Irr Corn Silage'!$D$25))/C38 -> $37.14 | G38: =('Irr Corn Silage'!F$61+(B38-B$37)*('Irr Corn Silage'!$D$25))/B38 -> $35.79 | H38: =('Irr Corn Silage'!G$61+(C38-C$37)*('Irr Corn Silage'!$D$25))/C38 -> $42.83 | I38: =IF($D38=0,"N/A",('Irr Corn Silage'!H$61+(D38-D$37)*('Irr Corn Silage'!$D$25))/D38) -> $22.00
A39: 125% | B39: ='Irr Corn Silage'!$B$9*$A39 -> 33.75 | C39: ='Irr Corn Silage'!$B$9*(1-'Irr Corn Silage'!$E$9)*$A39 -> 22.61 | D39: ='Irr Corn Silage'!$B$9*'Irr Corn Silage'!$E$9*$A39 -> 11.14 | E39: =('Irr Corn Silage'!F$47+(B39-B$37)*('Irr Corn Silage'!$D$25))/B39 -> $25.67 | F39: =('Irr Corn Silage'!G$47+(C39-C$37)*('Irr Corn Silage'!$D$25))/C39 -> $33.77 | G39: =('Irr Corn Silage'!F$61+(B39-B$37)*('Irr Corn Silage'!$D$25))/B39 -> $32.58 | H39: =('Irr Corn Silage'!G$61+(C39-C$37)*('Irr Corn Silage'!$D$25))/C39 -> $38.78 | I39: =IF($D39=0,"N/A",('Irr Corn Silage'!H$61+(D39-D$37)*('Irr Corn Silage'!$D$25))/D39) -> $20.44
A41: ='Irr Cotton'!A3:H3 -> Irrigated Cotton
E42: BE Price to Cover Variable Costs | G42: BE Price to Cover Total Costs
A43: Yield | B43: LB | E43: Total | F43: Tenant | G43: Total | H43: Tenant | I43: Landlord
A44: 75% | B44: ='Irr Cotton'!$B$9*$A44 -> 937.50 | C44: ='Irr Cotton'!$B$9*(1-'Irr Cotton'!$E$9)*$A44 -> 628.13 | D44: ='Irr Cotton'!$B$9*'Irr Cotton'!$E$9*$A44 -> 309.38 | E44: =('Irr Cotton'!F$52-B44/500*'Universal Input Prices'!$B$39/2000*Cottonseed_Price+(B44-B$46)/100*'Irr Cotton'!$D$29+(B44-B$46)/'Irr Cotton'!$B$11/100*'Irr Cotton'!D$30)/B44 -> $0.48 | F44: =('Irr Cotton'!G$52-C44/500*'Universal Input Prices'!$B$39/2000*Cottonseed_Price+(C44-C$46)/100*'Irr Cotton'!$D$29+(C44-C$46)/'Irr Cotton'!$B$11/100*'Irr Cotton'!$D$30)/C44 -> $0.63 | G44: =('Irr Cotton'!F$66-B44/500*'Universal Input Prices'!$B$39/2000*Cottonseed_Price+(B44-B$46)/100*'Irr Cotton'!$D$29+(B44-B$46)/'Irr Cotton'!$B$11/100*'Irr Cotton'!$D$30)/B44 -> $0.64 | H44: =('Irr Cotton'!G$66-C44/500*'Universal Input Prices'!$B$39/2000*Cottonseed_Price+(C44-C$46)/100*'Irr Cotton'!$D$29+(C44-C$46)/100*'Irr Cotton'!$B$11*'Irr Cotton'!$D$30)/C44 -> $0.79 | I44: =IF($D44=0,"N/A",('Irr Cotton'!H$66-D44/500*'Universal Input Prices'!$B$39/2000*Cottonseed_Price+(D44-D$46)/100*'Irr Cotton'!$D$29+(D44-D$46)/100*'Irr Cotton'!$B$11*'Irr Cotton'!$D$30)/D44) -> $0.44
A45: 90% | B45: ='Irr Cotton'!$B$9*$A45 -> 1125.00 | C45: ='Irr Cotton'!$B$9*(1-'Irr Cotton'!$E$9)*$A45 -> 753.75 | D45: ='Irr Cotton'!$B$9*'Irr Cotton'!$E$9*$A45 -> 371.25 | E45: =('Irr Cotton'!F$52-B45/500*'Universal Input Prices'!$B$39/2000*Cottonseed_Price+(B45-B$46)/100*'Irr Cotton'!$D$29+(B45-B$46)/'Irr Cotton'!$B$11/100*'Irr Cotton'!D$30)/B45 -> $0.41 | F45: =('Irr Cotton'!G$52-C45/500*'Universal Input Prices'!$B$39/2000*Cottonseed_Price+(C45-C$46)/100*'Irr Cotton'!$D$29+(C45-C$46)/'Irr Cotton'!$B$11/100*'Irr Cotton'!$D$30)/C45 -> $0.53 | G45: =('Irr Cotton'!F$66-B45/500*'Universal Input Prices'!$B$39/2000*Cottonseed_Price+(B45-B$46)/100*'Irr Cotton'!$D$29+(B45-B$46)/'Irr Cotton'!$B$11/100*'Irr Cotton'!$D$30)/B45 -> $0.54 | H45: =('Irr Cotton'!G$66-C45/500*'Universal Input Prices'!$B$39/2000*Cottonseed_Price+(C45-C$46)/100*'Irr Cotton'!$D$29+(C45-C$46)/100*'Irr Cotton'!$B$11*'Irr Cotton'!$D$30)/C45 -> $0.65 | I45: =IF($D45=0,"N/A",('Irr Cotton'!H$66-D45/500*'Universal Input Prices'!$B$39/2000*Cottonseed_Price+(D45-D$46)/100*'Irr Cotton'!$D$29+(D45-D$46)/100*'Irr Cotton'!$B$11*'Irr Cotton'!$D$30)/D45) -> $0.35
A46: 100% | B46: ='Irr Cotton'!$B$9*$A46 -> 1250.00 | C46: ='Irr Cotton'!$B$9*(1-'Irr Cotton'!$E$9)*$A46 -> 837.50 | D46: ='Irr Cotton'!$B$9*'Irr Cotton'!$E$9*$A46 -> 412.50 | E46: =('Irr Cotton'!F$52-B46/500*'Universal Input Prices'!$B$39/2000*Cottonseed_Price+(B46-B$46)/100*'Irr Cotton'!$D$29+(B46-B$46)/'Irr Cotton'!$B$11/100*'Irr Cotton'!D$30)/B46 -> $0.37 | F46: =('Irr Cotton'!G$52-C46/500*'Universal Input Prices'!$B$39/2000*Cottonseed_Price+(C46-C$46)/100*'Irr Cotton'!$D$29+(C46-C$46)/'Irr Cotton'!$B$11/100*'Irr Cotton'!$D$30)/C46 -> $0.48 | G46: =('Irr Cotton'!F$66-B46/500*'Universal Input Prices'!$B$39/2000*Cottonseed_Price+(B46-B$46)/100*'Irr Cotton'!$D$29+(B46-B$46)/'Irr Cotton'!$B$11/100*'Irr Cotton'!$D$30)/B46 -> $0.49 | H46: =('Irr Cotton'!G$66-C46/500*'Universal Input Prices'!$B$39/2000*Cottonseed_Price+(C46-C$46)/100*'Irr Cotton'!$D$29+(C46-C$46)/100*'Irr Cotton'!$B$11*'Irr Cotton'!$D$30)/C46 -> $0.58 | I46: =IF($D46=0,"N/A",('Irr Cotton'!H$66-D46/500*'Universal Input Prices'!$B$39/2000*Cottonseed_Price+(D46-D$46)/100*'Irr Cotton'!$D$29+(D46-D$46)/100*'Irr Cotton'!$B$11*'Irr Cotton'!$D$30)/D46) -> $0.31
A47: 110% | B47: ='Irr Cotton'!$B$9*$A47 -> 1375.00 | C47: ='Irr Cotton'!$B$9*(1-'Irr Cotton'!$E$9)*$A47 -> 921.25 | D47: ='Irr Cotton'!$B$9*'Irr Cotton'!$E$9*$A47 -> 453.75 | E47: =('Irr Cotton'!F$52-B47/500*'Universal Input Prices'!$B$39/2000*Cottonseed_Price+(B47-B$46)/100*'Irr Cotton'!$D$29+(B47-B$46)/'Irr Cotton'!$B$11/100*'Irr Cotton'!D$30)/B47 -> $0.34 | F47: =('Irr Cotton'!G$52-C47/500*'Universal Input Prices'!$B$39/2000*Cottonseed_Price+(C47-C$46)/100*'Irr Cotton'!$D$29+(C47-C$46)/'Irr Cotton'!$B$11/100*'Irr Cotton'!$D$30)/C47 -> $0.44 | G47: =('Irr Cotton'!F$66-B47/500*'Universal Input Prices'!$B$39/2000*Cottonseed_Price+(B47-B$46)/100*'Irr Cotton'!$D$29+(B47-B$46)/'Irr Cotton'!$B$11/100*'Irr Cotton'!$D$30)/B47 -> $0.45 | H47: =('Irr Cotton'!G$66-C47/500*'Universal Input Prices'!$B$39/2000*Cottonseed_Price+(C47-C$46)/100*'Irr Cotton'!$D$29+(C47-C$46)/100*'Irr Cotton'!$B$11*'Irr Cotton'!$D$30)/C47 -> $0.52 | I47: =IF($D47=0,"N/A",('Irr Cotton'!H$66-D47/500*'Universal Input Prices'!$B$39/2000*Cottonseed_Price+(D47-D$46)/100*'Irr Cotton'!$D$29+(D47-D$46)/100*'Irr Cotton'!$B$11*'Irr Cotton'!$D$30)/D47) -> $0.28
A48: 125% | B48: ='Irr Cotton'!$B$9*$A48 -> 1562.50 | C48: ='Irr Cotton'!$B$9*(1-'Irr Cotton'!$E$9)*$A48 -> 1046.88 | D48: ='Irr Cotton'!$B$9*'Irr Cotton'!$E$9*$A48 -> 515.63 | E48: =('Irr Cotton'!F$52-B48/500*'Universal Input Prices'!$B$39/2000*Cottonseed_Price+(B48-B$46)/100*'Irr Cotton'!$D$29+(B48-B$46)/'Irr Cotton'!$B$11/100*'Irr Cotton'!D$30)/B48 -> $0.30 | F48: =('Irr Cotton'!G$52-C48/500*'Universal Input Prices'!$B$39/2000*Cottonseed_Price+(C48-C$46)/100*'Irr Cotton'!$D$29+(C48-C$46)/'Irr Cotton'!$B$11/100*'Irr Cotton'!$D$30)/C48 -> $0.39 | G48: =('Irr Cotton'!F$66-B48/500*'Universal Input Prices'!$B$39/2000*Cottonseed_Price+(B48-B$46)/100*'Irr Cotton'!$D$29+(B48-B$46)/'Irr Cotton'!$B$11/100*'Irr Cotton'!$D$30)/B48 -> $0.40 | H48: =('Irr Cotton'!G$66-C48/500*'Universal Input Prices'!$B$39/2000*Cottonseed_Price+(C48-C$46)/100*'Irr Cotton'!$D$29+(C48-C$46)/100*'Irr Cotton'!$B$11*'Irr Cotton'!$D$30)/C48 -> $0.45 | I48: =IF($D48=0,"N/A",('Irr Cotton'!H$66-D48/500*'Universal Input Prices'!$B$39/2000*Cottonseed_Price+(D48-D$46)/100*'Irr Cotton'!$D$29+(D48-D$46)/100*'Irr Cotton'!$B$11*'Irr Cotton'!$D$30)/D48) -> $0.24
A50: ='Irr Peanuts'!A3:H3 -> Irrigated Peanuts
E51: BE Price to Cover Variable Costs | G51: BE Price to Cover Total Costs
A52: Yield | B52: TON | E52: Total | F52: Tenant | G52: Total | H52: Tenant | I52: Landlord
A53: 75% | B53: ='Irr Peanuts'!$B$9*$A53 -> 1.69 | C53: ='Irr Peanuts'!$B$9*(1-'Irr Peanuts'!$E$9)*$A53 -> 1.13 | D53: ='Irr Peanuts'!$B$9*'Irr Peanuts'!$E$9*$A53 -> 0.56 | E53: =('Irr Peanuts'!$F$51+($B53-$B$55)*(SUM('Irr Peanuts'!$D$27:$D$28)))/$B53 -> $417.78 | F53: =('Irr Peanuts'!$G$51+($C53-$C$55)*(SUM('Irr Peanuts'!$D$27:$D$28)))/$C53 -> $556.73 | G53: =('Irr Peanuts'!$F$65+($B53-$B$55)*(SUM('Irr Peanuts'!$D$27:$D$28)))/$B53 -> $541.14 | H53: =('Irr Peanuts'!$G$65+($C53-$C$55)*(SUM('Irr Peanuts'!$D$27:$D$28)))/$C53 -> $677.16 | I53: =IF($D53=0, "N/A", ('Irr Peanuts'!$H$65+($D53-$D$55)*(SUM('Irr Peanuts'!$D$27:$D$28)))/$D53) -> $270.39
A54: 90% | B54: ='Irr Peanuts'!$B$9*$A54 -> 2.03 | C54: ='Irr Peanuts'!$B$9*(1-'Irr Peanuts'!$E$9)*$A54 -> 1.36 | D54: ='Irr Peanuts'!$B$9*'Irr Peanuts'!$E$9*$A54 -> 0.67 | E54: =('Irr Peanuts'!$F$51+($B54-$B$55)*(SUM('Irr Peanuts'!$D$27:$D$28)))/$B54 -> $358.99 | F54: =('Irr Peanuts'!$G$51+($C54-$C$55)*(SUM('Irr Peanuts'!$D$27:$D$28)))/$C54 -> $474.78 | G54: =('Irr Peanuts'!$F$65+($B54-$B$55)*(SUM('Irr Peanuts'!$D$27:$D$28)))/$B54 -> $461.78 | H54: =('Irr Peanuts'!$G$65+($C54-$C$55)*(SUM('Irr Peanuts'!$D$27:$D$28)))/$C54 -> $575.13 | I54: =IF($D54=0, "N/A", ('Irr Peanuts'!$H$65+($D54-$D$55)*(SUM('Irr Peanuts'!$D$27:$D$28)))/$D54) -> $236.15
A55: 100% | B55: ='Irr Peanuts'!$B$9*$A55 -> 2.25 | C55: ='Irr Peanuts'!$B$9*(1-'Irr Peanuts'!$E$9)*$A55 -> 1.51 | D55: ='Irr Peanuts'!$B$9*'Irr Peanuts'!$E$9*$A55 -> 0.74 | E55: =('Irr Peanuts'!$F$51+($B55-$B$55)*(SUM('Irr Peanuts'!$D$27:$D$28)))/$B55 -> $329.59 | F55: =('Irr Peanuts'!$G$51+($C55-$C$55)*(SUM('Irr Peanuts'!$D$27:$D$28)))/$C55 -> $433.80 | G55: =('Irr Peanuts'!$F$65+($B55-$B$55)*(SUM('Irr Peanuts'!$D$27:$D$28)))/$B55 -> $422.10 | H55: =('Irr Peanuts'!$G$65+($C55-$C$55)*(SUM('Irr Peanuts'!$D$27:$D$28)))/$C55 -> $524.12 | I55: =IF($D55=0, "N/A", ('Irr Peanuts'!$H$65+($D55-$D$55)*(SUM('Irr Peanuts'!$D$27:$D$28)))/$D55) -> $219.04
A56: 110% | B56: ='Irr Peanuts'!$B$9*$A56 -> 2.48 | C56: ='Irr Peanuts'!$B$9*(1-'Irr Peanuts'!$E$9)*$A56 -> 1.66 | D56: ='Irr Peanuts'!$B$9*'Irr Peanuts'!$E$9*$A56 -> 0.82 | E56: =('Irr Peanuts'!$F$51+($B56-$B$55)*(SUM('Irr Peanuts'!$D$27:$D$28)))/$B56 -> $305.53 | F56: =('Irr Peanuts'!$G$51+($C56-$C$55)*(SUM('Irr Peanuts'!$D$27:$D$28)))/$C56 -> $400.27 | G56: =('Irr Peanuts'!$F$65+($B56-$B$55)*(SUM('Irr Peanuts'!$D$27:$D$28)))/$B56 -> $389.64 | H56: =('Irr Peanuts'!$G$65+($C56-$C$55)*(SUM('Irr Peanuts'!$D$27:$D$28)))/$C56 -> $482.38 | I56: =IF($D56=0, "N/A", ('Irr Peanuts'!$H$65+($D56-$D$55)*(SUM('Irr Peanuts'!$D$27:$D$28)))/$D56) -> $205.04
A57: 125% | B57: ='Irr Peanuts'!$B$9*$A57 -> 2.81 | C57: ='Irr Peanuts'!$B$9*(1-'Irr Peanuts'!$E$9)*$A57 -> 1.88 | D57: ='Irr Peanuts'!$B$9*'Irr Peanuts'!$E$9*$A57 -> 0.93 | E57: =('Irr Peanuts'!$F$51+($B57-$B$55)*(SUM('Irr Peanuts'!$D$27:$D$28)))/$B57 -> $276.67 | F57: =('Irr Peanuts'!$G$51+($C57-$C$55)*(SUM('Irr Peanuts'!$D$27:$D$28)))/$C57 -> $360.04 | G57: =('Irr Peanuts'!$F$65+($B57-$B$55)*(SUM('Irr Peanuts'!$D$27:$D$28)))/$B57 -> $350.68 | H57: =('Irr Peanuts'!$G$65+($C57-$C$55)*(SUM('Irr Peanuts'!$D$27:$D$28)))/$C57 -> $432.30 | I57: =IF($D57=0, "N/A", ('Irr Peanuts'!$H$65+($D57-$D$55)*(SUM('Irr Peanuts'!$D$27:$D$28)))/$D57) -> $188.23
A59: ='Irr Sorghum'!A3:H3 -> Irrigated Sorghum
E60: BE Price to Cover Variable Costs | G60: BE Price to Cover Total Costs
A61: Yield | B61: CWT | E61: Total | F61: Tenant | G61: Total | H61: Tenant | I61: Landlord
A62: 75% | B62: ='Irr Sorghum'!$B$9*$A62 -> 45.00 | C62: ='Irr Sorghum'!$B$9*(1-'Irr Sorghum'!$E$9)*$A62 -> 30.15 | D62: ='Irr Sorghum'!$B$9*'Irr Sorghum'!$E$9*$A62 -> 14.85 | E62: =('Irr Sorghum'!$F$46-'Irr Sorghum'!$F$10+($B62-$B$64)*'Irr Sorghum'!$D$24)/$B62 -> $7.22 | F62: =('Irr Sorghum'!$G$46-'Irr Sorghum'!$F$10+($C62-$C$64)*'Irr Sorghum'!$D$24)/$C62 -> $8.87 | G62: =('Irr Sorghum'!$F$60-'Irr Sorghum'!$F$10+($B62-$B$64)*'Irr Sorghum'!$D$24)/$B62 -> $11.22 | H62: =('Irr Sorghum'!$G$60-'Irr Sorghum'!$F$10+($C62-$C$64)*'Irr Sorghum'!$D$24)/$C62 -> $12.44 | I62: =IF($D62=0, "N/A", ('Irr Sorghum'!$H$60-'Irr Sorghum'!$F$10+($D62-$D$64)*'Irr Sorghum'!$D$24)/$D62) -> $8.84
A63: 90% | B63: ='Irr Sorghum'!$B$9*$A63 -> 54.00 | C63: ='Irr Sorghum'!$B$9*(1-'Irr Sorghum'!$E$9)*$A63 -> 36.18 | D63: ='Irr Sorghum'!$B$9*'Irr Sorghum'!$E$9*$A63 -> 17.82 | E63: =('Irr Sorghum'!$F$46-'Irr Sorghum'!$F$10+($B63-$B$64)*'Irr Sorghum'!$D$24)/$B63 -> $6.16 | F63: =('Irr Sorghum'!$G$46-'Irr Sorghum'!$F$10+($C63-$C$64)*'Irr Sorghum'!$D$24)/$C63 -> $7.53 | G63: =('Irr Sorghum'!$F$60-'Irr Sorghum'!$F$10+($B63-$B$64)*'Irr Sorghum'!$D$24)/$B63 -> $9.49 | H63: =('Irr Sorghum'!$G$60-'Irr Sorghum'!$F$10+($C63-$C$64)*'Irr Sorghum'!$D$24)/$C63 -> $10.51 | I63: =IF($D63=0, "N/A", ('Irr Sorghum'!$H$60-'Irr Sorghum'!$F$10+($D63-$D$64)*'Irr Sorghum'!$D$24)/$D63) -> $7.51
A64: 100% | B64: ='Irr Sorghum'!$B$9*$A64 -> 60.00 | C64: ='Irr Sorghum'!$B$9*(1-'Irr Sorghum'!$E$9)*$A64 -> 40.20 | D64: ='Irr Sorghum'!$B$9*'Irr Sorghum'!$E$9*$A64 -> 19.80 | E64: =('Irr Sorghum'!$F$46-'Irr Sorghum'!$F$10+($B64-$B$64)*'Irr Sorghum'!$D$24)/$B64 -> $5.63 | F64: =('Irr Sorghum'!$G$46-'Irr Sorghum'!$F$10+($C64-$C$64)*'Irr Sorghum'!$D$24)/$C64 -> $6.86 | G64: =('Irr Sorghum'!$F$60-'Irr Sorghum'!$F$10+($B64-$B$64)*'Irr Sorghum'!$D$24)/$B64 -> $8.63 | H64: =('Irr Sorghum'!$G$60-'Irr Sorghum'!$F$10+($C64-$C$64)*'Irr Sorghum'!$D$24)/$C64 -> $9.54 | I64: =IF($D64=0, "N/A", ('Irr Sorghum'!$H$60-'Irr Sorghum'!$F$10+($D64-$D$64)*'Irr Sorghum'!$D$24)/$D64) -> $6.84
A65: 110% | B65: ='Irr Sorghum'!$B$9*$A65 -> 66.00 | C65: ='Irr Sorghum'!$B$9*(1-'Irr Sorghum'!$E$9)*$A65 -> 44.22 | D65: ='Irr Sorghum'!$B$9*'Irr Sorghum'!$E$9*$A65 -> 21.78 | E65: =('Irr Sorghum'!$F$46-'Irr Sorghum'!$F$10+($B65-$B$64)*'Irr Sorghum'!$D$24)/$B65 -> $5.20 | F65: =('Irr Sorghum'!$G$46-'Irr Sorghum'!$F$10+($C65-$C$64)*'Irr Sorghum'!$D$24)/$C65 -> $6.32 | G65: =('Irr Sorghum'!$F$60-'Irr Sorghum'!$F$10+($B65-$B$64)*'Irr Sorghum'!$D$24)/$B65 -> $7.92 | H65: =('Irr Sorghum'!$G$60-'Irr Sorghum'!$F$10+($C65-$C$64)*'Irr Sorghum'!$D$24)/$C65 -> $8.75 | I65: =IF($D65=0, "N/A", ('Irr Sorghum'!$H$60-'Irr Sorghum'!$F$10+($D65-$D$64)*'Irr Sorghum'!$D$24)/$D65) -> $6.30
A66: 125% | B66: ='Irr Sorghum'!$B$9*$A66 -> 75.00 | C66: ='Irr Sorghum'!$B$9*(1-'Irr Sorghum'!$E$9)*$A66 -> 50.25 | D66: ='Irr Sorghum'!$B$9*'Irr Sorghum'!$E$9*$A66 -> 24.75 | E66: =('Irr Sorghum'!$F$46-'Irr Sorghum'!$F$10+($B66-$B$64)*'Irr Sorghum'!$D$24)/$B66 -> $4.67 | F66: =('Irr Sorghum'!$G$46-'Irr Sorghum'!$F$10+($C66-$C$64)*'Irr Sorghum'!$D$24)/$C66 -> $5.66 | G66: =('Irr Sorghum'!$F$60-'Irr Sorghum'!$F$10+($B66-$B$64)*'Irr Sorghum'!$D$24)/$B66 -> $7.07 | H66: =('Irr Sorghum'!$G$60-'Irr Sorghum'!$F$10+($C66-$C$64)*'Irr Sorghum'!$D$24)/$C66 -> $7.80 | I66: =IF($D66=0, "N/A", ('Irr Sorghum'!$H$60-'Irr Sorghum'!$F$10+($D66-$D$64)*'Irr Sorghum'!$D$24)/$D66) -> $5.64
A68: ='Irr Sorghum Seed'!A3:H3 -> Irrigated Sorghum Seed
E69: BE Price to Cover Variable Costs | G69: BE Price to Cover Total Costs
A70: Yield | B70: CWT | E70: Total | F70: Tenant | G70: Total | H70: Tenant | I70: Landlord
A71: 75% | B71: ='Irr Sorghum Seed'!$B$9*$A71 -> 33.75 | C71: ='Irr Sorghum Seed'!$B$9*(1-'Irr Sorghum Seed'!$E$9)*$A71 -> 22.61 | D71: ='Irr Sorghum Seed'!$B$9*'Irr Sorghum Seed'!$E$9*$A71 -> 11.14 | E71: =('Irr Sorghum Seed'!$F$46-'Irr Sorghum'!$F$10+($B71-$B$73)*'Irr Sorghum Seed'!$D$24)/$B71 -> $10.89 | F71: =('Irr Sorghum Seed'!$G$46-'Irr Sorghum'!$F$10+($C71-$C$73)*'Irr Sorghum Seed'!$D$24)/$C71 -> $13.19 | G71: =('Irr Sorghum Seed'!$F$60-'Irr Sorghum'!$F$10+($B71-$B$73)*'Irr Sorghum Seed'!$D$24)/$B71 -> $15.93 | H71: =('Irr Sorghum Seed'!$G$60-'Irr Sorghum'!$F$10+($C71-$C$73)*'Irr Sorghum Seed'!$D$24)/$C71 -> $17.52 | I71: =IF($D71=0, "N/A", ('Irr Sorghum Seed'!$H$60-'Irr Sorghum'!$F$10+($D71-$D$73)*'Irr Sorghum Seed'!$D$24)/$D71) -> $12.88
A72: 90% | B72: ='Irr Sorghum Seed'!$B$9*$A72 -> 40.50 | C72: ='Irr Sorghum Seed'!$B$9*(1-'Irr Sorghum Seed'!$E$9)*$A72 -> 27.14 | D72: ='Irr Sorghum Seed'!$B$9*'Irr Sorghum Seed'!$E$9*$A72 -> 13.37 | E72: =('Irr Sorghum Seed'!$F$46-'Irr Sorghum'!$F$10+($B72-$B$73)*'Irr Sorghum Seed'!$D$24)/$B72 -> $9.22 | F72: =('Irr Sorghum Seed'!$G$46-'Irr Sorghum'!$F$10+($C72-$C$73)*'Irr Sorghum Seed'!$D$24)/$C72 -> $11.13 | G72: =('Irr Sorghum Seed'!$F$60-'Irr Sorghum'!$F$10+($B72-$B$73)*'Irr Sorghum Seed'!$D$24)/$B72 -> $13.41 | H72: =('Irr Sorghum Seed'!$G$60-'Irr Sorghum'!$F$10+($C72-$C$73)*'Irr Sorghum Seed'!$D$24)/$C72 -> $14.74 | I72: =IF($D72=0, "N/A", ('Irr Sorghum Seed'!$H$60-'Irr Sorghum'!$F$10+($D72-$D$73)*'Irr Sorghum Seed'!$D$24)/$D72) -> $10.87
A73: 100% | B73: ='Irr Sorghum Seed'!$B$9*$A73 -> 45.00 | C73: ='Irr Sorghum Seed'!$B$9*(1-'Irr Sorghum Seed'!$E$9)*$A73 -> 30.15 | D73: ='Irr Sorghum Seed'!$B$9*'Irr Sorghum Seed'!$E$9*$A73 -> 14.85 | E73: =('Irr Sorghum Seed'!$F$46-'Irr Sorghum'!$F$10+($B73-$B$73)*'Irr Sorghum Seed'!$D$24)/$B73 -> $8.38 | F73: =('Irr Sorghum Seed'!$G$46-'Irr Sorghum'!$F$10+($C73-$C$73)*'Irr Sorghum Seed'!$D$24)/$C73 -> $10.11 | G73: =('Irr Sorghum Seed'!$F$60-'Irr Sorghum'!$F$10+($B73-$B$73)*'Irr Sorghum Seed'!$D$24)/$B73 -> $12.16 | H73: =('Irr Sorghum Seed'!$G$60-'Irr Sorghum'!$F$10+($C73-$C$73)*'Irr Sorghum Seed'!$D$24)/$C73 -> $13.35 | I73: =IF($D73=0, "N/A", ('Irr Sorghum Seed'!$H$60-'Irr Sorghum'!$F$10+($D73-$D$73)*'Irr Sorghum Seed'!$D$24)/$D73) -> $9.87
A74: 110% | B74: ='Irr Sorghum Seed'!$B$9*$A74 -> 49.50 | C74: ='Irr Sorghum Seed'!$B$9*(1-'Irr Sorghum Seed'!$E$9)*$A74 -> 33.17 | D74: ='Irr Sorghum Seed'!$B$9*'Irr Sorghum Seed'!$E$9*$A74 -> 16.34 | E74: =('Irr Sorghum Seed'!$F$46-'Irr Sorghum'!$F$10+($B74-$B$73)*'Irr Sorghum Seed'!$D$24)/$B74 -> $7.70 | F74: =('Irr Sorghum Seed'!$G$46-'Irr Sorghum'!$F$10+($C74-$C$73)*'Irr Sorghum Seed'!$D$24)/$C74 -> $9.26 | G74: =('Irr Sorghum Seed'!$F$60-'Irr Sorghum'!$F$10+($B74-$B$73)*'Irr Sorghum Seed'!$D$24)/$B74 -> $11.13 | H74: =('Irr Sorghum Seed'!$G$60-'Irr Sorghum'!$F$10+($C74-$C$73)*'Irr Sorghum Seed'!$D$24)/$C74 -> $12.22 | I74: =IF($D74=0, "N/A", ('Irr Sorghum Seed'!$H$60-'Irr Sorghum'!$F$10+($D74-$D$73)*'Irr Sorghum Seed'!$D$24)/$D74) -> $9.05
A75: 125% | B75: ='Irr Sorghum Seed'!$B$9*$A75 -> 56.25 | C75: ='Irr Sorghum Seed'!$B$9*(1-'Irr Sorghum Seed'!$E$9)*$A75 -> 37.69 | D75: ='Irr Sorghum Seed'!$B$9*'Irr Sorghum Seed'!$E$9*$A75 -> 18.56 | E75: =('Irr Sorghum Seed'!$F$46-'Irr Sorghum'!$F$10+($B75-$B$73)*'Irr Sorghum Seed'!$D$24)/$B75 -> $6.88 | F75: =('Irr Sorghum Seed'!$G$46-'Irr Sorghum'!$F$10+($C75-$C$73)*'Irr Sorghum Seed'!$D$24)/$C75 -> $8.25 | G75: =('Irr Sorghum Seed'!$F$60-'Irr Sorghum'!$F$10+($B75-$B$73)*'Irr Sorghum Seed'!$D$24)/$B75 -> $9.90 | H75: =('Irr Sorghum Seed'!$G$60-'Irr Sorghum'!$F$10+($C75-$C$73)*'Irr Sorghum Seed'!$D$24)/$C75 -> $10.85 | I75: =IF($D75=0, "N/A", ('Irr Sorghum Seed'!$H$60-'Irr Sorghum'!$F$10+($D75-$D$73)*'Irr Sorghum Seed'!$D$24)/$D75) -> $8.07
A77: ='Irr Sorghum Silage'!A3:H3 -> Irrigated Sorghum Silage
E78: BE Price to Cover Variable Costs | G78: BE Price to Cover Total Costs
A79: Yield | B79: TON | E79: Total | F79: Tenant | G79: Total | H79: Tenant | I79: Landlord
A80: 75% | B80: ='Irr Sorghum Silage'!$B$9*$A80 -> 15.75 | C80: ='Irr Sorghum Silage'!$B$9*(1-'Irr Sorghum Silage'!$E$9)*$A80 -> 10.55 | D80: ='Irr Sorghum Silage'!$B$9*'Irr Sorghum Silage'!$E$9*$A80 -> 5.20 | E80: =('Irr Sorghum Silage'!F$46+(B80-B$82)*('Irr Sorghum Silage'!$D$24))/B80 -> $29.22 | F80: =('Irr Sorghum Silage'!G$46+(C80-C$82)*('Irr Sorghum Silage'!$D$24))/C80 -> $38.82 | G80: =('Irr Sorghum Silage'!F$60+(B80-B$82)*('Irr Sorghum Silage'!$D$24))/B80 -> $39.80 | H80: =('Irr Sorghum Silage'!G$60+(C80-C$82)*('Irr Sorghum Silage'!$D$24))/C80 -> $47.79 | I80: =IF($D80=0,"N/A",('Irr Sorghum Silage'!H$60+(D80-D$82)*('Irr Sorghum Silage'!$D$24))/D80) -> $23.86
A81: 90% | B81: ='Irr Sorghum Silage'!$B$9*$A81 -> 18.90 | C81: ='Irr Sorghum Silage'!$B$9*(1-'Irr Sorghum Silage'!$E$9)*$A81 -> 12.66 | D81: ='Irr Sorghum Silage'!$B$9*'Irr Sorghum Silage'!$E$9*$A81 -> 6.24 | E81: =('Irr Sorghum Silage'!F$46+(B81-B$82)*('Irr Sorghum Silage'!$D$24))/B81 -> $25.85 | F81: =('Irr Sorghum Silage'!G$46+(C81-C$82)*('Irr Sorghum Silage'!$D$24))/C81 -> $33.85 | G81: =('Irr Sorghum Silage'!F$60+(B81-B$82)*('Irr Sorghum Silage'!$D$24))/B81 -> $34.67 | H81: =('Irr Sorghum Silage'!G$60+(C81-C$82)*('Irr Sorghum Silage'!$D$24))/C81 -> $41.32 | I81: =IF($D81=0,"N/A",('Irr Sorghum Silage'!H$60+(D81-D$82)*('Irr Sorghum Silage'!$D$24))/D81) -> $21.38
A82: 100% | B82: ='Irr Sorghum Silage'!$B$9*$A82 -> 21.00 | C82: ='Irr Sorghum Silage'!$B$9*(1-'Irr Sorghum Silage'!$E$9)*$A82 -> 14.07 | D82: ='Irr Sorghum Silage'!$B$9*'Irr Sorghum Silage'!$E$9*$A82 -> 6.93 | E82: =('Irr Sorghum Silage'!F$46+(B82-B$82)*('Irr Sorghum Silage'!$D$24))/B82 -> $24.17 | F82: =('Irr Sorghum Silage'!G$46+(C82-C$82)*('Irr Sorghum Silage'!$D$24))/C82 -> $31.37 | G82: =('Irr Sorghum Silage'!F$60+(B82-B$82)*('Irr Sorghum Silage'!$D$24))/B82 -> $32.10 | H82: =('Irr Sorghum Silage'!G$60+(C82-C$82)*('Irr Sorghum Silage'!$D$24))/C82 -> $38.09 | I82: =IF($D82=0,"N/A",('Irr Sorghum Silage'!H$60+(D82-D$82)*('Irr Sorghum Silage'!$D$24))/D82) -> $20.14
A83: 110% | B83: ='Irr Sorghum Silage'!$B$9*$A83 -> 23.10 | C83: ='Irr Sorghum Silage'!$B$9*(1-'Irr Sorghum Silage'!$E$9)*$A83 -> 15.48 | D83: ='Irr Sorghum Silage'!$B$9*'Irr Sorghum Silage'!$E$9*$A83 -> 7.62 | E83: =('Irr Sorghum Silage'!F$46+(B83-B$82)*('Irr Sorghum Silage'!$D$24))/B83 -> $22.79 | F83: =('Irr Sorghum Silage'!G$46+(C83-C$82)*('Irr Sorghum Silage'!$D$24))/C83 -> $29.33 | G83: =('Irr Sorghum Silage'!F$60+(B83-B$82)*('Irr Sorghum Silage'!$D$24))/B83 -> $30.00 | H83: =('Irr Sorghum Silage'!G$60+(C83-C$82)*('Irr Sorghum Silage'!$D$24))/C83 -> $35.44 | I83: =IF($D83=0,"N/A",('Irr Sorghum Silage'!H$60+(D83-D$82)*('Irr Sorghum Silage'!$D$24))/D83) -> $19.13
A84: 125% | B84: ='Irr Sorghum Silage'!$B$9*$A84 -> 26.25 | C84: ='Irr Sorghum Silage'!$B$9*(1-'Irr Sorghum Silage'!$E$9)*$A84 -> 17.59 | D84: ='Irr Sorghum Silage'!$B$9*'Irr Sorghum Silage'!$E$9*$A84 -> 8.66 | E84: =('Irr Sorghum Silage'!F$46+(B84-B$82)*('Irr Sorghum Silage'!$D$24))/B84 -> $21.13 | F84: =('Irr Sorghum Silage'!G$46+(C84-C$82)*('Irr Sorghum Silage'!$D$24))/C84 -> $26.89 | G84: =('Irr Sorghum Silage'!F$60+(B84-B$82)*('Irr Sorghum Silage'!$D$24))/B84 -> $27.48 | H84: =('Irr Sorghum Silage'!G$60+(C84-C$82)*('Irr Sorghum Silage'!$D$24))/C84 -> $32.27 | I84: =IF($D84=0,"N/A",('Irr Sorghum Silage'!H$60+(D84-D$82)*('Irr Sorghum Silage'!$D$24))/D84) -> $17.91
A86: ='Irr Sorghum Sudangrass'!A3:H3 -> Irrigated Sorghum Sudangrass
E87: BE Price to Cover Variable Costs | G87: BE Price to Cover Total Costs
A88: Yield | B88: LB | E88: Total | F88: Tenant | G88: Total | H88: Tenant | I88: Landlord
A89: 75% | B89: ='Irr Sorghum Sudangrass'!$B$9*$A89 -> 600.00 | C89: ='Irr Sorghum Sudangrass'!$B$9*(1-'Irr Sorghum Sudangrass'!$E$9)*$A89 -> 402.00 | D89: ='Irr Sorghum Sudangrass'!$B$9*'Irr Sorghum Sudangrass'!$E$9*$A89 -> 198.00 | E89: =('Irr Sorghum Sudangrass'!F$46+(B89-B$91)*('Irr Sorghum Sudangrass'!$D$24))/B89 -> $0.42 | F89: =('Irr Sorghum Sudangrass'!G$46+(C89-C$91)*('Irr Sorghum Sudangrass'!$D$24))/C89 -> $0.51 | G89: =('Irr Sorghum Sudangrass'!F$60+(B89-B$91)*('Irr Sorghum Sudangrass'!$D$24))/B89 -> $0.68 | H89: =('Irr Sorghum Sudangrass'!G$60+(C89-C$91)*('Irr Sorghum Sudangrass'!$D$24))/C89 -> $0.72 | I89: =IF($D89=0,"N/A",('Irr Sorghum Sudangrass'!H$60+(D89-D$91)*('Irr Sorghum Sudangrass'!$D$24))/D89) -> $0.62
A90: 90% | B90: ='Irr Sorghum Sudangrass'!$B$9*$A90 -> 720.00 | C90: ='Irr Sorghum Sudangrass'!$B$9*(1-'Irr Sorghum Sudangrass'!$E$9)*$A90 -> 482.40 | D90: ='Irr Sorghum Sudangrass'!$B$9*'Irr Sorghum Sudangrass'!$E$9*$A90 -> 237.60 | E90: =('Irr Sorghum Sudangrass'!F$46+(B90-B$91)*('Irr Sorghum Sudangrass'!$D$24))/B90 -> $0.35 | F90: =('Irr Sorghum Sudangrass'!G$46+(C90-C$91)*('Irr Sorghum Sudangrass'!$D$24))/C90 -> $0.43 | G90: =('Irr Sorghum Sudangrass'!F$60+(B90-B$91)*('Irr Sorghum Sudangrass'!$D$24))/B90 -> $0.57 | H90: =('Irr Sorghum Sudangrass'!G$60+(C90-C$91)*('Irr Sorghum Sudangrass'!$D$24))/C90 -> $0.60 | I90: =IF($D90=0,"N/A",('Irr Sorghum Sudangrass'!H$60+(D90-D$91)*('Irr Sorghum Sudangrass'!$D$24))/D90) -> $0.51
A91: 100% | B91: ='Irr Sorghum Sudangrass'!$B$9*$A91 -> 800.00 | C91: ='Irr Sorghum Sudangrass'!$B$9*(1-'Irr Sorghum Sudangrass'!$E$9)*$A91 -> 536.00 | D91: ='Irr Sorghum Sudangrass'!$B$9*'Irr Sorghum Sudangrass'!$E$9*$A91 -> 264.00 | E91: =('Irr Sorghum Sudangrass'!F$46+(B91-B$91)*('Irr Sorghum Sudangrass'!$D$24))/B91 -> $0.32 | F91: =('Irr Sorghum Sudangrass'!G$46+(C91-C$91)*('Irr Sorghum Sudangrass'!$D$24))/C91 -> $0.38 | G91: =('Irr Sorghum Sudangrass'!F$60+(B91-B$91)*('Irr Sorghum Sudangrass'!$D$24))/B91 -> $0.51 | H91: =('Irr Sorghum Sudangrass'!G$60+(C91-C$91)*('Irr Sorghum Sudangrass'!$D$24))/C91 -> $0.54 | I91: =IF($D91=0,"N/A",('Irr Sorghum Sudangrass'!H$60+(D91-D$91)*('Irr Sorghum Sudangrass'!$D$24))/D91) -> $0.46
A92: 110% | B92: ='Irr Sorghum Sudangrass'!$B$9*$A92 -> 880.00 | C92: ='Irr Sorghum Sudangrass'!$B$9*(1-'Irr Sorghum Sudangrass'!$E$9)*$A92 -> 589.60 | D92: ='Irr Sorghum Sudangrass'!$B$9*'Irr Sorghum Sudangrass'!$E$9*$A92 -> 290.40 | E92: =('Irr Sorghum Sudangrass'!F$46+(B92-B$91)*('Irr Sorghum Sudangrass'!$D$24))/B92 -> $0.29 | F92: =('Irr Sorghum Sudangrass'!G$46+(C92-C$91)*('Irr Sorghum Sudangrass'!$D$24))/C92 -> $0.35 | G92: =('Irr Sorghum Sudangrass'!F$60+(B92-B$91)*('Irr Sorghum Sudangrass'!$D$24))/B92 -> $0.47 | H92: =('Irr Sorghum Sudangrass'!G$60+(C92-C$91)*('Irr Sorghum Sudangrass'!$D$24))/C92 -> $0.49 | I92: =IF($D92=0,"N/A",('Irr Sorghum Sudangrass'!H$60+(D92-D$91)*('Irr Sorghum Sudangrass'!$D$24))/D92) -> $0.42
A93: 125% | B93: ='Irr Sorghum Sudangrass'!$B$9*$A93 -> 1000.00 | C93: ='Irr Sorghum Sudangrass'!$B$9*(1-'Irr Sorghum Sudangrass'!$E$9)*$A93 -> 670.00 | D93: ='Irr Sorghum Sudangrass'!$B$9*'Irr Sorghum Sudangrass'!$E$9*$A93 -> 330.00 | E93: =('Irr Sorghum Sudangrass'!F$46+(B93-B$91)*('Irr Sorghum Sudangrass'!$D$24))/B93 -> $0.25 | F93: =('Irr Sorghum Sudangrass'!G$46+(C93-C$91)*('Irr Sorghum Sudangrass'!$D$24))/C93 -> $0.31 | G93: =('Irr Sorghum Sudangrass'!F$60+(B93-B$91)*('Irr Sorghum Sudangrass'!$D$24))/B93 -> $0.41 | H93: =('Irr Sorghum Sudangrass'!G$60+(C93-C$91)*('Irr Sorghum Sudangrass'!$D$24))/C93 -> $0.43 | I93: =IF($D93=0,"N/A",('Irr Sorghum Sudangrass'!H$60+(D93-D$91)*('Irr Sorghum Sudangrass'!$D$24))/D93) -> $0.37
A95: ='Irr Soybeans'!A3:H3 -> Irrigated Soybeans
E96: BE Price to Cover Variable Costs | G96: BE Price to Cover Total Costs
A97: Yield | B97: BU | E97: Total | F97: Tenant | G97: Total | H97: Tenant | I97: Landlord
A98: 75% | B98: ='Irr Soybeans'!$B$9*$A98 -> 45.00 | C98: ='Irr Soybeans'!$B$9*(1-'Irr Soybeans'!$E$9)*$A98 -> 30.15 | D98: ='Irr Soybeans'!$B$9*'Irr Soybeans'!$E$9*$A98 -> 14.85 | E98: =('Irr Soybeans'!F$49+(B98-B$100)*('Irr Soybeans'!$D$27))/B98 -> $7.94 | F98: =('Irr Soybeans'!G$49+(C98-C$100)*('Irr Soybeans'!$D$27))/C98 -> $10.49 | G98: =('Irr Soybeans'!F$63+(B98-B$100)*('Irr Soybeans'!$D$27))/B98 -> $11.74 | H98: =('Irr Soybeans'!G$63+(C98-C$100)*('Irr Soybeans'!$D$27))/C98 -> $13.78 | I98: =IF($D98=0,"N/A",('Irr Soybeans'!H$63+(D98-D$100)*('Irr Soybeans'!$D$27))/D98) -> $7.76
A99: 90% | B99: ='Irr Soybeans'!$B$9*$A99 -> 54.00 | C99: ='Irr Soybeans'!$B$9*(1-'Irr Soybeans'!$E$9)*$A99 -> 36.18 | D99: ='Irr Soybeans'!$B$9*'Irr Soybeans'!$E$9*$A99 -> 17.82 | E99: =('Irr Soybeans'!F$49+(B99-B$100)*('Irr Soybeans'!$D$27))/B99 -> $6.73 | F99: =('Irr Soybeans'!G$49+(C99-C$100)*('Irr Soybeans'!$D$27))/C99 -> $8.86 | G99: =('Irr Soybeans'!F$63+(B99-B$100)*('Irr Soybeans'!$D$27))/B99 -> $9.90 | H99: =('Irr Soybeans'!G$63+(C99-C$100)*('Irr Soybeans'!$D$27))/C99 -> $11.59 | I99: =IF($D99=0,"N/A",('Irr Soybeans'!H$63+(D99-D$100)*('Irr Soybeans'!$D$27))/D99) -> $6.58
A100: 100% | B100: ='Irr Soybeans'!$B$9*$A100 -> 60.00 | C100: ='Irr Soybeans'!$B$9*(1-'Irr Soybeans'!$E$9)*$A100 -> 40.20 | D100: ='Irr Soybeans'!$B$9*'Irr Soybeans'!$E$9*$A100 -> 19.80 | E100: =('Irr Soybeans'!F$49+(B100-B$100)*('Irr Soybeans'!$D$27))/B100 -> $6.12 | F100: =('Irr Soybeans'!G$49+(C100-C$100)*('Irr Soybeans'!$D$27))/C100 -> $8.04 | G100: =('Irr Soybeans'!F$63+(B100-B$100)*('Irr Soybeans'!$D$27))/B100 -> $8.97 | H100: =('Irr Soybeans'!G$63+(C100-C$100)*('Irr Soybeans'!$D$27))/C100 -> $10.50 | I100: =IF($D100=0,"N/A",('Irr Soybeans'!H$63+(D100-D$100)*('Irr Soybeans'!$D$27))/D100) -> $5.98
A101: 110% | B101: ='Irr Soybeans'!$B$9*$A101 -> 66.00 | C101: ='Irr Soybeans'!$B$9*(1-'Irr Soybeans'!$E$9)*$A101 -> 44.22 | D101: ='Irr Soybeans'!$B$9*'Irr Soybeans'!$E$9*$A101 -> 21.78 | E101: =('Irr Soybeans'!F$49+(B101-B$100)*('Irr Soybeans'!$D$27))/B101 -> $5.62 | F101: =('Irr Soybeans'!G$49+(C101-C$100)*('Irr Soybeans'!$D$27))/C101 -> $7.37 | G101: =('Irr Soybeans'!F$63+(B101-B$100)*('Irr Soybeans'!$D$27))/B101 -> $8.22 | H101: =('Irr Soybeans'!G$63+(C101-C$100)*('Irr Soybeans'!$D$27))/C101 -> $9.60 | I101: =IF($D101=0,"N/A",('Irr Soybeans'!H$63+(D101-D$100)*('Irr Soybeans'!$D$27))/D101) -> $5.50
A102: 125% | B102: ='Irr Soybeans'!$B$9*$A102 -> 75.00 | C102: ='Irr Soybeans'!$B$9*(1-'Irr Soybeans'!$E$9)*$A102 -> 50.25 | D102: ='Irr Soybeans'!$B$9*'Irr Soybeans'!$E$9*$A102 -> 24.75 | E102: =('Irr Soybeans'!F$49+(B102-B$100)*('Irr Soybeans'!$D$27))/B102 -> $5.03 | F102: =('Irr Soybeans'!G$49+(C102-C$100)*('Irr Soybeans'!$D$27))/C102 -> $6.56 | G102: =('Irr Soybeans'!F$63+(B102-B$100)*('Irr Soybeans'!$D$27))/B102 -> $7.31 | H102: =('Irr Soybeans'!G$63+(C102-C$100)*('Irr Soybeans'!$D$27))/C102 -> $8.53 | I102: =IF($D102=0,"N/A",('Irr Soybeans'!H$63+(D102-D$100)*('Irr Soybeans'!$D$27))/D102) -> $4.92
A104: ='Irr Sunflowers-Confection'!A3:H3 -> Irrigated Sunflowers-Confectionary
E105: BE Price to Cover Variable Costs | G105: BE Price to Cover Total Costs
A106: Yield | B106: CWT | E106: Total | F106: Tenant | G106: Total | H106: Tenant | I106: Landlord
A107: 75% | B107: ='Irr Sunflowers-Confection'!$B$9*$A107 -> 13.50 | C107: ='Irr Sunflowers-Confection'!$B$9*(1-'Irr Sunflowers-Confection'!$E$9)*$A107 -> 9.05 | D107: ='Irr Sunflowers-Confection'!$B$9*'Irr Sunflowers-Confection'!$E$9*$A107 -> 4.46 | E107: =('Irr Sunflowers-Confection'!F$49+(B107-B$109)*('Irr Sunflowers-Confection'!$D$26))/B107 -> $20.95 | F107: =('Irr Sunflowers-Confection'!G$49+(C107-C$109)*('Irr Sunflowers-Confection'!$D$26))/C107 -> $26.03 | G107: =('Irr Sunflowers-Confection'!F$63+(B107-B$109)*('Irr Sunflowers-Confection'!$D$26))/B107 -> $32.24 | H107: =('Irr Sunflowers-Confection'!G$63+(C107-C$109)*('Irr Sunflowers-Confection'!$D$26))/C107 -> $34.92 | I107: =IF($D107=0, "N/A", ('Irr Sunflowers-Confection'!H$63+(D107-D$109)*('Irr Sunflowers-Confection'!$D$26))/D107) -> $26.87
A108: 90% | B108: ='Irr Sunflowers-Confection'!$B$9*$A108 -> 16.20 | C108: ='Irr Sunflowers-Confection'!$B$9*(1-'Irr Sunflowers-Confection'!$E$9)*$A108 -> 10.85 | D108: ='Irr Sunflowers-Confection'!$B$9*'Irr Sunflowers-Confection'!$E$9*$A108 -> 5.35 | E108: =('Irr Sunflowers-Confection'!F$49+(B108-B$109)*('Irr Sunflowers-Confection'!$D$26))/B108 -> $17.53 | F108: =('Irr Sunflowers-Confection'!G$49+(C108-C$109)*('Irr Sunflowers-Confection'!$D$26))/C108 -> $21.77 | G108: =('Irr Sunflowers-Confection'!F$63+(B108-B$109)*('Irr Sunflowers-Confection'!$D$26))/B108 -> $26.94 | H108: =('Irr Sunflowers-Confection'!G$63+(C108-C$109)*('Irr Sunflowers-Confection'!$D$26))/C108 -> $29.18 | I108: =IF($D108=0, "N/A", ('Irr Sunflowers-Confection'!H$63+(D108-D$109)*('Irr Sunflowers-Confection'!$D$26))/D108) -> $22.47
A109: 100% | B109: ='Irr Sunflowers-Confection'!$B$9*$A109 -> 18.00 | C109: ='Irr Sunflowers-Confection'!$B$9*(1-'Irr Sunflowers-Confection'!$E$9)*$A109 -> 12.06 | D109: ='Irr Sunflowers-Confection'!$B$9*'Irr Sunflowers-Confection'!$E$9*$A109 -> 5.94 | E109: =('Irr Sunflowers-Confection'!F$49+(B109-B$109)*('Irr Sunflowers-Confection'!$D$26))/B109 -> $15.83 | F109: =('Irr Sunflowers-Confection'!G$49+(C109-C$109)*('Irr Sunflowers-Confection'!$D$26))/C109 -> $19.63 | G109: =('Irr Sunflowers-Confection'!F$63+(B109-B$109)*('Irr Sunflowers-Confection'!$D$26))/B109 -> $24.29 | H109: =('Irr Sunflowers-Confection'!G$63+(C109-C$109)*('Irr Sunflowers-Confection'!$D$26))/C109 -> $26.30 | I109: =IF($D109=0, "N/A", ('Irr Sunflowers-Confection'!H$63+(D109-D$109)*('Irr Sunflowers-Confection'!$D$26))/D109) -> $20.27
A110: 110% | B110: ='Irr Sunflowers-Confection'!$B$9*$A110 -> 19.80 | C110: ='Irr Sunflowers-Confection'!$B$9*(1-'Irr Sunflowers-Confection'!$E$9)*$A110 -> 13.27 | D110: ='Irr Sunflowers-Confection'!$B$9*'Irr Sunflowers-Confection'!$E$9*$A110 -> 6.53 | E110: =('Irr Sunflowers-Confection'!F$49+(B110-B$109)*('Irr Sunflowers-Confection'!$D$26))/B110 -> $14.43 | F110: =('Irr Sunflowers-Confection'!G$49+(C110-C$109)*('Irr Sunflowers-Confection'!$D$26))/C110 -> $17.89 | G110: =('Irr Sunflowers-Confection'!F$63+(B110-B$109)*('Irr Sunflowers-Confection'!$D$26))/B110 -> $22.13 | H110: =('Irr Sunflowers-Confection'!G$63+(C110-C$109)*('Irr Sunflowers-Confection'!$D$26))/C110 -> $23.95 | I110: =IF($D110=0, "N/A", ('Irr Sunflowers-Confection'!H$63+(D110-D$109)*('Irr Sunflowers-Confection'!$D$26))/D110) -> $18.47
A111: 125% | B111: ='Irr Sunflowers-Confection'!$B$9*$A111 -> 22.50 | C111: ='Irr Sunflowers-Confection'!$B$9*(1-'Irr Sunflowers-Confection'!$E$9)*$A111 -> 15.08 | D111: ='Irr Sunflowers-Confection'!$B$9*'Irr Sunflowers-Confection'!$E$9*$A111 -> 7.43 | E111: =('Irr Sunflowers-Confection'!F$49+(B111-B$109)*('Irr Sunflowers-Confection'!$D$26))/B111 -> $12.75 | F111: =('Irr Sunflowers-Confection'!G$49+(C111-C$109)*('Irr Sunflowers-Confection'!$D$26))/C111 -> $15.80 | G111: =('Irr Sunflowers-Confection'!F$63+(B111-B$109)*('Irr Sunflowers-Confection'!$D$26))/B111 -> $19.53 | H111: =('Irr Sunflowers-Confection'!G$63+(C111-C$109)*('Irr Sunflowers-Confection'!$D$26))/C111 -> $21.13 | I111: =IF($D111=0, "N/A", ('Irr Sunflowers-Confection'!H$63+(D111-D$109)*('Irr Sunflowers-Confection'!$D$26))/D111) -> $16.30
A113: ='Irr Sunflowers-Oilseed'!A3:H3 -> Irrigated Sunflowers-Oilseed
E114: BE Price to Cover Variable Costs | G114: BE Price to Cover Total Costs
A115: Yield | B115: CWT | E115: Total | F115: Tenant | G115: Total | H115: Tenant | I115: Landlord
A116: 75% | B116: ='Irr Sunflowers-Oilseed'!$B$9*$A116 -> 15.00 | C116: ='Irr Sunflowers-Oilseed'!$B$9*(1-'Irr Sunflowers-Oilseed'!$E$9)*$A116 -> 10.05 | D116: ='Irr Sunflowers-Oilseed'!$B$9*'Irr Sunflowers-Oilseed'!$E$9*$A116 -> 4.95 | E116: =('Irr Sunflowers-Oilseed'!F$48+(B116-B$118)*('Irr Sunflowers-Oilseed'!$D$25))/B116 -> $18.78 | F116: =('Irr Sunflowers-Oilseed'!G$48+(C116-C$118)*('Irr Sunflowers-Oilseed'!$D$25))/C116 -> $22.20 | G116: =('Irr Sunflowers-Oilseed'!F$62+(B116-B$118)*('Irr Sunflowers-Oilseed'!$D$25))/B116 -> $28.94 | H116: =('Irr Sunflowers-Oilseed'!G$62+(C116-C$118)*('Irr Sunflowers-Oilseed'!$D$25))/C116 -> $30.21 | I116: =IF($D116=0, "N/A", ('Irr Sunflowers-Oilseed'!H$62+(D116-D$118)*('Irr Sunflowers-Oilseed'!$D$25))/D116) -> $26.42
A117: 90% | B117: ='Irr Sunflowers-Oilseed'!$B$9*$A117 -> 18.00 | C117: ='Irr Sunflowers-Oilseed'!$B$9*(1-'Irr Sunflowers-Oilseed'!$E$9)*$A117 -> 12.06 | D117: ='Irr Sunflowers-Oilseed'!$B$9*'Irr Sunflowers-Oilseed'!$E$9*$A117 -> 5.94 | E117: =('Irr Sunflowers-Oilseed'!F$48+(B117-B$118)*('Irr Sunflowers-Oilseed'!$D$25))/B117 -> $15.72 | F117: =('Irr Sunflowers-Oilseed'!G$48+(C117-C$118)*('Irr Sunflowers-Oilseed'!$D$25))/C117 -> $18.58 | G117: =('Irr Sunflowers-Oilseed'!F$62+(B117-B$118)*('Irr Sunflowers-Oilseed'!$D$25))/B117 -> $24.19 | H117: =('Irr Sunflowers-Oilseed'!G$62+(C117-C$118)*('Irr Sunflowers-Oilseed'!$D$25))/C117 -> $25.25 | I117: =IF($D117=0, "N/A", ('Irr Sunflowers-Oilseed'!H$62+(D117-D$118)*('Irr Sunflowers-Oilseed'!$D$25))/D117) -> $22.10
A118: 100% | B118: ='Irr Sunflowers-Oilseed'!$B$9*$A118 -> 20.00 | C118: ='Irr Sunflowers-Oilseed'!$B$9*(1-'Irr Sunflowers-Oilseed'!$E$9)*$A118 -> 13.40 | D118: ='Irr Sunflowers-Oilseed'!$B$9*'Irr Sunflowers-Oilseed'!$E$9*$A118 -> 6.60 | E118: =('Irr Sunflowers-Oilseed'!F$48+(B118-B$118)*('Irr Sunflowers-Oilseed'!$D$25))/B118 -> $14.19 | F118: =('Irr Sunflowers-Oilseed'!G$48+(C118-C$118)*('Irr Sunflowers-Oilseed'!$D$25))/C118 -> $16.76 | G118: =('Irr Sunflowers-Oilseed'!F$62+(B118-B$118)*('Irr Sunflowers-Oilseed'!$D$25))/B118 -> $21.82 | H118: =('Irr Sunflowers-Oilseed'!G$62+(C118-C$118)*('Irr Sunflowers-Oilseed'!$D$25))/C118 -> $22.77 | I118: =IF($D118=0, "N/A", ('Irr Sunflowers-Oilseed'!H$62+(D118-D$118)*('Irr Sunflowers-Oilseed'!$D$25))/D118) -> $19.93
A119: 110% | B119: ='Irr Sunflowers-Oilseed'!$B$9*$A119 -> 22.00 | C119: ='Irr Sunflowers-Oilseed'!$B$9*(1-'Irr Sunflowers-Oilseed'!$E$9)*$A119 -> 14.74 | D119: ='Irr Sunflowers-Oilseed'!$B$9*'Irr Sunflowers-Oilseed'!$E$9*$A119 -> 7.26 | E119: =('Irr Sunflowers-Oilseed'!F$48+(B119-B$118)*('Irr Sunflowers-Oilseed'!$D$25))/B119 -> $12.94 | F119: =('Irr Sunflowers-Oilseed'!G$48+(C119-C$118)*('Irr Sunflowers-Oilseed'!$D$25))/C119 -> $15.28 | G119: =('Irr Sunflowers-Oilseed'!F$62+(B119-B$118)*('Irr Sunflowers-Oilseed'!$D$25))/B119 -> $19.87 | H119: =('Irr Sunflowers-Oilseed'!G$62+(C119-C$118)*('Irr Sunflowers-Oilseed'!$D$25))/C119 -> $20.74 | I119: =IF($D119=0, "N/A", ('Irr Sunflowers-Oilseed'!H$62+(D119-D$118)*('Irr Sunflowers-Oilseed'!$D$25))/D119) -> $18.16
A120: 125% | B120: ='Irr Sunflowers-Oilseed'!$B$9*$A120 -> 25.00 | C120: ='Irr Sunflowers-Oilseed'!$B$9*(1-'Irr Sunflowers-Oilseed'!$E$9)*$A120 -> 16.75 | D120: ='Irr Sunflowers-Oilseed'!$B$9*'Irr Sunflowers-Oilseed'!$E$9*$A120 -> 8.25 | E120: =('Irr Sunflowers-Oilseed'!F$48+(B120-B$118)*('Irr Sunflowers-Oilseed'!$D$25))/B120 -> $11.45 | F120: =('Irr Sunflowers-Oilseed'!G$48+(C120-C$118)*('Irr Sunflowers-Oilseed'!$D$25))/C120 -> $13.50 | G120: =('Irr Sunflowers-Oilseed'!F$62+(B120-B$118)*('Irr Sunflowers-Oilseed'!$D$25))/B120 -> $17.54 | H120: =('Irr Sunflowers-Oilseed'!G$62+(C120-C$118)*('Irr Sunflowers-Oilseed'!$D$25))/C120 -> $18.30 | I120: =IF($D120=0, "N/A", ('Irr Sunflowers-Oilseed'!H$62+(D120-D$118)*('Irr Sunflowers-Oilseed'!$D$25))/D120) -> $16.03
A122: ='Irr Triticale Silage'!A3:H3 -> Irrigated Triticale Silage
E123: BE Price to Cover Variable Costs | G123: BE Price to Cover Total Costs
A124: Yield | B124: LB | E124: Total | F124: Tenant | G124: Total | H124: Tenant | I124: Landlord
A125: 75% | B125: ='Irr Triticale Silage'!$B$9*$A125 -> 7.50 | C125: ='Irr Triticale Silage'!$B$9*(1-'Irr Triticale Silage'!$E$9)*$A125 -> 5.03 | D125: ='Irr Triticale Silage'!$B$9*'Irr Triticale Silage'!$E$9*$A125 -> 2.48 | E125: =('Irr Triticale Silage'!F$46+(B125-B$127)*('Irr Triticale Silage'!$D$24))/B125 -> $38.85 | F125: =('Irr Triticale Silage'!G$46+(C125-C$127)*('Irr Triticale Silage'!$D$24))/C125 -> $52.94 | G125: =('Irr Triticale Silage'!F$60+(B125-B$127)*('Irr Triticale Silage'!$D$24))/B125 -> $60.18 | H125: =('Irr Triticale Silage'!G$60+(C125-C$127)*('Irr Triticale Silage'!$D$24))/C125 -> $70.44 | I125: =IF($D125=0,"N/A",('Irr Triticale Silage'!H$60+(D125-D$127)*('Irr Triticale Silage'!$D$24))/D125) -> $38.92
A126: 90% | B126: ='Irr Triticale Silage'!$B$9*$A126 -> 9.00 | C126: ='Irr Triticale Silage'!$B$9*(1-'Irr Triticale Silage'!$E$9)*$A126 -> 6.03 | D126: ='Irr Triticale Silage'!$B$9*'Irr Triticale Silage'!$E$9*$A126 -> 2.97 | E126: =('Irr Triticale Silage'!F$46+(B126-B$127)*('Irr Triticale Silage'!$D$24))/B126 -> $33.88 | F126: =('Irr Triticale Silage'!G$46+(C126-C$127)*('Irr Triticale Silage'!$D$24))/C126 -> $45.62 | G126: =('Irr Triticale Silage'!F$60+(B126-B$127)*('Irr Triticale Silage'!$D$24))/B126 -> $51.65 | H126: =('Irr Triticale Silage'!G$60+(C126-C$127)*('Irr Triticale Silage'!$D$24))/C126 -> $60.20 | I126: =IF($D126=0,"N/A",('Irr Triticale Silage'!H$60+(D126-D$127)*('Irr Triticale Silage'!$D$24))/D126) -> $33.93
A127: 100% | B127: ='Irr Triticale Silage'!$B$9*$A127 -> 10.00 | C127: ='Irr Triticale Silage'!$B$9*(1-'Irr Triticale Silage'!$E$9)*$A127 -> 6.70 | D127: ='Irr Triticale Silage'!$B$9*'Irr Triticale Silage'!$E$9*$A127 -> 3.30 | E127: =('Irr Triticale Silage'!F$46+(B127-B$127)*('Irr Triticale Silage'!$D$24))/B127 -> $31.39 | F127: =('Irr Triticale Silage'!G$46+(C127-C$127)*('Irr Triticale Silage'!$D$24))/C127 -> $41.96 | G127: =('Irr Triticale Silage'!F$60+(B127-B$127)*('Irr Triticale Silage'!$D$24))/B127 -> $47.38 | H127: =('Irr Triticale Silage'!G$60+(C127-C$127)*('Irr Triticale Silage'!$D$24))/C127 -> $55.08 | I127: =IF($D127=0,"N/A",('Irr Triticale Silage'!H$60+(D127-D$127)*('Irr Triticale Silage'!$D$24))/D127) -> $31.44
A128: 110% | B128: ='Irr Triticale Silage'!$B$9*$A128 -> 11.00 | C128: ='Irr Triticale Silage'!$B$9*(1-'Irr Triticale Silage'!$E$9)*$A128 -> 7.37 | D128: ='Irr Triticale Silage'!$B$9*'Irr Triticale Silage'!$E$9*$A128 -> 3.63 | E128: =('Irr Triticale Silage'!F$46+(B128-B$127)*('Irr Triticale Silage'!$D$24))/B128 -> $29.36 | F128: =('Irr Triticale Silage'!G$46+(C128-C$127)*('Irr Triticale Silage'!$D$24))/C128 -> $38.96 | G128: =('Irr Triticale Silage'!F$60+(B128-B$127)*('Irr Triticale Silage'!$D$24))/B128 -> $43.89 | H128: =('Irr Triticale Silage'!G$60+(C128-C$127)*('Irr Triticale Silage'!$D$24))/C128 -> $50.89 | I128: =IF($D128=0,"N/A",('Irr Triticale Silage'!H$60+(D128-D$127)*('Irr Triticale Silage'!$D$24))/D128) -> $29.40
A129: 125% | B129: ='Irr Triticale Silage'!$B$9*$A129 -> 12.50 | C129: ='Irr Triticale Silage'!$B$9*(1-'Irr Triticale Silage'!$E$9)*$A129 -> 8.38 | D129: ='Irr Triticale Silage'!$B$9*'Irr Triticale Silage'!$E$9*$A129 -> 4.13 | E129: =('Irr Triticale Silage'!F$46+(B129-B$127)*('Irr Triticale Silage'!$D$24))/B129 -> $26.91 | F129: =('Irr Triticale Silage'!G$46+(C129-C$127)*('Irr Triticale Silage'!$D$24))/C129 -> $35.37 | G129: =('Irr Triticale Silage'!F$60+(B129-B$127)*('Irr Triticale Silage'!$D$24))/B129 -> $39.71 | H129: =('Irr Triticale Silage'!G$60+(C129-C$127)*('Irr Triticale Silage'!$D$24))/C129 -> $45.86 | I129: =IF($D129=0,"N/A",('Irr Triticale Silage'!H$60+(D129-D$127)*('Irr Triticale Silage'!$D$24))/D129) -> $26.95
A131: ='Irr Wheat'!A3:H3 -> Irrigated Wheat
E132: BE Price to Cover Variable Costs | G132: BE Price to Cover Total Costs
A133: Yield | B133: BU | E133: Total | F133: Tenant | G133: Total | H133: Tenant | I133: Landlord
A134: 75% | B134: ='Irr Wheat'!$B$9*$A134 -> 37.50 | C134: ='Irr Wheat'!$B$9*(1-'Irr Wheat'!$E$9)*$A134 -> 25.13 | D134: ='Irr Wheat'!$B$9*'Irr Wheat'!$E$9*$A134 -> 12.38 | E134: =('Irr Wheat'!$F$47-'Irr Wheat'!$F$10+($B134-$B$136)*'Irr Wheat'!$D$25)/$B134 -> $5.83 | F134: =('Irr Wheat'!$G$47-'Irr Wheat'!$G$10+($C134-$C$136)*'Irr Wheat'!$D$25)/$C134 -> $7.71 | G134: =('Irr Wheat'!$F$61-'Irr Wheat'!$F$10+($B134-$B$136)*'Irr Wheat'!$D$25)/$B134 -> $10.10 | H134: =('Irr Wheat'!$G$61-'Irr Wheat'!$G$10+($C134-$C$136)*'Irr Wheat'!$D$25)/$C134 -> $11.20 | I134: =IF($D134=0, "N/A", ('Irr Wheat'!$H$61-'Irr Wheat'!$H$10+($D134-$D$136)*'Irr Wheat'!$D$25)/$D134) -> $7.72
A135: 90% | B135: ='Irr Wheat'!$B$9*$A135 -> 45.00 | C135: ='Irr Wheat'!$B$9*(1-'Irr Wheat'!$E$9)*$A135 -> 30.15 | D135: ='Irr Wheat'!$B$9*'Irr Wheat'!$E$9*$A135 -> 14.85 | E135: =('Irr Wheat'!$F$47-'Irr Wheat'!$F$10+($B135-$B$136)*'Irr Wheat'!$D$25)/$B135 -> $4.96 | F135: =('Irr Wheat'!$G$47-'Irr Wheat'!$G$10+($C135-$C$136)*'Irr Wheat'!$D$25)/$C135 -> $6.52 | G135: =('Irr Wheat'!$F$61-'Irr Wheat'!$F$10+($B135-$B$136)*'Irr Wheat'!$D$25)/$B135 -> $8.51 | H135: =('Irr Wheat'!$G$61-'Irr Wheat'!$G$10+($C135-$C$136)*'Irr Wheat'!$D$25)/$C135 -> $9.44 | I135: =IF($D135=0, "N/A", ('Irr Wheat'!$H$61-'Irr Wheat'!$H$10+($D135-$D$136)*'Irr Wheat'!$D$25)/$D135) -> $6.53
A136: 100% | B136: ='Irr Wheat'!$B$9*$A136 -> 50.00 | C136: ='Irr Wheat'!$B$9*(1-'Irr Wheat'!$E$9)*$A136 -> 33.50 | D136: ='Irr Wheat'!$B$9*'Irr Wheat'!$E$9*$A136 -> 16.50 | E136: =('Irr Wheat'!$F$47-'Irr Wheat'!$F$10+($B136-$B$136)*'Irr Wheat'!$D$25)/$B136 -> $4.52 | F136: =('Irr Wheat'!$G$47-'Irr Wheat'!$G$10+($C136-$C$136)*'Irr Wheat'!$D$25)/$C136 -> $5.93 | G136: =('Irr Wheat'!$F$61-'Irr Wheat'!$F$10+($B136-$B$136)*'Irr Wheat'!$D$25)/$B136 -> $7.72 | H136: =('Irr Wheat'!$G$61-'Irr Wheat'!$G$10+($C136-$C$136)*'Irr Wheat'!$D$25)/$C136 -> $8.55 | I136: =IF($D136=0, "N/A", ('Irr Wheat'!$H$61-'Irr Wheat'!$H$10+($D136-$D$136)*'Irr Wheat'!$D$25)/$D136) -> $5.94
A137: 110% | B137: ='Irr Wheat'!$B$9*$A137 -> 55.00 | C137: ='Irr Wheat'!$B$9*(1-'Irr Wheat'!$E$9)*$A137 -> 36.85 | D137: ='Irr Wheat'!$B$9*'Irr Wheat'!$E$9*$A137 -> 18.15 | E137: =('Irr Wheat'!$F$47-'Irr Wheat'!$F$10+($B137-$B$136)*'Irr Wheat'!$D$25)/$B137 -> $4.17 | F137: =('Irr Wheat'!$G$47-'Irr Wheat'!$G$10+($C137-$C$136)*'Irr Wheat'!$D$25)/$C137 -> $5.44 | G137: =('Irr Wheat'!$F$61-'Irr Wheat'!$F$10+($B137-$B$136)*'Irr Wheat'!$D$25)/$B137 -> $7.07 | H137: =('Irr Wheat'!$G$61-'Irr Wheat'!$G$10+($C137-$C$136)*'Irr Wheat'!$D$25)/$C137 -> $7.83 | I137: =IF($D137=0, "N/A", ('Irr Wheat'!$H$61-'Irr Wheat'!$H$10+($D137-$D$136)*'Irr Wheat'!$D$25)/$D137) -> $5.46
A138: 125% | B138: ='Irr Wheat'!$B$9*$A138 -> 62.50 | C138: ='Irr Wheat'!$B$9*(1-'Irr Wheat'!$E$9)*$A138 -> 41.88 | D138: ='Irr Wheat'!$B$9*'Irr Wheat'!$E$9*$A138 -> 20.63 | E138: =('Irr Wheat'!$F$47-'Irr Wheat'!$F$10+($B138-$B$136)*'Irr Wheat'!$D$25)/$B138 -> $3.74 | F138: =('Irr Wheat'!$G$47-'Irr Wheat'!$G$10+($C138-$C$136)*'Irr Wheat'!$D$25)/$C138 -> $4.86 | G138: =('Irr Wheat'!$F$61-'Irr Wheat'!$F$10+($B138-$B$136)*'Irr Wheat'!$D$25)/$B138 -> $6.30 | H138: =('Irr Wheat'!$G$61-'Irr Wheat'!$G$10+($C138-$C$136)*'Irr Wheat'!$D$25)/$C138 -> $6.96 | I138: =IF($D138=0, "N/A", ('Irr Wheat'!$H$61-'Irr Wheat'!$H$10+($D138-$D$136)*'Irr Wheat'!$D$25)/$D138) -> $4.87
A140: ='Irr Other Crop'!A3:H3 -> Irrigated Other Crop
E141: BE Price to Cover Variable Costs | G141: BE Price to Cover Total Costs
A142: Yield | B142: LB | E142: Total | F142: Tenant | G142: Total | H142: Tenant | I142: Landlord
A143: 75% | B143: ='Irr Other Crop'!$B$9*$A143 -> 0.00 | C143: ='Irr Other Crop'!$B$9*(1-'Irr Other Crop'!$E$9)*$A143 -> 0.00 | D143: ='Irr Other Crop'!$B$9*'Irr Other Crop'!$E$9*$A143 -> 0.00 | E143: =IF($B143=0, "N/A", ('Irr Other Crop'!$F$48-'Irr Other Crop'!$F$10+($B143-$B$145)*'Irr Other Crop'!$D$26)/$B143) -> N/A | F143: =IF($B143=0, "N/A",('Irr Other Crop'!$G$48-'Irr Other Crop'!$G$10+($C143-$C$145)*'Irr Other Crop'!$D$26)/$C143) -> N/A | G143: =IF($B143=0, "N/A",('Irr Other Crop'!$F$62-'Irr Other Crop'!$F$10+($B143-$B$145)*'Irr Other Crop'!$D$26)/$B143) -> N/A | H143: =IF($B143=0, "N/A",('Irr Other Crop'!$G$62-'Irr Other Crop'!$G$10+($C143-$C$145)*'Irr Other Crop'!$D$26)/$C143) -> N/A | I143: =IF($D143=0, "N/A", ('Irr Other Crop'!$H$62-'Irr Other Crop'!$H$10+($D143-$D$145)*'Irr Other Crop'!$D$26)/$D143) -> N/A
A144: 90% | B144: ='Irr Other Crop'!$B$9*$A144 -> 0.00 | C144: ='Irr Other Crop'!$B$9*(1-'Irr Other Crop'!$E$9)*$A144 -> 0.00 | D144: ='Irr Other Crop'!$B$9*'Irr Other Crop'!$E$9*$A144 -> 0.00 | E144: =IF($B144=0, "N/A", ('Irr Other Crop'!$F$48-'Irr Other Crop'!$F$10+($B144-$B$145)*'Irr Other Crop'!$D$26)/$B144) -> N/A | F144: =IF($B144=0, "N/A",('Irr Other Crop'!$G$48-'Irr Other Crop'!$G$10+($C144-$C$145)*'Irr Other Crop'!$D$26)/$C144) -> N/A | G144: =IF($B144=0, "N/A",('Irr Other Crop'!$F$62-'Irr Other Crop'!$F$10+($B144-$B$145)*'Irr Other Crop'!$D$26)/$B144) -> N/A | H144: =IF($B144=0, "N/A",('Irr Other Crop'!$G$62-'Irr Other Crop'!$G$10+($C144-$C$145)*'Irr Other Crop'!$D$26)/$C144) -> N/A | I144: =IF($D144=0, "N/A", ('Irr Other Crop'!$H$62-'Irr Other Crop'!$H$10+($D144-$D$145)*'Irr Other Crop'!$D$26)/$D144) -> N/A
A145: 100% | B145: ='Irr Other Crop'!$B$9*$A145 -> 0.00 | C145: ='Irr Other Crop'!$B$9*(1-'Irr Other Crop'!$E$9)*$A145 -> 0.00 | D145: ='Irr Other Crop'!$B$9*'Irr Other Crop'!$E$9*$A145 -> 0.00 | E145: =IF($B145=0, "N/A", ('Irr Other Crop'!$F$48-'Irr Other Crop'!$F$10+($B145-$B$145)*'Irr Other Crop'!$D$26)/$B145) -> N/A | F145: =IF($B145=0, "N/A",('Irr Other Crop'!$G$48-'Irr Other Crop'!$G$10+($C145-$C$145)*'Irr Other Crop'!$D$26)/$C145) -> N/A | G145: =IF($B145=0, "N/A",('Irr Other Crop'!$F$62-'Irr Other Crop'!$F$10+($B145-$B$145)*'Irr Other Crop'!$D$26)/$B145) -> N/A | H145: =IF($B145=0, "N/A",('Irr Other Crop'!$G$62-'Irr Other Crop'!$G$10+($C145-$C$145)*'Irr Other Crop'!$D$26)/$C145) -> N/A | I145: =IF($D145=0, "N/A", ('Irr Other Crop'!$H$62-'Irr Other Crop'!$H$10+($D145-$D$145)*'Irr Other Crop'!$D$26)/$D145) -> N/A
A146: 110% | B146: ='Irr Other Crop'!$B$9*$A146 -> 0.00 | C146: ='Irr Other Crop'!$B$9*(1-'Irr Other Crop'!$E$9)*$A146 -> 0.00 | D146: ='Irr Other Crop'!$B$9*'Irr Other Crop'!$E$9*$A146 -> 0.00 | E146: =IF($B146=0, "N/A", ('Irr Other Crop'!$F$48-'Irr Other Crop'!$F$10+($B146-$B$145)*'Irr Other Crop'!$D$26)/$B146) -> N/A | F146: =IF($B146=0, "N/A",('Irr Other Crop'!$G$48-'Irr Other Crop'!$G$10+($C146-$C$145)*'Irr Other Crop'!$D$26)/$C146) -> N/A | G146: =IF($B146=0, "N/A",('Irr Other Crop'!$F$62-'Irr Other Crop'!$F$10+($B146-$B$145)*'Irr Other Crop'!$D$26)/$B146) -> N/A | H146: =IF($B146=0, "N/A",('Irr Other Crop'!$G$62-'Irr Other Crop'!$G$10+($C146-$C$145)*'Irr Other Crop'!$D$26)/$C146) -> N/A | I146: =IF($D146=0, "N/A", ('Irr Other Crop'!$H$62-'Irr Other Crop'!$H$10+($D146-$D$145)*'Irr Other Crop'!$D$26)/$D146) -> N/A
A147: 125% | B147: ='Irr Other Crop'!$B$9*$A147 -> 0.00 | C147: ='Irr Other Crop'!$B$9*(1-'Irr Other Crop'!$E$9)*$A147 -> 0.00 | D147: ='Irr Other Crop'!$B$9*'Irr Other Crop'!$E$9*$A147 -> 0.00 | E147: =IF($B147=0, "N/A", ('Irr Other Crop'!$F$48-'Irr Other Crop'!$F$10+($B147-$B$145)*'Irr Other Crop'!$D$26)/$B147) -> N/A | F147: =IF($B147=0, "N/A",('Irr Other Crop'!$G$48-'Irr Other Crop'!$G$10+($C147-$C$145)*'Irr Other Crop'!$D$26)/$C147) -> N/A | G147: =IF($B147=0, "N/A",('Irr Other Crop'!$F$62-'Irr Other Crop'!$F$10+($B147-$B$145)*'Irr Other Crop'!$D$26)/$B147) -> N/A | H147: =IF($B147=0, "N/A",('Irr Other Crop'!$G$62-'Irr Other Crop'!$G$10+($C147-$C$145)*'Irr Other Crop'!$D$26)/$C147) -> N/A | I147: =IF($D147=0, "N/A", ('Irr Other Crop'!$H$62-'Irr Other Crop'!$H$10+($D147-$D$145)*'Irr Other Crop'!$D$26)/$D147) -> N/A
A149: ='Dry Canola'!$A$3:$H$3 -> Dryland Canola
E150: BE Price to Cover Variable Costs | G150: BE Price to Cover Total Costs
A151: Yield | B151: CWT | E151: Total | F151: Tenant | G151: Total | H151: Tenant | I151: Landlord
A152: 75% | B152: ='Dry Canola'!$B$9*$A152 -> 8.25 | C152: ='Dry Canola'!$B$9*(1-'Dry Canola'!$E$9)*$A152 -> 5.53 | D152: ='Dry Canola'!$B$9*'Dry Canola'!$E$9*$A152 -> 2.72 | E152: =('Dry Canola'!$F$45+($B152-B$154)*'Dry Canola'!$D$27)/$B152 -> $17.96 | F152: =('Dry Canola'!$G$45+($C152-C$154)*'Dry Canola'!$D$27)/$C152 -> $24.33 | G152: =('Dry Canola'!$F$59+($B152-B$154)*'Dry Canola'!$D$27)/$B152 -> $24.40 | H152: =('Dry Canola'!$G$59+($C152-C$154)*'Dry Canola'!$D$27)/$C152 -> $29.16 | I152: =IF($D152=0, "N/A", ('Dry Canola'!$H$59+($D152-D$154)*'Dry Canola'!$D$27)/$D152) -> $14.61
A153: 90% | B153: ='Dry Canola'!$B$9*$A153 -> 9.90 | C153: ='Dry Canola'!$B$9*(1-'Dry Canola'!$E$9)*$A153 -> 6.63 | D153: ='Dry Canola'!$B$9*'Dry Canola'!$E$9*$A153 -> 3.27 | E153: =('Dry Canola'!$F$45+($B153-B$154)*'Dry Canola'!$D$27)/$B153 -> $15.04 | F153: =('Dry Canola'!$G$45+($C153-C$154)*'Dry Canola'!$D$27)/$C153 -> $20.35 | G153: =('Dry Canola'!$F$59+($B153-B$154)*'Dry Canola'!$D$27)/$B153 -> $20.41 | H153: =('Dry Canola'!$G$59+($C153-C$154)*'Dry Canola'!$D$27)/$C153 -> $24.38 | I153: =IF($D153=0, "N/A", ('Dry Canola'!$H$59+($D153-D$154)*'Dry Canola'!$D$27)/$D153) -> $12.25
A154: 100% | B154: ='Dry Canola'!$B$9*$A154 -> 11.00 | C154: ='Dry Canola'!$B$9*(1-'Dry Canola'!$E$9)*$A154 -> 7.37 | D154: ='Dry Canola'!$B$9*'Dry Canola'!$E$9*$A154 -> 3.63 | E154: =('Dry Canola'!$F$45+($B154-B$154)*'Dry Canola'!$D$27)/$B154 -> $13.58 | F154: =('Dry Canola'!$G$45+($C154-C$154)*'Dry Canola'!$D$27)/$C154 -> $18.36 | G154: =('Dry Canola'!$F$59+($B154-B$154)*'Dry Canola'!$D$27)/$B154 -> $18.42 | H154: =('Dry Canola'!$G$59+($C154-C$154)*'Dry Canola'!$D$27)/$C154 -> $21.98 | I154: =IF($D154=0, "N/A", ('Dry Canola'!$H$59+($D154-D$154)*'Dry Canola'!$D$27)/$D154) -> $11.07
A155: 110% | B155: ='Dry Canola'!$B$9*$A155 -> 12.10 | C155: ='Dry Canola'!$B$9*(1-'Dry Canola'!$E$9)*$A155 -> 8.11 | D155: ='Dry Canola'!$B$9*'Dry Canola'!$E$9*$A155 -> 3.99 | E155: =('Dry Canola'!$F$45+($B155-B$154)*'Dry Canola'!$D$27)/$B155 -> $12.39 | F155: =('Dry Canola'!$G$45+($C155-C$154)*'Dry Canola'!$D$27)/$C155 -> $16.73 | G155: =('Dry Canola'!$F$59+($B155-B$154)*'Dry Canola'!$D$27)/$B155 -> $16.78 | H155: =('Dry Canola'!$G$59+($C155-C$154)*'Dry Canola'!$D$27)/$C155 -> $20.03 | I155: =IF($D155=0, "N/A", ('Dry Canola'!$H$59+($D155-D$154)*'Dry Canola'!$D$27)/$D155) -> $10.11
A156: 125% | B156: ='Dry Canola'!$B$9*$A156 -> 13.75 | C156: ='Dry Canola'!$B$9*(1-'Dry Canola'!$E$9)*$A156 -> 9.21 | D156: ='Dry Canola'!$B$9*'Dry Canola'!$E$9*$A156 -> 4.54 | E156: =('Dry Canola'!$F$45+($B156-B$154)*'Dry Canola'!$D$27)/$B156 -> $10.95 | F156: =('Dry Canola'!$G$45+($C156-C$154)*'Dry Canola'!$D$27)/$C156 -> $14.78 | G156: =('Dry Canola'!$F$59+($B156-B$154)*'Dry Canola'!$D$27)/$B156 -> $14.82 | H156: =('Dry Canola'!$G$59+($C156-C$154)*'Dry Canola'!$D$27)/$C156 -> $17.68 | I156: =IF($D156=0, "N/A", ('Dry Canola'!$H$59+($D156-D$154)*'Dry Canola'!$D$27)/$D156) -> $8.95
A158: ='Dry Cotton'!$A$3:$H$3 -> Dryland Cotton
E159: BE Price to Cover Variable Costs | G159: BE Price to Cover Total Costs
A160: Yield | B160: LB | E160: Total | F160: Tenant | G160: Total | H160: Tenant | I160: Landlord
A161: 75% | B161: ='Dry Cotton'!$B$9*$A161 -> 300.00 | C161: ='Dry Cotton'!$B$9*(1-'Dry Cotton'!$E$9)*$A161 -> 300.00 | D161: ='Dry Cotton'!$B$9*'Dry Cotton'!$E$9*$A161 -> 0.00 | E161: =('Dry Cotton'!F$49-B161/500*'Universal Input Prices'!$B$39/2000*Cottonseed_Price+(B161-B$163)/100*'Dry Cotton'!$D$30+(B161-B$163)/'Dry Cotton'!$B$11/100*'Dry Cotton'!$D$31)/B161 -> $0.75 | F161: =('Dry Cotton'!G$49-C161/500*'Universal Input Prices'!$B$39/2000*Cottonseed_Price+(C161-C$163)/100*'Dry Cotton'!$D$30+(C161-C$163)/'Dry Cotton'!$B$11/100*'Dry Cotton'!$D$31)/C161 -> $0.75 | G161: =('Dry Cotton'!F$63-B161/500*'Universal Input Prices'!$B$39/2000*Cottonseed_Price+(B161-B$163)/100*'Dry Cotton'!$D$30+(B161-B$163)/'Dry Cotton'!$B$11/100*'Dry Cotton'!$D$31)/B161 -> $0.94 | H161: =('Dry Cotton'!G$63-C161/500*'Universal Input Prices'!$B$39/2000*Cottonseed_Price+(C161-C$163)/100*'Dry Cotton'!$D$30+(C161-C$163)/'Dry Cotton'!$B$11/100*'Dry Cotton'!$D$31)/C161 -> $0.94 | I161: =IF($D161=0,"N/A",('Dry Cotton'!H$63-D161/500*'Universal Input Prices'!$B$39/2000*Cottonseed_Price+(D161-D$163)/100*'Dry Cotton'!$D$30+(D161-D$163)/'Dry Cotton'!$B$11/100*'Dry Cotton'!$D$31)/D161) -> N/A
A162: 90% | B162: ='Dry Cotton'!$B$9*$A162 -> 360.00 | C162: ='Dry Cotton'!$B$9*(1-'Dry Cotton'!$E$9)*$A162 -> 360.00 | D162: ='Dry Cotton'!$B$9*'Dry Cotton'!$E$9*$A162 -> 0.00 | E162: =('Dry Cotton'!F$49-B162/500*'Universal Input Prices'!$B$39/2000*Cottonseed_Price+(B162-B$163)/100*'Dry Cotton'!$D$30+(B162-B$163)/'Dry Cotton'!$B$11/100*'Dry Cotton'!$D$31)/B162 -> $0.63 | F162: =('Dry Cotton'!G$49-C162/500*'Universal Input Prices'!$B$39/2000*Cottonseed_Price+(C162-C$163)/100*'Dry Cotton'!$D$30+(C162-C$163)/'Dry Cotton'!$B$11/100*'Dry Cotton'!$D$31)/C162 -> $0.63 | G162: =('Dry Cotton'!F$63-B162/500*'Universal Input Prices'!$B$39/2000*Cottonseed_Price+(B162-B$163)/100*'Dry Cotton'!$D$30+(B162-B$163)/'Dry Cotton'!$B$11/100*'Dry Cotton'!$D$31)/B162 -> $0.79 | H162: =('Dry Cotton'!G$63-C162/500*'Universal Input Prices'!$B$39/2000*Cottonseed_Price+(C162-C$163)/100*'Dry Cotton'!$D$30+(C162-C$163)/'Dry Cotton'!$B$11/100*'Dry Cotton'!$D$31)/C162 -> $0.79 | I162: =IF($D162=0,"N/A",('Dry Cotton'!H$63-D162/500*'Universal Input Prices'!$B$39/2000*Cottonseed_Price+(D162-D$163)/100*'Dry Cotton'!$D$30+(D162-D$163)/'Dry Cotton'!$B$11/100*'Dry Cotton'!$D$31)/D162) -> N/A
A163: 100% | B163: ='Dry Cotton'!$B$9*$A163 -> 400.00 | C163: ='Dry Cotton'!$B$9*(1-'Dry Cotton'!$E$9)*$A163 -> 400.00 | D163: ='Dry Cotton'!$B$9*'Dry Cotton'!$E$9*$A163 -> 0.00 | E163: =('Dry Cotton'!F$49-B163/500*'Universal Input Prices'!$B$39/2000*Cottonseed_Price+(B163-B$163)/100*'Dry Cotton'!$D$30+(B163-B$163)/'Dry Cotton'!$B$11/100*'Dry Cotton'!$D$31)/B163 -> $0.58 | F163: =('Dry Cotton'!G$49-C163/500*'Universal Input Prices'!$B$39/2000*Cottonseed_Price+(C163-C$163)/100*'Dry Cotton'!$D$30+(C163-C$163)/'Dry Cotton'!$B$11/100*'Dry Cotton'!$D$31)/C163 -> $0.57 | G163: =('Dry Cotton'!F$63-B163/500*'Universal Input Prices'!$B$39/2000*Cottonseed_Price+(B163-B$163)/100*'Dry Cotton'!$D$30+(B163-B$163)/'Dry Cotton'!$B$11/100*'Dry Cotton'!$D$31)/B163 -> $0.72 | H163: =('Dry Cotton'!G$63-C163/500*'Universal Input Prices'!$B$39/2000*Cottonseed_Price+(C163-C$163)/100*'Dry Cotton'!$D$30+(C163-C$163)/'Dry Cotton'!$B$11/100*'Dry Cotton'!$D$31)/C163 -> $0.72 | I163: =IF($D163=0,"N/A",('Dry Cotton'!H$63-D163/500*'Universal Input Prices'!$B$39/2000*Cottonseed_Price+(D163-D$163)/100*'Dry Cotton'!$D$30+(D163-D$163)/'Dry Cotton'!$B$11/100*'Dry Cotton'!$D$31)/D163) -> N/A
A164: 110% | B164: ='Dry Cotton'!$B$9*$A164 -> 440.00 | C164: ='Dry Cotton'!$B$9*(1-'Dry Cotton'!$E$9)*$A164 -> 440.00 | D164: ='Dry Cotton'!$B$9*'Dry Cotton'!$E$9*$A164 -> 0.00 | E164: =('Dry Cotton'!F$49-B164/500*'Universal Input Prices'!$B$39/2000*Cottonseed_Price+(B164-B$163)/100*'Dry Cotton'!$D$30+(B164-B$163)/'Dry Cotton'!$B$11/100*'Dry Cotton'!$D$31)/B164 -> $0.53 | F164: =('Dry Cotton'!G$49-C164/500*'Universal Input Prices'!$B$39/2000*Cottonseed_Price+(C164-C$163)/100*'Dry Cotton'!$D$30+(C164-C$163)/'Dry Cotton'!$B$11/100*'Dry Cotton'!$D$31)/C164 -> $0.53 | G164: =('Dry Cotton'!F$63-B164/500*'Universal Input Prices'!$B$39/2000*Cottonseed_Price+(B164-B$163)/100*'Dry Cotton'!$D$30+(B164-B$163)/'Dry Cotton'!$B$11/100*'Dry Cotton'!$D$31)/B164 -> $0.66 | H164: =('Dry Cotton'!G$63-C164/500*'Universal Input Prices'!$B$39/2000*Cottonseed_Price+(C164-C$163)/100*'Dry Cotton'!$D$30+(C164-C$163)/'Dry Cotton'!$B$11/100*'Dry Cotton'!$D$31)/C164 -> $0.66 | I164: =IF($D164=0,"N/A",('Dry Cotton'!H$63-D164/500*'Universal Input Prices'!$B$39/2000*Cottonseed_Price+(D164-D$163)/100*'Dry Cotton'!$D$30+(D164-D$163)/'Dry Cotton'!$B$11/100*'Dry Cotton'!$D$31)/D164) -> N/A
A165: 125% | B165: ='Dry Cotton'!$B$9*$A165 -> 500.00 | C165: ='Dry Cotton'!$B$9*(1-'Dry Cotton'!$E$9)*$A165 -> 500.00 | D165: ='Dry Cotton'!$B$9*'Dry Cotton'!$E$9*$A165 -> 0.00 | E165: =('Dry Cotton'!F$49-B165/500*'Universal Input Prices'!$B$39/2000*Cottonseed_Price+(B165-B$163)/100*'Dry Cotton'!$D$30+(B165-B$163)/'Dry Cotton'!$B$11/100*'Dry Cotton'!$D$31)/B165 -> $0.47 | F165: =('Dry Cotton'!G$49-C165/500*'Universal Input Prices'!$B$39/2000*Cottonseed_Price+(C165-C$163)/100*'Dry Cotton'!$D$30+(C165-C$163)/'Dry Cotton'!$B$11/100*'Dry Cotton'!$D$31)/C165 -> $0.47 | G165: =('Dry Cotton'!F$63-B165/500*'Universal Input Prices'!$B$39/2000*Cottonseed_Price+(B165-B$163)/100*'Dry Cotton'!$D$30+(B165-B$163)/'Dry Cotton'!$B$11/100*'Dry Cotton'!$D$31)/B165 -> $0.58 | H165: =('Dry Cotton'!G$63-C165/500*'Universal Input Prices'!$B$39/2000*Cottonseed_Price+(C165-C$163)/100*'Dry Cotton'!$D$30+(C165-C$163)/'Dry Cotton'!$B$11/100*'Dry Cotton'!$D$31)/C165 -> $0.58 | I165: =IF($D165=0,"N/A",('Dry Cotton'!H$63-D165/500*'Universal Input Prices'!$B$39/2000*Cottonseed_Price+(D165-D$163)/100*'Dry Cotton'!$D$30+(D165-D$163)/'Dry Cotton'!$B$11/100*'Dry Cotton'!$D$31)/D165) -> N/A
A167: ='Dry Sorghum'!$A$3:$H$3 -> Dryland Sorghum
E168: BE Price to Cover Variable Costs | G168: BE Price to Cover Total Costs
A169: Yield | B169: CWT | E169: Total | F169: Tenant | G169: Total | H169: Tenant | I169: Landlord
A170: 75% | B170: ='Dry Sorghum'!$B$9*$A170 -> 18.75 | C170: ='Dry Sorghum'!$B$9*(1-'Dry Sorghum'!$E$9)*$A170 -> 18.75 | D170: ='Dry Sorghum'!$B$9*'Dry Sorghum'!$E$9*$A170 -> 0.00 | E170: =('Dry Sorghum'!$F$43-'Irr Sorghum'!$F$10+($B170-B$172)*'Dry Sorghum'!$D$25)/$B170 -> $8.27 | F170: =('Dry Sorghum'!$G$43-'Irr Sorghum'!$F$10+($C170-C$172)*'Dry Sorghum'!$D$25)/$C170 -> $7.94 | G170: =('Dry Sorghum'!$F$57-'Irr Sorghum'!$F$10+($B170-B$172)*'Dry Sorghum'!$D$25)/$B170 -> $11.02 | H170: =('Dry Sorghum'!$G$57-'Irr Sorghum'!$F$10+($C170-C$172)*'Dry Sorghum'!$D$25)/$C170 -> $10.69 | I170: =IF($D170=0, "N/A", ('Dry Sorghum'!$H$57-'Irr Sorghum'!$F$10+($D170-D$172)*'Dry Sorghum'!$D$25)/$D170) -> N/A
A171: 90% | B171: ='Dry Sorghum'!$B$9*$A171 -> 22.50 | C171: ='Dry Sorghum'!$B$9*(1-'Dry Sorghum'!$E$9)*$A171 -> 22.50 | D171: ='Dry Sorghum'!$B$9*'Dry Sorghum'!$E$9*$A171 -> 0.00 | E171: =('Dry Sorghum'!$F$43-'Irr Sorghum'!$F$10+($B171-B$172)*'Dry Sorghum'!$D$25)/$B171 -> $6.93 | F171: =('Dry Sorghum'!$G$43-'Irr Sorghum'!$F$10+($C171-C$172)*'Dry Sorghum'!$D$25)/$C171 -> $6.66 | G171: =('Dry Sorghum'!$F$57-'Irr Sorghum'!$F$10+($B171-B$172)*'Dry Sorghum'!$D$25)/$B171 -> $9.23 | H171: =('Dry Sorghum'!$G$57-'Irr Sorghum'!$F$10+($C171-C$172)*'Dry Sorghum'!$D$25)/$C171 -> $8.95 | I171: =IF($D171=0, "N/A", ('Dry Sorghum'!$H$57-'Irr Sorghum'!$F$10+($D171-D$172)*'Dry Sorghum'!$D$25)/$D171) -> N/A
A172: 100% | B172: ='Dry Sorghum'!$B$9*$A172 -> 25.00 | C172: ='Dry Sorghum'!$B$9*(1-'Dry Sorghum'!$E$9)*$A172 -> 25.00 | D172: ='Dry Sorghum'!$B$9*'Dry Sorghum'!$E$9*$A172 -> 0.00 | E172: =('Dry Sorghum'!$F$43-'Irr Sorghum'!$F$10+($B172-B$172)*'Dry Sorghum'!$D$25)/$B172 -> $6.26 | F172: =('Dry Sorghum'!$G$43-'Irr Sorghum'!$F$10+($C172-C$172)*'Dry Sorghum'!$D$25)/$C172 -> $6.02 | G172: =('Dry Sorghum'!$F$57-'Irr Sorghum'!$F$10+($B172-B$172)*'Dry Sorghum'!$D$25)/$B172 -> $8.33 | H172: =('Dry Sorghum'!$G$57-'Irr Sorghum'!$F$10+($C172-C$172)*'Dry Sorghum'!$D$25)/$C172 -> $8.08 | I172: =IF($D172=0, "N/A", ('Dry Sorghum'!$H$57-'Irr Sorghum'!$F$10+($D172-D$172)*'Dry Sorghum'!$D$25)/$D172) -> N/A
A173: 110% | B173: ='Dry Sorghum'!$B$9*$A173 -> 27.50 | C173: ='Dry Sorghum'!$B$9*(1-'Dry Sorghum'!$E$9)*$A173 -> 27.50 | D173: ='Dry Sorghum'!$B$9*'Dry Sorghum'!$E$9*$A173 -> 0.00 | E173: =('Dry Sorghum'!$F$43-'Irr Sorghum'!$F$10+($B173-B$172)*'Dry Sorghum'!$D$25)/$B173 -> $5.72 | F173: =('Dry Sorghum'!$G$43-'Irr Sorghum'!$F$10+($C173-C$172)*'Dry Sorghum'!$D$25)/$C173 -> $5.49 | G173: =('Dry Sorghum'!$F$57-'Irr Sorghum'!$F$10+($B173-B$172)*'Dry Sorghum'!$D$25)/$B173 -> $7.59 | H173: =('Dry Sorghum'!$G$57-'Irr Sorghum'!$F$10+($C173-C$172)*'Dry Sorghum'!$D$25)/$C173 -> $7.37 | I173: =IF($D173=0, "N/A", ('Dry Sorghum'!$H$57-'Irr Sorghum'!$F$10+($D173-D$172)*'Dry Sorghum'!$D$25)/$D173) -> N/A
A174: 125% | B174: ='Dry Sorghum'!$B$9*$A174 -> 31.25 | C174: ='Dry Sorghum'!$B$9*(1-'Dry Sorghum'!$E$9)*$A174 -> 31.25 | D174: ='Dry Sorghum'!$B$9*'Dry Sorghum'!$E$9*$A174 -> 0.00 | E174: =('Dry Sorghum'!$F$43-'Irr Sorghum'!$F$10+($B174-B$172)*'Dry Sorghum'!$D$25)/$B174 -> $5.06 | F174: =('Dry Sorghum'!$G$43-'Irr Sorghum'!$F$10+($C174-C$172)*'Dry Sorghum'!$D$25)/$C174 -> $4.86 | G174: =('Dry Sorghum'!$F$57-'Irr Sorghum'!$F$10+($B174-B$172)*'Dry Sorghum'!$D$25)/$B174 -> $6.71 | H174: =('Dry Sorghum'!$G$57-'Irr Sorghum'!$F$10+($C174-C$172)*'Dry Sorghum'!$D$25)/$C174 -> $6.52 | I174: =IF($D174=0, "N/A", ('Dry Sorghum'!$H$57-'Irr Sorghum'!$F$10+($D174-D$172)*'Dry Sorghum'!$D$25)/$D174) -> N/A
A176: ='Dry Sorghum Sudangrass'!$A$3:$H$3 -> Dryland Sorghum Sudangrass
E177: BE Price to Cover Variable Costs | G177: BE Price to Cover Total Costs
A178: Yield | B178: LB | E178: Total | F178: Tenant | G178: Total | H178: Tenant | I178: Landlord
A179: 75% | B179: ='Dry Sorghum Sudangrass'!$B$9*$A179 -> 252.00 | C179: ='Dry Sorghum Sudangrass'!$B$9*(1-'Dry Sorghum Sudangrass'!$E$9)*$A179 -> 168.84 | D179: ='Dry Sorghum Sudangrass'!$B$9*'Dry Sorghum Sudangrass'!$E$9*$A179 -> 83.16 | E179: =('Dry Sorghum Sudangrass'!$F$42+($B179-B$181)*'Dry Sorghum Sudangrass'!$D$24)/$B179 -> $0.44 | F179: =('Dry Sorghum Sudangrass'!$G$42+($C179-C$181)*'Dry Sorghum Sudangrass'!$D$24)/$C179 -> $0.54 | G179: =('Dry Sorghum Sudangrass'!$F$56+($B179-B$181)*'Dry Sorghum Sudangrass'!$D$24)/$B179 -> $0.64 | H179: =('Dry Sorghum Sudangrass'!$G$56+($C179-C$181)*'Dry Sorghum Sudangrass'!$D$24)/$C179 -> $0.68 | I179: =IF($D179=0, "N/A", ('Dry Sorghum Sudangrass'!$H$56+($D179-D$181)*'Dry Sorghum Sudangrass'!$D$24)/$D179) -> $0.56
A180: 90% | B180: ='Dry Sorghum Sudangrass'!$B$9*$A180 -> 302.40 | C180: ='Dry Sorghum Sudangrass'!$B$9*(1-'Dry Sorghum Sudangrass'!$E$9)*$A180 -> 202.61 | D180: ='Dry Sorghum Sudangrass'!$B$9*'Dry Sorghum Sudangrass'!$E$9*$A180 -> 99.79 | E180: =('Dry Sorghum Sudangrass'!$F$42+($B180-B$181)*'Dry Sorghum Sudangrass'!$D$24)/$B180 -> $0.36 | F180: =('Dry Sorghum Sudangrass'!$G$42+($C180-C$181)*'Dry Sorghum Sudangrass'!$D$24)/$C180 -> $0.45 | G180: =('Dry Sorghum Sudangrass'!$F$56+($B180-B$181)*'Dry Sorghum Sudangrass'!$D$24)/$B180 -> $0.53 | H180: =('Dry Sorghum Sudangrass'!$G$56+($C180-C$181)*'Dry Sorghum Sudangrass'!$D$24)/$C180 -> $0.57 | I180: =IF($D180=0, "N/A", ('Dry Sorghum Sudangrass'!$H$56+($D180-D$181)*'Dry Sorghum Sudangrass'!$D$24)/$D180) -> $0.46
A181: 100% | B181: ='Dry Sorghum Sudangrass'!$B$9*$A181 -> 336.00 | C181: ='Dry Sorghum Sudangrass'!$B$9*(1-'Dry Sorghum Sudangrass'!$E$9)*$A181 -> 225.12 | D181: ='Dry Sorghum Sudangrass'!$B$9*'Dry Sorghum Sudangrass'!$E$9*$A181 -> 110.88 | E181: =('Dry Sorghum Sudangrass'!$F$42+($B181-B$181)*'Dry Sorghum Sudangrass'!$D$24)/$B181 -> $0.33 | F181: =('Dry Sorghum Sudangrass'!$G$42+($C181-C$181)*'Dry Sorghum Sudangrass'!$D$24)/$C181 -> $0.40 | G181: =('Dry Sorghum Sudangrass'!$F$56+($B181-B$181)*'Dry Sorghum Sudangrass'!$D$24)/$B181 -> $0.48 | H181: =('Dry Sorghum Sudangrass'!$G$56+($C181-C$181)*'Dry Sorghum Sudangrass'!$D$24)/$C181 -> $0.51 | I181: =IF($D181=0, "N/A", ('Dry Sorghum Sudangrass'!$H$56+($D181-D$181)*'Dry Sorghum Sudangrass'!$D$24)/$D181) -> $0.42
A182: 110% | B182: ='Dry Sorghum Sudangrass'!$B$9*$A182 -> 369.60 | C182: ='Dry Sorghum Sudangrass'!$B$9*(1-'Dry Sorghum Sudangrass'!$E$9)*$A182 -> 247.63 | D182: ='Dry Sorghum Sudangrass'!$B$9*'Dry Sorghum Sudangrass'!$E$9*$A182 -> 121.97 | E182: =('Dry Sorghum Sudangrass'!$F$42+($B182-B$181)*'Dry Sorghum Sudangrass'!$D$24)/$B182 -> $0.30 | F182: =('Dry Sorghum Sudangrass'!$G$42+($C182-C$181)*'Dry Sorghum Sudangrass'!$D$24)/$C182 -> $0.37 | G182: =('Dry Sorghum Sudangrass'!$F$56+($B182-B$181)*'Dry Sorghum Sudangrass'!$D$24)/$B182 -> $0.43 | H182: =('Dry Sorghum Sudangrass'!$G$56+($C182-C$181)*'Dry Sorghum Sudangrass'!$D$24)/$C182 -> $0.46 | I182: =IF($D182=0, "N/A", ('Dry Sorghum Sudangrass'!$H$56+($D182-D$181)*'Dry Sorghum Sudangrass'!$D$24)/$D182) -> $0.38
A183: 125% | B183: ='Dry Sorghum Sudangrass'!$B$9*$A183 -> 420.00 | C183: ='Dry Sorghum Sudangrass'!$B$9*(1-'Dry Sorghum Sudangrass'!$E$9)*$A183 -> 281.40 | D183: ='Dry Sorghum Sudangrass'!$B$9*'Dry Sorghum Sudangrass'!$E$9*$A183 -> 138.60 | E183: =('Dry Sorghum Sudangrass'!$F$42+($B183-B$181)*'Dry Sorghum Sudangrass'!$D$24)/$B183 -> $0.26 | F183: =('Dry Sorghum Sudangrass'!$G$42+($C183-C$181)*'Dry Sorghum Sudangrass'!$D$24)/$C183 -> $0.32 | G183: =('Dry Sorghum Sudangrass'!$F$56+($B183-B$181)*'Dry Sorghum Sudangrass'!$D$24)/$B183 -> $0.38 | H183: =('Dry Sorghum Sudangrass'!$G$56+($C183-C$181)*'Dry Sorghum Sudangrass'!$D$24)/$C183 -> $0.41 | I183: =IF($D183=0, "N/A", ('Dry Sorghum Sudangrass'!$H$56+($D183-D$181)*'Dry Sorghum Sudangrass'!$D$24)/$D183) -> $0.33
A185: ='Dry Sunflowers-Oilseed'!$A$3:$H$3 -> Dryland Sunflowers-Oilseed
E186: BE Price to Cover Variable Costs | G186: BE Price to Cover Total Costs
A187: Yield | B187: CWT | E187: Total | F187: Tenant | G187: Total | H187: Tenant | I187: Landlord
A188: 75% | B188: ='Dry Sunflowers-Oilseed'!$B$9*$A188 -> 7.50 | C188: ='Dry Sunflowers-Oilseed'!$B$9*(1-'Dry Sunflowers-Oilseed'!$E$9)*$A188 -> 5.03 | D188: ='Dry Sunflowers-Oilseed'!$B$9*'Dry Sunflowers-Oilseed'!$E$9*$A188 -> 2.48 | E188: =('Dry Sunflowers-Oilseed'!$F$44+($B188-B$190)*'Dry Sunflowers-Oilseed'!$D$25)/$B188 -> $20.14 | F188: =('Dry Sunflowers-Oilseed'!$G$44+($C188-C$190)*'Dry Sunflowers-Oilseed'!$D$25)/$C188 -> $24.93 | G188: =('Dry Sunflowers-Oilseed'!$F$58+($B188-B$190)*'Dry Sunflowers-Oilseed'!$D$25)/$B188 -> $26.68 | H188: =('Dry Sunflowers-Oilseed'!$G$58+($C188-C$190)*'Dry Sunflowers-Oilseed'!$D$25)/$C188 -> $29.43 | I188: =IF($D188=0, "N/A", ('Dry Sunflowers-Oilseed'!$H$58+($D188-D$190)*'Dry Sunflowers-Oilseed'!$D$25)/$D188) -> $21.33
A189: 90% | B189: ='Dry Sunflowers-Oilseed'!$B$9*$A189 -> 9.00 | C189: ='Dry Sunflowers-Oilseed'!$B$9*(1-'Dry Sunflowers-Oilseed'!$E$9)*$A189 -> 6.03 | D189: ='Dry Sunflowers-Oilseed'!$B$9*'Dry Sunflowers-Oilseed'!$E$9*$A189 -> 2.97 | E189: =('Dry Sunflowers-Oilseed'!$F$44+($B189-B$190)*'Dry Sunflowers-Oilseed'!$D$25)/$B189 -> $16.86 | F189: =('Dry Sunflowers-Oilseed'!$G$44+($C189-C$190)*'Dry Sunflowers-Oilseed'!$D$25)/$C189 -> $20.85 | G189: =('Dry Sunflowers-Oilseed'!$F$58+($B189-B$190)*'Dry Sunflowers-Oilseed'!$D$25)/$B189 -> $22.31 | H189: =('Dry Sunflowers-Oilseed'!$G$58+($C189-C$190)*'Dry Sunflowers-Oilseed'!$D$25)/$C189 -> $24.60 | I189: =IF($D189=0, "N/A", ('Dry Sunflowers-Oilseed'!$H$58+($D189-D$190)*'Dry Sunflowers-Oilseed'!$D$25)/$D189) -> $17.85
A190: 100% | B190: ='Dry Sunflowers-Oilseed'!$B$9*$A190 -> 10.00 | C190: ='Dry Sunflowers-Oilseed'!$B$9*(1-'Dry Sunflowers-Oilseed'!$E$9)*$A190 -> 6.70 | D190: ='Dry Sunflowers-Oilseed'!$B$9*'Dry Sunflowers-Oilseed'!$E$9*$A190 -> 3.30 | E190: =('Dry Sunflowers-Oilseed'!$F$44+($B190-B$190)*'Dry Sunflowers-Oilseed'!$D$25)/$B190 -> $15.22 | F190: =('Dry Sunflowers-Oilseed'!$G$44+($C190-C$190)*'Dry Sunflowers-Oilseed'!$D$25)/$C190 -> $18.81 | G190: =('Dry Sunflowers-Oilseed'!$F$58+($B190-B$190)*'Dry Sunflowers-Oilseed'!$D$25)/$B190 -> $20.13 | H190: =('Dry Sunflowers-Oilseed'!$G$58+($C190-C$190)*'Dry Sunflowers-Oilseed'!$D$25)/$C190 -> $22.18 | I190: =IF($D190=0, "N/A", ('Dry Sunflowers-Oilseed'!$H$58+($D190-D$190)*'Dry Sunflowers-Oilseed'!$D$25)/$D190) -> $16.11
A191: 110% | B191: ='Dry Sunflowers-Oilseed'!$B$9*$A191 -> 11.00 | C191: ='Dry Sunflowers-Oilseed'!$B$9*(1-'Dry Sunflowers-Oilseed'!$E$9)*$A191 -> 7.37 | D191: ='Dry Sunflowers-Oilseed'!$B$9*'Dry Sunflowers-Oilseed'!$E$9*$A191 -> 3.63 | E191: =('Dry Sunflowers-Oilseed'!$F$44+($B191-B$190)*'Dry Sunflowers-Oilseed'!$D$25)/$B191 -> $13.87 | F191: =('Dry Sunflowers-Oilseed'!$G$44+($C191-C$190)*'Dry Sunflowers-Oilseed'!$D$25)/$C191 -> $17.14 | G191: =('Dry Sunflowers-Oilseed'!$F$58+($B191-B$190)*'Dry Sunflowers-Oilseed'!$D$25)/$B191 -> $18.34 | H191: =('Dry Sunflowers-Oilseed'!$G$58+($C191-C$190)*'Dry Sunflowers-Oilseed'!$D$25)/$C191 -> $20.21 | I191: =IF($D191=0, "N/A", ('Dry Sunflowers-Oilseed'!$H$58+($D191-D$190)*'Dry Sunflowers-Oilseed'!$D$25)/$D191) -> $14.69
A192: 125% | B192: ='Dry Sunflowers-Oilseed'!$B$9*$A192 -> 12.50 | C192: ='Dry Sunflowers-Oilseed'!$B$9*(1-'Dry Sunflowers-Oilseed'!$E$9)*$A192 -> 8.38 | D192: ='Dry Sunflowers-Oilseed'!$B$9*'Dry Sunflowers-Oilseed'!$E$9*$A192 -> 4.13 | E192: =('Dry Sunflowers-Oilseed'!$F$44+($B192-B$190)*'Dry Sunflowers-Oilseed'!$D$25)/$B192 -> $12.26 | F192: =('Dry Sunflowers-Oilseed'!$G$44+($C192-C$190)*'Dry Sunflowers-Oilseed'!$D$25)/$C192 -> $15.14 | G192: =('Dry Sunflowers-Oilseed'!$F$58+($B192-B$190)*'Dry Sunflowers-Oilseed'!$D$25)/$B192 -> $16.19 | H192: =('Dry Sunflowers-Oilseed'!$G$58+($C192-C$190)*'Dry Sunflowers-Oilseed'!$D$25)/$C192 -> $17.84 | I192: =IF($D192=0, "N/A", ('Dry Sunflowers-Oilseed'!$H$58+($D192-D$190)*'Dry Sunflowers-Oilseed'!$D$25)/$D192) -> $12.98
A194: ='Dry Wheat'!$A$3:$H$3 -> Dryland Wheat
E195: BE Price to Cover Variable Costs | G195: BE Price to Cover Total Costs
A196: Yield | B196: CWT | E196: Total | F196: Tenant | G196: Total | H196: Tenant | I196: Landlord
A197: 75% | B197: ='Dry Wheat'!$B$9*$A197 -> 15.00 | C197: ='Dry Wheat'!$B$9*(1-'Dry Wheat'!$E$9)*$A197 -> 10.05 | D197: ='Dry Wheat'!$B$9*'Dry Wheat'!$E$9*$A197 -> 4.95 | E197: =('Dry Wheat'!$F$44+($B197-B$199)*'Dry Wheat'!$D$26)/$B197 -> $7.37 | F197: =('Dry Wheat'!$G$44+($C197-C$199)*'Dry Wheat'!$D$26)/$C197 -> $9.74 | G197: =('Dry Wheat'!$F$58+($B197-B$199)*'Dry Wheat'!$D$26)/$B197 -> $10.92 | H197: =('Dry Wheat'!$G$58+($C197-C$199)*'Dry Wheat'!$D$26)/$C197 -> $12.40 | I197: =IF($D197=0, "N/A", ('Dry Wheat'!$H$58+($D197-D$199)*'Dry Wheat'!$D$26)/$D197) -> $7.84
A198: 90% | B198: ='Dry Wheat'!$B$9*$A198 -> 18.00 | C198: ='Dry Wheat'!$B$9*(1-'Dry Wheat'!$E$9)*$A198 -> 12.06 | D198: ='Dry Wheat'!$B$9*'Dry Wheat'!$E$9*$A198 -> 5.94 | E198: =('Dry Wheat'!$F$44+($B198-B$199)*'Dry Wheat'!$D$26)/$B198 -> $6.19 | F198: =('Dry Wheat'!$G$44+($C198-C$199)*'Dry Wheat'!$D$26)/$C198 -> $8.16 | G198: =('Dry Wheat'!$F$58+($B198-B$199)*'Dry Wheat'!$D$26)/$B198 -> $9.14 | H198: =('Dry Wheat'!$G$58+($C198-C$199)*'Dry Wheat'!$D$26)/$C198 -> $10.37 | I198: =IF($D198=0, "N/A", ('Dry Wheat'!$H$58+($D198-D$199)*'Dry Wheat'!$D$26)/$D198) -> $6.57
A199: 100% | B199: ='Dry Wheat'!$B$9*$A199 -> 20.00 | C199: ='Dry Wheat'!$B$9*(1-'Dry Wheat'!$E$9)*$A199 -> 13.40 | D199: ='Dry Wheat'!$B$9*'Dry Wheat'!$E$9*$A199 -> 6.60 | E199: =('Dry Wheat'!$F$44+($B199-B$199)*'Dry Wheat'!$D$26)/$B199 -> $5.59 | F199: =('Dry Wheat'!$G$44+($C199-C$199)*'Dry Wheat'!$D$26)/$C199 -> $7.37 | G199: =('Dry Wheat'!$F$58+($B199-B$199)*'Dry Wheat'!$D$26)/$B199 -> $8.25 | H199: =('Dry Wheat'!$G$58+($C199-C$199)*'Dry Wheat'!$D$26)/$C199 -> $9.36 | I199: =IF($D199=0, "N/A", ('Dry Wheat'!$H$58+($D199-D$199)*'Dry Wheat'!$D$26)/$D199) -> $5.94
A200: 110% | B200: ='Dry Wheat'!$B$9*$A200 -> 22.00 | C200: ='Dry Wheat'!$B$9*(1-'Dry Wheat'!$E$9)*$A200 -> 14.74 | D200: ='Dry Wheat'!$B$9*'Dry Wheat'!$E$9*$A200 -> 7.26 | E200: =('Dry Wheat'!$F$44+($B200-B$199)*'Dry Wheat'!$D$26)/$B200 -> $5.11 | F200: =('Dry Wheat'!$G$44+($C200-C$199)*'Dry Wheat'!$D$26)/$C200 -> $6.72 | G200: =('Dry Wheat'!$F$58+($B200-B$199)*'Dry Wheat'!$D$26)/$B200 -> $7.52 | H200: =('Dry Wheat'!$G$58+($C200-C$199)*'Dry Wheat'!$D$26)/$C200 -> $8.53 | I200: =IF($D200=0, "N/A", ('Dry Wheat'!$H$58+($D200-D$199)*'Dry Wheat'!$D$26)/$D200) -> $5.42
A201: 125% | B201: ='Dry Wheat'!$B$9*$A201 -> 25.00 | C201: ='Dry Wheat'!$B$9*(1-'Dry Wheat'!$E$9)*$A201 -> 16.75 | D201: ='Dry Wheat'!$B$9*'Dry Wheat'!$E$9*$A201 -> 8.25 | E201: =('Dry Wheat'!$F$44+($B201-B$199)*'Dry Wheat'!$D$26)/$B201 -> $4.52 | F201: =('Dry Wheat'!$G$44+($C201-C$199)*'Dry Wheat'!$D$26)/$C201 -> $5.95 | G201: =('Dry Wheat'!$F$58+($B201-B$199)*'Dry Wheat'!$D$26)/$B201 -> $6.65 | H201: =('Dry Wheat'!$G$58+($C201-C$199)*'Dry Wheat'!$D$26)/$C201 -> $7.54 | I201: =IF($D201=0, "N/A", ('Dry Wheat'!$H$58+($D201-D$199)*'Dry Wheat'!$D$26)/$D201) -> $4.80
A203: ='Dry Other Crop'!$A$3:$H$3 -> Dryland Other Crop
E204: BE Price to Cover Variable Costs | G204: BE Price to Cover Total Costs
A205: Yield | B205: LB | E205: Total | F205: Tenant | G205: Total | H205: Tenant | I205: Landlord
A206: 75% | B206: ='Dry Other Crop'!$B$9*$A206 -> 0.00 | C206: ='Dry Other Crop'!$B$9*(1-'Dry Other Crop'!$E$9)*$A206 -> 0.00 | D206: ='Dry Other Crop'!$B$9*'Dry Other Crop'!$E$9*$A206 -> 0.00 | E206: =IF($B206=0, "N/A", ('Dry Other Crop'!$F$44-'Dry Other Crop'!$F$10+($B206-$B$208)*'Dry Other Crop'!$D$26)/$B206) -> N/A | F206: =IF($B206=0, "N/A",('Dry Other Crop'!$G$44-'Dry Other Crop'!$G$10+($C206-$C$208)*'Dry Other Crop'!$D$26)/$C206) -> N/A | G206: =IF($B206=0, "N/A",('Dry Other Crop'!$F$58-'Dry Other Crop'!$F$10+($B206-$B$208)*'Dry Other Crop'!$D$26)/$B206) -> N/A | H206: =IF($B206=0, "N/A",('Dry Other Crop'!$G$58-'Dry Other Crop'!$G$10+($C206-$C$208)*'Dry Other Crop'!$D$26)/$C206) -> N/A | I206: =IF($D206=0, "N/A", ('Dry Other Crop'!$H$58-'Dry Other Crop'!$H$10+($D206-$D$208)*'Dry Other Crop'!$D$26)/$D206) -> N/A
A207: 90% | B207: ='Dry Other Crop'!$B$9*$A207 -> 0.00 | C207: ='Dry Other Crop'!$B$9*(1-'Dry Other Crop'!$E$9)*$A207 -> 0.00 | D207: ='Dry Other Crop'!$B$9*'Dry Other Crop'!$E$9*$A207 -> 0.00 | E207: =IF($B207=0, "N/A", ('Dry Other Crop'!$F$44-'Dry Other Crop'!$F$10+($B207-$B$208)*'Dry Other Crop'!$D$26)/$B207) -> N/A | F207: =IF($B207=0, "N/A",('Dry Other Crop'!$G$44-'Dry Other Crop'!$G$10+($C207-$C$208)*'Dry Other Crop'!$D$26)/$C207) -> N/A | G207: =IF($B207=0, "N/A",('Dry Other Crop'!$F$58-'Dry Other Crop'!$F$10+($B207-$B$208)*'Dry Other Crop'!$D$26)/$B207) -> N/A | H207: =IF($B207=0, "N/A",('Dry Other Crop'!$G$58-'Dry Other Crop'!$G$10+($C207-$C$208)*'Dry Other Crop'!$D$26)/$C207) -> N/A | I207: =IF($D207=0, "N/A", ('Dry Other Crop'!$H$58-'Dry Other Crop'!$H$10+($D207-$D$208)*'Dry Other Crop'!$D$26)/$D207) -> N/A
A208: 100% | B208: ='Dry Other Crop'!$B$9*$A208 -> 0.00 | C208: ='Dry Other Crop'!$B$9*(1-'Dry Other Crop'!$E$9)*$A208 -> 0.00 | D208: ='Dry Other Crop'!$B$9*'Dry Other Crop'!$E$9*$A208 -> 0.00 | E208: =IF($B208=0, "N/A", ('Dry Other Crop'!$F$44-'Dry Other Crop'!$F$10+($B208-$B$208)*'Dry Other Crop'!$D$26)/$B208) -> N/A | F208: =IF($B208=0, "N/A",('Dry Other Crop'!$G$44-'Dry Other Crop'!$G$10+($C208-$C$208)*'Dry Other Crop'!$D$26)/$C208) -> N/A | G208: =IF($B208=0, "N/A",('Dry Other Crop'!$F$58-'Dry Other Crop'!$F$10+($B208-$B$208)*'Dry Other Crop'!$D$26)/$B208) -> N/A | H208: =IF($B208=0, "N/A",('Dry Other Crop'!$G$58-'Dry Other Crop'!$G$10+($C208-$C$208)*'Dry Other Crop'!$D$26)/$C208) -> N/A | I208: =IF($D208=0, "N/A", ('Dry Other Crop'!$H$58-'Dry Other Crop'!$H$10+($D208-$D$208)*'Dry Other Crop'!$D$26)/$D208) -> N/A
A209: 110% | B209: ='Dry Other Crop'!$B$9*$A209 -> 0.00 | C209: ='Dry Other Crop'!$B$9*(1-'Dry Other Crop'!$E$9)*$A209 -> 0.00 | D209: ='Dry Other Crop'!$B$9*'Dry Other Crop'!$E$9*$A209 -> 0.00 | E209: =IF($B209=0, "N/A", ('Dry Other Crop'!$F$44-'Dry Other Crop'!$F$10+($B209-$B$208)*'Dry Other Crop'!$D$26)/$B209) -> N/A | F209: =IF($B209=0, "N/A",('Dry Other Crop'!$G$44-'Dry Other Crop'!$G$10+($C209-$C$208)*'Dry Other Crop'!$D$26)/$C209) -> N/A | G209: =IF($B209=0, "N/A",('Dry Other Crop'!$F$58-'Dry Other Crop'!$F$10+($B209-$B$208)*'Dry Other Crop'!$D$26)/$B209) -> N/A | H209: =IF($B209=0, "N/A",('Dry Other Crop'!$G$58-'Dry Other Crop'!$G$10+($C209-$C$208)*'Dry Other Crop'!$D$26)/$C209) -> N/A | I209: =IF($D209=0, "N/A", ('Dry Other Crop'!$H$58-'Dry Other Crop'!$H$10+($D209-$D$208)*'Dry Other Crop'!$D$26)/$D209) -> N/A
A210: 125% | B210: ='Dry Other Crop'!$B$9*$A210 -> 0.00 | C210: ='Dry Other Crop'!$B$9*(1-'Dry Other Crop'!$E$9)*$A210 -> 0.00 | D210: ='Dry Other Crop'!$B$9*'Dry Other Crop'!$E$9*$A210 -> 0.00 | E210: =IF($B210=0, "N/A", ('Dry Other Crop'!$F$44-'Dry Other Crop'!$F$10+($B210-$B$208)*'Dry Other Crop'!$D$26)/$B210) -> N/A | F210: =IF($B210=0, "N/A",('Dry Other Crop'!$G$44-'Dry Other Crop'!$G$10+($C210-$C$208)*'Dry Other Crop'!$D$26)/$C210) -> N/A | G210: =IF($B210=0, "N/A",('Dry Other Crop'!$F$58-'Dry Other Crop'!$F$10+($B210-$B$208)*'Dry Other Crop'!$D$26)/$B210) -> N/A | H210: =IF($B210=0, "N/A",('Dry Other Crop'!$G$58-'Dry Other Crop'!$G$10+($C210-$C$208)*'Dry Other Crop'!$D$26)/$C210) -> N/A | I210: =IF($D210=0, "N/A", ('Dry Other Crop'!$H$58-'Dry Other Crop'!$H$10+($D210-$D$208)*'Dry Other Crop'!$D$26)/$D210) -> N/A

Sheet Comparative Returns
A2: Comparative Returns
A3: Projected for 2016
B5: Total Revenue | E5: Total Variable Costs | H5: Return Over Variable Costs | K5: Total Costs | O5: Return Over Variable Costs per Acre-Inch Applied | R5: Return Over Total Costs | W5: Break-Even Yield to Cover Total Costs
B6: Total | C6: Tenant | D6: Landlord | E6: Total | F6: Tenant | G6: Landlord | H6: Total | I6: Tenant | J6: Landlord | K6: Total | L6: Tenant | M6: Landlord | N6: ac-in | O6: Total | P6: Tenant | Q6: Landlord | R6: Total | S6: Tenant | T6: Landlord | U6: Price | V6: unit | W6: Total | X6: Tenant | Y6: Landlord
A7: ='Irr Alfalfa'!$A$3:$H$3 -> Irrigated Alfalfa | B7: ='Irr Alfalfa'!F$12 -> $770.00 | C7: ='Irr Alfalfa'!G$12 -> $515.90 | D7: ='Irr Alfalfa'!H$12 -> $254.10 | E7: ='Irr Alfalfa'!F$48 -> $498.92 | F7: ='Irr Alfalfa'!G$48 -> $450.16 | G7: ='Irr Alfalfa'!H$48 -> $51.38 | H7: =B7-E7 -> $271.08 | I7: =C7-F7 -> $65.74 | J7: =D7-G7 -> $202.72 | K7: ='Irr Alfalfa'!F$63 -> $774.22 | L7: ='Irr Alfalfa'!G$63 -> $605.46 | M7: ='Irr Alfalfa'!H$63 -> $171.38 | N7: ='Irr Alfalfa'!B37 -> 24 | O7: =IF($N7=0,"-",H7/$N7) -> $11.30 | P7: =IF($N7=0,"-",I7/$N7) -> $2.74 | Q7: =IF($N7=0,"-",J7/$N7) -> $8.45 | R7: =B7-K7 -> ($4.22) | S7: =C7-L7 -> ($89.56) | T7: =D7-M7 -> $82.72 | U7: ='Irr Alfalfa'!$D$9 -> $140.00 | V7: ='Irr Alfalfa'!$C$9 -> ton | W7: =IF($U7=0, 0, K7/$U7) -> 5.5 | X7: =IF($U7=0, 0, IF('Irr Alfalfa'!$E$9=0,0,L7/$U7/(1-'Irr Alfalfa'!$E$9))) -> 6.5 | Y7: =IF($U7=0, 0, IF('Irr Alfalfa'!$E$9=0,0,M7/$U7/('Irr Alfalfa'!$E$9))) -> 3.7
A8: ='Irr Canola'!$A$3:$H$3 -> Irrigated Canola | B8: ='Irr Canola'!F$12 -> $305.80 | C8: ='Irr Canola'!G$12 -> $204.89 | D8: ='Irr Canola'!H$12 -> $100.91 | E8: ='Irr Canola'!F$49 -> $284.27 | F8: ='Irr Canola'!G$49 -> $245.55 | G8: ='Irr Canola'!H$49 -> $38.20 | H8: $21.53 | I8: ($40.66) | J8: $62.71 | K8: ='Irr Canola'!F$63 -> $444.06 | L8: ='Irr Canola'!G$63 -> $333.34 | M8: ='Irr Canola'!H$63 -> $110.20 | N8: ='Irr Canola'!B38 -> 10 | O8: $2.15 | P8: $4.07 | Q8: $6.27 | R8: ($138.26) | S8: ($128.45) | T8: ($9.29) | U8: ='Irr Canola'!$D$9 -> $13.90 | V8: ='Irr Canola'!$C$9 -> cwt | W8: =IF($U8=0, 0, K8/$U8) -> 31.9 | X8: =IF($U8=0, 0, IF('Irr Canola'!$E$9=0,0,L8/$U8/(1-'Irr Canola'!$E$9))) -> 35.8 | Y8: =IF($U8=0, 0, IF('Irr Canola'!$E$9=0,0,M8/$U8/('Irr Canola'!$E$9))) -> 24.0
A9: ='Irr Corn'!$A$3:$H$3 -> Irrigated Corn | B9: ='Irr Corn'!F$12 -> $855.00 | C9: ='Irr Corn'!G$12 -> $572.85 | D9: ='Irr Corn'!H$12 -> $120.00 | E9: ='Irr Corn'!F$47 -> $639.51 | F9: ='Irr Corn'!G$47 -> $555.82 | G9: ='Irr Corn'!H$47 -> $88.39 | H9: $215.49 | I9: $17.03 | J9: $31.61 | K9: ='Irr Corn'!F$61 -> $868.51 | L9: ='Irr Corn'!G$61 -> $784.82 | M9: ='Irr Corn'!H$61 -> $88.39 | N9: ='Irr Corn'!B36 -> 22 | O9: $9.80 | P9: $0.77 | Q9: $1.44 | R9: ($13.51) | S9: ($211.97) | T9: $31.61 | U9: ='Irr Corn'!$D$9 -> $3.80 | V9: ='Irr Corn'!$C$9 -> bu | W9: 228.6 | X9: =IF($U9=0, 0, IF('Irr Corn'!$E$9=0,0,L9/$U9/(1-'Irr Corn'!$E$9))) -> 308.3 | Y9: =IF($U9=0, 0, IF('Irr Corn'!$E$9=0,0,M9/$U9/('Irr Corn'!$E$9))) -> 70.5
A10: ='Irr Corn Silage'!$A$3:$H$3 -> Irrigated Corn Silage | B10: ='Irr Corn Silage'!F$12 -> $947.70 | C10: ='Irr Corn Silage'!G$12 -> $634.96 | D10: ='Irr Corn Silage'!H$12 -> $312.74 | E10: ='Irr Corn Silage'!F$47 -> $805.27 | F10: ='Irr Corn Silage'!G$47 -> $722.70 | G10: ='Irr Corn Silage'!H$47 -> $87.54 | H10: $142.43 | I10: ($87.74) | J10: $225.20 | K10: ='Irr Corn Silage'!F$61 -> $1,038.58 | L10: ='Irr Corn Silage'!G$61 -> $836.01 | M10: ='Irr Corn Silage'!H$61 -> $207.54 | N10: ='Irr Corn Silage'!B36 -> 20 | O10: $7.12 | P10: $4.39 | Q10: $11.26 | R10: ($90.88) | S10: ($201.05) | T10: $105.20 | U10: ='Irr Corn Silage'!$D$9 -> $35.10 | V10: ='Irr Corn Silage'!$C$9 -> ton | W10: 29.6 | X10: =IF($U10=0, 0, IF('Irr Corn Silage'!$E$9=0,0,L10/$U10/(1-'Irr Corn Silage'!$E$9))) -> 35.5 | Y10: =IF($U10=0, 0, IF('Irr Corn Silage'!$E$9=0,0,M10/$U10/('Irr Corn Silage'!$E$9))) -> 17.9
A11: ='Irr Cotton'!$A$3:$H$3 -> Irrigated Cotton | B11: ='Irr Cotton'!F$13 -> $1,000.00 | C11: ='Irr Cotton'!G$13 -> $670.00 | D11: ='Irr Cotton'!H$13 -> $330.00 | E11: ='Irr Cotton'!F$52 -> $647.05 | F11: ='Irr Cotton'!G$52 -> $528.06 | G11: ='Irr Cotton'!H$52 -> $118.13 | H11: $352.95 | I11: $141.94 | J11: $211.87 | K11: ='Irr Cotton'!F$66 -> $799.34 | L11: ='Irr Cotton'!G$66 -> $608.35 | M11: ='Irr Cotton'!H$66 -> $190.13 | N11: ='Irr Cotton'!B41 -> 12 | O11: $29.41 | P11: $11.83 | Q11: $17.66 | R11: $200.66 | S11: $61.65 | T11: $139.87 | U11: ='Irr Cotton'!$D$9 -> $0.65 | V11: ='Irr Cotton'!$C$9 -> lb | W11: =IF($U11=0, 0, K11/($U11+Cottonseed_Price/2000*'Universal Input Prices'!$B$39/500)) -> 999.2 | X11: =IF($U11=0, 0, IF('Irr Cotton'!$E$9=0,0,L11/($U11+Cottonseed_Price/2000*'Universal Input Prices'!$B$39/500)/(1-'Irr Cotton'!$E$9))) -> 1,135.0 | Y11: =IF($U11=0, 0, IF('Irr Cotton'!$E$9=0,0,M11/($U11+Cottonseed_Price/2000*'Universal Input Prices'!$B$39/500)/('Irr Cotton'!$E$9))) -> 720.2
A12: ='Irr Peanuts'!$A$3:$H$3 -> Irrigated Peanuts | B12: ='Irr Peanuts'!F$12 -> $945.00 | C12: ='Irr Peanuts'!G$12 -> $633.15 | D12: ='Irr Peanuts'!H$12 -> $311.85 | E12: ='Irr Peanuts'!F$51 -> $741.57 | F12: ='Irr Peanuts'!G$51 -> $653.95 | G12: ='Irr Peanuts'!H$51 -> $90.64 | H12: $203.43 | I12: ($20.80) | J12: $221.21 | K12: ='Irr Peanuts'!F$65 -> $949.73 | L12: ='Irr Peanuts'!G$65 -> $790.11 | M12: ='Irr Peanuts'!H$65 -> $162.64 | N12: ='Irr Peanuts'!B40 -> 21 | O12: $9.69 | P12: $0.99 | Q12: $10.53 | R12: ($4.73) | S12: ($156.96) | T12: $149.21 | U12: ='Irr Peanuts'!$D$9 -> $420.00 | V12: ='Irr Peanuts'!$C$9 -> ton | W12: 2.3 | X12: =IF($U12=0, 0, IF('Irr Peanuts'!$E$9=0,0,L12/$U12/(1-'Irr Peanuts'!$E$9))) -> 2.8 | Y12: =IF($U12=0, 0, IF('Irr Peanuts'!$E$9=0,0,M12/$U12/('Irr Peanuts'!$E$9))) -> 1.2
A13: ='Irr Sorghum'!$A$3:$H$3 -> Irrigated Sorghum | B13: ='Irr Sorghum'!F$12 -> $345.00 | C13: ='Irr Sorghum'!G$12 -> $231.15 | D13: ='Irr Sorghum'!H$12 -> $113.85 | E13: ='Irr Sorghum'!F$46 -> $337.83 | F13: ='Irr Sorghum'!G$46 -> $275.89 | G13: ='Irr Sorghum'!H$46 -> $63.45 | H13: $7.17 | I13: ($44.74) | J13: $50.40 | K13: ='Irr Sorghum'!F$60 -> $517.50 | L13: ='Irr Sorghum'!G$60 -> $383.56 | M13: ='Irr Sorghum'!H$60 -> $135.45 | N13: ='Irr Sorghum'!B35 -> 10 | O13: $0.72 | P13: $4.47 | Q13: $5.04 | R13: ($172.50) | S13: ($152.41) | T13: ($21.60) | U13: ='Irr Sorghum'!$D$9 -> $5.75 | V13: ='Irr Sorghum'!$C$9 -> cwt | W13: =IF($U13=0, 0, (K13-'Irr Sorghum'!F$10)/$U13) -> 90.0 | X13: =IF($U13=0, 0, IF('Irr Sorghum'!$E$9=0,0,(L13-'Irr Sorghum'!F$10)/$U13/(1-'Irr Sorghum'!$E$9))) -> 99.6 | Y13: =IF($U13=0, 0, IF('Irr Sorghum'!$E$9=0,0,(M13-'Irr Sorghum'!F$10)/$U13/('Irr Sorghum'!$E$9))) -> 71.4
A14: ='Irr Sorghum Seed'!$A$3:$H$3 -> Irrigated Sorghum Seed | B14: ='Irr Sorghum Seed'!F$12 -> $760.50 | C14: ='Irr Sorghum Seed'!G$12 -> $509.54 | D14: ='Irr Sorghum Seed'!H$12 -> $250.97 | E14: ='Irr Sorghum Seed'!F$46 -> $377.22 | F14: ='Irr Sorghum Seed'!G$46 -> $304.69 | G14: ='Irr Sorghum Seed'!H$46 -> $74.59 | H14: $383.28 | I14: $204.84 | J14: $176.37 | K14: ='Irr Sorghum Seed'!F$60 -> $547.11 | L14: ='Irr Sorghum Seed'!G$60 -> $402.58 | M14: ='Irr Sorghum Seed'!H$60 -> $146.59 | N14: ='Irr Sorghum Seed'!B35 -> 16 | O14: $23.96 | P14: $12.80 | Q14: $11.02 | R14: $213.39 | S14: $106.95 | T14: $104.37 | U14: ='Irr Sorghum Seed'!$D$9 -> $16.90 | V14: ='Irr Sorghum Seed'!$C$9 -> cwt | W14: =IF($U14=0, 0, (K14-'Irr Sorghum Seed'!F$10)/$U14) -> 32.4 | X14: =IF($U14=0, 0, IF('Irr Sorghum Seed'!$E$9=0,0,(L14-'Irr Sorghum Seed'!F$10)/$U14/(1-'Irr Sorghum Seed'!$E$9))) -> 35.6 | Y14: =IF($U14=0, 0, IF('Irr Sorghum Seed'!$E$9=0,0,(M14-'Irr Sorghum Seed'!F$10)/$U14/('Irr Sorghum Seed'!$E$9))) -> 26.3
A15: ='Irr Sorghum Silage'!$A$3:$H$3 -> Irrigated Sorghum Silage | B15: ='Irr Sorghum Silage'!F$12 -> $663.60 | C15: ='Irr Sorghum Silage'!G$12 -> $444.61 | D15: ='Irr Sorghum Silage'!H$12 -> $218.99 | E15: ='Irr Sorghum Silage'!F$46 -> $507.50 | F15: ='Irr Sorghum Silage'!G$46 -> $441.32 | G15: ='Irr Sorghum Silage'!H$46 -> $67.59 | H15: $156.10 | I15: $3.29 | J15: $151.40 | K15: ='Irr Sorghum Silage'!F$60 -> $674.10 | L15: ='Irr Sorghum Silage'!G$60 -> $535.92 | M15: ='Irr Sorghum Silage'!H$60 -> $139.59 | N15: ='Irr Sorghum Silage'!B35 -> 13 | O15: $12.01 | P15: $0.25 | Q15: $11.65 | R15: ($10.50) | S15: ($91.31) | T15: $79.40 | U15: ='Irr Sorghum Silage'!$D$9 -> $31.60 | V15: ='Irr Sorghum Silage'!$C$9 -> ton | W15: 21.3 | X15: =IF($U15=0, 0, IF('Irr Sorghum Silage'!$E$9=0,0,L15/$U15/(1-'Irr Sorghum Silage'!$E$9))) -> 25.3 | Y15: =IF($U15=0, 0, IF('Irr Sorghum Silage'!$E$9=0,0,M15/$U15/('Irr Sorghum Silage'!$E$9))) -> 13.4
A16: ='Irr Sorghum Sudangrass'!$A$3:$H$3 -> Irrigated Sorghum Sudangrass | B16: ='Irr Sorghum Sudangrass'!F$12 -> $320.00 | C16: ='Irr Sorghum Sudangrass'!G$12 -> $214.40 | D16: ='Irr Sorghum Sudangrass'!H$12 -> $105.60 | E16: ='Irr Sorghum Sudangrass'!F$46 -> $254.18 | F16: ='Irr Sorghum Sudangrass'!G$46 -> $205.70 | G16: ='Irr Sorghum Sudangrass'!H$46 -> $50.16 | H16: $65.82 | I16: $8.70 | J16: $55.44 | K16: ='Irr Sorghum Sudangrass'!F$60 -> $410.20 | L16: ='Irr Sorghum Sudangrass'!G$60 -> $289.72 | M16: ='Irr Sorghum Sudangrass'!H$60 -> $122.16 | N16: ='Irr Sorghum Sudangrass'!B35 -> 9 | O16: $7.31 | P16: $0.97 | Q16: $6.16 | R16: ($90.20) | S16: ($75.32) | T16: ($16.56) | U16: ='Irr Sorghum Sudangrass'!$D$9 -> $0.40 | V16: ='Irr Sorghum Sudangrass'!$C$9 -> lb | W16: 1,025.5 | X16: =IF($U16=0, 0, IF('Irr Sorghum Sudangrass'!$E$9=0,0,L16/$U16/(1-'Irr Sorghum Sudangrass'!$E$9))) -> 1,081.0 | Y16: =IF($U16=0, 0, IF('Irr Sorghum Sudangrass'!$E$9=0,0,M16/$U16/('Irr Sorghum Sudangrass'!$E$9))) -> 925.4
A17: ='Irr Soybeans'!$A$3:$H$3 -> Irrigated Soybeans | B17: ='Irr Soybeans'!F$12 -> $504.00 | C17: ='Irr Soybeans'!G$12 -> $337.68 | D17: ='Irr Soybeans'!H$12 -> $166.32 | E17: ='Irr Soybeans'!F$49 -> $367.28 | F17: ='Irr Soybeans'!G$49 -> $323.05 | G17: ='Irr Soybeans'!H$49 -> $46.48 | H17: $136.72 | I17: $14.63 | J17: $119.84 | K17: ='Irr Soybeans'!F$63 -> $538.30 | L17: ='Irr Soybeans'!G$63 -> $422.07 | M17: ='Irr Soybeans'!H$63 -> $118.48 | N17: ='Irr Soybeans'!B38 -> 14 | O17: $9.77 | P17: $1.05 | Q17: $8.56 | R17: ($34.30) | S17: ($84.39) | T17: $47.84 | U17: ='Irr Soybeans'!$D$9 -> $8.40 | V17: ='Irr Soybeans'!$C$9 -> bu | W17: 64.1 | X17: =IF($U17=0, 0, IF('Irr Soybeans'!$E$9=0,0,L17/$U17/(1-'Irr Soybeans'!$E$9))) -> 75.0 | Y17: =IF($U17=0, 0, IF('Irr Soybeans'!$E$9=0,0,M17/$U17/('Irr Soybeans'!$E$9))) -> 42.7
A18: ='Irr Sunflowers-Confection'!$A$3:$H$3 -> Irrigated Sunflowers-Confectionary | B18: ='Irr Sunflowers-Confection'!F$13 -> $378.00 | C18: ='Irr Sunflowers-Confection'!G$13 -> $253.26 | D18: ='Irr Sunflowers-Confection'!H$13 -> $124.74 | E18: ='Irr Sunflowers-Confection'!F$49 -> $284.87 | F18: ='Irr Sunflowers-Confection'!G$49 -> $236.80 | G18: ='Irr Sunflowers-Confection'!H$49 -> $48.39 | H18: $93.13 | I18: $16.46 | J18: $76.35 | K18: ='Irr Sunflowers-Confection'!F$63 -> $437.30 | L18: ='Irr Sunflowers-Confection'!G$63 -> $317.23 | M18: ='Irr Sunflowers-Confection'!H$63 -> $120.39 | N18: ='Irr Sunflowers-Confection'!B38 -> 7 | O18: $13.30 | P18: $2.35 | Q18: $10.91 | R18: ($59.30) | S18: ($63.97) | T18: $4.35 | U18: ='Irr Sunflowers-Confection'!$D$9 -> $21.00 | V18: ='Irr Sunflowers-Confection'!$C$9 -> cwt | W18: 20.8 | X18: =IF($U18=0, 0, IF('Irr Sunflowers-Confection'!$E$9=0,0,L18/$U18/(1-'Irr Sunflowers-Confection'!$E$9))) -> 22.5 | Y18: =IF($U18=0, 0, IF('Irr Sunflowers-Confection'!$E$9=0,0,M18/$U18/('Irr Sunflowers-Confection'!$E$9))) -> 17.4
A19: ='Irr Sunflowers-Oilseed'!$A$3:$H$3 -> Irrigated Sunflowers-Oilseed | B19: ='Irr Sunflowers-Oilseed'!F$12 -> $330.00 | C19: ='Irr Sunflowers-Oilseed'!G$12 -> $221.10 | D19: ='Irr Sunflowers-Oilseed'!H$12 -> $108.90 | E19: ='Irr Sunflowers-Oilseed'!F$48 -> $283.88 | F19: ='Irr Sunflowers-Oilseed'!G$48 -> $224.64 | G19: ='Irr Sunflowers-Oilseed'!H$48 -> $59.55 | H19: $46.12 | I19: ($3.54) | J19: $49.35 | K19: ='Irr Sunflowers-Oilseed'!F$62 -> $436.31 | L19: ='Irr Sunflowers-Oilseed'!G$62 -> $305.07 | M19: ='Irr Sunflowers-Oilseed'!H$62 -> $131.55 | N19: ='Irr Sunflowers-Oilseed'!B37 -> 7 | O19: $6.59 | P19: $0.51 | Q19: $7.05 | R19: ($106.31) | S19: ($83.97) | T19: ($22.65) | U19: ='Irr Sunflowers-Oilseed'!$D$9 -> $16.50 | V19: ='Irr Sunflowers-Oilseed'!$C$9 -> cwt | W19: 26.4 | X19: =IF($U19=0, 0, IF('Irr Sunflowers-Oilseed'!$E$9=0,0,L19/$U19/(1-'Irr Sunflowers-Oilseed'!$E$9))) -> 27.6 | Y19: =IF($U19=0, 0, IF('Irr Sunflowers-Oilseed'!$E$9=0,0,M19/$U19/('Irr Sunflowers-Oilseed'!$E$9))) -> 24.2
A20: ='Irr Triticale Silage'!$A$3:$H$3 -> Irrigated Triticale Silage | B20: ='Irr Triticale Silage'!F$12 -> $316.00 | C20: ='Irr Triticale Silage'!G$12 -> $211.72 | D20: ='Irr Triticale Silage'!H$12 -> $104.28 | E20: ='Irr Triticale Silage'!F$46 -> $313.91 | F20: ='Irr Triticale Silage'!G$46 -> $281.12 | G20: ='Irr Triticale Silage'!H$46 -> $31.76 | H20: =B20-E20 -> $2.09 | I20: =C20-F20 -> ($69.40) | J20: =D20-G20 -> $72.52 | K20: ='Irr Triticale Silage'!F$60 -> $473.83 | L20: ='Irr Triticale Silage'!G$60 -> $369.04 | M20: ='Irr Triticale Silage'!H$60 -> $103.76 | N20: ='Irr Sorghum Sudangrass'!B36 -> 48 | O20: =IF($N20=0,"-",H20/$N20) -> $0.04 | P20: =IF($N20=0,"-",I20/$N20) -> $1.43 | Q20: =IF($N20=0,"-",J20/$N20) -> $1.50 | R20: =B20-K20 -> ($157.83) | S20: =C20-L20 -> ($157.32) | T20: =D20-M20 -> $0.52 | U20: ='Irr Triticale Silage'!$D$9 -> $31.60 | V20: ='Irr Triticale Silage'!$C$9 -> ton | W20: =IF($U20=0, 0, K20/$U20) -> 15.0 | X20: =IF($U20=0, 0, IF('Irr Triticale Silage'!$E$9=0,0,L20/$U20/(1-'Irr Triticale Silage'!$E$9))) -> 17.4 | Y20: =IF($U20=0, 0, IF('Irr Triticale Silage'!$E$9=0,0,M20/$U20/('Irr Triticale Silage'!$E$9))) -> 9.9
A21: ='Irr Wheat'!$A$3:$H$3 -> Irrigated Wheat | B21: ='Irr Wheat'!F$13 -> $251.90 | C21: ='Irr Wheat'!G$13 -> $168.77 | D21: ='Irr Wheat'!H$13 -> $83.13 | E21: ='Irr Wheat'!F$47 -> $280.59 | F21: ='Irr Wheat'!G$47 -> $235.08 | G21: ='Irr Wheat'!H$47 -> $43.97 | H21: ($28.69) | I21: ($66.30) | J21: $39.15 | K21: ='Irr Wheat'!F$61 -> $440.51 | L21: ='Irr Wheat'!G$61 -> $323.00 | M21: ='Irr Wheat'!H$61 -> $115.97 | N21: ='Irr Wheat'!B36 -> 10 | O21: $2.87 | P21: $6.63 | Q21: $3.92 | R21: ($188.61) | S21: ($154.22) | T21: ($32.85) | U21: ='Irr Wheat'!$D$9 -> $3.95 | V21: ='Irr Wheat'!$C$9 -> bu | W21: =IF($U21=0, 0, (K21-'Irr Wheat'!$F$10)/$U21) -> 97.7 | X21: =IF($U21=0, 0, IF('Irr Wheat'!$E$9=0,0,(L21-'Irr Wheat'!$G$10)/$U21/(1-'Irr Wheat'!$E$9))) -> 108.3 | Y21: =IF($U21=0, 0, IF('Irr Wheat'!$E$9=0,0,(M21-'Irr Wheat'!$H$10)/$U21/('Irr Wheat'!$E$9))) -> 75.2
A22: ='Irr Other Crop'!$A$3:$H$3 -> Irrigated Other Crop | B22: ='Irr Other Crop'!F$12 -> $0.00 | C22: ='Irr Other Crop'!G$12 -> $0.00 | D22: ='Irr Other Crop'!H$12 -> $0.00 | E22: ='Irr Other Crop'!F$48 -> $0.00 | F22: ='Irr Other Crop'!G$48 -> $0.00 | G22: ='Irr Other Crop'!H$48 -> $0.00 | H22: $0.00 | I22: $0.00 | J22: $0.00 | K22: ='Irr Other Crop'!F$62 -> $0.00 | L22: ='Irr Other Crop'!G$62 -> $0.00 | M22: ='Irr Other Crop'!H$62 -> $0.00 | N22: ='Irr Other Crop'!B37 -> 0 | O22: =IF($N22=0,"-",H22/$N22) -> - | P22: - | Q22: - | R22: $0.00 | S22: $0.00 | T22: $0.00 | U22: ='Irr Other Crop'!$D$9 -> $0.00 | V22: ='Irr Other Crop'!$C$9 -> unit | W22: =IF($U22=0, 0, (K22-'Irr Other Crop'!$F$10)/$U22) -> 0 | X22: =IF($U22=0, 0, IF('Irr Other Crop'!$E$9=0,0,(L22-'Irr Other Crop'!$G$10)/$U22/(1-'Irr Other Crop'!$E$9))) -> 0 | Y22: =IF($U22=0, 0, IF('Irr Other Crop'!$E$9=0,0,(M22-'Irr Other Crop'!$H$10)/$U22/('Irr Other Crop'!$E$9))) -> 0
A23: ='Dry Canola'!$A$3:$H$3 -> Dryland Canola | B23: ='Dry Canola'!F$12 -> $152.90 | C23: ='Dry Canola'!G$12 -> $102.44 | D23: ='Dry Canola'!H$12 -> $50.46 | E23: ='Dry Canola'!F$45 -> $149.38 | F23: ='Dry Canola'!G$45 -> $135.33 | G23: ='Dry Canola'!H$45 -> $13.70 | H23: $3.52 | I23: ($32.89) | J23: $36.76 | K23: ='Dry Canola'!F$59 -> $202.57 | L23: ='Dry Canola'!G$59 -> $162.02 | M23: ='Dry Canola'!H$59 -> $40.20 | N23: ='Dry Canola'!#REF! ->  | R23: ($49.67) | S23: ($59.58) | T23: $10.26 | U23: ='Dry Canola'!$D$9 -> $13.90 | V23: ='Dry Canola'!$C$9 -> cwt | W23: 14.6 | X23: =IF($U23=0, 0, IF('Dry Canola'!$E$9=0,0,L23/$U23/(1-'Dry Canola'!$E$9))) -> 17.4 | Y23: =IF($U23=0, 0, IF('Dry Canola'!$E$9=0,0,M23/$U23/('Dry Canola'!$E$9))) -> 8.8
A24: ='Dry Cotton'!$A$3:$H$3 -> Dryland Cotton | B24: ='Dry Cotton'!F$13 -> $320.00 | C24: ='Dry Cotton'!G$13 -> $320.00 | D24: ='Dry Cotton'!H$13 -> $0.00 | E24: ='Dry Cotton'!F$49 -> $290.14 | F24: ='Dry Cotton'!G$49 -> $289.57 | G24: ='Dry Cotton'!H$49 -> $0.00 | H24: $29.86 | I24: $30.43 | J24: $0.00 | K24: ='Dry Cotton'!F$63 -> $346.74 | L24: ='Dry Cotton'!G$63 -> $346.17 | M24: ='Dry Cotton'!H$63 -> $0.00 | N24: ='Dry Cotton'!#REF! ->  | R24: ($26.74) | S24: ($26.17) | T24: $0.00 | U24: ='Dry Cotton'!$D$9 -> $0.65 | V24: ='Dry Cotton'!$C$9 -> lb | W24: =IF($U24=0, 0, K24/($U24+Cottonseed_Price/2000*'Universal Input Prices'!$B$39/500)) -> 433.4 | X24: =IF($U24=0, 0, IF('Dry Cotton'!$E$9=0,0,L24/($U24+Cottonseed_Price/2000*'Universal Input Prices'!$B$39/500)/(1-'Dry Cotton'!$E$9))) -> 0 | Y24: =IF($U24=0, 0, IF('Dry Cotton'!$E$9=0,0,M24/($U24+Cottonseed_Price/2000*'Universal Input Prices'!$B$39/500)/('Dry Cotton'!$E$9))) -> 0
A25: ='Dry Sorghum'!$A$3:$H$3 -> Dryland Sorghum | B25: ='Dry Sorghum'!F$12 -> $143.75 | C25: ='Dry Sorghum'!G$12 -> $143.75 | D25: ='Dry Sorghum'!H$12 -> $0.00 | E25: ='Dry Sorghum'!F$43 -> $156.57 | F25: ='Dry Sorghum'!G$43 -> $150.40 | G25: ='Dry Sorghum'!H$43 -> $7.12 | H25: ($12.82) | I25: ($6.65) | J25: ($7.12) | K25: ='Dry Sorghum'!F$57 -> $208.20 | L25: ='Dry Sorghum'!G$57 -> $202.03 | M25: ='Dry Sorghum'!H$57 -> $7.12 | N25: ='Dry Sorghum'!#REF! ->  | R25: ($64.45) | S25: ($58.28) | T25: ($7.12) | U25: ='Dry Sorghum'!$D$9 -> $5.75 | V25: ='Dry Sorghum'!$C$9 -> cwt | W25: =IF($U25=0, 0, (K25-'Dry Sorghum'!F$10)/$U25) -> 36.2 | X25: =IF($U25=0, 0, IF('Dry Sorghum'!$E$9=0,0,(L25-'Dry Sorghum'!F$10)/$U25/(1-'Dry Sorghum'!$E$9))) -> 0 | Y25: =IF($U25=0, 0, IF('Dry Sorghum'!$E$9=0,0,(M25-'Dry Sorghum'!F$10)/$U25/('Dry Sorghum'!$E$9))) -> 0
A26: ='Dry Sorghum Sudangrass'!$A$3:$H$3 -> Dryland Sorghum Sudangrass | B26: ='Dry Sorghum Sudangrass'!F$12 -> $134.40 | C26: ='Dry Sorghum Sudangrass'!G$12 -> $90.05 | D26: ='Dry Sorghum Sudangrass'!H$12 -> $44.35 | E26: ='Dry Sorghum Sudangrass'!F$42 -> $109.89 | F26: ='Dry Sorghum Sudangrass'!G$42 -> $90.75 | G26: ='Dry Sorghum Sudangrass'!H$42 -> $19.86 | H26: $24.51 | I26: ($0.70) | J26: $24.49 | K26: ='Dry Sorghum Sudangrass'!F$56 -> $160.32 | L26: ='Dry Sorghum Sudangrass'!G$56 -> $114.68 | M26: ='Dry Sorghum Sudangrass'!H$56 -> $46.36 | N26: ='Dry Sorghum Sudangrass'!#REF! ->  | R26: ($25.92) | S26: ($24.63) | T26: ($2.01) | U26: ='Dry Sorghum Sudangrass'!$D$9 -> $0.40 | V26: ='Dry Sorghum Sudangrass'!$C$9 -> lb | W26: 400.8 | X26: =IF($U26=0, 0, IF('Dry Sorghum Sudangrass'!$E$9=0,0,L26/$U26/(1-'Dry Sorghum Sudangrass'!$E$9))) -> 427.9 | Y26: =IF($U26=0, 0, IF('Dry Sorghum Sudangrass'!$E$9=0,0,M26/$U26/('Dry Sorghum Sudangrass'!$E$9))) -> 351.2
A27: ='Dry Sunflowers-Oilseed'!$A$3:$H$3 -> Dryland Sunflowers-Oilseed | B27: ='Dry Sunflowers-Oilseed'!F$12 -> $165.00 | C27: ='Dry Sunflowers-Oilseed'!G$12 -> $110.55 | D27: ='Dry Sunflowers-Oilseed'!H$12 -> $54.45 | E27: ='Dry Sunflowers-Oilseed'!F$44 -> $152.16 | F27: ='Dry Sunflowers-Oilseed'!G$44 -> $126.03 | G27: ='Dry Sunflowers-Oilseed'!H$44 -> $26.67 | H27: $12.84 | I27: ($15.48) | J27: $27.78 | K27: ='Dry Sunflowers-Oilseed'!F$58 -> $201.25 | L27: ='Dry Sunflowers-Oilseed'!G$58 -> $148.62 | M27: ='Dry Sunflowers-Oilseed'!H$58 -> $53.17 | N27: ='Dry Sunflowers-Oilseed'!#REF! ->  | R27: ($36.25) | S27: ($38.07) | T27: $1.28 | U27: ='Dry Sunflowers-Oilseed'!$D$9 -> $16.50 | V27: ='Dry Sunflowers-Oilseed'!$C$9 -> cwt | W27: 12.2 | X27: =IF($U27=0, 0, IF('Dry Sunflowers-Oilseed'!$E$9=0,0,L27/$U27/(1-'Dry Sunflowers-Oilseed'!$E$9))) -> 13.4 | Y27: =IF($U27=0, 0, IF('Dry Sunflowers-Oilseed'!$E$9=0,0,M27/$U27/('Dry Sunflowers-Oilseed'!$E$9))) -> 9.8
A28: ='Dry Wheat'!$A$3:$H$3 -> Dryland Wheat | B28: ='Dry Wheat'!F$13 -> $108.20 | C28: ='Dry Wheat'!G$13 -> $72.49 | D28: ='Dry Wheat'!H$13 -> $35.71 | E28: ='Dry Wheat'!F$44 -> $111.85 | F28: ='Dry Wheat'!G$44 -> $98.77 | G28: ='Dry Wheat'!H$44 -> $12.71 | H28: ($3.65) | I28: ($26.27) | J28: $23.00 | K28: ='Dry Wheat'!F$58 -> $165.03 | L28: ='Dry Wheat'!G$58 -> $125.45 | M28: ='Dry Wheat'!H$58 -> $39.21 | N28: ='Dry Wheat'!#REF! ->  | R28: ($56.83) | S28: ($52.95) | T28: ($3.50) | U28: ='Dry Wheat'!$D$9 -> $3.95 | V28: ='Dry Wheat'!$C$9 -> bu | W28: =IF($U28=0, 0, (K28-'Dry Wheat'!$F$10)/$U28) -> 34.4 | X28: =IF($U28=0, 0, IF('Dry Wheat'!$E$9=0,0,(L28-'Dry Wheat'!$G$10)/$U28/(1-'Dry Wheat'!$E$9))) -> 40.0 | Y28: =IF($U28=0, 0, IF('Dry Wheat'!$E$9=0,0,(M28-'Dry Wheat'!$H$10)/$U28/('Dry Wheat'!$E$9))) -> 22.7
A29: ='Dry Other Crop'!$A$3:$H$3 -> Dryland Other Crop | B29: ='Dry Other Crop'!F$12 -> $0.00 | C29: ='Dry Other Crop'!G$12 -> $0.00 | D29: ='Dry Other Crop'!H$12 -> $0.00 | E29: ='Dry Other Crop'!F$44 -> $0.00 | F29: ='Dry Other Crop'!G$44 -> $0.00 | G29: ='Dry Other Crop'!H$44 -> $0.00 | H29: $0.00 | I29: $0.00 | J29: $0.00 | K29: ='Dry Other Crop'!F$58 -> $0.00 | L29: ='Dry Other Crop'!G$58 -> $0.00 | M29: ='Dry Other Crop'!H$58 -> $0.00 | N29: ='Dry Other Crop'!#REF! ->  | R29: $0.00 | S29: $0.00 | T29: $0.00 | U29: ='Dry Other Crop'!$D$9 -> $0.00 | V29: ='Dry Other Crop'!$C$9 -> unit | W29: =IF($U29=0, 0, (K29-'Dry Other Crop'!$F$10)/$U29) -> 0 | X29: =IF($U29=0, 0, IF('Dry Other Crop'!$E$9=0,0,(L29-'Dry Other Crop'!$G$10)/$U29/(1-'Dry Other Crop'!$E$9))) -> 0 | Y29: =IF($U29=0, 0, IF('Dry Other Crop'!$E$9=0,0,(M29-'Dry Other Crop'!$H$10)/$U29/('Dry Other Crop'!$E$9))) -> 0

Sheet Irrigation Analysis
A2: Irrigation Analysis
A3: Farm Name | B3: ABC Farm
A4: Total Well GPM to Pivot | B4: 500
A5: Acres Available for Irrigation | B5: 120
A6: Minimum Planting Circle Size | B6: None
A7: Allowed Inches per Gross Acre | B7: 15.00
A8: Gross Acres | B8: 160
Q9: Total ROVC at Various Irrigated and Dryland Combinations
A10: Commodity | B10: Crop GPM per acre | C10: Normal GPM/Acre by Crop | D10: Limited Max Irr Acreage | E10: Maximum Irr Acreage | F10: Remaining Acres | G10: ROVC/ Acre | H10: ROVC/ Ac-In | I10: ROVC (Irr. Land) | J10: =$A27 -> Dryland Canola | K10: =A28 -> Dryland Cotton | L10: =A29 -> Dryland Sorghum | M10: =A30 -> Dryland Sorghum Sudangrass | N10: =A31 -> Dryland Sunflowers-Oilseed | O10: =A32 -> Dryland Wheat | P10: =A33 -> Dryland Other Crop | Q10: With Dryland Canola | R10: With Dryland Cotton | S10: With Dryland Sorghum | T10: With Dryland Sorg. Sundangrass | U10: With Dryland Sunfl.-Oils. | V10: With Dryland Wheat | W10: With Dryland Other Crop
A11: ='Irr Alfalfa'!$A$3:$H$3 -> Irrigated Alfalfa | B11: =Alfalfa_GPM -> 8.0 | C11: 7 to 8 | D11: =IF(Alfalfa_Inches=0,0,MIN(IF(B11=0,0,MIN($B$5,$B$4/B11)),$B$7*$B$8/Alfalfa_Inches)) -> 62 | E11: =IF((D11)>$B$5,$B$5,IF($B$6="None",(D11),FLOOR((D11),($B$5*$B$6)))) -> 62 | F11: =$B$5-E11 -> 58 | G11: ='Comparative Returns'!H7 -> $271.08 | H11: ='Comparative Returns'!O7 -> $11.30 | I11: =IF(SUBTOTAL(102,$G11)=1,G11*E11,"-") -> $16,943 | J11: =F11*$G$27 -> $203 | K11: =F11*$G$28 -> $1,717 | L11: =F11*$G$29 -> -$737 | M11: =F11*$G$30 -> $1,409 | N11: =F11*$G$31 -> $738 | O11: =F11*$G$32 -> -$210 | P11: =F11*$G$33 -> $0 | Q11: =IF(SUBTOTAL(102,$G11,$G$27)=2,IF($I11=($I11+J11),"-",($I11+J11)),"-") -> $17,145 | R11: =IF(SUBTOTAL(102,$G11,$G$28)=2,IF($I11=($I11+K11),"-",($I11+K11)),"-") -> $18,659 | S11: =IF(SUBTOTAL(102,$G11,$G$29)=2,IF($I11=($I11+L11),"-",($I11+L11)),"-") -> $16,205 | T11: =IF(SUBTOTAL(102,$G11,$G$30)=2,IF($I11=($I11+M11),"-",($I11+M11)),"-") -> $18,352 | U11: =IF(SUBTOTAL(102,$G11,$G$31)=2,IF($I11=($I11+N11),"-",($I11+N11)),"-") -> $17,681 | V11: =IF(SUBTOTAL(102,$G11,$G$32)=2,IF($I11=($I11+O11),"-",($I11+O11)),"-") -> $16,733 | W11: =IF(SUBTOTAL(102,$G11,$G$33)=2,IF($I11=($I11+P11),"-",($I11+P11)),"-") -> -
A12: ='Irr Canola'!$A$3:$H$3 -> Irrigated Canola | B12: =Canola_GPM -> 2.0 | C12: 2 to 3.5 | D12: =IF(Canola_Inches=0,0,MIN(IF(B12=0,0,MIN($B$5,$B$4/B12)),$B$7*$B$8/Canola_Inches)) -> 120 | E12: =IF((D12)>$B$5,$B$5,IF($B$6="None",(D12),FLOOR((D12),($B$5*$B$6)))) -> 120 | F12: =$B$5-E12 -> 0 | G12: ='Comparative Returns'!H8 -> $21.53 | H12: ='Comparative Returns'!O8 -> $2.15 | I12: =IF(SUBTOTAL(102,$G12)=1,G12*E12,"-") -> $2,583 | J12: $0 | K12: $0 | L12: $0 | M12: $0 | N12: $0 | O12: $0 | P12: $0 | Q12: - | R12: - | S12: - | T12: - | U12: - | V12: - | W12: -
A13: ='Irr Corn'!$A$3:$H$3 -> Irrigated Corn | B13: =Corn_GPM -> 6.0 | C13: 4.5 to 7 | D13: =IF(Corn_Inches=0,0,MIN(IF(B13=0,0,MIN($B$5,$B$4/B13)),$B$7*$B$8/Corn_Inches)) -> 83 | E13: 83 | F13: 37 | G13: ='Comparative Returns'!H9 -> $215.49 | H13: ='Comparative Returns'!O9 -> $9.80 | I13: $17,957 | J13: $129 | K13: $1,095 | L13: -$470 | M13: $899 | N13: $471 | O13: -$134 | P13: $0 | Q13: $18,086 | R13: $19,052 | S13: $17,487 | T13: $18,856 | U13: $18,428 | V13: $17,823 | W13: -
A14: ='Irr Corn Silage'!$A$3:$H$3 -> Irrigated Corn Silage | B14: =Corn_Silage_GPM -> 6.0 | C14: 4.5 to 7 | D14: =IF(Corn_Silage_Inches=0,0,MIN(IF(B14=0,0,MIN($B$5,$B$4/B14)),$B$7*$B$8/Corn_Silage_Inches)) -> 83 | E14: 83 | F14: 37 | G14: ='Comparative Returns'!H10 -> $142.43 | H14: ='Comparative Returns'!O10 -> $7.12 | I14: $11,869 | J14: $129 | K14: $1,095 | L14: -$470 | M14: $898 | N14: $471 | O14: -$134 | P14: $0 | Q14: $11,999 | R14: $12,964 | S14: $11,399 | T14: $12,768 | U14: $12,340 | V14: $11,736 | W14: -
A15: ='Irr Cotton'!$A$3:$H$3 -> Irrigated Cotton | B15: =Cotton_GPM -> 3.0 | C15: 2 to 3.5 | D15: =IF(Cotton_Inches=0,0,MIN(IF(B15=0,0,MIN($B$5,$B$4/B15)),$B$7*$B$8/Cotton_Inches)) -> 120 | E15: 120 | F15: 0 | G15: ='Comparative Returns'!H11 -> $352.95 | H15: ='Comparative Returns'!O11 -> $29.41 | I15: $42,355 | J15: $0 | K15: $0 | L15: $0 | M15: $0 | N15: $0 | O15: $0 | P15: $0 | Q15: - | R15: - | S15: - | T15: - | U15: - | V15: - | W15: -
A16: ='Irr Peanuts'!$A$3:$H$3 -> Irrigated Peanuts | B16: =Peanuts_GPM -> 5.0 | C16: 4.5 to 6 | D16: =IF(Peanuts_Inches=0,0,MIN(IF(B16=0,0,MIN($B$5,$B$4/B16)),$B$7*$B$8/Peanuts_Inches)) -> 100 | E16: 100 | F16: 20 | G16: ='Comparative Returns'!H12 -> $203.43 | H16: ='Comparative Returns'!O12 -> $9.69 | I16: $20,343 | J16: $70 | K16: $597 | L16: -$256 | M16: $490 | N16: $257 | O16: -$73 | P16: $0 | Q16: $20,413 | R16: $20,940 | S16: $20,087 | T16: $20,833 | U16: $20,600 | V16: $20,270 | W16: -
A17: ='Irr Sorghum'!$A$3:$H$3 -> Irrigated Sorghum | B17: =Sorghum_GPM -> 2.5 | C17: 3.5 to 4.5 | D17: =IF(Sorghum_Inches=0,0,MIN(IF(B17=0,0,MIN($B$5,$B$4/B17)),$B$7*$B$8/Sorghum_Inches)) -> 120 | E17: 120 | F17: 0 | G17: ='Comparative Returns'!H13 -> $7.17 | H17: ='Comparative Returns'!O13 -> $0.72 | I17: $860 | J17: $0 | K17: $0 | L17: $0 | M17: $0 | N17: $0 | O17: $0 | P17: $0 | Q17: - | R17: - | S17: - | T17: - | U17: - | V17: - | W17: -
A18: ='Irr Sorghum Seed'!$A$3:$H$3 -> Irrigated Sorghum Seed | B18: =Sorghum_Seed_GPM -> 3.1 | C18: 3.5 to 4.5 | D18: =IF(Sorghum_Seed_Inches=0,0,MIN(IF(B18=0,0,MIN($B$5,$B$4/B18)),$B$7*$B$8/Sorghum_Seed_Inches)) -> 120 | E18: 120 | F18: 0 | G18: ='Comparative Returns'!H14 -> $383.28 | H18: ='Comparative Returns'!O14 -> $23.96 | I18: $45,994 | J18: $0 | K18: $0 | L18: $0 | M18: $0 | N18: $0 | O18: $0 | P18: $0 | Q18: - | R18: - | S18: - | T18: - | U18: - | V18: - | W18: -
A19: ='Irr Sorghum Silage'!$A$3:$H$3 -> Irrigated Sorghum Silage | B19: =Sorghum_Silage_GPM -> 3.5 | C19: 3.5 to 4.5 | D19: =IF(Sorghum_Silage_Inches=0,0,MIN(IF(B19=0,0,MIN($B$5,$B$4/B19)),$B$7*$B$8/Sorghum_Silage_Inches)) -> 120 | E19: 120 | F19: 0 | G19: ='Comparative Returns'!H15 -> $156.10 | H19: ='Comparative Returns'!O15 -> $12.01 | I19: $18,732 | J19: $0 | K19: $0 | L19: $0 | M19: $0 | N19: $0 | O19: $0 | P19: $0 | Q19: - | R19: - | S19: - | T19: - | U19: - | V19: - | W19: -
A20: ='Irr Sorghum Sudangrass'!$A$3:$H$3 -> Irrigated Sorghum Sudangrass | B20: =Sorghum_Sudan_GPM -> 3.5 | C20: 3.5 to 4.5 | D20: =IF(Sorghum_Sudan_Inches=0,0,MIN(IF(B20=0,0,MIN($B$5,$B$4/B20)),$B$7*$B$8/Sorghum_Sudan_Inches)) -> 120 | E20: 120 | F20: 0 | G20: ='Comparative Returns'!H16 -> $65.82 | H20: ='Comparative Returns'!O16 -> $7.31 | I20: $7,899 | J20: $0 | K20: $0 | L20: $0 | M20: $0 | N20: $0 | O20: $0 | P20: $0 | Q20: - | R20: - | S20: - | T20: - | U20: - | V20: - | W20: -
A21: ='Irr Soybeans'!$A$3:$H$3 -> Irrigated Soybeans | B21: =Soybeans_GPM -> 3.9 | C21: 4.5 to 6 | D21: =IF(Soybeans_Inches=0,0,MIN(IF(B21=0,0,MIN($B$5,$B$4/B21)),$B$7*$B$8/Soybeans_Inches)) -> 120 | E21: 120 | F21: 0 | G21: ='Comparative Returns'!H17 -> $136.72 | H21: ='Comparative Returns'!O17 -> $9.77 | I21: $16,407 | J21: $0 | K21: $0 | L21: $0 | M21: $0 | N21: $0 | O21: $0 | P21: $0 | Q21: - | R21: - | S21: - | T21: - | U21: - | V21: - | W21: -
A22: ='Irr Sunflowers-Confection'!$A$3:$H$3 -> Irrigated Sunflowers-Confectionary | B22: =Sunflowers_Conf_GPM -> 2.0 | C22: 2 to 3.5 | D22: =IF(Sunflowers_Conf_Inches=0,0,MIN(IF(B22=0,0,MIN($B$5,$B$4/B22)),$B$7*$B$8/Sunflowers_Conf_Inches)) -> 120 | E22: 120 | F22: 0 | G22: ='Comparative Returns'!H18 -> $93.13 | H22: ='Comparative Returns'!O18 -> $13.30 | I22: $11,175 | J22: $0 | K22: $0 | L22: $0 | M22: $0 | N22: $0 | O22: $0 | P22: $0 | Q22: - | R22: - | S22: - | T22: - | U22: - | V22: - | W22: -
A23: ='Irr Sunflowers-Oilseed'!$A$3:$H$3 -> Irrigated Sunflowers-Oilseed | B23: =Sunflowers_Oil_GPM -> 2.0 | C23: 2 to 3.5 | D23: =IF(Sunflowers_Oil_Inches=0,0,MIN(IF(B23=0,0,MIN($B$5,$B$4/B23)),$B$7*$B$8/Sunflowers_Oil_Inches)) -> 120 | E23: 120 | F23: 0 | G23: ='Comparative Returns'!H19 -> $46.12 | H23: ='Comparative Returns'!O19 -> $6.59 | I23: $5,535 | J23: $0 | K23: $0 | L23: $0 | M23: $0 | N23: $0 | O23: $0 | P23: $0 | Q23: - | R23: - | S23: - | T23: - | U23: - | V23: - | W23: -
A24: ='Irr Triticale Silage'!$A$3:$H$3 -> Irrigated Triticale Silage | B24: =Triticale_Silage_GPM -> 2.7 | C24: 3.5 to 4.5 | D24: =IF(Triticale_Silage_Inches=0,0,MIN(IF(B24=0,0,MIN($B$5,$B$4/B24)),$B$7*$B$8/Triticale_Silage_Inches)) -> 120 | E24: =IF((D24)>$B$5,$B$5,IF($B$6="None",(D24),FLOOR((D24),($B$5*$B$6)))) -> 120 | F24: =$B$5-E24 -> 0 | G24: ='Comparative Returns'!H20 -> $2.09 | H24: ='Comparative Returns'!O20 -> $0.04 | I24: =IF(SUBTOTAL(102,$G24)=1,G24*E24,"-") -> $251 | J24: =F24*$G$27 -> $0 | K24: =F24*$G$28 -> $0 | L24: =F24*$G$29 -> $0 | M24: =F24*$G$30 -> $0 | N24: =F24*$G$31 -> $0 | O24: =F24*$G$32 -> $0 | P24: =F24*$G$33 -> $0 | Q24: - | R24: - | S24: - | T24: - | U24: - | V24: - | W24: -
A25: ='Irr Wheat'!$A$3:$H$3 -> Irrigated Wheat | B25: =Wheat_GPM -> 2.7 | C25: 3.5 to 4.5 | D25: =IF(Wheat_Inches=0,0,MIN(IF(B25=0,0,MIN($B$5,$B$4/B25)),$B$7*$B$8/Wheat_Inches)) -> 120 | E25: 120 | F25: 0 | G25: ='Comparative Returns'!H21 -> -$28.69 | H25: ='Comparative Returns'!O21 -> -$2.87 | I25: -$3,443 | J25: =F25*$G$27 -> $0 | K25: =F25*$G$28 -> $0 | L25: =F25*$G$29 -> $0 | M25: =F25*$G$30 -> $0 | N25: =F25*$G$31 -> $0 | O25: =F25*$G$32 -> $0 | P25: =F25*$G$33 -> $0 | Q25: - | R25: - | S25: - | T25: - | U25: - | V25: - | W25: -
A26: ='Irr Other Crop'!$A$3:$H$3 -> Irrigated Other Crop | B26: =Other_GPM -> 0.0 | C26: 2 to 8 | D26: =IF(Other_Inches=0,0,MIN(IF(B26=0,0,MIN($B$5,$B$4/B26)),$B$7*$B$8/Other_Inches)) -> 0 | E26: 0 | F26: 120 | G26: ='Comparative Returns'!H22 -> $0.00 | H26: ='Comparative Returns'!O22 -> - | I26: $0 | J26: =F26*$G$27 -> $423 | K26: =F26*$G$28 -> $3,583 | L26: =F26*$G$29 -> -$1,539 | M26: =F26*$G$30 -> $2,941 | N26: =F26*$G$31 -> $1,540 | O26: =F26*$G$32 -> -$438 | P26: =F26*$G$33 -> $0 | Q26: $423 | R26: $3,583 | S26: -$1,539 | T26: $2,941 | U26: $1,540 | V26: -$438 | W26: -
A27: ='Dry Canola'!$A$3:$H$3 -> Dryland Canola | B27: - | E27: - | F27: - | G27: ='Comparative Returns'!H23 -> $3.52 | H27: -
A28: ='Dry Cotton'!$A$3:$H$3 -> Dryland Cotton | B28: - | C28: Min Planting Circle Size | E28: - | F28: - | G28: ='Comparative Returns'!H24 -> $29.86 | H28: -
A29: ='Dry Sorghum'!$A$3:$H$3 -> Dryland Sorghum | B29: - | C29: None | E29: - | F29: - | G29: ='Comparative Returns'!H25 -> -$12.82 | H29: -
A30: ='Dry Sorghum Sudangrass'!$A$3:$H$3 -> Dryland Sorghum Sudangrass | B30: - | C30: 0.25 | E30: - | F30: - | G30: ='Comparative Returns'!H26 -> $24.51 | H30: -
A31: ='Dry Sunflowers-Oilseed'!$A$3:$H$3 -> Dryland Sunflowers-Oilseed | B31: - | C31: =1/3 -> 0.3333333333 | E31: - | F31: - | G31: ='Comparative Returns'!H27 -> $12.84 | H31: -
A32: ='Dry Wheat'!$A$3:$H$3 -> Dryland Wheat | B32: - | C32: 0.5 | E32: - | F32: - | G32: ='Comparative Returns'!H28 -> -$3.65 | H32: -
A33: ='Dry Other Crop'!$A$3:$H$3 -> Dryland Other Crop | B33: - | E33: - | F33: - | G33: ='Comparative Returns'!H29 -> $0.00 | H33: -

Sheet Graphs
A2: Irrigation Analysis Graphs
